{"text_format":"1","workbook":"xlsx","n_sheets":6,"sheets":["申込手順","入力シート","申込","プログラム男子","入力規則","申込選手一覧（個人）"],"not_rendered":{"charts":0,"images":0,"macros":1,"external_links":0,"defined_names":0,"comments":0,"pivot_tables":0},"unopened":[],"bounds":{"document_bytes":16777216,"sheet_cells":100000,"rows_first":2000,"rows_last":500,"rows_between":2000,"halvings":0,"cell_chars":16384,"cell_head_chars":4096},"cells_cut":0,"cells_raw":0,"read":"whole","date_system":"1900"}

{"sheet":"申込手順","index":0,"n_rows":22,"n_cols":11,"rows_kept":22,"cut":false,"hidden":false,"merged":[[21,0,22,0],[21,1,22,8],[21,9,22,9],[21,10,22,11],[6,1,6,9],[7,1,7,9],[10,0,10,10],[11,0,12,0],[11,1,12,11],[13,1,14,11],[15,1,16,11],[17,0,18,0],[17,1,18,11],[19,0,20,0],[19,1,20,11],[0,0,1,0],[0,1,1,3],[0,6,1,11],[2,1,3,11],[4,0,5,0],[4,1,5,11]]}
["①","入力シートに必要事項を記入し",null,null,null,null,"をクリックしてください。　郵送用の申込用紙が印刷されます。"]
[]
[null,"※用紙は「B5」でお願いします。　(団体はB5　1枚　　個人は2名でB5　1枚　に印刷されます）"]
[]
["②","印刷された、申込用紙に「公印」を押して、期日までに所定の申込先に郵送してください。（こちらが正式申込となります）"]
[]
["　　　　男子　〒534-0015　大阪市都島区善源寺町1-5-64　　℡　06-6921-0231","　　　　男子　〒532-0031　大阪市淀川区加島1-52-81 ℡ 06-6302-1035"]
["      　　　      大阪市立 都島工業高等学校　　　梅垣　穂高　先生","大阪市立　東淀工業高等学校　　　梅垣　穂高　先生"]
[]
["　　申込締切日：令和 元 年 10 月 16 日(水)正午　※郵送・メール共"]
["　　　"]
["③","入力済みのファイルを　ファイル＞名前を付けて保存＞で　"]
[]
[null,"　　　ファイル名を　「　学校番号（数字３桁）＋（学校名）＋部別（１部：1　2部：2）　」に変更して保存してください。"]
[]
[null,"　　　　　　　　例）八尾高校（学校番号434）男子２部　＝　434（八尾）2"]
[]
["④","③で保存したファイルをメールに添付して　mail@highschool.osakajudo.info　　に送信してください"]
[]
["⑤","申込メールを受理した旨の、確認メールが数日中に返信されます"]
[]
["※","個人特別枠（強化選手）で参加する者で階級変更がある場合は、郵送申し込みの参加区分の枠を右のように朱塗りしてください",null,null,null,null,null,null,null,"⇒","男子個人（特別枠）"]

{"sheet":"入力シート","index":1,"n_rows":252,"n_cols":197,"rows_kept":252,"cut":false,"hidden":false,"merged":[[745,2,746,5],[752,58,754,58],[751,49,751,53],[751,41,751,43],[751,44,751,48],[729,54,731,57],[732,2,732,65],[729,24,731,37],[768,13,769,20],[768,21,769,24],[743,0,744,65],[729,22,729,23],[729,6,729,7],[729,8,731,21],[747,6,747,37],[729,2,731,5],[735,28,736,28],[735,29,736,33],[735,38,736,47],[748,27,750,37],[748,63,750,65],[745,6,746,12],[735,17,736,21],[745,13,746,20],[729,38,731,40],[733,29,734,33],[748,51,750,62],[748,49,750,50],[752,63,754,65],[752,62,754,62],[751,22,751,23],[752,24,754,37],[8,6,8,24],[9,6,9,24],[10,6,10,24],[8,2,8,5],[9,2,9,5],[10,2,10,5],[770,6,770,37],[770,51,770,65],[768,25,769,65],[752,38,754,40],[766,0,767,65],[733,38,734,65],[729,62,731,62],[729,63,731,65],[729,58,731,58],[758,51,759,65],[752,59,754,61],[752,41,754,43],[752,54,754,57],[768,2,769,5],[753,22,754,23],[768,6,769,12],[733,16,734,16],[730,6,731,7],[751,2,751,5],[753,6,754,7],[751,6,751,7],[751,8,751,21],[752,6,752,7],[752,8,754,21],[752,2,754,5],[733,2,734,15],[774,41,774,43],[791,25,792,65],[797,54,797,65],[797,38,797,40],[797,44,797,48],[794,49,796,50],[794,38,796,48],[798,49,800,53],[779,28,780,28],[775,38,777,40],[774,44,774,48],[779,34,780,37],[9,35,9,46],[9,47,9,49],[9,50,9,61],[9,62,9,65],[10,35,10,46],[10,47,10,49],[10,50,10,61],[10,62,10,65],[771,63,773,65],[771,27,773,37],[729,44,731,48],[747,51,747,65],[729,49,731,53],[735,48,736,50],[748,6,750,26],[739,29,740,36],[739,37,740,37],[748,38,750,48],[745,25,746,65],[735,51,736,65],[4,2,4,5],[4,6,4,10],[798,62,800,62],[794,6,796,26],[794,27,796,37],[798,2,800,5],[797,49,797,53],[798,22,798,23],[802,22,803,27],[802,28,803,28],[798,8,800,21],[781,2,782,15],[798,6,798,7],[797,2,797,5],[797,6,797,7],[802,17,803,21],[797,8,797,21],[781,51,782,65],[781,38,782,47],[781,48,782,50],[802,29,803,33],[802,34,803,37],[794,63,796,65],[794,51,796,62],[802,16,803,16],[791,2,792,5],[791,6,792,12],[799,6,800,7],[799,22,800,23],[797,22,797,23],[775,41,777,43],[774,54,774,65],[804,2,805,15],[804,16,805,16],[804,17,805,21],[798,41,800,43],[798,38,800,40],[802,38,803,65],[802,2,803,15],[798,24,800,37],[804,22,805,27],[801,2,801,65],[781,29,782,33],[797,41,797,43],[793,38,793,50],[797,24,797,37],[779,38,780,65],[785,28,786,28],[781,34,782,37],[804,28,805,28],[804,29,805,33],[798,54,800,57],[804,34,805,37],[804,38,805,47],[804,48,805,50],[804,51,805,65],[798,44,800,48],[798,59,800,61],[794,2,796,5],[798,58,800,58],[798,63,800,65],[781,22,782,27],[785,37,786,37],[781,28,782,28],[793,2,793,5],[793,6,793,37],[791,13,792,20],[791,21,792,24],[789,0,790,65],[779,22,780,27],[771,2,773,5],[771,6,773,26],[770,38,770,50],[778,2,778,65],[771,51,773,62],[775,58,777,58],[775,63,777,65],[771,38,773,48],[771,49,773,50],[775,59,777,61],[781,17,782,21],[775,2,777,5],[775,6,775,7],[775,8,777,21],[781,16,782,16],[770,2,770,5],[779,16,780,16],[774,49,774,53],[775,62,777,62],[775,54,777,57],[775,44,777,48],[779,17,780,21],[775,22,775,23],[793,51,793,65],[775,49,777,53],[785,29,786,36],[774,2,774,5],[775,24,777,37],[779,2,780,15],[774,8,774,21],[774,22,774,23],[774,24,774,37],[776,6,777,7],[776,22,777,23],[779,29,780,33],[755,2,755,65],[758,38,759,47],[756,2,757,15],[756,28,757,28],[756,29,757,33],[756,34,757,37],[756,16,757,16],[756,17,757,21],[756,22,757,27],[762,29,763,36],[758,34,759,37],[758,48,759,50],[756,38,757,65],[758,22,759,27],[762,37,763,37],[758,28,759,28],[758,2,759,15],[758,16,759,16],[758,17,759,21],[758,29,759,33],[762,28,763,28],[774,6,774,7],[774,38,774,40],[747,38,747,50],[752,49,754,53],[752,44,754,48],[733,17,734,21],[733,22,734,27],[733,28,734,28],[733,34,734,37],[752,22,752,23],[720,0,721,65],[724,2,724,5],[722,2,723,5],[722,6,723,12],[706,22,706,23],[712,48,713,50],[712,51,713,65],[712,38,713,47],[710,38,711,65],[712,28,713,28],[712,29,713,33],[712,22,713,27],[751,54,751,65],[751,38,751,40],[745,21,746,24],[735,34,736,37],[739,28,740,28],[735,22,736,27],[751,24,751,37],[747,2,747,5],[748,2,750,5],[728,49,728,53],[725,49,727,50],[728,38,728,40],[725,2,727,5],[728,2,728,5],[728,6,728,7],[735,2,736,15],[735,16,736,16],[730,22,731,23],[729,41,731,43],[729,59,731,61],[706,62,708,62],[706,63,708,65],[722,13,723,20],[722,21,723,24],[728,24,728,37],[725,6,727,26],[725,27,727,37],[728,8,728,21],[728,22,728,23],[710,16,711,16],[706,59,708,61],[706,24,708,37],[724,51,724,65],[728,44,728,48],[725,63,727,65],[725,51,727,62],[728,54,728,65],[725,38,727,48],[728,41,728,43],[710,29,711,33],[706,38,708,40],[707,22,708,23],[716,29,717,36],[716,37,717,37],[724,6,724,37],[724,38,724,50],[716,28,717,28],[722,25,723,65],[705,54,705,65],[705,8,705,21],[705,22,705,23],[679,6,681,26],[689,34,690,37],[707,6,708,7],[710,17,711,21],[687,29,688,33],[689,16,690,16],[689,22,690,27],[689,17,690,21],[683,6,683,7],[683,8,685,21],[693,29,694,36],[693,28,694,28],[701,51,701,65],[699,25,700,65],[702,27,704,37],[706,44,708,48],[706,49,708,53],[706,58,708,58],[705,49,705,53],[710,28,711,28],[702,63,704,65],[702,51,704,62],[702,6,704,26],[705,24,705,37],[701,6,701,37],[705,2,705,5],[702,2,704,5],[712,34,713,37],[712,16,713,16],[705,6,705,7],[706,2,708,5],[706,6,706,7],[712,17,713,21],[706,8,708,21],[712,2,713,15],[710,22,711,27],[709,2,709,65],[710,2,711,15],[710,34,711,37],[683,58,685,58],[693,37,694,37],[706,41,708,43],[705,41,705,43],[705,44,705,48],[705,38,705,40],[702,38,704,48],[699,6,700,12],[701,38,701,50],[701,2,701,5],[702,49,704,50],[699,21,700,24],[689,29,690,33],[687,34,688,37],[687,28,688,28],[683,24,685,37],[684,22,685,23],[683,22,683,23],[683,44,685,48],[683,38,685,40],[683,41,685,43],[679,63,681,65],[679,51,681,62],[679,27,681,37],[687,2,688,15],[687,16,688,16],[683,2,685,5],[687,17,688,21],[687,22,688,27],[684,6,685,7],[683,62,685,62],[697,0,698,65],[699,13,700,20],[699,2,700,5],[706,54,708,57],[683,49,685,53],[683,63,685,65],[683,59,685,61],[683,54,685,57],[682,49,682,53],[682,2,682,5],[682,6,682,7],[682,8,682,21],[689,51,690,65],[689,38,690,47],[687,38,688,65],[686,2,686,65],[689,48,690,50],[689,2,690,15],[689,28,690,28],[676,2,677,5],[676,6,677,12],[679,2,681,5],[666,38,667,47],[666,48,667,50],[666,22,667,27],[666,28,667,28],[679,38,681,48],[682,22,682,23],[682,24,682,37],[676,21,677,24],[678,6,678,37],[674,0,675,65],[678,51,678,65],[666,2,667,15],[678,2,678,5],[666,34,667,37],[678,38,678,50],[676,25,677,65],[676,13,677,20],[670,28,671,28],[666,29,667,33],[670,37,671,37],[682,54,682,65],[679,49,681,50],[682,44,682,48],[682,38,682,40],[682,41,682,43],[664,2,665,15],[664,22,665,27],[670,29,671,36],[661,6,662,7],[664,38,665,65],[660,38,662,40],[660,41,662,43],[663,2,663,65],[666,16,667,16],[666,17,667,21],[660,8,662,21],[666,51,667,65],[660,63,662,65],[660,62,662,62],[664,16,665,16],[660,44,662,48],[660,49,662,53],[664,17,665,21],[660,22,660,23],[661,22,662,23],[660,2,662,5],[660,24,662,37],[660,6,660,7],[656,63,658,65],[656,51,658,62],[660,54,662,57],[660,59,662,61],[659,49,659,53],[660,58,662,58],[659,2,659,5],[656,49,658,50],[659,24,659,37],[664,28,665,28],[647,29,648,36],[664,34,665,37],[664,29,665,33],[643,16,644,16],[653,13,654,20],[656,2,658,5],[659,6,659,7],[647,37,648,37],[656,38,658,48],[651,0,652,65],[656,27,658,37],[643,51,644,65],[643,38,644,47],[643,17,644,21],[643,22,644,27],[643,28,644,28],[643,34,644,37],[643,29,644,33],[647,28,648,28],[653,6,654,12],[655,6,655,37],[653,21,654,24],[655,38,655,50],[655,51,655,65],[653,2,654,5],[655,2,655,5],[659,38,659,40],[659,41,659,43],[659,44,659,48],[659,54,659,65],[659,8,659,21],[653,25,654,65],[659,22,659,23],[656,6,658,26],[614,54,616,57],[614,6,614,7],[614,8,616,21],[633,49,635,50],[632,38,632,50],[637,38,639,40],[620,51,621,65],[624,29,625,36],[618,2,619,15],[643,48,644,50],[641,17,642,21],[640,2,640,65],[637,8,639,21],[632,2,632,5],[633,2,635,5],[641,29,642,33],[641,16,642,16],[641,22,642,27],[637,59,639,61],[641,2,642,15],[630,21,631,24],[633,51,635,62],[633,38,635,48],[641,34,642,37],[641,38,642,65],[643,2,644,15],[637,62,639,62],[637,63,639,65],[637,44,639,48],[637,49,639,53],[637,24,639,37],[641,28,642,28],[636,49,636,53],[636,24,636,37],[632,6,632,37],[637,2,639,5],[637,6,637,7],[637,22,637,23],[638,6,639,7],[638,22,639,23],[637,58,639,58],[637,54,639,57],[630,6,631,12],[630,13,631,20],[636,54,636,65],[636,44,636,48],[636,38,636,40],[636,41,636,43],[636,22,636,23],[637,41,639,43],[613,54,613,65],[614,24,616,37],[614,38,616,40],[614,41,616,43],[614,44,616,48],[613,38,613,40],[614,58,616,58],[614,63,616,65],[614,59,616,61],[636,8,636,21],[620,2,621,15],[615,6,616,7],[618,22,619,27],[624,28,625,28],[618,38,619,65],[628,0,629,65],[620,17,621,21],[620,22,621,27],[624,37,625,37],[613,2,613,5],[613,6,613,7],[613,8,613,21],[617,2,617,65],[614,2,616,5],[636,2,636,5],[636,6,636,7],[630,2,631,5],[632,51,632,65],[633,6,635,26],[630,25,631,65],[633,27,635,37],[633,63,635,65],[590,6,590,7],[591,59,593,61],[591,62,593,62],[597,51,598,65],[597,38,598,47],[591,63,593,65],[591,41,593,43],[594,2,594,65],[618,34,619,37],[620,34,621,37],[613,41,613,43],[620,16,621,16],[597,48,598,50],[595,38,596,65],[615,22,616,23],[618,17,619,21],[618,16,619,16],[610,6,612,26],[614,62,616,62],[607,25,608,65],[613,49,613,53],[595,2,596,15],[620,48,621,50],[618,28,619,28],[618,29,619,33],[620,28,621,28],[620,29,621,33],[620,38,621,47],[595,22,596,27],[591,44,593,48],[591,49,593,53],[614,49,616,53],[610,51,612,62],[610,27,612,37],[609,2,609,5],[610,2,612,5],[609,6,609,37],[610,38,612,48],[607,2,608,5],[607,6,608,12],[607,13,608,20],[607,21,608,24],[591,58,593,58],[592,6,593,7],[597,28,598,28],[597,29,598,33],[610,49,612,50],[591,54,593,57],[595,17,596,21],[591,24,593,37],[595,28,596,28],[595,16,596,16],[595,34,596,37],[592,22,593,23],[591,38,593,40],[591,6,591,7],[591,8,593,21],[597,34,598,37],[605,0,606,65],[591,2,593,5],[590,2,590,5],[601,29,602,36],[601,28,602,28],[597,2,598,15],[597,22,598,27],[595,29,596,33],[597,16,598,16],[597,17,598,21],[613,22,613,23],[614,22,614,23],[591,22,591,23],[601,37,602,37],[573,16,574,16],[584,25,585,65],[587,27,589,37],[587,63,589,65],[590,24,590,37],[590,38,590,40],[590,41,590,43],[590,49,590,53],[590,44,590,48],[587,51,589,62],[587,49,589,50],[590,54,590,65],[590,8,590,21],[590,22,590,23],[609,51,609,65],[613,44,613,48],[609,38,609,50],[613,24,613,37],[610,63,612,65],[587,2,589,5],[573,34,574,37],[571,28,572,28],[578,28,579,28],[578,29,579,36],[571,34,572,37],[571,29,572,33],[456,22,457,27],[451,24,451,37],[456,38,457,65],[455,2,455,65],[452,49,454,53],[456,17,457,21],[453,22,454,23],[452,59,454,61],[448,2,450,5],[448,6,450,26],[452,62,454,62],[452,41,454,43],[452,63,454,65],[452,2,454,5],[479,29,480,33],[479,34,480,37],[479,28,480,28],[479,38,480,65],[475,8,477,21],[471,38,473,48],[479,2,480,15],[456,28,457,28],[458,29,459,33],[475,63,477,65],[451,2,451,5],[571,17,572,21],[586,38,586,50],[429,41,431,43],[428,41,428,43],[435,38,436,47],[429,38,431,40],[566,41,566,43],[448,49,450,50],[586,2,586,5],[586,6,586,37],[567,54,569,57],[566,54,566,65],[567,62,569,62],[567,58,569,58],[567,59,569,61],[567,63,569,65],[571,38,572,65],[586,51,586,65],[452,22,452,23],[452,6,452,7],[453,6,454,7],[451,8,451,21],[451,22,451,23],[584,6,585,12],[584,13,585,20],[584,21,585,24],[584,2,585,5],[578,37,579,37],[573,22,574,27],[573,2,574,15],[448,63,450,65],[451,54,451,65],[573,29,574,33],[568,6,569,7],[568,22,569,23],[425,63,427,65],[462,29,463,36],[481,29,482,33],[447,6,447,37],[456,29,457,33],[428,8,428,21],[428,22,428,23],[428,49,428,53],[428,44,428,48],[428,38,428,40],[448,51,450,62],[435,51,436,65],[447,38,447,50],[447,51,447,65],[429,63,431,65],[452,8,454,21],[430,22,431,23],[456,2,457,15],[452,24,454,37],[452,54,454,57],[452,38,454,40],[435,34,436,37],[429,2,431,5],[429,24,431,37],[432,2,432,65],[429,54,431,57],[429,62,431,62],[429,58,431,58],[425,38,427,48],[429,59,431,61],[571,16,572,16],[566,24,566,37],[468,25,469,65],[448,38,450,48],[433,38,434,65],[425,51,427,62],[428,54,428,65],[429,6,429,7],[412,29,413,33],[412,28,413,28],[416,28,417,28],[424,6,424,37],[420,0,421,65],[412,38,413,47],[416,29,417,36],[412,34,413,37],[416,37,417,37],[433,28,434,28],[428,6,428,7],[433,16,434,16],[567,2,569,5],[567,6,567,7],[567,8,569,21],[570,2,570,65],[422,2,423,5],[428,2,428,5],[422,6,423,12],[424,51,424,65],[422,13,423,20],[429,8,431,21],[567,22,567,23],[567,24,569,37],[587,6,589,26],[582,0,583,65],[573,48,574,50],[573,51,574,65],[573,38,574,47],[573,17,574,21],[567,49,569,53],[567,38,569,40],[458,48,459,50],[566,49,566,53],[566,44,566,48],[566,38,566,40],[458,38,459,47],[567,41,569,43],[567,44,569,48],[587,38,589,48],[573,28,574,28],[458,2,459,15],[468,13,469,20],[458,16,459,16],[475,41,477,43],[475,2,477,5],[475,6,475,7],[475,58,477,58],[462,37,463,37],[481,48,482,50],[475,44,477,48],[471,63,473,65],[475,59,477,61],[470,2,470,5],[571,2,572,15],[571,22,572,27],[401,51,401,65],[387,29,388,33],[405,49,405,53],[406,54,408,57],[407,22,408,23],[406,22,406,23],[402,49,404,50],[382,2,382,5],[402,63,404,65],[402,38,404,48],[405,44,405,48],[402,51,404,62],[406,41,408,43],[406,38,408,40],[406,63,408,65],[406,62,408,62],[406,58,408,58],[393,37,394,37],[393,28,394,28],[402,6,404,26],[402,27,404,37],[406,6,406,7],[382,22,382,23],[383,62,385,62],[383,63,385,65],[382,41,382,43],[382,44,382,48],[383,41,385,43],[383,54,385,57],[382,54,382,65],[382,49,382,53],[402,2,404,5],[376,2,377,5],[379,6,381,26],[366,16,367,16],[378,2,378,5],[376,13,377,20],[376,25,377,65],[383,58,385,58],[383,59,385,61],[383,49,385,53],[382,6,382,7],[382,8,382,21],[366,2,367,15],[366,29,367,33],[376,6,377,12],[382,38,382,40],[382,24,382,37],[379,51,381,62],[379,49,381,50],[379,38,381,48],[383,2,385,5],[370,28,371,28],[374,0,375,65],[379,27,381,37],[383,6,383,7],[406,2,408,5],[54,41,57,43],[115,41,118,43],[139,22,139,23],[115,24,115,37],[116,24,118,37],[128,22,128,23],[117,22,118,23],[121,22,122,23],[127,63,130,65],[139,63,142,65],[135,63,138,65],[143,59,146,61],[54,38,57,40],[55,24,57,37],[66,38,69,40],[123,62,126,62],[74,44,77,48],[70,49,73,53],[82,59,85,61],[66,63,69,65],[62,62,65,62],[70,54,73,57],[70,62,73,62],[78,63,81,65],[62,63,65,65],[62,59,65,61],[84,22,85,23],[119,58,122,58],[363,2,363,65],[366,28,367,28],[378,51,378,65],[50,58,53,58],[49,54,49,65],[366,17,367,21],[192,8,194,21],[192,22,192,23],[193,22,194,23],[191,22,191,23],[139,8,139,21],[119,59,122,61],[135,62,138,62],[137,22,138,23],[136,22,136,23],[136,8,138,21],[54,62,57,62],[54,59,57,61],[54,54,57,57],[54,58,57,58],[356,6,358,26],[356,27,358,37],[127,59,130,61],[155,58,158,58],[135,58,138,58],[141,6,142,7],[131,59,134,61],[54,44,57,48],[66,8,66,21],[135,59,138,61],[143,63,146,65],[49,6,49,37],[50,8,50,21],[70,22,70,23],[366,51,367,65],[24,63,27,65],[24,44,27,48],[24,49,27,53],[12,44,15,48],[12,49,15,53],[24,41,27,43],[24,54,27,57],[16,38,19,40],[20,38,23,40],[16,62,19,62],[360,2,362,5],[364,16,365,16],[364,38,365,65],[50,63,53,65],[364,2,365,15],[364,28,365,28],[50,62,53,62],[50,59,53,61],[50,44,53,48],[139,2,142,5],[359,2,359,5],[16,8,16,21],[16,6,16,7],[20,6,20,7],[20,8,20,21],[50,24,50,37],[148,22,148,23],[143,22,143,23],[156,22,156,23],[152,6,152,7],[24,62,27,62],[49,41,49,43],[20,59,23,61],[20,62,23,62],[16,63,19,65],[20,41,23,43],[20,22,20,23],[24,58,27,58],[24,59,27,61],[24,38,27,40],[18,6,19,7],[20,63,23,65],[16,41,19,43],[16,59,19,61],[16,24,16,37],[17,22,17,23],[21,24,23,37],[21,22,21,23],[26,22,27,23],[24,24,24,37],[25,22,25,23],[22,22,23,23],[17,8,19,21],[20,54,23,57],[16,54,19,57],[16,58,19,58],[16,44,19,48],[20,58,23,58],[24,6,24,7],[24,8,24,21],[26,6,27,7],[25,6,25,7],[20,24,20,37],[18,22,19,23],[5,2,6,5],[7,2,7,5],[12,8,12,21]],"merged_total":2117,"flags":["merged_cut"]}
[null,null,null,null,null,null,null,null,null,null,null,null,null,null,null,null,null,null,null,null,null,null,null,null,null,null,null,null,null,null,null,null,null,null,null,null,null,null,null,null,null,null,null,null,null,null,null,null,null,null,null,null,null,null,null,null,null,null,null,null,null,null,null,null,null,null,null,null,null,null,null,null,null,null,null,null,null,null,null,null,null,null,null,null,null,null,null,null,null,null,null,null,null,null,null,null,null,null,null,null,null,null,null,null,null,null,null,null,null,null,null,null,null,null,null,null,null,null,null,null,null,null,null,null,null,null,null,null,null,null,null,null,null,null,null,null,null,null,null,null,null,null,null,null,null,null,null,null,null,null,null,null,null,null,null,null,null,null,null,null,null,null,null,null,null,null,null,null,null,null,null,null,null,null,null,null,null,null,null,null,null,null,null,null,"学年","段位","西暦","月","日","個人戦年度","ランク","男子階級","入賞","女子階級","登録番号","校名","校名略"]
[null,null,"男子団体",null,null,null,null,null,null,null,null,{"$f":"VLOOKUP(C9,$GM$3:$GO$255,3)","v":{"$error":"#N/A"}},null,null,null,null,null,null,null,null,null,null,null,null,null,null,null,null,null,null,null,null,null,null,null,null,null,null,null,null,null,null,null,null,null,null,null,null,null,null,null,null,null,null,null,"必須入力"]
[null,null,null,null,null,null,null,null,null,null,null,null,null,null,null,null,null,null,null,null,null,null,null,null,null,null,null,null,null,null,null,null,null,null,null,null,null,null,null,null,null,null,null,null,null,null,null,null,null,null,null,null,null,null,null,"リストから選択",null,null,null,null,null,null,null,null,null,null,null,null,null,null,null,null,null,null,null,null,null,null,null,null,null,null,null,null,null,null,null,null,null,null,null,null,null,null,null,null,null,null,null,null,null,null,null,null,null,null,null,null,null,null,null,null,null,null,null,null,null,null,null,null,null,null,null,null,null,null,null,null,null,null,null,null,null,null,null,null,null,null,null,null,null,null,null,null,null,null,null,null,null,null,null,null,null,null,null,null,null,null,null,null,null,null,null,null,null,null,null,null,null,null,null,null,null,null,null,null,null,null,null,null,null,null,null,null,1,"無",1996,1,1,25,"A",60,1,48,301,"旭","　 旭　 "]
[null,null,null,null,null,null,null,null,null,null,null,null,null,null,null,null,null,null,null,null,null,null,null,null,null,null,null,null,null,null,null,null,null,null,null,null,null,null,null,null,null,null,null,null,null,null,null,null,null,null,null,null,null,null,null,"直接入力",null,null,null,null,null,null,null,null,null,null,null,null,null,null,null,null,null,null,null,null,null,null,null,null,null,null,null,null,null,null,null,null,null,null,null,null,null,null,null,null,null,null,null,null,null,null,null,null,null,null,null,null,null,null,null,null,null,null,null,null,null,null,null,null,null,null,null,null,null,null,null,null,null,null,null,null,null,null,null,null,null,null,null,null,null,null,null,null,null,null,null,null,null,null,null,null,null,null,null,null,null,null,null,null,null,null,null,null,null,null,null,null,null,null,null,null,null,null,null,null,null,null,null,null,null,null,null,null,2,"初",1997,2,2,26,"B",66,2,52,302,"枚方なぎさ","枚方なぎ"]
[null,null,{"$f":"ROUND((COUNTA(C51:F106)+COUNTA(C112:F199))/2,0)","v":0},null,null,null,{"$f":"COUNTA(C9:BN11)","v":10},null,null,null,null,null,null,null,null,null,null,null,null,null,null,null,null,null,null,null,null,null,null,null,null,null,null,null,null,null,null,null,null,null,null,null,null,null,null,null,null,null,null,null,null,null,null,null,null,null,null,null,null,null,null,null,null,null,null,null,null,null,null,null,null,null,null,null,null,null,null,null,null,null,null,null,null,null,null,null,null,null,null,null,null,null,null,null,null,null,null,null,null,null,null,null,null,null,null,null,null,null,null,null,null,null,null,null,null,null,null,null,null,null,null,null,null,null,null,null,null,null,null,null,null,null,null,null,null,null,null,null,null,null,null,null,null,null,null,null,null,null,null,null,null,null,null,null,null,null,null,null,null,null,null,null,null,null,null,null,null,null,null,null,null,null,null,null,null,null,null,null,null,null,null,null,null,null,3,"弐",1998,3,3,27,"C",73,3,57,303,"大手前","大 手 前"]
[null,null,"※抽選番号",null,null,null,null,null,null,null,null,null,null,null,null,"第69回大阪高等学校新人柔道大会申込書（男子Ⅱ部＿連合）",null,null,null,null,null,null,null,null,null,null,null,null,null,null,null,null,null,null,null,null,null,null,null,null,null,null,null,null,null,null,null,null,null,null,null,null,null,null,null,null,null,null,null,null,null,null,null,null,null,null,null,null,null,null,null,null,null,null,null,null,null,null,null,null,null,null,null,null,null,null,null,null,null,null,null,null,null,null,null,null,null,null,null,null,null,null,null,null,null,null,null,null,null,null,null,null,null,null,null,null,null,null,null,null,null,null,null,null,null,null,null,null,null,null,null,null,null,null,null,null,null,null,null,null,null,null,null,null,null,null,null,null,null,null,null,null,null,null,null,null,null,null,null,null,null,null,null,null,null,null,null,null,null,null,null,null,null,null,null,null,null,null,null,null,null,null,null,null,4,"参",1999,4,4,28,"D",81,null,63,304,"勝山","勝　　山"]
[null,null,null,null,null,null,null,null,null,null,null,null,null,null,null,null,null,null,null,null,null,null,null,null,null,null,null,null,null,null,null,null,null,null,null,null,null,null,null,null,null,null,null,null,null,null,null,null,null,null,null,null,null,null,null,null,null,null,null,null,null,null,null,null,null,null,null,null,null,null,null,null,null,null,null,null,null,null,null,null,null,null,null,null,null,null,null,null,null,null,null,null,null,null,null,null,null,null,null,null,null,null,null,null,null,null,null,null,null,null,null,null,null,null,null,null,null,null,null,null,null,null,null,null,null,null,null,null,null,null,null,null,null,null,null,null,null,null,null,null,null,null,null,null,null,null,null,null,null,null,null,null,null,null,null,null,null,null,null,null,null,null,null,null,null,null,null,null,null,null,null,null,null,null,null,null,null,null,null,null,null,null,null,null,null,null,2000,5,5,29,null,90,null,70,305,"門真なみはや","門真なみ"]
[null,null,"学校番号",null,null,null,"学　　　　校　　　　名",null,null,null,null,null,null,null,null,null,null,null,null,null,null,null,null,null,null,null,null,null,null,null,null,null,null,null,null,"監督名",null,null,null,null,null,null,null,null,null,null,null,null,null,null,"校長名",null,null,null,null,null,null,null,null,null,null,null,null,null,null,null,null,null,null,null,null,null,null,null,null,null,null,null,null,null,null,null,null,null,null,null,null,null,null,null,null,null,null,null,null,null,null,null,null,null,null,null,null,null,null,null,null,null,null,null,null,null,null,null,null,null,null,null,null,null,null,null,null,null,null,null,null,null,null,null,null,null,null,null,null,null,null,null,null,null,null,null,null,null,null,null,null,null,null,null,null,null,null,null,null,null,null,null,null,null,null,null,null,null,null,null,null,null,null,null,null,null,null,null,null,null,null,null,null,null,null,null,null,null,null,null,2001,6,6,30,null,100,null,78,306,"門真西","門 真 西"]
[null,null,null,null,null,null,{"$f":"IF(C9=\"\",\"\",VLOOKUP(C9,$GM$3:$GO$255,2))","v":""},null,null,null,null,null,null,null,null,null,null,null,null,null,null,null,null,null,null,"連合",null,null,null,null,null,null,null,null,null,null,null,null,null,null,null,null,null,null,null,null,null,"印",null,null,null,null,null,null,null,null,null,null,null,null,null,null,"印",null,null,null,null,null,null,null,null,null,null,null,null,null,null,null,null,null,null,null,null,null,null,null,null,null,null,null,null,null,null,null,null,null,null,null,null,null,null,null,null,null,null,null,null,null,null,null,null,null,null,null,null,null,null,null,null,null,null,null,null,null,null,null,null,null,null,null,null,null,null,null,null,null,null,null,null,null,null,null,null,null,null,null,null,null,null,null,null,null,null,null,null,null,null,null,null,null,null,null,null,null,null,null,null,null,null,null,null,null,null,null,null,null,null,null,null,null,null,null,null,null,null,null,2002,7,7,31,null,"+100",null,"+78",308,"香里丘","香 里 丘"]
[null,null,null,null,null,null,{"$f":"IF(C10=\"\",\"\",VLOOKUP(C10,$GM$3:$GO$255,2))","v":""},null,null,null,null,null,null,null,null,null,null,null,null,null,null,null,null,null,null,null,null,null,null,null,null,null,null,null,null,null,null,null,null,null,null,null,null,null,null,null,null,"印",null,null,null,null,null,null,null,null,null,null,null,null,null,null,"印",null,null,null,null,null,null,null,null,null,null,null,null,null,null,null,null,null,null,null,null,null,null,null,null,null,null,null,null,null,null,null,null,null,null,null,null,null,null,null,null,null,null,null,null,null,null,null,null,null,null,null,null,null,null,null,null,null,null,null,null,null,null,null,null,null,null,null,null,null,null,null,null,null,null,null,null,null,null,null,null,null,null,null,null,null,null,null,null,null,null,null,null,null,null,null,null,null,null,null,null,null,null,null,null,null,null,null,null,null,null,null,null,null,null,null,null,null,null,null,null,null,null,null,2003,8,8,32,null,55,null,44,309,"高津","高　　津"]
[null,null,null,null,null,null,{"$f":"IF(C11=\"\",\"\",VLOOKUP(C11,$GM$3:$GO$255,2))","v":""},null,null,null,null,null,null,null,null,null,null,null,null,null,null,null,null,null,null,null,null,null,null,null,null,null,null,null,null,null,null,null,null,null,null,null,null,null,null,null,null,"印",null,null,null,null,null,null,null,null,null,null,null,null,null,null,"印",null,null,null,null,null,null,null,null,null,null,null,null,null,null,null,null,null,null,null,null,null,null,null,null,null,null,null,null,null,null,null,null,null,null,null,null,null,null,null,null,null,null,null,null,null,null,null,null,null,null,null,null,null,null,null,null,null,null,null,null,null,null,null,null,null,null,null,null,null,null,null,null,null,null,null,null,null,null,null,null,null,null,null,null,null,null,null,null,null,null,null,null,null,null,null,null,null,null,null,null,null,null,null,null,null,null,null,null,null,null,null,null,null,null,null,null,null,null,null,null,null,null,null,2004,9,9,33,null,null,null,null,310,"四條畷","四 條 畷"]
[null,null,null,null,null,null,"選手名",null,null,null,null,null,null,null,null,null,null,null,null,null,null,null,null,null,null,null,null,null,null,null,null,null,null,null,null,null,null,null,"学年",null,null,"段位",null,null,"体重（kg）",null,null,null,null,"身長（cm）",null,null,null,null,"生年月日（西暦）",null,null,null,null,null,null,null,null,null,null,null,null,null,null,null,null,null,null,null,null,null,null,null,null,null,null,null,null,null,null,null,null,null,null,null,null,null,null,null,null,null,null,null,null,null,null,null,null,null,null,null,null,null,null,null,null,null,null,null,null,null,null,null,null,null,null,null,null,null,null,null,null,null,null,null,null,null,null,null,null,null,null,null,null,null,null,null,null,null,null,null,null,null,null,null,null,null,null,null,null,null,null,null,null,null,null,null,null,null,null,null,null,null,null,null,null,null,null,null,null,null,null,null,null,null,null,null,null,null,null,null,2005,10,10,34,null,null,null,null,311,"清水谷","清 水 谷"]
[null,null,"先鋒",null,null,null,"ふりがな",null,null,null,null,null,null,null,null,null,null,null,null,null,null,null,null,null,null,null,null,null,null,null,null,null,null,null,null,null,null,null,null,null,null,null,null,null,null,null,null,null,null,null,null,null,null,null,null,null,null,null,"・",null,null,null,"・",null,null,null,null,null,null,null,null,null,null,null,null,null,null,null,null,null,null,null,null,null,null,null,null,null,null,null,null,null,null,null,null,null,null,null,null,null,null,null,null,null,null,null,null,null,null,null,null,null,null,null,null,null,null,null,null,null,null,null,null,null,null,null,null,null,null,null,null,null,null,null,null,null,null,null,null,null,null,null,null,null,null,null,null,null,null,null,null,null,null,null,null,null,null,null,null,null,null,null,null,null,null,null,null,null,null,null,null,null,null,null,null,null,null,null,null,null,null,null,null,null,null,null,2006,11,11,35,null,null,null,null,312,"緑風冠","緑 風 冠"]
[null,null,null,null,null,null,"（姓）",null,null,null,null,null,null,null,null,null,null,null,null,null,null,null,"（名）",null,null,null,null,null,null,null,null,null,null,null,null,null,null,null,null,null,null,null,null,null,null,null,null,null,null,null,null,null,null,null,null,null,null,null,null,null,null,null,null,null,null,null,null,null,null,null,null,null,null,null,null,null,null,null,null,null,null,null,null,null,null,null,null,null,null,null,null,null,null,null,null,null,null,null,null,null,null,null,null,null,null,null,null,null,null,null,null,null,null,null,null,null,null,null,null,null,null,null,null,null,null,null,null,null,null,null,null,null,null,null,null,null,null,null,null,null,null,null,null,null,null,null,null,null,null,null,null,null,null,null,null,null,null,null,null,null,null,null,null,null,null,null,null,null,null,null,null,null,null,null,null,null,null,null,null,null,null,null,null,null,null,null,2007,12,12,36,null,null,null,null,313,"かわち野","かわち野"]
[null,null,null,null,null,null,null,null,null,null,null,null,null,null,null,null,null,null,null,null,null,null,null,null,null,null,null,null,null,null,null,null,null,null,null,null,null,null,null,null,null,null,null,null,null,null,null,null,null,null,null,null,null,null,null,null,null,null,null,null,null,null,null,null,null,null,null,null,null,null,null,null,null,null,null,null,null,null,null,null,null,null,null,null,null,null,null,null,null,null,null,null,null,null,null,null,null,null,null,null,null,null,null,null,null,null,null,null,null,null,null,null,null,null,null,null,null,null,null,null,null,null,null,null,null,null,null,null,null,null,null,null,null,null,null,null,null,null,null,null,null,null,null,null,null,null,null,null,null,null,null,null,null,null,null,null,null,null,null,null,null,null,null,null,null,null,null,null,null,null,null,null,null,null,null,null,null,null,null,null,null,null,null,null,null,null,2008,null,13,37,null,null,null,null,314,"長尾","長　　尾"]
[null,null,null,null,null,null,null,null,null,null,null,null,null,null,null,null,null,null,null,null,null,null,null,null,null,null,null,null,null,null,null,null,null,null,null,null,null,null,null,null,null,null,null,null,null,null,null,null,null,null,null,null,null,null,null,null,null,null,null,null,null,null,null,null,null,null,null,null,null,null,null,null,null,null,null,null,null,null,null,null,null,null,null,null,null,null,null,null,null,null,null,null,null,null,null,null,null,null,null,null,null,null,null,null,null,null,null,null,null,null,null,null,null,null,null,null,null,null,null,null,null,null,null,null,null,null,null,null,null,null,null,null,null,null,null,null,null,null,null,null,null,null,null,null,null,null,null,null,null,null,null,null,null,null,null,null,null,null,null,null,null,null,null,null,null,null,null,null,null,null,null,null,null,null,null,null,null,null,null,null,null,null,null,null,null,null,2009,null,14,38,null,null,null,null,315,"西寝屋川","西寝屋川"]
[null,null,"中堅",null,null,null,"ふりがな",null,null,null,null,null,null,null,null,null,null,null,null,null,null,null,null,null,null,null,null,null,null,null,null,null,null,null,null,null,null,null,null,null,null,null,null,null,null,null,null,null,null,null,null,null,null,null,null,null,null,null,"・",null,null,null,"・",null,null,null,null,null,null,null,null,null,null,null,null,null,null,null,null,null,null,null,null,null,null,null,null,null,null,null,null,null,null,null,null,null,null,null,null,null,null,null,null,null,null,null,null,null,null,null,null,null,null,null,null,null,null,null,null,null,null,null,null,null,null,null,null,null,null,null,null,null,null,null,null,null,null,null,null,null,null,null,null,null,null,null,null,null,null,null,null,null,null,null,null,null,null,null,null,null,null,null,null,null,null,null,null,null,null,null,null,null,null,null,null,null,null,null,null,null,null,null,null,null,null,null,2010,null,15,39,null,null,null,null,316,"寝屋川","寝 屋 川"]
[null,null,null,null,null,null,"（姓）",null,null,null,null,null,null,null,null,null,null,null,null,null,null,null,"（名）",null,null,null,null,null,null,null,null,null,null,null,null,null,null,null,null,null,null,null,null,null,null,null,null,null,null,null,null,null,null,null,null,null,null,null,null,null,null,null,null,null,null,null,null,null,null,null,null,null,null,null,null,null,null,null,null,null,null,null,null,null,null,null,null,null,null,null,null,null,null,null,null,null,null,null,null,null,null,null,null,null,null,null,null,null,null,null,null,null,null,null,null,null,null,null,null,null,null,null,null,null,null,null,null,null,null,null,null,null,null,null,null,null,null,null,null,null,null,null,null,null,null,null,null,null,null,null,null,null,null,null,null,null,null,null,null,null,null,null,null,null,null,null,null,null,null,null,null,null,null,null,null,null,null,null,null,null,null,null,null,null,null,null,2011,null,16,40,null,null,null,null,317,"北かわち皐が丘","北かわち"]
[null,null,null,null,null,null,null,null,null,null,null,null,null,null,null,null,null,null,null,null,null,null,null,null,null,null,null,null,null,null,null,null,null,null,null,null,null,null,null,null,null,null,null,null,null,null,null,null,null,null,null,null,null,null,null,null,null,null,null,null,null,null,null,null,null,null,null,null,null,null,null,null,null,null,null,null,null,null,null,null,null,null,null,null,null,null,null,null,null,null,null,null,null,null,null,null,null,null,null,null,null,null,null,null,null,null,null,null,null,null,null,null,null,null,null,null,null,null,null,null,null,null,null,null,null,null,null,null,null,null,null,null,null,null,null,null,null,null,null,null,null,null,null,null,null,null,null,null,null,null,null,null,null,null,null,null,null,null,null,null,null,null,null,null,null,null,null,null,null,null,null,null,null,null,null,null,null,null,null,null,null,null,null,null,null,null,2012,null,17,41,null,null,null,null,318,"枚方","枚　　方"]
[null,null,null,null,null,null,null,null,null,null,null,null,null,null,null,null,null,null,null,null,null,null,null,null,null,null,null,null,null,null,null,null,null,null,null,null,null,null,null,null,null,null,null,null,null,null,null,null,null,null,null,null,null,null,null,null,null,null,null,null,null,null,null,null,null,null,null,null,null,null,null,null,null,null,null,null,null,null,null,null,null,null,null,null,null,null,null,null,null,null,null,null,null,null,null,null,null,null,null,null,null,null,null,null,null,null,null,null,null,null,null,null,null,null,null,null,null,null,null,null,null,null,null,null,null,null,null,null,null,null,null,null,null,null,null,null,null,null,null,null,null,null,null,null,null,null,null,null,null,null,null,null,null,null,null,null,null,null,null,null,null,null,null,null,null,null,null,null,null,null,null,null,null,null,null,null,null,null,null,null,null,null,null,null,null,null,2013,null,18,42,null,null,null,null,319,"牧野","牧　　野"]
[null,null,"大将",null,null,null,"ふりがな",null,null,null,null,null,null,null,null,null,null,null,null,null,null,null,null,null,null,null,null,null,null,null,null,null,null,null,null,null,null,null,null,null,null,null,null,null,null,null,null,null,null,null,null,null,null,null,null,null,null,null,"・",null,null,null,"・",null,null,null,null,null,null,null,null,null,null,null,null,null,null,null,null,null,null,null,null,null,null,null,null,null,null,null,null,null,null,null,null,null,null,null,null,null,null,null,null,null,null,null,null,null,null,null,null,null,null,null,null,null,null,null,null,null,null,null,null,null,null,null,null,null,null,null,null,null,null,null,null,null,null,null,null,null,null,null,null,null,null,null,null,null,null,null,null,null,null,null,null,null,null,null,null,null,null,null,null,null,null,null,null,null,null,null,null,null,null,null,null,null,null,null,null,null,null,null,null,null,null,null,2014,null,19,43,null,null,null,null,320,"茨田","茨　　田"]
[null,null,null,null,null,null,"（姓）",null,null,null,null,null,null,null,null,null,null,null,null,null,null,null,"（名）",null,null,null,null,null,null,null,null,null,null,null,null,null,null,null,null,null,null,null,null,null,null,null,null,null,null,null,null,null,null,null,null,null,null,null,null,null,null,null,null,null,null,null,null,null,null,null,null,null,null,null,null,null,null,null,null,null,null,null,null,null,null,null,null,null,null,null,null,null,null,null,null,null,null,null,null,null,null,null,null,null,null,null,null,null,null,null,null,null,null,null,null,null,null,null,null,null,null,null,null,null,null,null,null,null,null,null,null,null,null,null,null,null,null,null,null,null,null,null,null,null,null,null,null,null,null,null,null,null,null,null,null,null,null,null,null,null,null,null,null,null,null,null,null,null,null,null,null,null,null,null,null,null,null,null,null,null,null,null,null,null,null,null,2015,null,20,44,null,null,null,null,322,"芦間","芦　　間"]
[null,null,null,null,null,null,null,null,null,null,null,null,null,null,null,null,null,null,null,null,null,null,null,null,null,null,null,null,null,null,null,null,null,null,null,null,null,null,null,null,null,null,null,null,null,null,null,null,null,null,null,null,null,null,null,null,null,null,null,null,null,null,null,null,null,null,null,null,null,null,null,null,null,null,null,null,null,null,null,null,null,null,null,null,null,null,null,null,null,null,null,null,null,null,null,null,null,null,null,null,null,null,null,null,null,null,null,null,null,null,null,null,null,null,null,null,null,null,null,null,null,null,null,null,null,null,null,null,null,null,null,null,null,null,null,null,null,null,null,null,null,null,null,null,null,null,null,null,null,null,null,null,null,null,null,null,null,null,null,null,null,null,null,null,null,null,null,null,null,null,null,null,null,null,null,null,null,null,null,null,null,null,null,null,null,null,2016,null,21,45,null,null,null,null,323,"守口東","守 口 東"]
[null,null,null,null,null,null,null,null,null,null,null,null,null,null,null,null,null,null,null,null,null,null,null,null,null,null,null,null,null,null,null,null,null,null,null,null,null,null,null,null,null,null,null,null,null,null,null,null,null,null,null,null,null,null,null,null,null,null,null,null,null,null,null,null,null,null,null,null,null,null,null,null,null,null,null,null,null,null,null,null,null,null,null,null,null,null,null,null,null,null,null,null,null,null,null,null,null,null,null,null,null,null,null,null,null,null,null,null,null,null,null,null,null,null,null,null,null,null,null,null,null,null,null,null,null,null,null,null,null,null,null,null,null,null,null,null,null,null,null,null,null,null,null,null,null,null,null,null,null,null,null,null,null,null,null,null,null,null,null,null,null,null,null,null,null,null,null,null,null,null,null,null,null,null,null,null,null,null,null,null,null,null,null,null,null,null,2017,null,22,46,null,null,null,null,324,"夕陽丘","夕 陽 丘"]
[null,null,"補欠",null,null,null,"ふりがな",null,null,null,null,null,null,null,null,null,null,null,null,null,null,null,null,null,null,null,null,null,null,null,null,null,null,null,null,null,null,null,null,null,null,null,null,null,null,null,null,null,null,null,null,null,null,null,null,null,null,null,"・",null,null,null,"・",null,null,null,null,null,null,null,null,null,null,null,null,null,null,null,null,null,null,null,null,null,null,null,null,null,null,null,null,null,null,null,null,null,null,null,null,null,null,null,null,null,null,null,null,null,null,null,null,null,null,null,null,null,null,null,null,null,null,null,null,null,null,null,null,null,null,null,null,null,null,null,null,null,null,null,null,null,null,null,null,null,null,null,null,null,null,null,null,null,null,null,null,null,null,null,null,null,null,null,null,null,null,null,null,null,null,null,null,null,null,null,null,null,null,null,null,null,null,null,null,null,null,null,2018,null,23,47,null,null,null,null,325,"城東工科","城東工科"]
[null,null,null,null,null,null,"（姓）",null,null,null,null,null,null,null,null,null,null,null,null,null,null,null,"（名）",null,null,null,null,null,null,null,null,null,null,null,null,null,null,null,null,null,null,null,null,null,null,null,null,null,null,null,null,null,null,null,null,null,null,null,null,null,null,null,null,null,null,null,null,null,null,null,null,null,null,null,null,null,null,null,null,null,null,null,null,null,null,null,null,null,null,null,null,null,null,null,null,null,null,null,null,null,null,null,null,null,null,null,null,null,null,null,null,null,null,null,null,null,null,null,null,null,null,null,null,null,null,null,null,null,null,null,null,null,null,null,null,null,null,null,null,null,null,null,null,null,null,null,null,null,null,null,null,null,null,null,null,null,null,null,null,null,null,null,null,null,null,null,null,null,null,null,null,null,null,null,null,null,null,null,null,null,null,null,null,null,null,null,2019,null,24,48,null,null,null,null,326,"成城","成　　城"]
[null,null,null,null,null,null,null,null,null,null,null,null,null,null,null,null,null,null,null,null,null,null,null,null,null,null,null,null,null,null,null,null,null,null,null,null,null,null,null,null,null,null,null,null,null,null,null,null,null,null,null,null,null,null,null,null,null,null,null,null,null,null,null,null,null,null,null,null,null,null,null,null,null,null,null,null,null,null,null,null,null,null,null,null,null,null,null,null,null,null,null,null,null,null,null,null,null,null,null,null,null,null,null,null,null,null,null,null,null,null,null,null,null,null,null,null,null,null,null,null,null,null,null,null,null,null,null,null,null,null,null,null,null,null,null,null,null,null,null,null,null,null,null,null,null,null,null,null,null,null,null,null,null,null,null,null,null,null,null,null,null,null,null,null,null,null,null,null,null,null,null,null,null,null,null,null,null,null,null,null,null,null,null,null,null,null,2020,null,25,49,null,null,null,null,327,"淀川工科","淀川工科"]
[null,null,null,null,null,null,null,null,null,null,null,null,null,null,null,null,null,null,null,null,null,null,null,null,null,null,null,null,null,null,null,null,null,null,null,null,null,null,null,null,null,null,null,null,null,null,null,null,null,null,null,null,null,null,null,null,null,null,null,null,null,null,null,null,null,null,null,null,null,null,null,null,null,null,null,null,null,null,null,null,null,null,null,null,null,null,null,null,null,null,null,null,null,null,null,null,null,null,null,null,null,null,null,null,null,null,null,null,null,null,null,null,null,null,null,null,null,null,null,null,null,null,null,null,null,null,null,null,null,null,null,null,null,null,null,null,null,null,null,null,null,null,null,null,null,null,null,null,null,null,null,null,null,null,null,null,null,null,null,null,null,null,null,null,null,null,null,null,null,null,null,null,null,null,null,null,null,null,null,null,null,null,null,null,null,null,null,null,26,50,null,null,null,null,329,"扇町総合","扇町総合"]
[null,null,null,null,null,null,null,null,null,null,null,null,null,null,null,null,null,null,null,null,null,null,null,null,null,null,null,null,null,null,null,null,null,null,null,null,null,null,null,null,null,null,null,null,null,null,null,null,null,null,null,null,null,null,null,null,null,null,null,null,null,null,null,null,null,null,null,null,null,null,null,null,null,null,null,null,null,null,null,null,null,null,null,null,null,null,null,null,null,null,null,null,null,null,null,null,null,null,null,null,null,null,null,null,null,null,null,null,null,null,null,null,null,null,null,null,null,null,null,null,null,null,null,null,null,null,null,null,null,null,null,null,null,null,null,null,null,null,null,null,null,null,null,null,null,null,null,null,null,null,null,null,null,null,null,null,null,null,null,null,null,null,null,null,null,null,null,null,null,null,null,null,null,null,null,null,null,null,null,null,null,null,null,null,null,null,null,null,27,51,null,null,null,null,330,"大阪市立","大阪市立"]
[null,null,null,null,null,null,null,null,null,null,null,null,null,null,null,null,null,null,null,null,null,null,null,null,null,null,null,null,null,null,null,null,null,null,null,null,null,null,null,null,null,null,null,null,null,null,null,null,null,null,null,null,null,null,null,null,null,null,null,null,null,null,null,null,null,null,null,null,null,null,null,null,null,null,null,null,null,null,null,null,null,null,null,null,null,null,null,null,null,null,null,null,null,null,null,null,null,null,null,null,null,null,null,null,null,null,null,null,null,null,null,null,null,null,null,null,null,null,null,null,null,null,null,null,null,null,null,null,null,null,null,null,null,null,null,null,null,null,null,null,null,null,null,null,null,null,null,null,null,null,null,null,null,null,null,null,null,null,null,null,null,null,null,null,null,null,null,null,null,null,null,null,null,null,null,null,null,null,null,null,null,null,null,null,null,null,null,null,28,52,null,null,null,null,331,"桜宮","桜　　宮"]
[null,null,null,null,null,null,null,null,null,null,null,null,null,null,null,null,null,null,null,null,null,null,null,null,null,null,null,null,null,null,null,null,null,null,null,null,null,null,null,null,null,null,null,null,null,null,null,null,null,null,null,null,null,null,null,null,null,null,null,null,null,null,null,null,null,null,null,null,null,null,null,null,null,null,null,null,null,null,null,null,null,null,null,null,null,null,null,null,null,null,null,null,null,null,null,null,null,null,null,null,null,null,null,null,null,null,null,null,null,null,null,null,null,null,null,null,null,null,null,null,null,null,null,null,null,null,null,null,null,null,null,null,null,null,null,null,null,null,null,null,null,null,null,null,null,null,null,null,null,null,null,null,null,null,null,null,null,null,null,null,null,null,null,null,null,null,null,null,null,null,null,null,null,null,null,null,null,null,null,null,null,null,null,null,null,null,null,null,29,53,null,null,null,null,332,"汎愛","汎　　愛"]
[null,null,null,null,null,null,null,null,null,null,null,null,null,null,null,null,null,null,null,null,null,null,null,null,null,null,null,null,null,null,null,null,null,null,null,null,null,null,null,null,null,null,null,null,null,null,null,null,null,null,null,null,null,null,null,null,null,null,null,null,null,null,null,null,null,null,null,null,null,null,null,null,null,null,null,null,null,null,null,null,null,null,null,null,null,null,null,null,null,null,null,null,null,null,null,null,null,null,null,null,null,null,null,null,null,null,null,null,null,null,null,null,null,null,null,null,null,null,null,null,null,null,null,null,null,null,null,null,null,null,null,null,null,null,null,null,null,null,null,null,null,null,null,null,null,null,null,null,null,null,null,null,null,null,null,null,null,null,null,null,null,null,null,null,null,null,null,null,null,null,null,null,null,null,null,null,null,null,null,null,null,null,null,null,null,null,null,null,30,54,null,null,null,null,333,"東","　 東　 "]
[null,null,null,null,null,null,null,null,null,null,null,null,null,null,null,null,null,null,null,null,null,null,null,null,null,null,null,null,null,null,null,null,null,null,null,null,null,null,null,null,null,null,null,null,null,null,null,null,null,null,null,null,null,null,null,null,null,null,null,null,null,null,null,null,null,null,null,null,null,null,null,null,null,null,null,null,null,null,null,null,null,null,null,null,null,null,null,null,null,null,null,null,null,null,null,null,null,null,null,null,null,null,null,null,null,null,null,null,null,null,null,null,null,null,null,null,null,null,null,null,null,null,null,null,null,null,null,null,null,null,null,null,null,null,null,null,null,null,null,null,null,null,null,null,null,null,null,null,null,null,null,null,null,null,null,null,null,null,null,null,null,null,null,null,null,null,null,null,null,null,null,null,null,null,null,null,null,null,null,null,null,null,null,null,null,null,null,null,31,55,null,null,null,null,334,"南","　 南　 "]
[null,null,null,null,null,null,null,null,null,null,null,null,null,null,null,null,null,null,null,null,null,null,null,null,null,null,null,null,null,null,null,null,null,null,null,null,null,null,null,null,null,null,null,null,null,null,null,null,null,null,null,null,null,null,null,null,null,null,null,null,null,null,null,null,null,null,null,null,null,null,null,null,null,null,null,null,null,null,null,null,null,null,null,null,null,null,null,null,null,null,null,null,null,null,null,null,null,null,null,null,null,null,null,null,null,null,null,null,null,null,null,null,null,null,null,null,null,null,null,null,null,null,null,null,null,null,null,null,null,null,null,null,null,null,null,null,null,null,null,null,null,null,null,null,null,null,null,null,null,null,null,null,null,null,null,null,null,null,null,null,null,null,null,null,null,null,null,null,null,null,null,null,null,null,null,null,null,null,null,null,null,null,null,null,null,null,null,null,null,null,null,null,null,null,335,"生野工業","生野工業"]
[null,null,null,null,null,null,null,null,null,null,null,null,null,null,null,null,null,null,null,null,null,null,null,null,null,null,null,null,null,null,null,null,null,null,null,null,null,null,null,null,null,null,null,null,null,null,null,null,null,null,null,null,null,null,null,null,null,null,null,null,null,null,null,null,null,null,null,null,null,null,null,null,null,null,null,null,null,null,null,null,null,null,null,null,null,null,null,null,null,null,null,null,null,null,null,null,null,null,null,null,null,null,null,null,null,null,null,null,null,null,null,null,null,null,null,null,null,null,null,null,null,null,null,null,null,null,null,null,null,null,null,null,null,null,null,null,null,null,null,null,null,null,null,null,null,null,null,null,null,null,null,null,null,null,null,null,null,null,null,null,null,null,null,null,null,null,null,null,null,null,null,null,null,null,null,null,null,null,null,null,null,null,null,null,null,null,null,null,null,null,null,null,null,null,336,"都島工業","都島工業"]
[null,null,null,null,null,null,null,null,null,null,null,null,null,null,null,null,null,null,null,null,null,null,null,null,null,null,null,null,null,null,null,null,null,null,null,null,null,null,null,null,null,null,null,null,null,null,null,null,null,null,null,null,null,null,null,null,null,null,null,null,null,null,null,null,null,null,null,null,null,null,null,null,null,null,null,null,null,null,null,null,null,null,null,null,null,null,null,null,null,null,null,null,null,null,null,null,null,null,null,null,null,null,null,null,null,null,null,null,null,null,null,null,null,null,null,null,null,null,null,null,null,null,null,null,null,null,null,null,null,null,null,null,null,null,null,null,null,null,null,null,null,null,null,null,null,null,null,null,null,null,null,null,null,null,null,null,null,null,null,null,null,null,null,null,null,null,null,null,null,null,null,null,null,null,null,null,null,null,null,null,null,null,null,null,null,null,null,null,null,null,null,null,null,null,338,"常翔学園","常翔学園"]
[null,null,null,null,null,null,null,null,null,null,null,null,null,null,null,null,null,null,null,null,null,null,null,null,null,null,null,null,null,null,null,null,null,null,null,null,null,null,null,null,null,null,null,null,null,null,null,null,null,null,null,null,null,null,null,null,null,null,null,null,null,null,null,null,null,null,null,null,null,null,null,null,null,null,null,null,null,null,null,null,null,null,null,null,null,null,null,null,null,null,null,null,null,null,null,null,null,null,null,null,null,null,null,null,null,null,null,null,null,null,null,null,null,null,null,null,null,null,null,null,null,null,null,null,null,null,null,null,null,null,null,null,null,null,null,null,null,null,null,null,null,null,null,null,null,null,null,null,null,null,null,null,null,null,null,null,null,null,null,null,null,null,null,null,null,null,null,null,null,null,null,null,null,null,null,null,null,null,null,null,null,null,null,null,null,null,null,null,null,null,null,null,null,null,339,"大阪産業大学附属","大産大附"]
[null,null,null,null,null,null,null,null,null,null,null,null,null,null,null,null,null,null,null,null,null,null,null,null,null,null,null,null,null,null,null,null,null,null,null,null,null,null,null,null,null,null,null,null,null,null,null,null,null,null,null,null,null,null,null,null,null,null,null,null,null,null,null,null,null,null,null,null,null,null,null,null,null,null,null,null,null,null,null,null,null,null,null,null,null,null,null,null,null,null,null,null,null,null,null,null,null,null,null,null,null,null,null,null,null,null,null,null,null,null,null,null,null,null,null,null,null,null,null,null,null,null,null,null,null,null,null,null,null,null,null,null,null,null,null,null,null,null,null,null,null,null,null,null,null,null,null,null,null,null,null,null,null,null,null,null,null,null,null,null,null,null,null,null,null,null,null,null,null,null,null,null,null,null,null,null,null,null,null,null,null,null,null,null,null,null,null,null,null,null,null,null,null,null,340,"追手門大手前","追手門大"]
[null,null,null,null,null,null,null,null,null,null,null,null,null,null,null,null,null,null,null,null,null,null,null,null,null,null,null,null,null,null,null,null,null,null,null,null,null,null,null,null,null,null,null,null,null,null,null,null,null,null,null,null,null,null,null,null,null,null,null,null,null,null,null,null,null,null,null,null,null,null,null,null,null,null,null,null,null,null,null,null,null,null,null,null,null,null,null,null,null,null,null,null,null,null,null,null,null,null,null,null,null,null,null,null,null,null,null,null,null,null,null,null,null,null,null,null,null,null,null,null,null,null,null,null,null,null,null,null,null,null,null,null,null,null,null,null,null,null,null,null,null,null,null,null,null,null,null,null,null,null,null,null,null,null,null,null,null,null,null,null,null,null,null,null,null,null,null,null,null,null,null,null,null,null,null,null,null,null,null,null,null,null,null,null,null,null,null,null,null,null,null,null,null,null,341,"常翔啓光学園","常翔啓光"]
[null,null,null,null,null,null,null,null,null,null,null,null,null,null,null,null,null,null,null,null,null,null,null,null,null,null,null,null,null,null,null,null,null,null,null,null,null,null,null,null,null,null,null,null,null,null,null,null,null,null,null,null,null,null,null,null,null,null,null,null,null,null,null,null,null,null,null,null,null,null,null,null,null,null,null,null,null,null,null,null,null,null,null,null,null,null,null,null,null,null,null,null,null,null,null,null,null,null,null,null,null,null,null,null,null,null,null,null,null,null,null,null,null,null,null,null,null,null,null,null,null,null,null,null,null,null,null,null,null,null,null,null,null,null,null,null,null,null,null,null,null,null,null,null,null,null,null,null,null,null,null,null,null,null,null,null,null,null,null,null,null,null,null,null,null,null,null,null,null,null,null,null,null,null,null,null,null,null,null,null,null,null,null,null,null,null,null,null,null,null,null,null,null,null,342,"大阪偕星学園","大阪偕星"]
[null,null,null,null,null,null,null,null,null,null,null,null,null,null,null,null,null,null,null,null,null,null,null,null,null,null,null,null,null,null,null,null,null,null,null,null,null,null,null,null,null,null,null,null,null,null,null,null,null,null,null,null,null,null,null,null,null,null,null,null,null,null,null,null,null,null,null,null,null,null,null,null,null,null,null,null,null,null,null,null,null,null,null,null,null,null,null,null,null,null,null,null,null,null,null,null,null,null,null,null,null,null,null,null,null,null,null,null,null,null,null,null,null,null,null,null,null,null,null,null,null,null,null,null,null,null,null,null,null,null,null,null,null,null,null,null,null,null,null,null,null,null,null,null,null,null,null,null,null,null,null,null,null,null,null,null,null,null,null,null,null,null,null,null,null,null,null,null,null,null,null,null,null,null,null,null,null,null,null,null,null,null,null,null,null,null,null,null,null,null,null,null,null,null,343,"太成学院大学","太成学院"]
[null,null,null,null,null,null,null,null,null,null,null,null,null,null,null,null,null,null,null,null,null,null,null,null,null,null,null,null,null,null,null,null,null,null,null,null,null,null,null,null,null,null,null,null,null,null,null,null,null,null,null,null,null,null,null,null,null,null,null,null,null,null,null,null,null,null,null,null,null,null,null,null,null,null,null,null,null,null,null,null,null,null,null,null,null,null,null,null,null,null,null,null,null,null,null,null,null,null,null,null,null,null,null,null,null,null,null,null,null,null,null,null,null,null,null,null,null,null,null,null,null,null,null,null,null,null,null,null,null,null,null,null,null,null,null,null,null,null,null,null,null,null,null,null,null,null,null,null,null,null,null,null,null,null,null,null,null,null,null,null,null,null,null,null,null,null,null,null,null,null,null,null,null,null,null,null,null,null,null,null,null,null,null,null,null,null,null,null,null,null,null,null,null,null,344,"電通大","電 通 大"]
[null,null,null,null,null,null,null,null,null,null,null,null,null,null,null,null,null,null,null,null,null,null,null,null,null,null,null,null,null,null,null,null,null,null,null,null,null,null,null,null,null,null,null,null,null,null,null,null,null,null,null,null,null,null,null,null,null,null,null,null,null,null,null,null,null,null,null,null,null,null,null,null,null,null,null,null,null,null,null,null,null,null,null,null,null,null,null,null,null,null,null,null,null,null,null,null,null,null,null,null,null,null,null,null,null,null,null,null,null,null,null,null,null,null,null,null,null,null,null,null,null,null,null,null,null,null,null,null,null,null,null,null,null,null,null,null,null,null,null,null,null,null,null,null,null,null,null,null,null,null,null,null,null,null,null,null,null,null,null,null,null,null,null,null,null,null,null,null,null,null,null,null,null,null,null,null,null,null,null,null,null,null,null,null,null,null,null,null,null,null,null,null,null,null,345,"同志社香里","同志社香"]
[null,null,null,null,null,null,null,null,null,null,null,null,null,null,null,null,null,null,null,null,null,null,null,null,null,null,null,null,null,null,null,null,null,null,null,null,null,null,null,null,null,null,null,null,null,null,null,null,null,null,null,null,null,null,null,null,null,null,null,null,null,null,null,null,null,null,null,null,null,null,null,null,null,null,null,null,null,null,null,null,null,null,null,null,null,null,null,null,null,null,null,null,null,null,null,null,null,null,null,null,null,null,null,null,null,null,null,null,null,null,null,null,null,null,null,null,null,null,null,null,null,null,null,null,null,null,null,null,null,null,null,null,null,null,null,null,null,null,null,null,null,null,null,null,null,null,null,null,null,null,null,null,null,null,null,null,null,null,null,null,null,null,null,null,null,null,null,null,null,null,null,null,null,null,null,null,null,null,null,null,null,null,null,null,null,null,null,null,null,null,null,null,null,null,346,"開明","開　　明"]
[null,null,null,null,null,null,null,null,null,null,null,null,null,null,null,null,null,null,null,null,null,null,null,null,null,null,null,null,null,null,null,null,null,null,null,null,null,null,null,null,null,null,null,null,null,null,null,null,null,null,null,null,null,null,null,null,null,null,null,null,null,null,null,null,null,null,null,null,null,null,null,null,null,null,null,null,null,null,null,null,null,null,null,null,null,null,null,null,null,null,null,null,null,null,null,null,null,null,null,null,null,null,null,null,null,null,null,null,null,null,null,null,null,null,null,null,null,null,null,null,null,null,null,null,null,null,null,null,null,null,null,null,null,null,null,null,null,null,null,null,null,null,null,null,null,null,null,null,null,null,null,null,null,null,null,null,null,null,null,null,null,null,null,null,null,null,null,null,null,null,null,null,null,null,null,null,null,null,null,null,null,null,null,null,null,null,null,null,null,null,null,null,null,null,347,"東海大学付属仰星","東海仰星"]
[null,null,null,null,null,null,null,null,null,null,null,null,null,null,null,null,null,null,null,null,null,null,null,null,null,null,null,null,null,null,null,null,null,null,null,null,null,null,null,null,null,null,null,null,null,null,null,null,null,null,null,null,null,null,null,null,null,null,null,null,null,null,null,null,null,null,null,null,null,null,null,null,null,null,null,null,null,null,null,null,null,null,null,null,null,null,null,null,null,null,null,null,null,null,null,null,null,null,null,null,null,null,null,null,null,null,null,null,null,null,null,null,null,null,null,null,null,null,null,null,null,null,null,null,null,null,null,null,null,null,null,null,null,null,null,null,null,null,null,null,null,null,null,null,null,null,null,null,null,null,null,null,null,null,null,null,null,null,null,null,null,null,null,null,null,null,null,null,null,null,null,null,null,null,null,null,null,null,null,null,null,null,null,null,null,null,null,null,null,null,null,null,null,null,348,"泉尾","泉　　尾"]
[null,null,"男子個人",null,null,null,null,null,null,null,null,null,null,null,"第69回大阪高等学校新人柔道大会",null,null,null,null,null,null,null,null,null,null,null,null,null,null,null,null,null,null,null,null,null,null,null,null,null,null,null,null,null,null,null,null,null,null,null,null,null,null,null,null,null,null,null,null,null,null,null,null,null,null,null,null,null,null,null,null,null,null,null,null,null,null,null,null,null,null,null,null,null,null,null,null,null,null,null,null,null,null,null,null,null,null,null,null,null,null,null,null,null,null,null,null,null,null,null,null,null,null,null,null,null,null,null,null,null,null,null,null,null,null,null,null,null,null,null,null,null,null,null,null,null,null,null,null,null,null,null,null,null,null,null,null,null,null,null,null,null,null,null,null,null,null,null,null,null,null,null,null,null,null,null,null,null,null,null,null,null,null,null,null,null,null,null,null,null,null,null,null,null,null,null,null,null,null,null,null,null,null,null,349,"和泉","和　　泉"]
[null,null,null,null,null,null,null,null,null,null,null,null,null,null,null,null,null,null,null,null,null,null,null,null,null,null,null,null,null,null,null,null,null,null,null,null,null,null,null,null,null,null,null,null,null,null,null,null,null,null,null,null,null,null,null,null,null,null,null,null,null,null,null,null,null,null,null,null,null,null,null,null,null,null,null,null,null,null,null,null,null,null,null,null,null,null,null,null,null,null,null,null,null,null,null,null,null,null,null,null,null,null,null,null,null,null,null,null,null,null,null,null,null,null,null,null,null,null,null,null,null,null,null,null,null,null,null,null,null,null,null,null,null,null,null,null,null,null,null,null,null,null,null,null,null,null,null,null,null,null,null,null,null,null,null,null,null,null,null,null,null,null,null,null,null,null,null,null,null,null,null,null,null,null,null,null,null,null,null,null,null,null,null,null,null,null,null,null,null,null,null,null,null,null,350,"泉大津","泉 大 津"]
[null,null,null,null,null,null,null,null,null,null,null,null,null,null,null,null,null,null,null,null,null,null,null,null,null,null,null,null,null,null,null,null,null,null,null,null,null,null,null,null,null,null,null,null,null,null,null,null,null,null,null,null,null,null,null,null,null,null,null,null,null,null,null,null,null,null,null,null,null,null,null,null,null,null,null,null,null,null,null,null,null,null,null,null,null,null,null,null,null,null,null,null,null,null,null,null,null,null,null,null,null,null,null,null,null,null,null,null,null,null,null,null,null,null,null,null,null,null,null,null,null,null,null,null,null,null,null,null,null,null,null,null,null,null,null,null,null,null,null,null,null,null,null,null,null,null,null,null,null,null,null,null,null,null,null,null,null,null,null,null,null,null,null,null,null,null,null,null,null,null,null,null,null,null,null,null,null,null,null,null,null,null,null,null,null,null,null,null,null,null,null,null,null,null,351,"泉鳥取","泉 鳥 取"]
[null,null,"階級",null,null,null,"選手名",null,null,null,null,null,null,null,null,null,null,null,null,null,null,null,null,null,null,null,null,null,null,null,null,null,null,null,null,null,null,null,"学年",null,null,"段位",null,null,"体重（kg）",null,null,null,null,"身長（cm）",null,null,null,null,"生年月日（西暦）",null,null,null,null,null,null,null,null,null,null,null,null,null,null,null,null,null,null,null,null,null,null,null,null,null,null,null,null,null,null,null,null,null,null,null,null,null,null,null,null,null,null,null,null,null,null,null,null,null,null,null,null,null,null,null,null,null,null,null,null,null,null,null,null,null,null,null,null,null,null,null,null,null,null,null,null,null,null,null,null,null,null,null,null,null,null,null,null,null,null,null,null,null,null,null,null,null,null,null,null,null,null,null,null,null,null,null,null,null,null,null,null,null,null,null,null,null,null,null,null,null,null,null,null,null,null,null,null,null,null,null,null,null,null,null,null,null,null,null,352,"市岡","市　　岡"]
[null,null,null,null,null,null,"ふりがな",null,null,null,null,null,null,null,null,null,null,null,null,null,null,null,null,null,null,null,null,null,null,null,null,null,null,null,null,null,null,null,null,null,null,null,null,null,null,null,null,null,null,null,null,null,null,null,null,null,null,null,"・",null,null,null,"・",null,null,null,null,null,null,null,null,null,null,null,null,null,null,null,null,null,null,null,null,null,null,null,null,null,null,null,null,null,null,null,null,null,null,null,null,null,null,null,null,null,null,null,null,null,null,null,null,null,null,null,null,null,null,null,null,null,null,null,null,null,null,null,null,null,null,null,null,null,null,null,null,null,null,null,null,null,null,null,null,null,null,null,null,null,null,null,null,null,null,null,null,null,null,null,null,null,null,null,null,null,null,null,null,null,null,null,null,null,null,null,null,null,null,null,null,null,null,null,null,null,null,null,null,null,null,null,null,null,null,null,353,"今宮","今　　宮"]
[null,null,null,null,null,null,"（姓）",null,null,null,null,null,null,null,null,null,null,null,null,null,null,null,"（名）",null,null,null,null,null,null,null,null,null,null,null,null,null,null,null,null,null,null,null,null,null,null,null,null,null,null,null,null,null,null,null,null,null,null,null,null,null,null,null,null,null,null,null,null,null,null,null,null,null,null,null,null,null,null,null,null,null,null,null,null,null,null,null,null,null,null,null,null,null,null,null,null,null,null,null,null,null,null,null,null,null,null,null,null,null,null,null,null,null,null,null,null,null,null,null,null,null,null,null,null,null,null,null,null,null,null,null,null,null,null,null,null,null,null,null,null,null,null,null,null,null,null,null,null,null,null,null,null,null,null,null,null,null,null,null,null,null,null,null,null,null,null,null,null,null,null,null,null,null,null,null,null,null,null,null,null,null,null,null,null,null,null,null,null,null,null,null,null,null,null,null,354,"鳳","　 鳳　 "]
[null,null,null,null,null,null,null,null,null,null,null,null,null,null,null,null,null,null,null,null,null,null,null,null,null,null,null,null,null,null,null,null,null,null,null,null,null,null,null,null,null,null,null,null,null,null,null,null,null,null,null,null,null,null,null,null,null,null,null,null,null,null,null,null,null,null,null,null,null,null,null,null,null,null,null,null,null,null,null,null,null,null,null,null,null,null,null,null,null,null,null,null,null,null,null,null,null,null,null,null,null,null,null,null,null,null,null,null,null,null,null,null,null,null,null,null,null,null,null,null,null,null,null,null,null,null,null,null,null,null,null,null,null,null,null,null,null,null,null,null,null,null,null,null,null,null,null,null,null,null,null,null,null,null,null,null,null,null,null,null,null,null,null,null,null,null,null,null,null,null,null,null,null,null,null,null,null,null,null,null,null,null,null,null,null,null,null,null,null,null,null,null,null,null,355,"貝塚","貝　　塚"]
[null,null,null,null,null,null,null,null,null,null,null,null,null,null,null,null,null,null,null,null,null,null,null,null,null,null,null,null,null,null,null,null,null,null,null,null,null,null,null,null,null,null,null,null,null,null,null,null,null,null,null,null,null,null,null,null,null,null,null,null,null,null,null,null,null,null,null,null,null,null,null,null,null,null,null,null,null,null,null,null,null,null,null,null,null,null,null,null,null,null,null,null,null,null,null,null,null,null,null,null,null,null,null,null,null,null,null,null,null,null,null,null,null,null,null,null,null,null,null,null,null,null,null,null,null,null,null,null,null,null,null,null,null,null,null,null,null,null,null,null,null,null,null,null,null,null,null,null,null,null,null,null,null,null,null,null,null,null,null,null,null,null,null,null,null,null,null,null,null,null,null,null,null,null,null,null,null,null,null,null,null,null,null,null,null,null,null,null,null,null,null,null,null,null,356,"貝塚南","貝 塚 南"]
[null,null,null,null,null,null,"ふりがな",null,null,null,null,null,null,null,null,null,null,null,null,null,null,null,null,null,null,null,null,null,null,null,null,null,null,null,null,null,null,null,null,null,null,null,null,null,null,null,null,null,null,null,null,null,null,null,null,null,null,null,"・",null,null,null,"・",null,null,null,null,null,null,null,null,null,null,null,null,null,null,null,null,null,null,null,null,null,null,null,null,null,null,null,null,null,null,null,null,null,null,null,null,null,null,null,null,null,null,null,null,null,null,null,null,null,null,null,null,null,null,null,null,null,null,null,null,null,null,null,null,null,null,null,null,null,null,null,null,null,null,null,null,null,null,null,null,null,null,null,null,null,null,null,null,null,null,null,null,null,null,null,null,null,null,null,null,null,null,null,null,null,null,null,null,null,null,null,null,null,null,null,null,null,null,null,null,null,null,null,null,null,null,null,null,null,null,null,357,"金岡","金　　岡"]
[null,null,null,null,null,null,"（姓）",null,null,null,null,null,null,null,null,null,null,null,null,null,null,null,"（名）",null,null,null,null,null,null,null,null,null,null,null,null,null,null,null,null,null,null,null,null,null,null,null,null,null,null,null,null,null,null,null,null,null,null,null,null,null,null,null,null,null,null,null,null,null,null,null,null,null,null,null,null,null,null,null,null,null,null,null,null,null,null,null,null,null,null,null,null,null,null,null,null,null,null,null,null,null,null,null,null,null,null,null,null,null,null,null,null,null,null,null,null,null,null,null,null,null,null,null,null,null,null,null,null,null,null,null,null,null,null,null,null,null,null,null,null,null,null,null,null,null,null,null,null,null,null,null,null,null,null,null,null,null,null,null,null,null,null,null,null,null,null,null,null,null,null,null,null,null,null,null,null,null,null,null,null,null,null,null,null,null,null,null,null,null,null,null,null,null,null,null,358,"岸和田","岸 和 田"]
[null,null,null,null,null,null,null,null,null,null,null,null,null,null,null,null,null,null,null,null,null,null,null,null,null,null,null,null,null,null,null,null,null,null,null,null,null,null,null,null,null,null,null,null,null,null,null,null,null,null,null,null,null,null,null,null,null,null,null,null,null,null,null,null,null,null,null,null,null,null,null,null,null,null,null,null,null,null,null,null,null,null,null,null,null,null,null,null,null,null,null,null,null,null,null,null,null,null,null,null,null,null,null,null,null,null,null,null,null,null,null,null,null,null,null,null,null,null,null,null,null,null,null,null,null,null,null,null,null,null,null,null,null,null,null,null,null,null,null,null,null,null,null,null,null,null,null,null,null,null,null,null,null,null,null,null,null,null,null,null,null,null,null,null,null,null,null,null,null,null,null,null,null,null,null,null,null,null,null,null,null,null,null,null,null,null,null,null,null,null,null,null,null,null,359,"港南造形","港南造形"]
[null,null,null,null,null,null,null,null,null,null,null,null,null,null,null,null,null,null,null,null,null,null,null,null,null,null,null,null,null,null,null,null,null,null,null,null,null,null,null,null,null,null,null,null,null,null,null,null,null,null,null,null,null,null,null,null,null,null,null,null,null,null,null,null,null,null,null,null,null,null,null,null,null,null,null,null,null,null,null,null,null,null,null,null,null,null,null,null,null,null,null,null,null,null,null,null,null,null,null,null,null,null,null,null,null,null,null,null,null,null,null,null,null,null,null,null,null,null,null,null,null,null,null,null,null,null,null,null,null,null,null,null,null,null,null,null,null,null,null,null,null,null,null,null,null,null,null,null,null,null,null,null,null,null,null,null,null,null,null,null,null,null,null,null,null,null,null,null,null,null,null,null,null,null,null,null,null,null,null,null,null,null,null,null,null,null,null,null,null,null,null,null,null,null,360,"久米田","久 米 田"]
[null,null,null,null,null,null,"ふりがな",null,null,null,null,null,null,null,null,null,null,null,null,null,null,null,null,null,null,null,null,null,null,null,null,null,null,null,null,null,null,null,null,null,null,null,null,null,null,null,null,null,null,null,null,null,null,null,null,null,null,null,"・",null,null,null,"・",null,null,null,null,null,null,null,null,null,null,null,null,null,null,null,null,null,null,null,null,null,null,null,null,null,null,null,null,null,null,null,null,null,null,null,null,null,null,null,null,null,null,null,null,null,null,null,null,null,null,null,null,null,null,null,null,null,null,null,null,null,null,null,null,null,null,null,null,null,null,null,null,null,null,null,null,null,null,null,null,null,null,null,null,null,null,null,null,null,null,null,null,null,null,null,null,null,null,null,null,null,null,null,null,null,null,null,null,null,null,null,null,null,null,null,null,null,null,null,null,null,null,null,null,null,null,null,null,null,null,null,361,"堺上","堺　　上"]
[null,null,null,null,null,null,"（姓）",null,null,null,null,null,null,null,null,null,null,null,null,null,null,null,"（名）",null,null,null,null,null,null,null,null,null,null,null,null,null,null,null,null,null,null,null,null,null,null,null,null,null,null,null,null,null,null,null,null,null,null,null,null,null,null,null,null,null,null,null,null,null,null,null,null,null,null,null,null,null,null,null,null,null,null,null,null,null,null,null,null,null,null,null,null,null,null,null,null,null,null,null,null,null,null,null,null,null,null,null,null,null,null,null,null,null,null,null,null,null,null,null,null,null,null,null,null,null,null,null,null,null,null,null,null,null,null,null,null,null,null,null,null,null,null,null,null,null,null,null,null,null,null,null,null,null,null,null,null,null,null,null,null,null,null,null,null,null,null,null,null,null,null,null,null,null,null,null,null,null,null,null,null,null,null,null,null,null,null,null,null,null,null,null,null,null,null,null,362,"堺西","堺　　西"]
[null,null,null,null,null,null,null,null,null,null,null,null,null,null,null,null,null,null,null,null,null,null,null,null,null,null,null,null,null,null,null,null,null,null,null,null,null,null,null,null,null,null,null,null,null,null,null,null,null,null,null,null,null,null,null,null,null,null,null,null,null,null,null,null,null,null,null,null,null,null,null,null,null,null,null,null,null,null,null,null,null,null,null,null,null,null,null,null,null,null,null,null,null,null,null,null,null,null,null,null,null,null,null,null,null,null,null,null,null,null,null,null,null,null,null,null,null,null,null,null,null,null,null,null,null,null,null,null,null,null,null,null,null,null,null,null,null,null,null,null,null,null,null,null,null,null,null,null,null,null,null,null,null,null,null,null,null,null,null,null,null,null,null,null,null,null,null,null,null,null,null,null,null,null,null,null,null,null,null,null,null,null,null,null,null,null,null,null,null,null,null,null,null,null,363,"堺東","堺　　東"]
[null,null,null,null,null,null,null,null,null,null,null,null,null,null,null,null,null,null,null,null,null,null,null,null,null,null,null,null,null,null,null,null,null,null,null,null,null,null,null,null,null,null,null,null,null,null,null,null,null,null,null,null,null,null,null,null,null,null,null,null,null,null,null,null,null,null,null,null,null,null,null,null,null,null,null,null,null,null,null,null,null,null,null,null,null,null,null,null,null,null,null,null,null,null,null,null,null,null,null,null,null,null,null,null,null,null,null,null,null,null,null,null,null,null,null,null,null,null,null,null,null,null,null,null,null,null,null,null,null,null,null,null,null,null,null,null,null,null,null,null,null,null,null,null,null,null,null,null,null,null,null,null,null,null,null,null,null,null,null,null,null,null,null,null,null,null,null,null,null,null,null,null,null,null,null,null,null,null,null,null,null,null,null,null,null,null,null,null,null,null,null,null,null,null,364,"佐野","佐　　野"]
[null,null,null,null,null,null,"ふりがな",null,null,null,null,null,null,null,null,null,null,null,null,null,null,null,null,null,null,null,null,null,null,null,null,null,null,null,null,null,null,null,null,null,null,null,null,null,null,null,null,null,null,null,null,null,null,null,null,null,null,null,"・",null,null,null,"・",null,null,null,null,null,null,null,null,null,null,null,null,null,null,null,null,null,null,null,null,null,null,null,null,null,null,null,null,null,null,null,null,null,null,null,null,null,null,null,null,null,null,null,null,null,null,null,null,null,null,null,null,null,null,null,null,null,null,null,null,null,null,null,null,null,null,null,null,null,null,null,null,null,null,null,null,null,null,null,null,null,null,null,null,null,null,null,null,null,null,null,null,null,null,null,null,null,null,null,null,null,null,null,null,null,null,null,null,null,null,null,null,null,null,null,null,null,null,null,null,null,null,null,null,null,null,null,null,null,null,null,365,"狭山","狭　　山"]
[null,null,null,null,null,null,"（姓）",null,null,null,null,null,null,null,null,null,null,null,null,null,null,null,"（名）",null,null,null,null,null,null,null,null,null,null,null,null,null,null,null,null,null,null,null,null,null,null,null,null,null,null,null,null,null,null,null,null,null,null,null,null,null,null,null,null,null,null,null,null,null,null,null,null,null,null,null,null,null,null,null,null,null,null,null,null,null,null,null,null,null,null,null,null,null,null,null,null,null,null,null,null,null,null,null,null,null,null,null,null,null,null,null,null,null,null,null,null,null,null,null,null,null,null,null,null,null,null,null,null,null,null,null,null,null,null,null,null,null,null,null,null,null,null,null,null,null,null,null,null,null,null,null,null,null,null,null,null,null,null,null,null,null,null,null,null,null,null,null,null,null,null,null,null,null,null,null,null,null,null,null,null,null,null,null,null,null,null,null,null,null,null,null,null,null,null,null,366,"信太","信　　太"]
[null,null,null,null,null,null,null,null,null,null,null,null,null,null,null,null,null,null,null,null,null,null,null,null,null,null,null,null,null,null,null,null,null,null,null,null,null,null,null,null,null,null,null,null,null,null,null,null,null,null,null,null,null,null,null,null,null,null,null,null,null,null,null,null,null,null,null,null,null,null,null,null,null,null,null,null,null,null,null,null,null,null,null,null,null,null,null,null,null,null,null,null,null,null,null,null,null,null,null,null,null,null,null,null,null,null,null,null,null,null,null,null,null,null,null,null,null,null,null,null,null,null,null,null,null,null,null,null,null,null,null,null,null,null,null,null,null,null,null,null,null,null,null,null,null,null,null,null,null,null,null,null,null,null,null,null,null,null,null,null,null,null,null,null,null,null,null,null,null,null,null,null,null,null,null,null,null,null,null,null,null,null,null,null,null,null,null,null,null,null,null,null,null,null,367,"咲洲","咲　　洲"]
[null,null,null,null,null,null,null,null,null,null,null,null,null,null,null,null,null,null,null,null,null,null,null,null,null,null,null,null,null,null,null,null,null,null,null,null,null,null,null,null,null,null,null,null,null,null,null,null,null,null,null,null,null,null,null,null,null,null,null,null,null,null,null,null,null,null,null,null,null,null,null,null,null,null,null,null,null,null,null,null,null,null,null,null,null,null,null,null,null,null,null,null,null,null,null,null,null,null,null,null,null,null,null,null,null,null,null,null,null,null,null,null,null,null,null,null,null,null,null,null,null,null,null,null,null,null,null,null,null,null,null,null,null,null,null,null,null,null,null,null,null,null,null,null,null,null,null,null,null,null,null,null,null,null,null,null,null,null,null,null,null,null,null,null,null,null,null,null,null,null,null,null,null,null,null,null,null,null,null,null,null,null,null,null,null,null,null,null,null,null,null,null,null,null,368,"りんくう翔南","りんくう"]
[null,null,null,null,null,null,"ふりがな",null,null,null,null,null,null,null,null,null,null,null,null,null,null,null,null,null,null,null,null,null,null,null,null,null,null,null,null,null,null,null,null,null,null,null,null,null,null,null,null,null,null,null,null,null,null,null,null,null,null,null,"・",null,null,null,"・",null,null,null,null,null,null,null,null,null,null,null,null,null,null,null,null,null,null,null,null,null,null,null,null,null,null,null,null,null,null,null,null,null,null,null,null,null,null,null,null,null,null,null,null,null,null,null,null,null,null,null,null,null,null,null,null,null,null,null,null,null,null,null,null,null,null,null,null,null,null,null,null,null,null,null,null,null,null,null,null,null,null,null,null,null,null,null,null,null,null,null,null,null,null,null,null,null,null,null,null,null,null,null,null,null,null,null,null,null,null,null,null,null,null,null,null,null,null,null,null,null,null,null,null,null,null,null,null,null,null,null,369,"泉北","泉　　北"]
[null,null,null,null,null,null,"（姓）",null,null,null,null,null,null,null,null,null,null,null,null,null,null,null,"（名）",null,null,null,null,null,null,null,null,null,null,null,null,null,null,null,null,null,null,null,null,null,null,null,null,null,null,null,null,null,null,null,null,null,null,null,null,null,null,null,null,null,null,null,null,null,null,null,null,null,null,null,null,null,null,null,null,null,null,null,null,null,null,null,null,null,null,null,null,null,null,null,null,null,null,null,null,null,null,null,null,null,null,null,null,null,null,null,null,null,null,null,null,null,null,null,null,null,null,null,null,null,null,null,null,null,null,null,null,null,null,null,null,null,null,null,null,null,null,null,null,null,null,null,null,null,null,null,null,null,null,null,null,null,null,null,null,null,null,null,null,null,null,null,null,null,null,null,null,null,null,null,null,null,null,null,null,null,null,null,null,null,null,null,null,null,null,null,null,null,null,null,370,"泉陽","泉　　陽"]
[null,null,null,null,null,null,null,null,null,null,null,null,null,null,null,null,null,null,null,null,null,null,null,null,null,null,null,null,null,null,null,null,null,null,null,null,null,null,null,null,null,null,null,null,null,null,null,null,null,null,null,null,null,null,null,null,null,null,null,null,null,null,null,null,null,null,null,null,null,null,null,null,null,null,null,null,null,null,null,null,null,null,null,null,null,null,null,null,null,null,null,null,null,null,null,null,null,null,null,null,null,null,null,null,null,null,null,null,null,null,null,null,null,null,null,null,null,null,null,null,null,null,null,null,null,null,null,null,null,null,null,null,null,null,null,null,null,null,null,null,null,null,null,null,null,null,null,null,null,null,null,null,null,null,null,null,null,null,null,null,null,null,null,null,null,null,null,null,null,null,null,null,null,null,null,null,null,null,null,null,null,null,null,null,null,null,null,null,null,null,null,null,null,null,371,"大正","大　　正"]
[null,null,null,null,null,null,null,null,null,null,null,null,null,null,null,null,null,null,null,null,null,null,null,null,null,null,null,null,null,null,null,null,null,null,null,null,null,null,null,null,null,null,null,null,null,null,null,null,null,null,null,null,null,null,null,null,null,null,null,null,null,null,null,null,null,null,null,null,null,null,null,null,null,null,null,null,null,null,null,null,null,null,null,null,null,null,null,null,null,null,null,null,null,null,null,null,null,null,null,null,null,null,null,null,null,null,null,null,null,null,null,null,null,null,null,null,null,null,null,null,null,null,null,null,null,null,null,null,null,null,null,null,null,null,null,null,null,null,null,null,null,null,null,null,null,null,null,null,null,null,null,null,null,null,null,null,null,null,null,null,null,null,null,null,null,null,null,null,null,null,null,null,null,null,null,null,null,null,null,null,null,null,null,null,null,null,null,null,null,null,null,null,null,null,372,"高石","高　　石"]
[null,null,null,null,null,null,"ふりがな",null,null,null,null,null,null,null,null,null,null,null,null,null,null,null,null,null,null,null,null,null,null,null,null,null,null,null,null,null,null,null,null,null,null,null,null,null,null,null,null,null,null,null,null,null,null,null,null,null,null,null,"・",null,null,null,"・",null,null,null,null,null,null,null,null,null,null,null,null,null,null,null,null,null,null,null,null,null,null,null,null,null,null,null,null,null,null,null,null,null,null,null,null,null,null,null,null,null,null,null,null,null,null,null,null,null,null,null,null,null,null,null,null,null,null,null,null,null,null,null,null,null,null,null,null,null,null,null,null,null,null,null,null,null,null,null,null,null,null,null,null,null,null,null,null,null,null,null,null,null,null,null,null,null,null,null,null,null,null,null,null,null,null,null,null,null,null,null,null,null,null,null,null,null,null,null,null,null,null,null,null,null,null,null,null,null,null,null,373,"登美丘","登 美 丘"]
[null,null,null,null,null,null,"（姓）",null,null,null,null,null,null,null,null,null,null,null,null,null,null,null,"（名）",null,null,null,null,null,null,null,null,null,null,null,null,null,null,null,null,null,null,null,null,null,null,null,null,null,null,null,null,null,null,null,null,null,null,null,null,null,null,null,null,null,null,null,null,null,null,null,null,null,null,null,null,null,null,null,null,null,null,null,null,null,null,null,null,null,null,null,null,null,null,null,null,null,null,null,null,null,null,null,null,null,null,null,null,null,null,null,null,null,null,null,null,null,null,null,null,null,null,null,null,null,null,null,null,null,null,null,null,null,null,null,null,null,null,null,null,null,null,null,null,null,null,null,null,null,null,null,null,null,null,null,null,null,null,null,null,null,null,null,null,null,null,null,null,null,null,null,null,null,null,null,null,null,null,null,null,null,null,null,null,null,null,null,null,null,null,null,null,null,null,null,374,"西成","西　　成"]
[null,null,null,null,null,null,null,null,null,null,null,null,null,null,null,null,null,null,null,null,null,null,null,null,null,null,null,null,null,null,null,null,null,null,null,null,null,null,null,null,null,null,null,null,null,null,null,null,null,null,null,null,null,null,null,null,null,null,null,null,null,null,null,null,null,null,null,null,null,null,null,null,null,null,null,null,null,null,null,null,null,null,null,null,null,null,null,null,null,null,null,null,null,null,null,null,null,null,null,null,null,null,null,null,null,null,null,null,null,null,null,null,null,null,null,null,null,null,null,null,null,null,null,null,null,null,null,null,null,null,null,null,null,null,null,null,null,null,null,null,null,null,null,null,null,null,null,null,null,null,null,null,null,null,null,null,null,null,null,null,null,null,null,null,null,null,null,null,null,null,null,null,null,null,null,null,null,null,null,null,null,null,null,null,null,null,null,null,null,null,null,null,null,null,376,"伯太","伯　　太"]
[null,null,null,null,null,null,null,null,null,null,null,null,null,null,null,null,null,null,null,null,null,null,null,null,null,null,null,null,null,null,null,null,null,null,null,null,null,null,null,null,null,null,null,null,null,null,null,null,null,null,null,null,null,null,null,null,null,null,null,null,null,null,null,null,null,null,null,null,null,null,null,null,null,null,null,null,null,null,null,null,null,null,null,null,null,null,null,null,null,null,null,null,null,null,null,null,null,null,null,null,null,null,null,null,null,null,null,null,null,null,null,null,null,null,null,null,null,null,null,null,null,null,null,null,null,null,null,null,null,null,null,null,null,null,null,null,null,null,null,null,null,null,null,null,null,null,null,null,null,null,null,null,null,null,null,null,null,null,null,null,null,null,null,null,null,null,null,null,null,null,null,null,null,null,null,null,null,null,null,null,null,null,null,null,null,null,null,null,null,null,null,null,null,null,377,"阪南大学","阪南大学"]
[null,null,null,null,null,null,"ふりがな",null,null,null,null,null,null,null,null,null,null,null,null,null,null,null,null,null,null,null,null,null,null,null,null,null,null,null,null,null,null,null,null,null,null,null,null,null,null,null,null,null,null,null,null,null,null,null,null,null,null,null,"・",null,null,null,"・",null,null,null,null,null,null,null,null,null,null,null,null,null,null,null,null,null,null,null,null,null,null,null,null,null,null,null,null,null,null,null,null,null,null,null,null,null,null,null,null,null,null,null,null,null,null,null,null,null,null,null,null,null,null,null,null,null,null,null,null,null,null,null,null,null,null,null,null,null,null,null,null,null,null,null,null,null,null,null,null,null,null,null,null,null,null,null,null,null,null,null,null,null,null,null,null,null,null,null,null,null,null,null,null,null,null,null,null,null,null,null,null,null,null,null,null,null,null,null,null,null,null,null,null,null,null,null,null,null,null,null,378,"東百舌鳥","東百舌鳥"]
[null,null,null,null,null,null,"（姓）",null,null,null,null,null,null,null,null,null,null,null,null,null,null,null,"（名）",null,null,null,null,null,null,null,null,null,null,null,null,null,null,null,null,null,null,null,null,null,null,null,null,null,null,null,null,null,null,null,null,null,null,null,null,null,null,null,null,null,null,null,null,null,null,null,null,null,null,null,null,null,null,null,null,null,null,null,null,null,null,null,null,null,null,null,null,null,null,null,null,null,null,null,null,null,null,null,null,null,null,null,null,null,null,null,null,null,null,null,null,null,null,null,null,null,null,null,null,null,null,null,null,null,null,null,null,null,null,null,null,null,null,null,null,null,null,null,null,null,null,null,null,null,null,null,null,null,null,null,null,null,null,null,null,null,null,null,null,null,null,null,null,null,null,null,null,null,null,null,null,null,null,null,null,null,null,null,null,null,null,null,null,null,null,null,null,null,null,null,379,"福泉","福　　泉"]
[null,null,null,null,null,null,null,null,null,null,null,null,null,null,null,null,null,null,null,null,null,null,null,null,null,null,null,null,null,null,null,null,null,null,null,null,null,null,null,null,null,null,null,null,null,null,null,null,null,null,null,null,null,null,null,null,null,null,null,null,null,null,null,null,null,null,null,null,null,null,null,null,null,null,null,null,null,null,null,null,null,null,null,null,null,null,null,null,null,null,null,null,null,null,null,null,null,null,null,null,null,null,null,null,null,null,null,null,null,null,null,null,null,null,null,null,null,null,null,null,null,null,null,null,null,null,null,null,null,null,null,null,null,null,null,null,null,null,null,null,null,null,null,null,null,null,null,null,null,null,null,null,null,null,null,null,null,null,null,null,null,null,null,null,null,null,null,null,null,null,null,null,null,null,null,null,null,null,null,null,null,null,null,null,null,null,null,null,null,null,null,null,null,null,380,"成美","成　　美"]
[null,null,null,null,null,null,null,null,null,null,null,null,null,null,null,null,null,null,null,null,null,null,null,null,null,null,null,null,null,null,null,null,null,null,null,null,null,null,null,null,null,null,null,null,null,null,null,null,null,null,null,null,null,null,null,null,null,null,null,null,null,null,null,null,null,null,null,null,null,null,null,null,null,null,null,null,null,null,null,null,null,null,null,null,null,null,null,null,null,null,null,null,null,null,null,null,null,null,null,null,null,null,null,null,null,null,null,null,null,null,null,null,null,null,null,null,null,null,null,null,null,null,null,null,null,null,null,null,null,null,null,null,null,null,null,null,null,null,null,null,null,null,null,null,null,null,null,null,null,null,null,null,null,null,null,null,null,null,null,null,null,null,null,null,null,null,null,null,null,null,null,null,null,null,null,null,null,null,null,null,null,null,null,null,null,null,null,null,null,null,null,null,null,null,381,"三国丘","三 国 丘"]
[null,null,null,null,null,null,"ふりがな",null,null,null,null,null,null,null,null,null,null,null,null,null,null,null,null,null,null,null,null,null,null,null,null,null,null,null,null,null,null,null,null,null,null,null,null,null,null,null,null,null,null,null,null,null,null,null,null,null,null,null,"・",null,null,null,"・",null,null,null,null,null,null,null,null,null,null,null,null,null,null,null,null,null,null,null,null,null,null,null,null,null,null,null,null,null,null,null,null,null,null,null,null,null,null,null,null,null,null,null,null,null,null,null,null,null,null,null,null,null,null,null,null,null,null,null,null,null,null,null,null,null,null,null,null,null,null,null,null,null,null,null,null,null,null,null,null,null,null,null,null,null,null,null,null,null,null,null,null,null,null,null,null,null,null,null,null,null,null,null,null,null,null,null,null,null,null,null,null,null,null,null,null,null,null,null,null,null,null,null,null,null,null,null,null,null,null,null,382,"岬","　 岬　 "]
[null,null,null,null,null,null,"（姓）",null,null,null,null,null,null,null,null,null,null,null,null,null,null,null,"（名）",null,null,null,null,null,null,null,null,null,null,null,null,null,null,null,null,null,null,null,null,null,null,null,null,null,null,null,null,null,null,null,null,null,null,null,null,null,null,null,null,null,null,null,null,null,null,null,null,null,null,null,null,null,null,null,null,null,null,null,null,null,null,null,null,null,null,null,null,null,null,null,null,null,null,null,null,null,null,null,null,null,null,null,null,null,null,null,null,null,null,null,null,null,null,null,null,null,null,null,null,null,null,null,null,null,null,null,null,null,null,null,null,null,null,null,null,null,null,null,null,null,null,null,null,null,null,null,null,null,null,null,null,null,null,null,null,null,null,null,null,null,null,null,null,null,null,null,null,null,null,null,null,null,null,null,null,null,null,null,null,null,null,null,null,null,null,null,null,null,null,null,383,"港","   港　 "]
[null,null,null,null,null,null,null,null,null,null,null,null,null,null,null,null,null,null,null,null,null,null,null,null,null,null,null,null,null,null,null,null,null,null,null,null,null,null,null,null,null,null,null,null,null,null,null,null,null,null,null,null,null,null,null,null,null,null,null,null,null,null,null,null,null,null,null,null,null,null,null,null,null,null,null,null,null,null,null,null,null,null,null,null,null,null,null,null,null,null,null,null,null,null,null,null,null,null,null,null,null,null,null,null,null,null,null,null,null,null,null,null,null,null,null,null,null,null,null,null,null,null,null,null,null,null,null,null,null,null,null,null,null,null,null,null,null,null,null,null,null,null,null,null,null,null,null,null,null,null,null,null,null,null,null,null,null,null,null,null,null,null,null,null,null,null,null,null,null,null,null,null,null,null,null,null,null,null,null,null,null,null,null,null,null,null,null,null,null,null,null,null,null,null,384,"センター附属","センター"]
[null,null,null,null,null,null,null,null,null,null,null,null,null,null,null,null,null,null,null,null,null,null,null,null,null,null,null,null,null,null,null,null,null,null,null,null,null,null,null,null,null,null,null,null,null,null,null,null,null,null,null,null,null,null,null,null,null,null,null,null,null,null,null,null,null,null,null,null,null,null,null,null,null,null,null,null,null,null,null,null,null,null,null,null,null,null,null,null,null,null,null,null,null,null,null,null,null,null,null,null,null,null,null,null,null,null,null,null,null,null,null,null,null,null,null,null,null,null,null,null,null,null,null,null,null,null,null,null,null,null,null,null,null,null,null,null,null,null,null,null,null,null,null,null,null,null,null,null,null,null,null,null,null,null,null,null,null,null,null,null,null,null,null,null,null,null,null,null,null,null,null,null,null,null,null,null,null,null,null,null,null,null,null,null,null,null,null,null,null,null,null,null,null,null,386,"和泉総合","和泉総合"]
[null,null,null,null,null,null,"ふりがな",null,null,null,null,null,null,null,null,null,null,null,null,null,null,null,null,null,null,null,null,null,null,null,null,null,null,null,null,null,null,null,null,null,null,null,null,null,null,null,null,null,null,null,null,null,null,null,null,null,null,null,"・",null,null,null,"・",null,null,null,null,null,null,null,null,null,null,null,null,null,null,null,null,null,null,null,null,null,null,null,null,null,null,null,null,null,null,null,null,null,null,null,null,null,null,null,null,null,null,null,null,null,null,null,null,null,null,null,null,null,null,null,null,null,null,null,null,null,null,null,null,null,null,null,null,null,null,null,null,null,null,null,null,null,null,null,null,null,null,null,null,null,null,null,null,null,null,null,null,null,null,null,null,null,null,null,null,null,null,null,null,null,null,null,null,null,null,null,null,null,null,null,null,null,null,null,null,null,null,null,null,null,null,null,null,null,null,null,387,"今宮工科","今宮工科"]
[null,null,null,null,null,null,"（姓）",null,null,null,null,null,null,null,null,null,null,null,null,null,null,null,"（名）",null,null,null,null,null,null,null,null,null,null,null,null,null,null,null,null,null,null,null,null,null,null,null,null,null,null,null,null,null,null,null,null,null,null,null,null,null,null,null,null,null,null,null,null,null,null,null,null,null,null,null,null,null,null,null,null,null,null,null,null,null,null,null,null,null,null,null,null,null,null,null,null,null,null,null,null,null,null,null,null,null,null,null,null,null,null,null,null,null,null,null,null,null,null,null,null,null,null,null,null,null,null,null,null,null,null,null,null,null,null,null,null,null,null,null,null,null,null,null,null,null,null,null,null,null,null,null,null,null,null,null,null,null,null,null,null,null,null,null,null,null,null,null,null,null,null,null,null,null,null,null,null,null,null,null,null,null,null,null,null,null,null,null,null,null,null,null,null,null,null,null,388,"堺工科","堺 工 科"]
[null,null,null,null,null,null,null,null,null,null,null,null,null,null,null,null,null,null,null,null,null,null,null,null,null,null,null,null,null,null,null,null,null,null,null,null,null,null,null,null,null,null,null,null,null,null,null,null,null,null,null,null,null,null,null,null,null,null,null,null,null,null,null,null,null,null,null,null,null,null,null,null,null,null,null,null,null,null,null,null,null,null,null,null,null,null,null,null,null,null,null,null,null,null,null,null,null,null,null,null,null,null,null,null,null,null,null,null,null,null,null,null,null,null,null,null,null,null,null,null,null,null,null,null,null,null,null,null,null,null,null,null,null,null,null,null,null,null,null,null,null,null,null,null,null,null,null,null,null,null,null,null,null,null,null,null,null,null,null,null,null,null,null,null,null,null,null,null,null,null,null,null,null,null,null,null,null,null,null,null,null,null,null,null,null,null,null,null,null,null,null,null,null,null,389,"佐野工科","佐野工科"]
[null,null,null,null,null,null,null,null,null,null,null,null,null,null,null,null,null,null,null,null,null,null,null,null,null,null,null,null,null,null,null,null,null,null,null,null,null,null,null,null,null,null,null,null,null,null,null,null,null,null,null,null,null,null,null,null,null,null,null,null,null,null,null,null,null,null,null,null,null,null,null,null,null,null,null,null,null,null,null,null,null,null,null,null,null,null,null,null,null,null,null,null,null,null,null,null,null,null,null,null,null,null,null,null,null,null,null,null,null,null,null,null,null,null,null,null,null,null,null,null,null,null,null,null,null,null,null,null,null,null,null,null,null,null,null,null,null,null,null,null,null,null,null,null,null,null,null,null,null,null,null,null,null,null,null,null,null,null,null,null,null,null,null,null,null,null,null,null,null,null,null,null,null,null,null,null,null,null,null,null,null,null,null,null,null,null,null,null,null,null,null,null,null,null,390,"西野田工科","西野田工"]
[null,null,null,null,null,null,"ふりがな",null,null,null,null,null,null,null,null,null,null,null,null,null,null,null,null,null,null,null,null,null,null,null,null,null,null,null,null,null,null,null,null,null,null,null,null,null,null,null,null,null,null,null,null,null,null,null,null,null,null,null,"・",null,null,null,"・",null,null,null,null,null,null,null,null,null,null,null,null,null,null,null,null,null,null,null,null,null,null,null,null,null,null,null,null,null,null,null,null,null,null,null,null,null,null,null,null,null,null,null,null,null,null,null,null,null,null,null,null,null,null,null,null,null,null,null,null,null,null,null,null,null,null,null,null,null,null,null,null,null,null,null,null,null,null,null,null,null,null,null,null,null,null,null,null,null,null,null,null,null,null,null,null,null,null,null,null,null,null,null,null,null,null,null,null,null,null,null,null,null,null,null,null,null,null,null,null,null,null,null,null,null,null,null,null,null,null,null,391,"日根野","日 根 野"]
[null,null,null,null,null,null,"（姓）",null,null,null,null,null,null,null,null,null,null,null,null,null,null,null,"（名）",null,null,null,null,null,null,null,null,null,null,null,null,null,null,null,null,null,null,null,null,null,null,null,null,null,null,null,null,null,null,null,null,null,null,null,null,null,null,null,null,null,null,null,null,null,null,null,null,null,null,null,null,null,null,null,null,null,null,null,null,null,null,null,null,null,null,null,null,null,null,null,null,null,null,null,null,null,null,null,null,null,null,null,null,null,null,null,null,null,null,null,null,null,null,null,null,null,null,null,null,null,null,null,null,null,null,null,null,null,null,null,null,null,null,null,null,null,null,null,null,null,null,null,null,null,null,null,null,null,null,null,null,null,null,null,null,null,null,null,null,null,null,null,null,null,null,null,null,null,null,null,null,null,null,null,null,null,null,null,null,null,null,null,null,null,null,null,null,null,null,null,394,"泉尾工業","泉尾工業"]
[null,null,null,null,null,null,null,null,null,null,null,null,null,null,null,null,null,null,null,null,null,null,null,null,null,null,null,null,null,null,null,null,null,null,null,null,null,null,null,null,null,null,null,null,null,null,null,null,null,null,null,null,null,null,null,null,null,null,null,null,null,null,null,null,null,null,null,null,null,null,null,null,null,null,null,null,null,null,null,null,null,null,null,null,null,null,null,null,null,null,null,null,null,null,null,null,null,null,null,null,null,null,null,null,null,null,null,null,null,null,null,null,null,null,null,null,null,null,null,null,null,null,null,null,null,null,null,null,null,null,null,null,null,null,null,null,null,null,null,null,null,null,null,null,null,null,null,null,null,null,null,null,null,null,null,null,null,null,null,null,null,null,null,null,null,null,null,null,null,null,null,null,null,null,null,null,null,null,null,null,null,null,null,null,null,null,null,null,null,null,null,null,null,null,395,"岸和田市立産業","岸和田産"]
[null,null,null,null,null,null,null,null,null,null,null,null,null,null,null,null,null,null,null,null,null,null,null,null,null,null,null,null,null,null,null,null,null,null,null,null,null,null,null,null,null,null,null,null,null,null,null,null,null,null,null,null,null,null,null,null,null,null,null,null,null,null,null,null,null,null,null,null,null,null,null,null,null,null,null,null,null,null,null,null,null,null,null,null,null,null,null,null,null,null,null,null,null,null,null,null,null,null,null,null,null,null,null,null,null,null,null,null,null,null,null,null,null,null,null,null,null,null,null,null,null,null,null,null,null,null,null,null,null,null,null,null,null,null,null,null,null,null,null,null,null,null,null,null,null,null,null,null,null,null,null,null,null,null,null,null,null,null,null,null,null,null,null,null,null,null,null,null,null,null,null,null,null,null,null,null,null,null,null,null,null,null,null,null,null,null,null,null,null,null,null,null,null,null,396,"咲くやこの花","咲　　花"]
[null,null,null,null,null,null,"ふりがな",null,null,null,null,null,null,null,null,null,null,null,null,null,null,null,null,null,null,null,null,null,null,null,null,null,null,null,null,null,null,null,null,null,null,null,null,null,null,null,null,null,null,null,null,null,null,null,null,null,null,null,"・",null,null,null,"・",null,null,null,null,null,null,null,null,null,null,null,null,null,null,null,null,null,null,null,null,null,null,null,null,null,null,null,null,null,null,null,null,null,null,null,null,null,null,null,null,null,null,null,null,null,null,null,null,null,null,null,null,null,null,null,null,null,null,null,null,null,null,null,null,null,null,null,null,null,null,null,null,null,null,null,null,null,null,null,null,null,null,null,null,null,null,null,null,null,null,null,null,null,null,null,null,null,null,null,null,null,null,null,null,null,null,null,null,null,null,null,null,null,null,null,null,null,null,null,null,null,null,null,null,null,null,null,null,null,null,null,397,"堺市立堺","堺市立堺"]
[null,null,null,null,null,null,"（姓）",null,null,null,null,null,null,null,null,null,null,null,null,null,null,null,"（名）",null,null,null,null,null,null,null,null,null,null,null,null,null,null,null,null,null,null,null,null,null,null,null,null,null,null,null,null,null,null,null,null,null,null,null,null,null,null,null,null,null,null,null,null,null,null,null,null,null,null,null,null,null,null,null,null,null,null,null,null,null,null,null,null,null,null,null,null,null,null,null,null,null,null,null,null,null,null,null,null,null,null,null,null,null,null,null,null,null,null,null,null,null,null,null,null,null,null,null,null,null,null,null,null,null,null,null,null,null,null,null,null,null,null,null,null,null,null,null,null,null,null,null,null,null,null,null,null,null,null,null,null,null,null,null,null,null,null,null,null,null,null,null,null,null,null,null,null,null,null,null,null,null,null,null,null,null,null,null,null,null,null,null,null,null,null,null,null,null,null,null,398,"大阪商業大学堺","商 大 堺　"]
[null,null,null,null,null,null,null,null,null,null,null,null,null,null,null,null,null,null,null,null,null,null,null,null,null,null,null,null,null,null,null,null,null,null,null,null,null,null,null,null,null,null,null,null,null,null,null,null,null,null,null,null,null,null,null,null,null,null,null,null,null,null,null,null,null,null,null,null,null,null,null,null,null,null,null,null,null,null,null,null,null,null,null,null,null,null,null,null,null,null,null,null,null,null,null,null,null,null,null,null,null,null,null,null,null,null,null,null,null,null,null,null,null,null,null,null,null,null,null,null,null,null,null,null,null,null,null,null,null,null,null,null,null,null,null,null,null,null,null,null,null,null,null,null,null,null,null,null,null,null,null,null,null,null,null,null,null,null,null,null,null,null,null,null,null,null,null,null,null,null,null,null,null,null,null,null,null,null,null,null,null,null,null,null,null,null,null,null,null,null,null,null,null,null,399,"大阪学芸","大阪学芸"]
[null,null,null,null,null,null,null,null,null,null,null,null,null,null,null,null,null,null,null,null,null,null,null,null,null,null,null,null,null,null,null,null,null,null,null,null,null,null,null,null,null,null,null,null,null,null,null,null,null,null,null,null,null,null,null,null,null,null,null,null,null,null,null,null,null,null,null,null,null,null,null,null,null,null,null,null,null,null,null,null,null,null,null,null,null,null,null,null,null,null,null,null,null,null,null,null,null,null,null,null,null,null,null,null,null,null,null,null,null,null,null,null,null,null,null,null,null,null,null,null,null,null,null,null,null,null,null,null,null,null,null,null,null,null,null,null,null,null,null,null,null,null,null,null,null,null,null,null,null,null,null,null,null,null,null,null,null,null,null,null,null,null,null,null,null,null,null,null,null,null,null,null,null,null,null,null,null,null,null,null,null,null,null,null,null,null,null,null,null,null,null,null,null,null,400,"清教学園","清教学園"]
[null,null,null,null,null,null,"ふりがな",null,null,null,null,null,null,null,null,null,null,null,null,null,null,null,null,null,null,null,null,null,null,null,null,null,null,null,null,null,null,null,null,null,null,null,null,null,null,null,null,null,null,null,null,null,null,null,null,null,null,null,"・",null,null,null,"・",null,null,null,null,null,null,null,null,null,null,null,null,null,null,null,null,null,null,null,null,null,null,null,null,null,null,null,null,null,null,null,null,null,null,null,null,null,null,null,null,null,null,null,null,null,null,null,null,null,null,null,null,null,null,null,null,null,null,null,null,null,null,null,null,null,null,null,null,null,null,null,null,null,null,null,null,null,null,null,null,null,null,null,null,null,null,null,null,null,null,null,null,null,null,null,null,null,null,null,null,null,null,null,null,null,null,null,null,null,null,null,null,null,null,null,null,null,null,null,null,null,null,null,null,null,null,null,null,null,null,null,401,"浪速","浪　　速"]
[null,null,null,null,null,null,"（姓）",null,null,null,null,null,null,null,null,null,null,null,null,null,null,null,"（名）",null,null,null,null,null,null,null,null,null,null,null,null,null,null,null,null,null,null,null,null,null,null,null,null,null,null,null,null,null,null,null,null,null,null,null,null,null,null,null,null,null,null,null,null,null,null,null,null,null,null,null,null,null,null,null,null,null,null,null,null,null,null,null,null,null,null,null,null,null,null,null,null,null,null,null,null,null,null,null,null,null,null,null,null,null,null,null,null,null,null,null,null,null,null,null,null,null,null,null,null,null,null,null,null,null,null,null,null,null,null,null,null,null,null,null,null,null,null,null,null,null,null,null,null,null,null,null,null,null,null,null,null,null,null,null,null,null,null,null,null,null,null,null,null,null,null,null,null,null,null,null,null,null,null,null,null,null,null,null,null,null,null,null,null,null,null,null,null,null,null,null,402,"初芝立命館","初芝立命"]
[null,null,null,null,null,null,null,null,null,null,null,null,null,null,null,null,null,null,null,null,null,null,null,null,null,null,null,null,null,null,null,null,null,null,null,null,null,null,null,null,null,null,null,null,null,null,null,null,null,null,null,null,null,null,null,null,null,null,null,null,null,null,null,null,null,null,null,null,null,null,null,null,null,null,null,null,null,null,null,null,null,null,null,null,null,null,null,null,null,null,null,null,null,null,null,null,null,null,null,null,null,null,null,null,null,null,null,null,null,null,null,null,null,null,null,null,null,null,null,null,null,null,null,null,null,null,null,null,null,null,null,null,null,null,null,null,null,null,null,null,null,null,null,null,null,null,null,null,null,null,null,null,null,null,null,null,null,null,null,null,null,null,null,null,null,null,null,null,null,null,null,null,null,null,null,null,null,null,null,null,null,null,null,null,null,null,null,null,null,null,null,null,null,null,403,"清風南海","清風南海"]
[null,null,null,null,null,null,null,null,null,null,null,null,null,null,null,null,null,null,null,null,null,null,null,null,null,null,null,null,null,null,null,null,null,null,null,null,null,null,null,null,null,null,null,null,null,null,null,null,null,null,null,null,null,null,null,null,null,null,null,null,null,null,null,null,null,null,null,null,null,null,null,null,null,null,null,null,null,null,null,null,null,null,null,null,null,null,null,null,null,null,null,null,null,null,null,null,null,null,null,null,null,null,null,null,null,null,null,null,null,null,null,null,null,null,null,null,null,null,null,null,null,null,null,null,null,null,null,null,null,null,null,null,null,null,null,null,null,null,null,null,null,null,null,null,null,null,null,null,null,null,null,null,null,null,null,null,null,null,null,null,null,null,null,null,null,null,null,null,null,null,null,null,null,null,null,null,null,null,null,null,null,null,null,null,null,null,null,null,null,null,null,null,null,null,404,"帝塚山泉ヶ丘","帝塚山泉"]
[null,null,null,null,null,null,"ふりがな",null,null,null,null,null,null,null,null,null,null,null,null,null,null,null,null,null,null,null,null,null,null,null,null,null,null,null,null,null,null,null,null,null,null,null,null,null,null,null,null,null,null,null,null,null,null,null,null,null,null,null,"・",null,null,null,"・",null,null,null,null,null,null,null,null,null,null,null,null,null,null,null,null,null,null,null,null,null,null,null,null,null,null,null,null,null,null,null,null,null,null,null,null,null,null,null,null,null,null,null,null,null,null,null,null,null,null,null,null,null,null,null,null,null,null,null,null,null,null,null,null,null,null,null,null,null,null,null,null,null,null,null,null,null,null,null,null,null,null,null,null,null,null,null,null,null,null,null,null,null,null,null,null,null,null,null,null,null,null,null,null,null,null,null,null,null,null,null,null,null,null,null,null,null,null,null,null,null,null,null,null,null,null,null,null,null,null,null,405,"金剛学園","金剛学園"]
[null,null,null,null,null,null,"（姓）",null,null,null,null,null,null,null,null,null,null,null,null,null,null,null,"（名）",null,null,null,null,null,null,null,null,null,null,null,null,null,null,null,null,null,null,null,null,null,null,null,null,null,null,null,null,null,null,null,null,null,null,null,null,null,null,null,null,null,null,null,null,null,null,null,null,null,null,null,null,null,null,null,null,null,null,null,null,null,null,null,null,null,null,null,null,null,null,null,null,null,null,null,null,null,null,null,null,null,null,null,null,null,null,null,null,null,null,null,null,null,null,null,null,null,null,null,null,null,null,null,null,null,null,null,null,null,null,null,null,null,null,null,null,null,null,null,null,null,null,null,null,null,null,null,null,null,null,null,null,null,null,null,null,null,null,null,null,null,null,null,null,null,null,null,null,null,null,null,null,null,null,null,null,null,null,null,null,null,null,null,null,null,null,null,null,null,null,null,406,"大体大浪商","体大浪商"]
[null,null,null,null,null,null,null,null,null,null,null,null,null,null,null,null,null,null,null,null,null,null,null,null,null,null,null,null,null,null,null,null,null,null,null,null,null,null,null,null,null,null,null,null,null,null,null,null,null,null,null,null,null,null,null,null,null,null,null,null,null,null,null,null,null,null,null,null,null,null,null,null,null,null,null,null,null,null,null,null,null,null,null,null,null,null,null,null,null,null,null,null,null,null,null,null,null,null,null,null,null,null,null,null,null,null,null,null,null,null,null,null,null,null,null,null,null,null,null,null,null,null,null,null,null,null,null,null,null,null,null,null,null,null,null,null,null,null,null,null,null,null,null,null,null,null,null,null,null,null,null,null,null,null,null,null,null,null,null,null,null,null,null,null,null,null,null,null,null,null,null,null,null,null,null,null,null,null,null,null,null,null,null,null,null,null,null,null,null,null,null,null,null,null,407,"教育大天王寺","教大天王"]
[null,null,null,null,null,null,null,null,null,null,null,null,null,null,null,null,null,null,null,null,null,null,null,null,null,null,null,null,null,null,null,null,null,null,null,null,null,null,null,null,null,null,null,null,null,null,null,null,null,null,null,null,null,null,null,null,null,null,null,null,null,null,null,null,null,null,null,null,null,null,null,null,null,null,null,null,null,null,null,null,null,null,null,null,null,null,null,null,null,null,null,null,null,null,null,null,null,null,null,null,null,null,null,null,null,null,null,null,null,null,null,null,null,null,null,null,null,null,null,null,null,null,null,null,null,null,null,null,null,null,null,null,null,null,null,null,null,null,null,null,null,null,null,null,null,null,null,null,null,null,null,null,null,null,null,null,null,null,null,null,null,null,null,null,null,null,null,null,null,null,null,null,null,null,null,null,null,null,null,null,null,null,null,null,null,null,null,null,null,null,null,null,null,null,408,"教育大附平野","教大平野"]
[null,null,null,null,null,null,"ふりがな",null,null,null,null,null,null,null,null,null,null,null,null,null,null,null,null,null,null,null,null,null,null,null,null,null,null,null,null,null,null,null,null,null,null,null,null,null,null,null,null,null,null,null,null,null,null,null,null,null,null,null,"・",null,null,null,"・",null,null,null,null,null,null,null,null,null,null,null,null,null,null,null,null,null,null,null,null,null,null,null,null,null,null,null,null,null,null,null,null,null,null,null,null,null,null,null,null,null,null,null,null,null,null,null,null,null,null,null,null,null,null,null,null,null,null,null,null,null,null,null,null,null,null,null,null,null,null,null,null,null,null,null,null,null,null,null,null,null,null,null,null,null,null,null,null,null,null,null,null,null,null,null,null,null,null,null,null,null,null,null,null,null,null,null,null,null,null,null,null,null,null,null,null,null,null,null,null,null,null,null,null,null,null,null,null,null,null,null,409,"阿倍野","阿 倍 野"]
[null,null,null,null,null,null,"（姓）",null,null,null,null,null,null,null,null,null,null,null,null,null,null,null,"（名）",null,null,null,null,null,null,null,null,null,null,null,null,null,null,null,null,null,null,null,null,null,null,null,null,null,null,null,null,null,null,null,null,null,null,null,null,null,null,null,null,null,null,null,null,null,null,null,null,null,null,null,null,null,null,null,null,null,null,null,null,null,null,null,null,null,null,null,null,null,null,null,null,null,null,null,null,null,null,null,null,null,null,null,null,null,null,null,null,null,null,null,null,null,null,null,null,null,null,null,null,null,null,null,null,null,null,null,null,null,null,null,null,null,null,null,null,null,null,null,null,null,null,null,null,null,null,null,null,null,null,null,null,null,null,null,null,null,null,null,null,null,null,null,null,null,null,null,null,null,null,null,null,null,null,null,null,null,null,null,null,null,null,null,null,null,null,null,null,null,null,null,410,"生野","生　　野"]
[null,null,null,null,null,null,null,null,null,null,null,null,null,null,null,null,null,null,null,null,null,null,null,null,null,null,null,null,null,null,null,null,null,null,null,null,null,null,null,null,null,null,null,null,null,null,null,null,null,null,null,null,null,null,null,null,null,null,null,null,null,null,null,null,null,null,null,null,null,null,null,null,null,null,null,null,null,null,null,null,null,null,null,null,null,null,null,null,null,null,null,null,null,null,null,null,null,null,null,null,null,null,null,null,null,null,null,null,null,null,null,null,null,null,null,null,null,null,null,null,null,null,null,null,null,null,null,null,null,null,null,null,null,null,null,null,null,null,null,null,null,null,null,null,null,null,null,null,null,null,null,null,null,null,null,null,null,null,null,null,null,null,null,null,null,null,null,null,null,null,null,null,null,null,null,null,null,null,null,null,null,null,null,null,null,null,null,null,null,null,null,null,null,null,411,"みどり清朋","み ど り"]
[null,null,null,null,null,null,null,null,null,null,null,null,null,null,null,null,null,null,null,null,null,null,null,null,null,null,null,null,null,null,null,null,null,null,null,null,null,null,null,null,null,null,null,null,null,null,null,null,null,null,null,null,null,null,null,null,null,null,null,null,null,null,null,null,null,null,null,null,null,null,null,null,null,null,null,null,null,null,null,null,null,null,null,null,null,null,null,null,null,null,null,null,null,null,null,null,null,null,null,null,null,null,null,null,null,null,null,null,null,null,null,null,null,null,null,null,null,null,null,null,null,null,null,null,null,null,null,null,null,null,null,null,null,null,null,null,null,null,null,null,null,null,null,null,null,null,null,null,null,null,null,null,null,null,null,null,null,null,null,null,null,null,null,null,null,null,null,null,null,null,null,null,null,null,null,null,null,null,null,null,null,null,null,null,null,null,null,null,null,null,null,null,null,null,412,"大塚","大　　塚"]
[null,null,null,null,null,null,null,null,null,null,null,null,null,null,null,null,null,null,null,null,null,null,null,null,null,null,null,null,null,null,null,null,null,null,null,null,null,null,null,null,null,null,null,null,null,null,null,null,null,null,null,null,null,null,null,null,null,null,null,null,null,null,null,null,null,null,null,null,null,null,null,null,null,null,null,null,null,null,null,null,null,null,null,null,null,null,null,null,null,null,null,null,null,null,null,null,null,null,null,null,null,null,null,null,null,null,null,null,null,null,null,null,null,null,null,null,null,null,null,null,null,null,null,null,null,null,null,null,null,null,null,null,null,null,null,null,null,null,null,null,null,null,null,null,null,null,null,null,null,null,null,null,null,null,null,null,null,null,null,null,null,null,null,null,null,null,null,null,null,null,null,null,null,null,null,null,null,null,null,null,null,null,null,null,null,null,null,null,null,null,null,null,null,null,413,"柏原東","柏 原 東"]
[null,null,"男子個人（特別枠）",null,null,null,null,null,null,null,null,null,null,null,null,null,null,null,null,null,null,null,null,null,null,null,null,null,null,null,null,null,null,null,null,null,null,null,null,null,null,null,null,null,null,null,null,null,null,null,null,null,null,null,null,null,null,null,null,null,null,null,null,null,null,null,null,null,null,null,null,null,null,null,null,null,null,null,null,null,null,null,null,null,null,null,null,null,null,null,null,null,null,null,null,null,null,null,null,null,null,null,null,null,null,null,null,null,null,null,null,null,null,null,null,null,null,null,null,null,null,null,null,null,null,null,null,null,null,null,null,null,null,null,null,null,null,null,null,null,null,null,null,null,null,null,null,null,null,null,null,null,null,null,null,null,null,null,null,null,null,null,null,null,null,null,null,null,null,null,null,null,null,null,null,null,null,null,null,null,null,null,null,null,null,null,null,null,null,null,null,null,null,null,414,"河南","河　　南"]
[null,null,null,null,null,null,null,null,null,null,null,null,null,null,null,null,null,null,null,null,null,null,null,null,null,null,null,null,null,null,null,null,null,null,null,null,null,null,null,null,null,null,null,null,null,null,null,null,null,null,null,null,null,null,null,null,null,null,null,null,null,null,null,null,null,null,null,null,null,null,null,null,null,null,null,null,null,null,null,null,null,null,null,null,null,null,null,null,null,null,null,null,null,null,null,null,null,null,null,null,null,null,null,null,null,null,null,null,null,null,null,null,null,null,null,null,null,null,null,null,null,null,null,null,null,null,null,null,null,null,null,null,null,null,null,null,null,null,null,null,null,null,null,null,null,null,null,null,null,null,null,null,null,null,null,null,null,null,null,null,null,null,null,null,null,null,null,null,null,null,null,null,null,null,null,null,null,null,null,null,null,null,null,null,null,null,null,null,null,null,null,null,null,null,416,"金剛","金　　剛"]
[null,null,null,null,null,null,null,null,null,null,null,null,null,null,null,null,null,null,null,null,null,null,null,null,null,null,null,null,null,null,null,null,null,null,null,null,null,null,null,null,null,null,null,null,null,null,null,null,null,null,null,null,null,null,null,null,null,null,null,null,null,null,null,null,null,null,null,null,null,null,null,null,null,null,null,null,null,null,null,null,null,null,null,null,null,null,null,null,null,null,null,null,null,null,null,null,null,null,null,null,null,null,null,null,null,null,null,null,null,null,null,null,null,null,null,null,null,null,null,null,null,null,null,null,null,null,null,null,null,null,null,null,null,null,null,null,null,null,null,null,null,null,null,null,null,null,null,null,null,null,null,null,null,null,null,null,null,null,null,null,null,null,null,null,null,null,null,null,null,null,null,null,null,null,null,null,null,null,null,null,null,null,null,null,null,null,null,null,null,null,null,null,null,null,417,"住吉","住　　吉"]
[null,null,"階級",null,null,null,"選手名",null,null,null,null,null,null,null,null,null,null,null,null,null,null,null,null,null,null,null,null,null,null,null,null,null,null,null,null,null,null,null,"学年",null,null,"段位",null,null,"体重（kg）",null,null,null,null,"身長（cm）",null,null,null,null,"生年月日（西暦）",null,null,null,null,null,null,null,null,null,null,null,null,null,null,null,null,null,null,null,null,null,null,null,null,null,null,null,null,null,null,null,null,null,null,null,null,null,null,null,null,null,null,null,null,null,null,null,null,null,null,null,null,null,null,null,null,null,null,null,null,null,null,null,null,null,null,null,null,null,null,null,null,null,null,null,null,null,null,null,null,null,null,null,null,null,null,null,null,null,null,null,null,null,null,null,null,null,null,null,null,null,null,null,null,null,null,null,null,null,null,null,null,null,null,null,null,null,null,null,null,null,null,null,null,null,null,null,null,null,null,null,null,null,null,null,null,null,null,null,419,"天王寺","天 王 寺"]
[null,null,null,null,null,null,"ふりがな",null,null,null,null,null,null,null,null,null,null,null,null,null,null,null,null,null,null,null,null,null,null,null,null,null,null,null,null,null,null,null,null,null,null,null,null,null,null,null,null,null,null,null,null,null,null,null,null,null,null,null,"・",null,null,null,"・",null,null,null,1,null,null,null,null,null,null,null,null,null,null,null,null,null,null,null,null,null,null,null,null,null,null,null,null,null,null,null,null,null,null,null,null,null,null,null,null,null,null,null,null,null,null,null,null,null,null,null,null,null,null,null,null,null,null,null,null,null,null,null,null,null,null,null,null,null,null,null,null,null,null,null,null,null,null,null,null,null,null,null,null,null,null,null,null,null,null,null,null,null,null,null,null,null,null,null,null,null,null,null,null,null,null,null,null,null,null,null,null,null,null,null,null,null,null,null,null,null,null,null,null,null,null,null,null,null,null,null,420,"富田林","富 田 林"]
[null,null,null,null,null,null,"（姓）",null,null,null,null,null,null,null,null,null,null,null,null,null,null,null,"（名）",null,null,null,null,null,null,null,null,null,null,null,null,null,null,null,null,null,null,null,null,null,null,null,null,null,null,null,null,null,null,null,null,null,null,null,null,null,null,null,null,null,null,null,null,null,null,null,null,null,null,null,null,null,null,null,null,null,null,null,null,null,null,null,null,null,null,null,null,null,null,null,null,null,null,null,null,null,null,null,null,null,null,null,null,null,null,null,null,null,null,null,null,null,null,null,null,null,null,null,null,null,null,null,null,null,null,null,null,null,null,null,null,null,null,null,null,null,null,null,null,null,null,null,null,null,null,null,null,null,null,null,null,null,null,null,null,null,null,null,null,null,null,null,null,null,null,null,null,null,null,null,null,null,null,null,null,null,null,null,null,null,null,null,null,null,null,null,null,null,null,null,421,"長野","長　　野"]
[null,null,null,null,null,null,null,null,null,null,null,null,null,null,null,null,null,null,null,null,null,null,null,null,null,null,null,null,null,null,null,null,null,null,null,null,null,null,null,null,null,null,null,null,null,null,null,null,null,null,null,null,null,null,null,null,null,null,null,null,null,null,null,null,null,null,null,null,null,null,null,null,null,null,null,null,null,null,null,null,null,null,null,null,null,null,null,null,null,null,null,null,null,null,null,null,null,null,null,null,null,null,null,null,null,null,null,null,null,null,null,null,null,null,null,null,null,null,null,null,null,null,null,null,null,null,null,null,null,null,null,null,null,null,null,null,null,null,null,null,null,null,null,null,null,null,null,null,null,null,null,null,null,null,null,null,null,null,null,null,null,null,null,null,null,null,null,null,null,null,null,null,null,null,null,null,null,null,null,null,null,null,null,null,null,null,null,null,null,null,null,null,null,null,422,"長野北","長 野 北"]
[null,null,null,null,null,null,null,null,null,null,null,null,null,null,null,null,null,null,null,null,null,null,null,null,null,null,null,null,null,null,null,null,null,null,null,null,null,null,null,null,null,null,null,null,null,null,null,null,null,null,null,null,null,null,null,null,null,null,null,null,null,null,null,null,null,null,null,null,null,null,null,null,null,null,null,null,null,null,null,null,null,null,null,null,null,null,null,null,null,null,null,null,null,null,null,null,null,null,null,null,null,null,null,null,null,null,null,null,null,null,null,null,null,null,null,null,null,null,null,null,null,null,null,null,null,null,null,null,null,null,null,null,null,null,null,null,null,null,null,null,null,null,null,null,null,null,null,null,null,null,null,null,null,null,null,null,null,null,null,null,null,null,null,null,null,null,null,null,null,null,null,null,null,null,null,null,null,null,null,null,null,null,null,null,null,null,null,null,null,null,null,null,null,null,423,"長吉","長　　吉"]
[null,null,null,null,null,null,"ふりがな",null,null,null,null,null,null,null,null,null,null,null,null,null,null,null,null,null,null,null,null,null,null,null,null,null,null,null,null,null,null,null,null,null,null,null,null,null,null,null,null,null,null,null,null,null,null,null,null,null,null,null,"・",null,null,null,"・",null,null,null,2,null,null,null,null,null,null,null,null,null,null,null,null,null,null,null,null,null,null,null,null,null,null,null,null,null,null,null,null,null,null,null,null,null,null,null,null,null,null,null,null,null,null,null,null,null,null,null,null,null,null,null,null,null,null,null,null,null,null,null,null,null,null,null,null,null,null,null,null,null,null,null,null,null,null,null,null,null,null,null,null,null,null,null,null,null,null,null,null,null,null,null,null,null,null,null,null,null,null,null,null,null,null,null,null,null,null,null,null,null,null,null,null,null,null,null,null,null,null,null,null,null,null,null,null,null,null,null,425,"花園","花　　園"]
[null,null,null,null,null,null,"（姓）",null,null,null,null,null,null,null,null,null,null,null,null,null,null,null,"（名）",null,null,null,null,null,null,null,null,null,null,null,null,null,null,null,null,null,null,null,null,null,null,null,null,null,null,null,null,null,null,null,null,null,null,null,null,null,null,null,null,null,null,null,null,null,null,null,null,null,null,null,null,null,null,null,null,null,null,null,null,null,null,null,null,null,null,null,null,null,null,null,null,null,null,null,null,null,null,null,null,null,null,null,null,null,null,null,null,null,null,null,null,null,null,null,null,null,null,null,null,null,null,null,null,null,null,null,null,null,null,null,null,null,null,null,null,null,null,null,null,null,null,null,null,null,null,null,null,null,null,null,null,null,null,null,null,null,null,null,null,null,null,null,null,null,null,null,null,null,null,null,null,null,null,null,null,null,null,null,null,null,null,null,null,null,null,null,null,null,null,null,426,"懐風館","懐 風 館"]
[null,null,null,null,null,null,null,null,null,null,null,null,null,null,null,null,null,null,null,null,null,null,null,null,null,null,null,null,null,null,null,null,null,null,null,null,null,null,null,null,null,null,null,null,null,null,null,null,null,null,null,null,null,null,null,null,null,null,null,null,null,null,null,null,null,null,null,null,null,null,null,null,null,null,null,null,null,null,null,null,null,null,null,null,null,null,null,null,null,null,null,null,null,null,null,null,null,null,null,null,null,null,null,null,null,null,null,null,null,null,null,null,null,null,null,null,null,null,null,null,null,null,null,null,null,null,null,null,null,null,null,null,null,null,null,null,null,null,null,null,null,null,null,null,null,null,null,null,null,null,null,null,null,null,null,null,null,null,null,null,null,null,null,null,null,null,null,null,null,null,null,null,null,null,null,null,null,null,null,null,null,null,null,null,null,null,null,null,null,null,null,null,null,null,427,"東住吉","東 住 吉"]
[null,null,null,null,null,null,null,null,null,null,null,null,null,null,null,null,null,null,null,null,null,null,null,null,null,null,null,null,null,null,null,null,null,null,null,null,null,null,null,null,null,null,null,null,null,null,null,null,null,null,null,null,null,null,null,null,null,null,null,null,null,null,null,null,null,null,null,null,null,null,null,null,null,null,null,null,null,null,null,null,null,null,null,null,null,null,null,null,null,null,null,null,null,null,null,null,null,null,null,null,null,null,null,null,null,null,null,null,null,null,null,null,null,null,null,null,null,null,null,null,null,null,null,null,null,null,null,null,null,null,null,null,null,null,null,null,null,null,null,null,null,null,null,null,null,null,null,null,null,null,null,null,null,null,null,null,null,null,null,null,null,null,null,null,null,null,null,null,null,null,null,null,null,null,null,null,null,null,null,null,null,null,null,null,null,null,null,null,null,null,null,null,null,null,428,"平野","平　　野"]
[null,null,null,null,null,null,"ふりがな",null,null,null,null,null,null,null,null,null,null,null,null,null,null,null,null,null,null,null,null,null,null,null,null,null,null,null,null,null,null,null,null,null,null,null,null,null,null,null,null,null,null,null,null,null,null,null,null,null,null,null,"・",null,null,null,"・",null,null,null,3,null,null,null,null,null,null,null,null,null,null,null,null,null,null,null,null,null,null,null,null,null,null,null,null,null,null,null,null,null,null,null,null,null,null,null,null,null,null,null,null,null,null,null,null,null,null,null,null,null,null,null,null,null,null,null,null,null,null,null,null,null,null,null,null,null,null,null,null,null,null,null,null,null,null,null,null,null,null,null,null,null,null,null,null,null,null,null,null,null,null,null,null,null,null,null,null,null,null,null,null,null,null,null,null,null,null,null,null,null,null,null,null,null,null,null,null,null,null,null,null,null,null,null,null,null,null,null,429,"藤井寺","藤 井 寺"]
[null,null,null,null,null,null,"（姓）",null,null,null,null,null,null,null,null,null,null,null,null,null,null,null,"（名）",null,null,null,null,null,null,null,null,null,null,null,null,null,null,null,null,null,null,null,null,null,null,null,null,null,null,null,null,null,null,null,null,null,null,null,null,null,null,null,null,null,null,null,null,null,null,null,null,null,null,null,null,null,null,null,null,null,null,null,null,null,null,null,null,null,null,null,null,null,null,null,null,null,null,null,null,null,null,null,null,null,null,null,null,null,null,null,null,null,null,null,null,null,null,null,null,null,null,null,null,null,null,null,null,null,null,null,null,null,null,null,null,null,null,null,null,null,null,null,null,null,null,null,null,null,null,null,null,null,null,null,null,null,null,null,null,null,null,null,null,null,null,null,null,null,null,null,null,null,null,null,null,null,null,null,null,null,null,null,null,null,null,null,null,null,null,null,null,null,null,null,430,"布施","布　　施"]
[null,null,null,null,null,null,null,null,null,null,null,null,null,null,null,null,null,null,null,null,null,null,null,null,null,null,null,null,null,null,null,null,null,null,null,null,null,null,null,null,null,null,null,null,null,null,null,null,null,null,null,null,null,null,null,null,null,null,null,null,null,null,null,null,null,null,null,null,null,null,null,null,null,null,null,null,null,null,null,null,null,null,null,null,null,null,null,null,null,null,null,null,null,null,null,null,null,null,null,null,null,null,null,null,null,null,null,null,null,null,null,null,null,null,null,null,null,null,null,null,null,null,null,null,null,null,null,null,null,null,null,null,null,null,null,null,null,null,null,null,null,null,null,null,null,null,null,null,null,null,null,null,null,null,null,null,null,null,null,null,null,null,null,null,null,null,null,null,null,null,null,null,null,null,null,null,null,null,null,null,null,null,null,null,null,null,null,null,null,null,null,null,null,null,431,"布施北","布 施 北"]
[null,null,null,null,null,null,null,null,null,null,null,null,null,null,null,null,null,null,null,null,null,null,null,null,null,null,null,null,null,null,null,null,null,null,null,null,null,null,null,null,null,null,null,null,null,null,null,null,null,null,null,null,null,null,null,null,null,null,null,null,null,null,null,null,null,null,null,null,null,null,null,null,null,null,null,null,null,null,null,null,null,null,null,null,null,null,null,null,null,null,null,null,null,null,null,null,null,null,null,null,null,null,null,null,null,null,null,null,null,null,null,null,null,null,null,null,null,null,null,null,null,null,null,null,null,null,null,null,null,null,null,null,null,null,null,null,null,null,null,null,null,null,null,null,null,null,null,null,null,null,null,null,null,null,null,null,null,null,null,null,null,null,null,null,null,null,null,null,null,null,null,null,null,null,null,null,null,null,null,null,null,null,null,null,null,null,null,null,null,null,null,null,null,null,432,"松原","松　　原"]
[null,null,null,null,null,null,"ふりがな",null,null,null,null,null,null,null,null,null,null,null,null,null,null,null,null,null,null,null,null,null,null,null,null,null,null,null,null,null,null,null,null,null,null,null,null,null,null,null,null,null,null,null,null,null,null,null,null,null,null,null,"・",null,null,null,"・",null,null,null,4,null,null,null,null,null,null,null,null,null,null,null,null,null,null,null,null,null,null,null,null,null,null,null,null,null,null,null,null,null,null,null,null,null,null,null,null,null,null,null,null,null,null,null,null,null,null,null,null,null,null,null,null,null,null,null,null,null,null,null,null,null,null,null,null,null,null,null,null,null,null,null,null,null,null,null,null,null,null,null,null,null,null,null,null,null,null,null,null,null,null,null,null,null,null,null,null,null,null,null,null,null,null,null,null,null,null,null,null,null,null,null,null,null,null,null,null,null,null,null,null,null,null,null,null,null,null,null,433,"美原","美　　原"]
[null,null,null,null,null,null,"（姓）",null,null,null,null,null,null,null,null,null,null,null,null,null,null,null,"（名）",null,null,null,null,null,null,null,null,null,null,null,null,null,null,null,null,null,null,null,null,null,null,null,null,null,null,null,null,null,null,null,null,null,null,null,null,null,null,null,null,null,null,null,null,null,null,null,null,null,null,null,null,null,null,null,null,null,null,null,null,null,null,null,null,null,null,null,null,null,null,null,null,null,null,null,null,null,null,null,null,null,null,null,null,null,null,null,null,null,null,null,null,null,null,null,null,null,null,null,null,null,null,null,null,null,null,null,null,null,null,null,null,null,null,null,null,null,null,null,null,null,null,null,null,null,null,null,null,null,null,null,null,null,null,null,null,null,null,null,null,null,null,null,null,null,null,null,null,null,null,null,null,null,null,null,null,null,null,null,null,null,null,null,null,null,null,null,null,null,null,null,434,"八尾","八　　尾"]
[null,null,null,null,null,null,null,null,null,null,null,null,null,null,null,null,null,null,null,null,null,null,null,null,null,null,null,null,null,null,null,null,null,null,null,null,null,null,null,null,null,null,null,null,null,null,null,null,null,null,null,null,null,null,null,null,null,null,null,null,null,null,null,null,null,null,null,null,null,null,null,null,null,null,null,null,null,null,null,null,null,null,null,null,null,null,null,null,null,null,null,null,null,null,null,null,null,null,null,null,null,null,null,null,null,null,null,null,null,null,null,null,null,null,null,null,null,null,null,null,null,null,null,null,null,null,null,null,null,null,null,null,null,null,null,null,null,null,null,null,null,null,null,null,null,null,null,null,null,null,null,null,null,null,null,null,null,null,null,null,null,null,null,null,null,null,null,null,null,null,null,null,null,null,null,null,null,null,null,null,null,null,null,null,null,null,null,null,null,null,null,null,null,null,435,"八尾北","八 尾 北"]
[null,null,null,null,null,null,null,null,null,null,null,null,null,null,null,null,null,null,null,null,null,null,null,null,null,null,null,null,null,null,null,null,null,null,null,null,null,null,null,null,null,null,null,null,null,null,null,null,null,null,null,null,null,null,null,null,null,null,null,null,null,null,null,null,null,null,null,null,null,null,null,null,null,null,null,null,null,null,null,null,null,null,null,null,null,null,null,null,null,null,null,null,null,null,null,null,null,null,null,null,null,null,null,null,null,null,null,null,null,null,null,null,null,null,null,null,null,null,null,null,null,null,null,null,null,null,null,null,null,null,null,null,null,null,null,null,null,null,null,null,null,null,null,null,null,null,null,null,null,null,null,null,null,null,null,null,null,null,null,null,null,null,null,null,null,null,null,null,null,null,null,null,null,null,null,null,null,null,null,null,null,null,null,null,null,null,null,null,null,null,null,null,null,null,436,"八尾翠翔","八尾翠翔"]
[null,null,null,null,null,null,"ふりがな",null,null,null,null,null,null,null,null,null,null,null,null,null,null,null,null,null,null,null,null,null,null,null,null,null,null,null,null,null,null,null,null,null,null,null,null,null,null,null,null,null,null,null,null,null,null,null,null,null,null,null,"・",null,null,null,"・",null,null,null,5,null,null,null,null,null,null,null,null,null,null,null,null,null,null,null,null,null,null,null,null,null,null,null,null,null,null,null,null,null,null,null,null,null,null,null,null,null,null,null,null,null,null,null,null,null,null,null,null,null,null,null,null,null,null,null,null,null,null,null,null,null,null,null,null,null,null,null,null,null,null,null,null,null,null,null,null,null,null,null,null,null,null,null,null,null,null,null,null,null,null,null,null,null,null,null,null,null,null,null,null,null,null,null,null,null,null,null,null,null,null,null,null,null,null,null,null,null,null,null,null,null,null,null,null,null,null,null,438,"山本","山　　本"]
[null,null,null,null,null,null,"（姓）",null,null,null,null,null,null,null,null,null,null,null,null,null,null,null,"（名）",null,null,null,null,null,null,null,null,null,null,null,null,null,null,null,null,null,null,null,null,null,null,null,null,null,null,null,null,null,null,null,null,null,null,null,null,null,null,null,null,null,null,null,null,null,null,null,null,null,null,null,null,null,null,null,null,null,null,null,null,null,null,null,null,null,null,null,null,null,null,null,null,null,null,null,null,null,null,null,null,null,null,null,null,null,null,null,null,null,null,null,null,null,null,null,null,null,null,null,null,null,null,null,null,null,null,null,null,null,null,null,null,null,null,null,null,null,null,null,null,null,null,null,null,null,null,null,null,null,null,null,null,null,null,null,null,null,null,null,null,null,null,null,null,null,null,null,null,null,null,null,null,null,null,null,null,null,null,null,null,null,null,null,null,null,null,null,null,null,null,null,439,"枚岡樟風","牧岡樟風"]
[null,null,null,null,null,null,null,null,null,null,null,null,null,null,null,null,null,null,null,null,null,null,null,null,null,null,null,null,null,null,null,null,null,null,null,null,null,null,null,null,null,null,null,null,null,null,null,null,null,null,null,null,null,null,null,null,null,null,null,null,null,null,null,null,null,null,null,null,null,null,null,null,null,null,null,null,null,null,null,null,null,null,null,null,null,null,null,null,null,null,null,null,null,null,null,null,null,null,null,null,null,null,null,null,null,null,null,null,null,null,null,null,null,null,null,null,null,null,null,null,null,null,null,null,null,null,null,null,null,null,null,null,null,null,null,null,null,null,null,null,null,null,null,null,null,null,null,null,null,null,null,null,null,null,null,null,null,null,null,null,null,null,null,null,null,null,null,null,null,null,null,null,null,null,null,null,null,null,null,null,null,null,null,null,null,null,null,null,null,null,null,null,null,null,440,"農芸","農　　芸"]
[null,null,null,null,null,null,null,null,null,null,null,null,null,null,null,null,null,null,null,null,null,null,null,null,null,null,null,null,null,null,null,null,null,null,null,null,null,null,null,null,null,null,null,null,null,null,null,null,null,null,null,null,null,null,null,null,null,null,null,null,null,null,null,null,null,null,null,null,null,null,null,null,null,null,null,null,null,null,null,null,null,null,null,null,null,null,null,null,null,null,null,null,null,null,null,null,null,null,null,null,null,null,null,null,null,null,null,null,null,null,null,null,null,null,null,null,null,null,null,null,null,null,null,null,null,null,null,null,null,null,null,null,null,null,null,null,null,null,null,null,null,null,null,null,null,null,null,null,null,null,null,null,null,null,null,null,null,null,null,null,null,null,null,null,null,null,null,null,null,null,null,null,null,null,null,null,null,null,null,null,null,null,null,null,null,null,null,null,null,null,null,null,null,null,441,"東住吉総合","東住吉総"]
[null,null,null,null,null,null,"ふりがな",null,null,null,null,null,null,null,null,null,null,null,null,null,null,null,null,null,null,null,null,null,null,null,null,null,null,null,null,null,null,null,null,null,null,null,null,null,null,null,null,null,null,null,null,null,null,null,null,null,null,null,"・",null,null,null,"・",null,null,null,6,null,null,null,null,null,null,null,null,null,null,null,null,null,null,null,null,null,null,null,null,null,null,null,null,null,null,null,null,null,null,null,null,null,null,null,null,null,null,null,null,null,null,null,null,null,null,null,null,null,null,null,null,null,null,null,null,null,null,null,null,null,null,null,null,null,null,null,null,null,null,null,null,null,null,null,null,null,null,null,null,null,null,null,null,null,null,null,null,null,null,null,null,null,null,null,null,null,null,null,null,null,null,null,null,null,null,null,null,null,null,null,null,null,null,null,null,null,null,null,null,null,null,null,null,null,null,null,442,"藤井寺工科","藤井寺工"]
[null,null,null,null,null,null,"（姓）",null,null,null,null,null,null,null,null,null,null,null,null,null,null,null,"（名）",null,null,null,null,null,null,null,null,null,null,null,null,null,null,null,null,null,null,null,null,null,null,null,null,null,null,null,null,null,null,null,null,null,null,null,null,null,null,null,null,null,null,null,null,null,null,null,null,null,null,null,null,null,null,null,null,null,null,null,null,null,null,null,null,null,null,null,null,null,null,null,null,null,null,null,null,null,null,null,null,null,null,null,null,null,null,null,null,null,null,null,null,null,null,null,null,null,null,null,null,null,null,null,null,null,null,null,null,null,null,null,null,null,null,null,null,null,null,null,null,null,null,null,null,null,null,null,null,null,null,null,null,null,null,null,null,null,null,null,null,null,null,null,null,null,null,null,null,null,null,null,null,null,null,null,null,null,null,null,null,null,null,null,null,null,null,null,null,null,null,null,443,"布施工科","布施工科"]
[null,null,null,null,null,null,null,null,null,null,null,null,null,null,null,null,null,null,null,null,null,null,null,null,null,null,null,null,null,null,null,null,null,null,null,null,null,null,null,null,null,null,null,null,null,null,null,null,null,null,null,null,null,null,null,null,null,null,null,null,null,null,null,null,null,null,null,null,null,null,null,null,null,null,null,null,null,null,null,null,null,null,null,null,null,null,null,null,null,null,null,null,null,null,null,null,null,null,null,null,null,null,null,null,null,null,null,null,null,null,null,null,null,null,null,null,null,null,null,null,null,null,null,null,null,null,null,null,null,null,null,null,null,null,null,null,null,null,null,null,null,null,null,null,null,null,null,null,null,null,null,null,null,null,null,null,null,null,null,null,null,null,null,null,null,null,null,null,null,null,null,null,null,null,null,null,null,null,null,null,null,null,null,null,null,null,null,null,null,null,null,null,null,null,445,"日新","日　　新"]
[null,null,null,null,null,null,null,null,null,null,null,null,null,null,null,null,null,null,null,null,null,null,null,null,null,null,null,null,null,null,null,null,null,null,null,null,null,null,null,null,null,null,null,null,null,null,null,null,null,null,null,null,null,null,null,null,null,null,null,null,null,null,null,null,null,null,null,null,null,null,null,null,null,null,null,null,null,null,null,null,null,null,null,null,null,null,null,null,null,null,null,null,null,null,null,null,null,null,null,null,null,null,null,null,null,null,null,null,null,null,null,null,null,null,null,null,null,null,null,null,null,null,null,null,null,null,null,null,null,null,null,null,null,null,null,null,null,null,null,null,null,null,null,null,null,null,null,null,null,null,null,null,null,null,null,null,null,null,null,null,null,null,null,null,null,null,null,null,null,null,null,null,null,null,null,null,null,null,null,null,null,null,null,null,null,null,null,null,null,null,null,null,null,null,446,"上宮","上　　宮"]
[null,null,null,null,null,null,"ふりがな",null,null,null,null,null,null,null,null,null,null,null,null,null,null,null,null,null,null,null,null,null,null,null,null,null,null,null,null,null,null,null,null,null,null,null,null,null,null,null,null,null,null,null,null,null,null,null,null,null,null,null,"・",null,null,null,"・",null,null,null,7,null,null,null,null,null,null,null,null,null,null,null,null,null,null,null,null,null,null,null,null,null,null,null,null,null,null,null,null,null,null,null,null,null,null,null,null,null,null,null,null,null,null,null,null,null,null,null,null,null,null,null,null,null,null,null,null,null,null,null,null,null,null,null,null,null,null,null,null,null,null,null,null,null,null,null,null,null,null,null,null,null,null,null,null,null,null,null,null,null,null,null,null,null,null,null,null,null,null,null,null,null,null,null,null,null,null,null,null,null,null,null,null,null,null,null,null,null,null,null,null,null,null,null,null,null,null,null,447,"金光八尾","金光八尾"]
[null,null,null,null,null,null,"（姓）",null,null,null,null,null,null,null,null,null,null,null,null,null,null,null,"（名）",null,null,null,null,null,null,null,null,null,null,null,null,null,null,null,null,null,null,null,null,null,null,null,null,null,null,null,null,null,null,null,null,null,null,null,null,null,null,null,null,null,null,null,null,null,null,null,null,null,null,null,null,null,null,null,null,null,null,null,null,null,null,null,null,null,null,null,null,null,null,null,null,null,null,null,null,null,null,null,null,null,null,null,null,null,null,null,null,null,null,null,null,null,null,null,null,null,null,null,null,null,null,null,null,null,null,null,null,null,null,null,null,null,null,null,null,null,null,null,null,null,null,null,null,null,null,null,null,null,null,null,null,null,null,null,null,null,null,null,null,null,null,null,null,null,null,null,null,null,null,null,null,null,null,null,null,null,null,null,null,null,null,null,null,null,null,null,null,null,null,null,448,"阪南大学","阪南大学"]
[null,null,null,null,null,null,null,null,null,null,null,null,null,null,null,null,null,null,null,null,null,null,null,null,null,null,null,null,null,null,null,null,null,null,null,null,null,null,null,null,null,null,null,null,null,null,null,null,null,null,null,null,null,null,null,null,null,null,null,null,null,null,null,null,null,null,null,null,null,null,null,null,null,null,null,null,null,null,null,null,null,null,null,null,null,null,null,null,null,null,null,null,null,null,null,null,null,null,null,null,null,null,null,null,null,null,null,null,null,null,null,null,null,null,null,null,null,null,null,null,null,null,null,null,null,null,null,null,null,null,null,null,null,null,null,null,null,null,null,null,null,null,null,null,null,null,null,null,null,null,null,null,null,null,null,null,null,null,null,null,null,null,null,null,null,null,null,null,null,null,null,null,null,null,null,null,null,null,null,null,null,null,null,null,null,null,null,null,null,null,null,null,null,null,449,"大阪商業大学","大 商 大"]
[null,null,null,null,null,null,null,null,null,null,null,null,null,null,null,null,null,null,null,null,null,null,null,null,null,null,null,null,null,null,null,null,null,null,null,null,null,null,null,null,null,null,null,null,null,null,null,null,null,null,null,null,null,null,null,null,null,null,null,null,null,null,null,null,null,null,null,null,null,null,null,null,null,null,null,null,null,null,null,null,null,null,null,null,null,null,null,null,null,null,null,null,null,null,null,null,null,null,null,null,null,null,null,null,null,null,null,null,null,null,null,null,null,null,null,null,null,null,null,null,null,null,null,null,null,null,null,null,null,null,null,null,null,null,null,null,null,null,null,null,null,null,null,null,null,null,null,null,null,null,null,null,null,null,null,null,null,null,null,null,null,null,null,null,null,null,null,null,null,null,null,null,null,null,null,null,null,null,null,null,null,null,null,null,null,null,null,null,null,null,null,null,null,null,450,"東大阪大学柏原","東大柏原"]
[null,null,null,null,null,null,"ふりがな",null,null,null,null,null,null,null,null,null,null,null,null,null,null,null,null,null,null,null,null,null,null,null,null,null,null,null,null,null,null,null,null,null,null,null,null,null,null,null,null,null,null,null,null,null,null,null,null,null,null,null,"・",null,null,null,"・",null,null,null,8,null,null,null,null,null,null,null,null,null,null,null,null,null,null,null,null,null,null,null,null,null,null,null,null,null,null,null,null,null,null,null,null,null,null,null,null,null,null,null,null,null,null,null,null,null,null,null,null,null,null,null,null,null,null,null,null,null,null,null,null,null,null,null,null,null,null,null,null,null,null,null,null,null,null,null,null,null,null,null,null,null,null,null,null,null,null,null,null,null,null,null,null,null,null,null,null,null,null,null,null,null,null,null,null,null,null,null,null,null,null,null,null,null,null,null,null,null,null,null,null,null,null,null,null,null,null,null,451,"近畿大学附属","近大附属"]
[null,null,null,null,null,null,"（姓）",null,null,null,null,null,null,null,null,null,null,null,null,null,null,null,"（名）",null,null,null,null,null,null,null,null,null,null,null,null,null,null,null,null,null,null,null,null,null,null,null,null,null,null,null,null,null,null,null,null,null,null,null,null,null,null,null,null,null,null,null,null,null,null,null,null,null,null,null,null,null,null,null,null,null,null,null,null,null,null,null,null,null,null,null,null,null,null,null,null,null,null,null,null,null,null,null,null,null,null,null,null,null,null,null,null,null,null,null,null,null,null,null,null,null,null,null,null,null,null,null,null,null,null,null,null,null,null,null,null,null,null,null,null,null,null,null,null,null,null,null,null,null,null,null,null,null,null,null,null,null,null,null,null,null,null,null,null,null,null,null,null,null,null,null,null,null,null,null,null,null,null,null,null,null,null,null,null,null,null,null,null,null,null,null,null,null,null,null,452,"興國","興　　國"]
[null,null,null,null,null,null,null,null,null,null,null,null,null,null,null,null,null,null,null,null,null,null,null,null,null,null,null,null,null,null,null,null,null,null,null,null,null,null,null,null,null,null,null,null,null,null,null,null,null,null,null,null,null,null,null,null,null,null,null,null,null,null,null,null,null,null,null,null,null,null,null,null,null,null,null,null,null,null,null,null,null,null,null,null,null,null,null,null,null,null,null,null,null,null,null,null,null,null,null,null,null,null,null,null,null,null,null,null,null,null,null,null,null,null,null,null,null,null,null,null,null,null,null,null,null,null,null,null,null,null,null,null,null,null,null,null,null,null,null,null,null,null,null,null,null,null,null,null,null,null,null,null,null,null,null,null,null,null,null,null,null,null,null,null,null,null,null,null,null,null,null,null,null,null,null,null,null,null,null,null,null,null,null,null,null,null,null,null,null,null,null,null,null,null,453,"四天王寺羽曳丘","四天羽曳"]
[null,null,null,null,null,null,null,null,null,null,null,null,null,null,null,null,null,null,null,null,null,null,null,null,null,null,null,null,null,null,null,null,null,null,null,null,null,null,null,null,null,null,null,null,null,null,null,null,null,null,null,null,null,null,null,null,null,null,null,null,null,null,null,null,null,null,null,null,null,null,null,null,null,null,null,null,null,null,null,null,null,null,null,null,null,null,null,null,null,null,null,null,null,null,null,null,null,null,null,null,null,null,null,null,null,null,null,null,null,null,null,null,null,null,null,null,null,null,null,null,null,null,null,null,null,null,null,null,null,null,null,null,null,null,null,null,null,null,null,null,null,null,null,null,null,null,null,null,null,null,null,null,null,null,null,null,null,null,null,null,null,null,null,null,null,null,null,null,null,null,null,null,null,null,null,null,null,null,null,null,null,null,null,null,null,null,null,null,null,null,null,null,null,null,454,"大阪星光学院","星光学院"]
[null,null,null,null,null,null,"ふりがな",null,null,null,null,null,null,null,null,null,null,null,null,null,null,null,null,null,null,null,null,null,null,null,null,null,null,null,null,null,null,null,null,null,null,null,null,null,null,null,null,null,null,null,null,null,null,null,null,null,null,null,"・",null,null,null,"・",null,null,null,9,null,null,null,null,null,null,null,null,null,null,null,null,null,null,null,null,null,null,null,null,null,null,null,null,null,null,null,null,null,null,null,null,null,null,null,null,null,null,null,null,null,null,null,null,null,null,null,null,null,null,null,null,null,null,null,null,null,null,null,null,null,null,null,null,null,null,null,null,null,null,null,null,null,null,null,null,null,null,null,null,null,null,null,null,null,null,null,null,null,null,null,null,null,null,null,null,null,null,null,null,null,null,null,null,null,null,null,null,null,null,null,null,null,null,null,null,null,null,null,null,null,null,null,null,null,null,null,455,"清風","清　　風"]
[null,null,null,null,null,null,"（姓）",null,null,null,null,null,null,null,null,null,null,null,null,null,null,null,"（名）",null,null,null,null,null,null,null,null,null,null,null,null,null,null,null,null,null,null,null,null,null,null,null,null,null,null,null,null,null,null,null,null,null,null,null,null,null,null,null,null,null,null,null,null,null,null,null,null,null,null,null,null,null,null,null,null,null,null,null,null,null,null,null,null,null,null,null,null,null,null,null,null,null,null,null,null,null,null,null,null,null,null,null,null,null,null,null,null,null,null,null,null,null,null,null,null,null,null,null,null,null,null,null,null,null,null,null,null,null,null,null,null,null,null,null,null,null,null,null,null,null,null,null,null,null,null,null,null,null,null,null,null,null,null,null,null,null,null,null,null,null,null,null,null,null,null,null,null,null,null,null,null,null,null,null,null,null,null,null,null,null,null,null,null,null,null,null,null,null,null,null,456,"ＰＬ学園","ＰＬ学園"]
[null,null,null,null,null,null,null,null,null,null,null,null,null,null,null,null,null,null,null,null,null,null,null,null,null,null,null,null,null,null,null,null,null,null,null,null,null,null,null,null,null,null,null,null,null,null,null,null,null,null,null,null,null,null,null,null,null,null,null,null,null,null,null,null,null,null,null,null,null,null,null,null,null,null,null,null,null,null,null,null,null,null,null,null,null,null,null,null,null,null,null,null,null,null,null,null,null,null,null,null,null,null,null,null,null,null,null,null,null,null,null,null,null,null,null,null,null,null,null,null,null,null,null,null,null,null,null,null,null,null,null,null,null,null,null,null,null,null,null,null,null,null,null,null,null,null,null,null,null,null,null,null,null,null,null,null,null,null,null,null,null,null,null,null,null,null,null,null,null,null,null,null,null,null,null,null,null,null,null,null,null,null,null,null,null,null,null,null,null,null,null,null,null,null,457,"桃山学院","桃山学院"]
[null,null,null,null,null,null,null,null,null,null,null,null,null,null,null,null,null,null,null,null,null,null,null,null,null,null,null,null,null,null,null,null,null,null,null,null,null,null,null,null,null,null,null,null,null,null,null,null,null,null,null,null,null,null,null,null,null,null,null,null,null,null,null,null,null,null,null,null,null,null,null,null,null,null,null,null,null,null,null,null,null,null,null,null,null,null,null,null,null,null,null,null,null,null,null,null,null,null,null,null,null,null,null,null,null,null,null,null,null,null,null,null,null,null,null,null,null,null,null,null,null,null,null,null,null,null,null,null,null,null,null,null,null,null,null,null,null,null,null,null,null,null,null,null,null,null,null,null,null,null,null,null,null,null,null,null,null,null,null,null,null,null,null,null,null,null,null,null,null,null,null,null,null,null,null,null,null,null,null,null,null,null,null,null,null,null,null,null,null,null,null,null,null,null,458,"芥川","芥　　川"]
[null,null,null,null,null,null,"ふりがな",null,null,null,null,null,null,null,null,null,null,null,null,null,null,null,null,null,null,null,null,null,null,null,null,null,null,null,null,null,null,null,null,null,null,null,null,null,null,null,null,null,null,null,null,null,null,null,null,null,null,null,"・",null,null,null,"・",null,null,null,10,null,null,null,null,null,null,null,null,null,null,null,null,null,null,null,null,null,null,null,null,null,null,null,null,null,null,null,null,null,null,null,null,null,null,null,null,null,null,null,null,null,null,null,null,null,null,null,null,null,null,null,null,null,null,null,null,null,null,null,null,null,null,null,null,null,null,null,null,null,null,null,null,null,null,null,null,null,null,null,null,null,null,null,null,null,null,null,null,null,null,null,null,null,null,null,null,null,null,null,null,null,null,null,null,null,null,null,null,null,null,null,null,null,null,null,null,null,null,null,null,null,null,null,null,null,null,null,459,"阿武野","阿 武 野"]
[null,null,null,null,null,null,"（姓）",null,null,null,null,null,null,null,null,null,null,null,null,null,null,null,"（名）",null,null,null,null,null,null,null,null,null,null,null,null,null,null,null,null,null,null,null,null,null,null,null,null,null,null,null,null,null,null,null,null,null,null,null,null,null,null,null,null,null,null,null,null,null,null,null,null,null,null,null,null,null,null,null,null,null,null,null,null,null,null,null,null,null,null,null,null,null,null,null,null,null,null,null,null,null,null,null,null,null,null,null,null,null,null,null,null,null,null,null,null,null,null,null,null,null,null,null,null,null,null,null,null,null,null,null,null,null,null,null,null,null,null,null,null,null,null,null,null,null,null,null,null,null,null,null,null,null,null,null,null,null,null,null,null,null,null,null,null,null,null,null,null,null,null,null,null,null,null,null,null,null,null,null,null,null,null,null,null,null,null,null,null,null,null,null,null,null,null,null,460,"池田","池　　田"]
[null,null,null,null,null,null,null,null,null,null,null,null,null,null,null,null,null,null,null,null,null,null,null,null,null,null,null,null,null,null,null,null,null,null,null,null,null,null,null,null,null,null,null,null,null,null,null,null,null,null,null,null,null,null,null,null,null,null,null,null,null,null,null,null,null,null,null,null,null,null,null,null,null,null,null,null,null,null,null,null,null,null,null,null,null,null,null,null,null,null,null,null,null,null,null,null,null,null,null,null,null,null,null,null,null,null,null,null,null,null,null,null,null,null,null,null,null,null,null,null,null,null,null,null,null,null,null,null,null,null,null,null,null,null,null,null,null,null,null,null,null,null,null,null,null,null,null,null,null,null,null,null,null,null,null,null,null,null,null,null,null,null,null,null,null,null,null,null,null,null,null,null,null,null,null,null,null,null,null,null,null,null,null,null,null,null,null,null,null,null,null,null,null,null,461,"池田北","池 田 北"]
[null,null,null,null,null,null,null,null,null,null,null,null,null,null,null,null,null,null,null,null,null,null,null,null,null,null,null,null,null,null,null,null,null,null,null,null,null,null,null,null,null,null,null,null,null,null,null,null,null,null,null,null,null,null,null,null,null,null,null,null,null,null,null,null,null,null,null,null,null,null,null,null,null,null,null,null,null,null,null,null,null,null,null,null,null,null,null,null,null,null,null,null,null,null,null,null,null,null,null,null,null,null,null,null,null,null,null,null,null,null,null,null,null,null,null,null,null,null,null,null,null,null,null,null,null,null,null,null,null,null,null,null,null,null,null,null,null,null,null,null,null,null,null,null,null,null,null,null,null,null,null,null,null,null,null,null,null,null,null,null,null,null,null,null,null,null,null,null,null,null,null,null,null,null,null,null,null,null,null,null,null,null,null,null,null,null,null,null,null,null,null,null,null,null,462,"茨木","茨　　木"]
[null,null,null,null,null,null,"ふりがな",null,null,null,null,null,null,null,null,null,null,null,null,null,null,null,null,null,null,null,null,null,null,null,null,null,null,null,null,null,null,null,null,null,null,null,null,null,null,null,null,null,null,null,null,null,null,null,null,null,null,null,"・",null,null,null,"・",null,null,null,11,null,null,null,null,null,null,null,null,null,null,null,null,null,null,null,null,null,null,null,null,null,null,null,null,null,null,null,null,null,null,null,null,null,null,null,null,null,null,null,null,null,null,null,null,null,null,null,null,null,null,null,null,null,null,null,null,null,null,null,null,null,null,null,null,null,null,null,null,null,null,null,null,null,null,null,null,null,null,null,null,null,null,null,null,null,null,null,null,null,null,null,null,null,null,null,null,null,null,null,null,null,null,null,null,null,null,null,null,null,null,null,null,null,null,null,null,null,null,null,null,null,null,null,null,null,null,null,463,"茨木西","茨 木 西"]
[null,null,null,null,null,null,"（姓）",null,null,null,null,null,null,null,null,null,null,null,null,null,null,null,"（名）",null,null,null,null,null,null,null,null,null,null,null,null,null,null,null,null,null,null,null,null,null,null,null,null,null,null,null,null,null,null,null,null,null,null,null,null,null,null,null,null,null,null,null,null,null,null,null,null,null,null,null,null,null,null,null,null,null,null,null,null,null,null,null,null,null,null,null,null,null,null,null,null,null,null,null,null,null,null,null,null,null,null,null,null,null,null,null,null,null,null,null,null,null,null,null,null,null,null,null,null,null,null,null,null,null,null,null,null,null,null,null,null,null,null,null,null,null,null,null,null,null,null,null,null,null,null,null,null,null,null,null,null,null,null,null,null,null,null,null,null,null,null,null,null,null,null,null,null,null,null,null,null,null,null,null,null,null,null,null,null,null,null,null,null,null,null,null,null,null,null,null,464,"北摂つばさ","北摂つば"]
[null,null,null,null,null,null,null,null,null,null,null,null,null,null,null,null,null,null,null,null,null,null,null,null,null,null,null,null,null,null,null,null,null,null,null,null,null,null,null,null,null,null,null,null,null,null,null,null,null,null,null,null,null,null,null,null,null,null,null,null,null,null,null,null,null,null,null,null,null,null,null,null,null,null,null,null,null,null,null,null,null,null,null,null,null,null,null,null,null,null,null,null,null,null,null,null,null,null,null,null,null,null,null,null,null,null,null,null,null,null,null,null,null,null,null,null,null,null,null,null,null,null,null,null,null,null,null,null,null,null,null,null,null,null,null,null,null,null,null,null,null,null,null,null,null,null,null,null,null,null,null,null,null,null,null,null,null,null,null,null,null,null,null,null,null,null,null,null,null,null,null,null,null,null,null,null,null,null,null,null,null,null,null,null,null,null,null,null,null,null,null,null,null,null,465,"園芸","園　　芸"]
[null,null,null,null,null,null,null,null,null,null,null,null,null,null,null,null,null,null,null,null,null,null,null,null,null,null,null,null,null,null,null,null,null,null,null,null,null,null,null,null,null,null,null,null,null,null,null,null,null,null,null,null,null,null,null,null,null,null,null,null,null,null,null,null,null,null,null,null,null,null,null,null,null,null,null,null,null,null,null,null,null,null,null,null,null,null,null,null,null,null,null,null,null,null,null,null,null,null,null,null,null,null,null,null,null,null,null,null,null,null,null,null,null,null,null,null,null,null,null,null,null,null,null,null,null,null,null,null,null,null,null,null,null,null,null,null,null,null,null,null,null,null,null,null,null,null,null,null,null,null,null,null,null,null,null,null,null,null,null,null,null,null,null,null,null,null,null,null,null,null,null,null,null,null,null,null,null,null,null,null,null,null,null,null,null,null,null,null,null,null,null,null,null,null,466,"春日丘","春 日 丘"]
[null,null,null,null,null,null,"ふりがな",null,null,null,null,null,null,null,null,null,null,null,null,null,null,null,null,null,null,null,null,null,null,null,null,null,null,null,null,null,null,null,null,null,null,null,null,null,null,null,null,null,null,null,null,null,null,null,null,null,null,null,"・",null,null,null,"・",null,null,null,12,null,null,null,null,null,null,null,null,null,null,null,null,null,null,null,null,null,null,null,null,null,null,null,null,null,null,null,null,null,null,null,null,null,null,null,null,null,null,null,null,null,null,null,null,null,null,null,null,null,null,null,null,null,null,null,null,null,null,null,null,null,null,null,null,null,null,null,null,null,null,null,null,null,null,null,null,null,null,null,null,null,null,null,null,null,null,null,null,null,null,null,null,null,null,null,null,null,null,null,null,null,null,null,null,null,null,null,null,null,null,null,null,null,null,null,null,null,null,null,null,null,null,null,null,null,null,null,467,"北千里","北 千 里"]
[null,null,null,null,null,null,"（姓）",null,null,null,null,null,null,null,null,null,null,null,null,null,null,null,"（名）",null,null,null,null,null,null,null,null,null,null,null,null,null,null,null,null,null,null,null,null,null,null,null,null,null,null,null,null,null,null,null,null,null,null,null,null,null,null,null,null,null,null,null,null,null,null,null,null,null,null,null,null,null,null,null,null,null,null,null,null,null,null,null,null,null,null,null,null,null,null,null,null,null,null,null,null,null,null,null,null,null,null,null,null,null,null,null,null,null,null,null,null,null,null,null,null,null,null,null,null,null,null,null,null,null,null,null,null,null,null,null,null,null,null,null,null,null,null,null,null,null,null,null,null,null,null,null,null,null,null,null,null,null,null,null,null,null,null,null,null,null,null,null,null,null,null,null,null,null,null,null,null,null,null,null,null,null,null,null,null,null,null,null,null,null,null,null,null,null,null,null,468,"北野","北　　野"]
[null,null,null,null,null,null,null,null,null,null,null,null,null,null,null,null,null,null,null,null,null,null,null,null,null,null,null,null,null,null,null,null,null,null,null,null,null,null,null,null,null,null,null,null,null,null,null,null,null,null,null,null,null,null,null,null,null,null,null,null,null,null,null,null,null,null,null,null,null,null,null,null,null,null,null,null,null,null,null,null,null,null,null,null,null,null,null,null,null,null,null,null,null,null,null,null,null,null,null,null,null,null,null,null,null,null,null,null,null,null,null,null,null,null,null,null,null,null,null,null,null,null,null,null,null,null,null,null,null,null,null,null,null,null,null,null,null,null,null,null,null,null,null,null,null,null,null,null,null,null,null,null,null,null,null,null,null,null,null,null,null,null,null,null,null,null,null,null,null,null,null,null,null,null,null,null,null,null,null,null,null,null,null,null,null,null,null,null,null,null,null,null,null,null,469,"柴島","柴　　島"]
[null,null,null,null,null,null,null,null,null,null,null,null,null,null,null,null,null,null,null,null,null,null,null,null,null,null,null,null,null,null,null,null,null,null,null,null,null,null,null,null,null,null,null,null,null,null,null,null,null,null,null,null,null,null,null,null,null,null,null,null,null,null,null,null,null,null,null,null,null,null,null,null,null,null,null,null,null,null,null,null,null,null,null,null,null,null,null,null,null,null,null,null,null,null,null,null,null,null,null,null,null,null,null,null,null,null,null,null,null,null,null,null,null,null,null,null,null,null,null,null,null,null,null,null,null,null,null,null,null,null,null,null,null,null,null,null,null,null,null,null,null,null,null,null,null,null,null,null,null,null,null,null,null,null,null,null,null,null,null,null,null,null,null,null,null,null,null,null,null,null,null,null,null,null,null,null,null,null,null,null,null,null,null,null,null,null,null,null,null,null,null,null,null,null,470,"桜塚","桜　　塚"]
[null,null,null,null,null,null,"ふりがな",null,null,null,null,null,null,null,null,null,null,null,null,null,null,null,null,null,null,null,null,null,null,null,null,null,null,null,null,null,null,null,null,null,null,null,null,null,null,null,null,null,null,null,null,null,null,null,null,null,null,null,"・",null,null,null,"・",null,null,null,13,null,null,null,null,null,null,null,null,null,null,null,null,null,null,null,null,null,null,null,null,null,null,null,null,null,null,null,null,null,null,null,null,null,null,null,null,null,null,null,null,null,null,null,null,null,null,null,null,null,null,null,null,null,null,null,null,null,null,null,null,null,null,null,null,null,null,null,null,null,null,null,null,null,null,null,null,null,null,null,null,null,null,null,null,null,null,null,null,null,null,null,null,null,null,null,null,null,null,null,null,null,null,null,null,null,null,null,null,null,null,null,null,null,null,null,null,null,null,null,null,null,null,null,null,null,null,null,471,"渋谷","渋　　谷"]
[null,null,null,null,null,null,"（姓）",null,null,null,null,null,null,null,null,null,null,null,null,null,null,null,"（名）",null,null,null,null,null,null,null,null,null,null,null,null,null,null,null,null,null,null,null,null,null,null,null,null,null,null,null,null,null,null,null,null,null,null,null,null,null,null,null,null,null,null,null,null,null,null,null,null,null,null,null,null,null,null,null,null,null,null,null,null,null,null,null,null,null,null,null,null,null,null,null,null,null,null,null,null,null,null,null,null,null,null,null,null,null,null,null,null,null,null,null,null,null,null,null,null,null,null,null,null,null,null,null,null,null,null,null,null,null,null,null,null,null,null,null,null,null,null,null,null,null,null,null,null,null,null,null,null,null,null,null,null,null,null,null,null,null,null,null,null,null,null,null,null,null,null,null,null,null,null,null,null,null,null,null,null,null,null,null,null,null,null,null,null,null,null,null,null,null,null,null,472,"金蘭千里","金蘭千里"]
[null,null,null,null,null,null,null,null,null,null,null,null,null,null,null,null,null,null,null,null,null,null,null,null,null,null,null,null,null,null,null,null,null,null,null,null,null,null,null,null,null,null,null,null,null,null,null,null,null,null,null,null,null,null,null,null,null,null,null,null,null,null,null,null,null,null,null,null,null,null,null,null,null,null,null,null,null,null,null,null,null,null,null,null,null,null,null,null,null,null,null,null,null,null,null,null,null,null,null,null,null,null,null,null,null,null,null,null,null,null,null,null,null,null,null,null,null,null,null,null,null,null,null,null,null,null,null,null,null,null,null,null,null,null,null,null,null,null,null,null,null,null,null,null,null,null,null,null,null,null,null,null,null,null,null,null,null,null,null,null,null,null,null,null,null,null,null,null,null,null,null,null,null,null,null,null,null,null,null,null,null,null,null,null,null,null,null,null,null,null,null,null,null,null,473,"槻の木","規 の 木"]
[null,null,null,null,null,null,null,null,null,null,null,null,null,null,null,null,null,null,null,null,null,null,null,null,null,null,null,null,null,null,null,null,null,null,null,null,null,null,null,null,null,null,null,null,null,null,null,null,null,null,null,null,null,null,null,null,null,null,null,null,null,null,null,null,null,null,null,null,null,null,null,null,null,null,null,null,null,null,null,null,null,null,null,null,null,null,null,null,null,null,null,null,null,null,null,null,null,null,null,null,null,null,null,null,null,null,null,null,null,null,null,null,null,null,null,null,null,null,null,null,null,null,null,null,null,null,null,null,null,null,null,null,null,null,null,null,null,null,null,null,null,null,null,null,null,null,null,null,null,null,null,null,null,null,null,null,null,null,null,null,null,null,null,null,null,null,null,null,null,null,null,null,null,null,null,null,null,null,null,null,null,null,null,null,null,null,null,null,null,null,null,null,null,null,474,"島本","島　　本"]
[null,null,null,null,null,null,"ふりがな",null,null,null,null,null,null,null,null,null,null,null,null,null,null,null,null,null,null,null,null,null,null,null,null,null,null,null,null,null,null,null,null,null,null,null,null,null,null,null,null,null,null,null,null,null,null,null,null,null,null,null,"・",null,null,null,"・",null,null,null,14,null,null,null,null,null,null,null,null,null,null,null,null,null,null,null,null,null,null,null,null,null,null,null,null,null,null,null,null,null,null,null,null,null,null,null,null,null,null,null,null,null,null,null,null,null,null,null,null,null,null,null,null,null,null,null,null,null,null,null,null,null,null,null,null,null,null,null,null,null,null,null,null,null,null,null,null,null,null,null,null,null,null,null,null,null,null,null,null,null,null,null,null,null,null,null,null,null,null,null,null,null,null,null,null,null,null,null,null,null,null,null,null,null,null,null,null,null,null,null,null,null,null,null,null,null,null,null,476,"吹田","吹　　田"]
[null,null,null,null,null,null,"（姓）",null,null,null,null,null,null,null,null,null,null,null,null,null,null,null,"（名）",null,null,null,null,null,null,null,null,null,null,null,null,null,null,null,null,null,null,null,null,null,null,null,null,null,null,null,null,null,null,null,null,null,null,null,null,null,null,null,null,null,null,null,null,null,null,null,null,null,null,null,null,null,null,null,null,null,null,null,null,null,null,null,null,null,null,null,null,null,null,null,null,null,null,null,null,null,null,null,null,null,null,null,null,null,null,null,null,null,null,null,null,null,null,null,null,null,null,null,null,null,null,null,null,null,null,null,null,null,null,null,null,null,null,null,null,null,null,null,null,null,null,null,null,null,null,null,null,null,null,null,null,null,null,null,null,null,null,null,null,null,null,null,null,null,null,null,null,null,null,null,null,null,null,null,null,null,null,null,null,null,null,null,null,null,null,null,null,null,null,null,477,"吹田東","吹 田 東"]
[null,null,null,null,null,null,null,null,null,null,null,null,null,null,null,null,null,null,null,null,null,null,null,null,null,null,null,null,null,null,null,null,null,null,null,null,null,null,null,null,null,null,null,null,null,null,null,null,null,null,null,null,null,null,null,null,null,null,null,null,null,null,null,null,null,null,null,null,null,null,null,null,null,null,null,null,null,null,null,null,null,null,null,null,null,null,null,null,null,null,null,null,null,null,null,null,null,null,null,null,null,null,null,null,null,null,null,null,null,null,null,null,null,null,null,null,null,null,null,null,null,null,null,null,null,null,null,null,null,null,null,null,null,null,null,null,null,null,null,null,null,null,null,null,null,null,null,null,null,null,null,null,null,null,null,null,null,null,null,null,null,null,null,null,null,null,null,null,null,null,null,null,null,null,null,null,null,null,null,null,null,null,null,null,null,null,null,null,null,null,null,null,null,null,478,"摂津","摂　　津"]
[null,null,null,null,null,null,null,null,null,null,null,null,null,null,null,null,null,null,null,null,null,null,null,null,null,null,null,null,null,null,null,null,null,null,null,null,null,null,null,null,null,null,null,null,null,null,null,null,null,null,null,null,null,null,null,null,null,null,null,null,null,null,null,null,null,null,null,null,null,null,null,null,null,null,null,null,null,null,null,null,null,null,null,null,null,null,null,null,null,null,null,null,null,null,null,null,null,null,null,null,null,null,null,null,null,null,null,null,null,null,null,null,null,null,null,null,null,null,null,null,null,null,null,null,null,null,null,null,null,null,null,null,null,null,null,null,null,null,null,null,null,null,null,null,null,null,null,null,null,null,null,null,null,null,null,null,null,null,null,null,null,null,null,null,null,null,null,null,null,null,null,null,null,null,null,null,null,null,null,null,null,null,null,null,null,null,null,null,null,null,null,null,null,null,479,"千里","千　　里"]
[null,null,null,null,null,null,"ふりがな",null,null,null,null,null,null,null,null,null,null,null,null,null,null,null,null,null,null,null,null,null,null,null,null,null,null,null,null,null,null,null,null,null,null,null,null,null,null,null,null,null,null,null,null,null,null,null,null,null,null,null,"・",null,null,null,"・",null,null,null,15,null,null,null,null,null,null,null,null,null,null,null,null,null,null,null,null,null,null,null,null,null,null,null,null,null,null,null,null,null,null,null,null,null,null,null,null,null,null,null,null,null,null,null,null,null,null,null,null,null,null,null,null,null,null,null,null,null,null,null,null,null,null,null,null,null,null,null,null,null,null,null,null,null,null,null,null,null,null,null,null,null,null,null,null,null,null,null,null,null,null,null,null,null,null,null,null,null,null,null,null,null,null,null,null,null,null,null,null,null,null,null,null,null,null,null,null,null,null,null,null,null,null,null,null,null,null,null,480,"早稲田摂陵","早 稲 田"]
[null,null,null,null,null,null,"（姓）",null,null,null,null,null,null,null,null,null,null,null,null,null,null,null,"（名）",null,null,null,null,null,null,null,null,null,null,null,null,null,null,null,null,null,null,null,null,null,null,null,null,null,null,null,null,null,null,null,null,null,null,null,null,null,null,null,null,null,null,null,null,null,null,null,null,null,null,null,null,null,null,null,null,null,null,null,null,null,null,null,null,null,null,null,null,null,null,null,null,null,null,null,null,null,null,null,null,null,null,null,null,null,null,null,null,null,null,null,null,null,null,null,null,null,null,null,null,null,null,null,null,null,null,null,null,null,null,null,null,null,null,null,null,null,null,null,null,null,null,null,null,null,null,null,null,null,null,null,null,null,null,null,null,null,null,null,null,null,null,null,null,null,null,null,null,null,null,null,null,null,null,null,null,null,null,null,null,null,null,null,null,null,null,null,null,null,null,null,481,"高槻北","高 槻 北"]
[null,null,null,null,null,null,null,null,null,null,null,null,null,null,null,null,null,null,null,null,null,null,null,null,null,null,null,null,null,null,null,null,null,null,null,null,null,null,null,null,null,null,null,null,null,null,null,null,null,null,null,null,null,null,null,null,null,null,null,null,null,null,null,null,null,null,null,null,null,null,null,null,null,null,null,null,null,null,null,null,null,null,null,null,null,null,null,null,null,null,null,null,null,null,null,null,null,null,null,null,null,null,null,null,null,null,null,null,null,null,null,null,null,null,null,null,null,null,null,null,null,null,null,null,null,null,null,null,null,null,null,null,null,null,null,null,null,null,null,null,null,null,null,null,null,null,null,null,null,null,null,null,null,null,null,null,null,null,null,null,null,null,null,null,null,null,null,null,null,null,null,null,null,null,null,null,null,null,null,null,null,null,null,null,null,null,null,null,null,null,null,null,null,null,482,"豊島","豊　　島"]
[null,null,null,null,null,null,null,null,null,null,null,null,null,null,null,null,null,null,null,null,null,null,null,null,null,null,null,null,null,null,null,null,null,null,null,null,null,null,null,null,null,null,null,null,null,null,null,null,null,null,null,null,null,null,null,null,null,null,null,null,null,null,null,null,null,null,null,null,null,null,null,null,null,null,null,null,null,null,null,null,null,null,null,null,null,null,null,null,null,null,null,null,null,null,null,null,null,null,null,null,null,null,null,null,null,null,null,null,null,null,null,null,null,null,null,null,null,null,null,null,null,null,null,null,null,null,null,null,null,null,null,null,null,null,null,null,null,null,null,null,null,null,null,null,null,null,null,null,null,null,null,null,null,null,null,null,null,null,null,null,null,null,null,null,null,null,null,null,null,null,null,null,null,null,null,null,null,null,null,null,null,null,null,null,null,null,null,null,null,null,null,null,null,null,483,"豊中","豊　　中"]
[null,null,null,null,null,null,"ふりがな",null,null,null,null,null,null,null,null,null,null,null,null,null,null,null,null,null,null,null,null,null,null,null,null,null,null,null,null,null,null,null,null,null,null,null,null,null,null,null,null,null,null,null,null,null,null,null,null,null,null,null,"・",null,null,null,"・",null,null,null,16,null,null,null,null,null,null,null,null,null,null,null,null,null,null,null,null,null,null,null,null,null,null,null,null,null,null,null,null,null,null,null,null,null,null,null,null,null,null,null,null,null,null,null,null,null,null,null,null,null,null,null,null,null,null,null,null,null,null,null,null,null,null,null,null,null,null,null,null,null,null,null,null,null,null,null,null,null,null,null,null,null,null,null,null,null,null,null,null,null,null,null,null,null,null,null,null,null,null,null,null,null,null,null,null,null,null,null,null,null,null,null,null,null,null,null,null,null,null,null,null,null,null,null,null,null,null,null,484,"大阪薫英女学院","大阪薫英"]
[null,null,null,null,null,null,"（姓）",null,null,null,null,null,null,null,null,null,null,null,null,null,null,null,"（名）",null,null,null,null,null,null,null,null,null,null,null,null,null,null,null,null,null,null,null,null,null,null,null,null,null,null,null,null,null,null,null,null,null,null,null,null,null,null,null,null,null,null,null,null,null,null,null,null,null,null,null,null,null,null,null,null,null,null,null,null,null,null,null,null,null,null,null,null,null,null,null,null,null,null,null,null,null,null,null,null,null,null,null,null,null,null,null,null,null,null,null,null,null,null,null,null,null,null,null,null,null,null,null,null,null,null,null,null,null,null,null,null,null,null,null,null,null,null,null,null,null,null,null,null,null,null,null,null,null,null,null,null,null,null,null,null,null,null,null,null,null,null,null,null,null,null,null,null,null,null,null,null,null,null,null,null,null,null,null,null,null,null,null,null,null,null,null,null,null,null,null,485,"西淀川","西 淀 川"]
[null,null,null,null,null,null,null,null,null,null,null,null,null,null,null,null,null,null,null,null,null,null,null,null,null,null,null,null,null,null,null,null,null,null,null,null,null,null,null,null,null,null,null,null,null,null,null,null,null,null,null,null,null,null,null,null,null,null,null,null,null,null,null,null,null,null,null,null,null,null,null,null,null,null,null,null,null,null,null,null,null,null,null,null,null,null,null,null,null,null,null,null,null,null,null,null,null,null,null,null,null,null,null,null,null,null,null,null,null,null,null,null,null,null,null,null,null,null,null,null,null,null,null,null,null,null,null,null,null,null,null,null,null,null,null,null,null,null,null,null,null,null,null,null,null,null,null,null,null,null,null,null,null,null,null,null,null,null,null,null,null,null,null,null,null,null,null,null,null,null,null,null,null,null,null,null,null,null,null,null,null,null,null,null,null,null,null,null,null,null,null,null,null,null,486,"千里青雲","千里青雲"]
[null,null,null,null,null,null,null,null,null,null,null,null,null,null,null,null,null,null,null,null,null,null,null,null,null,null,null,null,null,null,null,null,null,null,null,null,null,null,null,null,null,null,null,null,null,null,null,null,null,null,null,null,null,null,null,null,null,null,null,null,null,null,null,null,null,null,null,null,null,null,null,null,null,null,null,null,null,null,null,null,null,null,null,null,null,null,null,null,null,null,null,null,null,null,null,null,null,null,null,null,null,null,null,null,null,null,null,null,null,null,null,null,null,null,null,null,null,null,null,null,null,null,null,null,null,null,null,null,null,null,null,null,null,null,null,null,null,null,null,null,null,null,null,null,null,null,null,null,null,null,null,null,null,null,null,null,null,null,null,null,null,null,null,null,null,null,null,null,null,null,null,null,null,null,null,null,null,null,null,null,null,null,null,null,null,null,null,null,null,null,null,null,null,null,487,"東淀川","東 淀 川"]
[null,null,null,null,null,null,"ふりがな",null,null,null,null,null,null,null,null,null,null,null,null,null,null,null,null,null,null,null,null,null,null,null,null,null,null,null,null,null,null,null,null,null,null,null,null,null,null,null,null,null,null,null,null,null,null,null,null,null,null,null,"・",null,null,null,"・",null,null,null,17,null,null,null,null,null,null,null,null,null,null,null,null,null,null,null,null,null,null,null,null,null,null,null,null,null,null,null,null,null,null,null,null,null,null,null,null,null,null,null,null,null,null,null,null,null,null,null,null,null,null,null,null,null,null,null,null,null,null,null,null,null,null,null,null,null,null,null,null,null,null,null,null,null,null,null,null,null,null,null,null,null,null,null,null,null,null,null,null,null,null,null,null,null,null,null,null,null,null,null,null,null,null,null,null,null,null,null,null,null,null,null,null,null,null,null,null,null,null,null,null,null,null,null,null,null,null,null,488,"福井","福　　井"]
[null,null,null,null,null,null,"（姓）",null,null,null,null,null,null,null,null,null,null,null,null,null,null,null,"（名）",null,null,null,null,null,null,null,null,null,null,null,null,null,null,null,null,null,null,null,null,null,null,null,null,null,null,null,null,null,null,null,null,null,null,null,null,null,null,null,null,null,null,null,null,null,null,null,null,null,null,null,null,null,null,null,null,null,null,null,null,null,null,null,null,null,null,null,null,null,null,null,null,null,null,null,null,null,null,null,null,null,null,null,null,null,null,null,null,null,null,null,null,null,null,null,null,null,null,null,null,null,null,null,null,null,null,null,null,null,null,null,null,null,null,null,null,null,null,null,null,null,null,null,null,null,null,null,null,null,null,null,null,null,null,null,null,null,null,null,null,null,null,null,null,null,null,null,null,null,null,null,null,null,null,null,null,null,null,null,null,null,null,null,null,null,null,null,null,null,null,null,489,"三島","三　　島"]
[null,null,null,null,null,null,null,null,null,null,null,null,null,null,null,null,null,null,null,null,null,null,null,null,null,null,null,null,null,null,null,null,null,null,null,null,null,null,null,null,null,null,null,null,null,null,null,null,null,null,null,null,null,null,null,null,null,null,null,null,null,null,null,null,null,null,null,null,null,null,null,null,null,null,null,null,null,null,null,null,null,null,null,null,null,null,null,null,null,null,null,null,null,null,null,null,null,null,null,null,null,null,null,null,null,null,null,null,null,null,null,null,null,null,null,null,null,null,null,null,null,null,null,null,null,null,null,null,null,null,null,null,null,null,null,null,null,null,null,null,null,null,null,null,null,null,null,null,null,null,null,null,null,null,null,null,null,null,null,null,null,null,null,null,null,null,null,null,null,null,null,null,null,null,null,null,null,null,null,null,null,null,null,null,null,null,null,null,null,null,null,null,null,null,490,"箕面","箕　　面"]
[null,null,null,null,null,null,null,null,null,null,null,null,null,null,null,null,null,null,null,null,null,null,null,null,null,null,null,null,null,null,null,null,null,null,null,null,null,null,null,null,null,null,null,null,null,null,null,null,null,null,null,null,null,null,null,null,null,null,null,null,null,null,null,null,null,null,null,null,null,null,null,null,null,null,null,null,null,null,null,null,null,null,null,null,null,null,null,null,null,null,null,null,null,null,null,null,null,null,null,null,null,null,null,null,null,null,null,null,null,null,null,null,null,null,null,null,null,null,null,null,null,null,null,null,null,null,null,null,null,null,null,null,null,null,null,null,null,null,null,null,null,null,null,null,null,null,null,null,null,null,null,null,null,null,null,null,null,null,null,null,null,null,null,null,null,null,null,null,null,null,null,null,null,null,null,null,null,null,null,null,null,null,null,null,null,null,null,null,null,null,null,null,null,null,491,"箕面東","箕 面 東"]
[null,null,null,null,null,null,"ふりがな",null,null,null,null,null,null,null,null,null,null,null,null,null,null,null,null,null,null,null,null,null,null,null,null,null,null,null,null,null,null,null,null,null,null,null,null,null,null,null,null,null,null,null,null,null,null,null,null,null,null,null,"・",null,null,null,"・",null,null,null,18,null,null,null,null,null,null,null,null,null,null,null,null,null,null,null,null,null,null,null,null,null,null,null,null,null,null,null,null,null,null,null,null,null,null,null,null,null,null,null,null,null,null,null,null,null,null,null,null,null,null,null,null,null,null,null,null,null,null,null,null,null,null,null,null,null,null,null,null,null,null,null,null,null,null,null,null,null,null,null,null,null,null,null,null,null,null,null,null,null,null,null,null,null,null,null,null,null,null,null,null,null,null,null,null,null,null,null,null,null,null,null,null,null,null,null,null,null,null,null,null,null,null,null,null,null,null,null,492,"茨木工科","茨木工科"]
[null,null,null,null,null,null,"（姓）",null,null,null,null,null,null,null,null,null,null,null,null,null,null,null,"（名）",null,null,null,null,null,null,null,null,null,null,null,null,null,null,null,null,null,null,null,null,null,null,null,null,null,null,null,null,null,null,null,null,null,null,null,null,null,null,null,null,null,null,null,null,null,null,null,null,null,null,null,null,null,null,null,null,null,null,null,null,null,null,null,null,null,null,null,null,null,null,null,null,null,null,null,null,null,null,null,null,null,null,null,null,null,null,null,null,null,null,null,null,null,null,null,null,null,null,null,null,null,null,null,null,null,null,null,null,null,null,null,null,null,null,null,null,null,null,null,null,null,null,null,null,null,null,null,null,null,null,null,null,null,null,null,null,null,null,null,null,null,null,null,null,null,null,null,null,null,null,null,null,null,null,null,null,null,null,null,null,null,null,null,null,null,null,null,null,null,null,null,493,"大冠","大　　冠"]
[null,null,null,null,null,null,null,null,null,null,null,null,null,null,null,null,null,null,null,null,null,null,null,null,null,null,null,null,null,null,null,null,null,null,null,null,null,null,null,null,null,null,null,null,null,null,null,null,null,null,null,null,null,null,null,null,null,null,null,null,null,null,null,null,null,null,null,null,null,null,null,null,null,null,null,null,null,null,null,null,null,null,null,null,null,null,null,null,null,null,null,null,null,null,null,null,null,null,null,null,null,null,null,null,null,null,null,null,null,null,null,null,null,null,null,null,null,null,null,null,null,null,null,null,null,null,null,null,null,null,null,null,null,null,null,null,null,null,null,null,null,null,null,null,null,null,null,null,null,null,null,null,null,null,null,null,null,null,null,null,null,null,null,null,null,null,null,null,null,null,null,null,null,null,null,null,null,null,null,null,null,null,null,null,null,null,null,null,null,null,null,null,null,null,494,"北淀","北　　淀"]
[null,null,null,null,null,null,null,null,null,null,null,null,null,null,null,null,null,null,null,null,null,null,null,null,null,null,null,null,null,null,null,null,null,null,null,null,null,null,null,null,null,null,null,null,null,null,null,null,null,null,null,null,null,null,null,null,null,null,null,null,null,null,null,null,null,null,null,null,null,null,null,null,null,null,null,null,null,null,null,null,null,null,null,null,null,null,null,null,null,null,null,null,null,null,null,null,null,null,null,null,null,null,null,null,null,null,null,null,null,null,null,null,null,null,null,null,null,null,null,null,null,null,null,null,null,null,null,null,null,null,null,null,null,null,null,null,null,null,null,null,null,null,null,null,null,null,null,null,null,null,null,null,null,null,null,null,null,null,null,null,null,null,null,null,null,null,null,null,null,null,null,null,null,null,null,null,null,null,null,null,null,null,null,null,null,null,null,null,null,null,null,null,null,null,495,"淀商業","淀　　商"]
[null,null,null,null,null,null,"ふりがな",null,null,null,null,null,null,null,null,null,null,null,null,null,null,null,null,null,null,null,null,null,null,null,null,null,null,null,null,null,null,null,null,null,null,null,null,null,null,null,null,null,null,null,null,null,null,null,null,null,null,null,"・",null,null,null,"・",null,null,null,19,null,null,null,null,null,null,null,null,null,null,null,null,null,null,null,null,null,null,null,null,null,null,null,null,null,null,null,null,null,null,null,null,null,null,null,null,null,null,null,null,null,null,null,null,null,null,null,null,null,null,null,null,null,null,null,null,null,null,null,null,null,null,null,null,null,null,null,null,null,null,null,null,null,null,null,null,null,null,null,null,null,null,null,null,null,null,null,null,null,null,null,null,null,null,null,null,null,null,null,null,null,null,null,null,null,null,null,null,null,null,null,null,null,null,null,null,null,null,null,null,null,null,null,null,null,null,null,496,"東淀工業","東淀工業"]
[null,null,null,null,null,null,"（姓）",null,null,null,null,null,null,null,null,null,null,null,null,null,null,null,"（名）",null,null,null,null,null,null,null,null,null,null,null,null,null,null,null,null,null,null,null,null,null,null,null,null,null,null,null,null,null,null,null,null,null,null,null,null,null,null,null,null,null,null,null,null,null,null,null,null,null,null,null,null,null,null,null,null,null,null,null,null,null,null,null,null,null,null,null,null,null,null,null,null,null,null,null,null,null,null,null,null,null,null,null,null,null,null,null,null,null,null,null,null,null,null,null,null,null,null,null,null,null,null,null,null,null,null,null,null,null,null,null,null,null,null,null,null,null,null,null,null,null,null,null,null,null,null,null,null,null,null,null,null,null,null,null,null,null,null,null,null,null,null,null,null,null,null,null,null,null,null,null,null,null,null,null,null,null,null,null,null,null,null,null,null,null,null,null,null,null,null,null,497,"大阪学院","大阪学院"]
[null,null,null,null,null,null,null,null,null,null,null,null,null,null,null,null,null,null,null,null,null,null,null,null,null,null,null,null,null,null,null,null,null,null,null,null,null,null,null,null,null,null,null,null,null,null,null,null,null,null,null,null,null,null,null,null,null,null,null,null,null,null,null,null,null,null,null,null,null,null,null,null,null,null,null,null,null,null,null,null,null,null,null,null,null,null,null,null,null,null,null,null,null,null,null,null,null,null,null,null,null,null,null,null,null,null,null,null,null,null,null,null,null,null,null,null,null,null,null,null,null,null,null,null,null,null,null,null,null,null,null,null,null,null,null,null,null,null,null,null,null,null,null,null,null,null,null,null,null,null,null,null,null,null,null,null,null,null,null,null,null,null,null,null,null,null,null,null,null,null,null,null,null,null,null,null,null,null,null,null,null,null,null,null,null,null,null,null,null,null,null,null,null,null,498,"大阪","大　　阪"]
[null,null,null,null,null,null,null,null,null,null,null,null,null,null,null,null,null,null,null,null,null,null,null,null,null,null,null,null,null,null,null,null,null,null,null,null,null,null,null,null,null,null,null,null,null,null,null,null,null,null,null,null,null,null,null,null,null,null,null,null,null,null,null,null,null,null,null,null,null,null,null,null,null,null,null,null,null,null,null,null,null,null,null,null,null,null,null,null,null,null,null,null,null,null,null,null,null,null,null,null,null,null,null,null,null,null,null,null,null,null,null,null,null,null,null,null,null,null,null,null,null,null,null,null,null,null,null,null,null,null,null,null,null,null,null,null,null,null,null,null,null,null,null,null,null,null,null,null,null,null,null,null,null,null,null,null,null,null,null,null,null,null,null,null,null,null,null,null,null,null,null,null,null,null,null,null,null,null,null,null,null,null,null,null,null,null,null,null,null,null,null,null,null,null,499,"大商学園","大商学園"]
[null,null,null,null,null,null,"ふりがな",null,null,null,null,null,null,null,null,null,null,null,null,null,null,null,null,null,null,null,null,null,null,null,null,null,null,null,null,null,null,null,null,null,null,null,null,null,null,null,null,null,null,null,null,null,null,null,null,null,null,null,"・",null,null,null,"・",null,null,null,20,null,null,null,null,null,null,null,null,null,null,null,null,null,null,null,null,null,null,null,null,null,null,null,null,null,null,null,null,null,null,null,null,null,null,null,null,null,null,null,null,null,null,null,null,null,null,null,null,null,null,null,null,null,null,null,null,null,null,null,null,null,null,null,null,null,null,null,null,null,null,null,null,null,null,null,null,null,null,null,null,null,null,null,null,null,null,null,null,null,null,null,null,null,null,null,null,null,null,null,null,null,null,null,null,null,null,null,null,null,null,null,null,null,null,null,null,null,null,null,null,null,null,null,null,null,null,null,500,"追手門学院","追手門学"]
[null,null,null,null,null,null,"（姓）",null,null,null,null,null,null,null,null,null,null,null,null,null,null,null,"（名）",null,null,null,null,null,null,null,null,null,null,null,null,null,null,null,null,null,null,null,null,null,null,null,null,null,null,null,null,null,null,null,null,null,null,null,null,null,null,null,null,null,null,null,null,null,null,null,null,null,null,null,null,null,null,null,null,null,null,null,null,null,null,null,null,null,null,null,null,null,null,null,null,null,null,null,null,null,null,null,null,null,null,null,null,null,null,null,null,null,null,null,null,null,null,null,null,null,null,null,null,null,null,null,null,null,null,null,null,null,null,null,null,null,null,null,null,null,null,null,null,null,null,null,null,null,null,null,null,null,null,null,null,null,null,null,null,null,null,null,null,null,null,null,null,null,null,null,null,null,null,null,null,null,null,null,null,null,null,null,null,null,null,null,null,null,null,null,null,null,null,null,501,"関西大倉","関西大倉"]
[null,null,null,null,null,null,null,null,null,null,null,null,null,null,null,null,null,null,null,null,null,null,null,null,null,null,null,null,null,null,null,null,null,null,null,null,null,null,null,null,null,null,null,null,null,null,null,null,null,null,null,null,null,null,null,null,null,null,null,null,null,null,null,null,null,null,null,null,null,null,null,null,null,null,null,null,null,null,null,null,null,null,null,null,null,null,null,null,null,null,null,null,null,null,null,null,null,null,null,null,null,null,null,null,null,null,null,null,null,null,null,null,null,null,null,null,null,null,null,null,null,null,null,null,null,null,null,null,null,null,null,null,null,null,null,null,null,null,null,null,null,null,null,null,null,null,null,null,null,null,null,null,null,null,null,null,null,null,null,null,null,null,null,null,null,null,null,null,null,null,null,null,null,null,null,null,null,null,null,null,null,null,null,null,null,null,null,null,null,null,null,null,null,null,502,"関大一","関 大 一"]
[null,null,null,null,null,null,null,null,null,null,null,null,null,null,null,null,null,null,null,null,null,null,null,null,null,null,null,null,null,null,null,null,null,null,null,null,null,null,null,null,null,null,null,null,null,null,null,null,null,null,null,null,null,null,null,null,null,null,null,null,null,null,null,null,null,null,null,null,null,null,null,null,null,null,null,null,null,null,null,null,null,null,null,null,null,null,null,null,null,null,null,null,null,null,null,null,null,null,null,null,null,null,null,null,null,null,null,null,null,null,null,null,null,null,null,null,null,null,null,null,null,null,null,null,null,null,null,null,null,null,null,null,null,null,null,null,null,null,null,null,null,null,null,null,null,null,null,null,null,null,null,null,null,null,null,null,null,null,null,null,null,null,null,null,null,null,null,null,null,null,null,null,null,null,null,null,null,null,null,null,null,null,null,null,null,null,null,null,null,null,null,null,null,null,503,"金光大阪","金光大阪"]
[null,null,null,null,null,null,"ふりがな",null,null,null,null,null,null,null,null,null,null,null,null,null,null,null,null,null,null,null,null,null,null,null,null,null,null,null,null,null,null,null,null,null,null,null,null,null,null,null,null,null,null,null,null,null,null,null,null,null,null,null,"・",null,null,null,"・",null,null,null,21,null,null,null,null,null,null,null,null,null,null,null,null,null,null,null,null,null,null,null,null,null,null,null,null,null,null,null,null,null,null,null,null,null,null,null,null,null,null,null,null,null,null,null,null,null,null,null,null,null,null,null,null,null,null,null,null,null,null,null,null,null,null,null,null,null,null,null,null,null,null,null,null,null,null,null,null,null,null,null,null,null,null,null,null,null,null,null,null,null,null,null,null,null,null,null,null,null,null,null,null,null,null,null,null,null,null,null,null,null,null,null,null,null,null,null,null,null,null,null,null,null,null,null,null,null,null,null,504,"高槻","高　　槻"]
[null,null,null,null,null,null,"（姓）",null,null,null,null,null,null,null,null,null,null,null,null,null,null,null,"（名）",null,null,null,null,null,null,null,null,null,null,null,null,null,null,null,null,null,null,null,null,null,null,null,null,null,null,null,null,null,null,null,null,null,null,null,null,null,null,null,null,null,null,null,null,null,null,null,null,null,null,null,null,null,null,null,null,null,null,null,null,null,null,null,null,null,null,null,null,null,null,null,null,null,null,null,null,null,null,null,null,null,null,null,null,null,null,null,null,null,null,null,null,null,null,null,null,null,null,null,null,null,null,null,null,null,null,null,null,null,null,null,null,null,null,null,null,null,null,null,null,null,null,null,null,null,null,null,null,null,null,null,null,null,null,null,null,null,null,null,null,null,null,null,null,null,null,null,null,null,null,null,null,null,null,null,null,null,null,null,null,null,null,null,null,null,null,null,null,null,null,null,505,"星翔","星　　翔"]
[null,null,null,null,null,null,null,null,null,null,null,null,null,null,null,null,null,null,null,null,null,null,null,null,null,null,null,null,null,null,null,null,null,null,null,null,null,null,null,null,null,null,null,null,null,null,null,null,null,null,null,null,null,null,null,null,null,null,null,null,null,null,null,null,null,null,null,null,null,null,null,null,null,null,null,null,null,null,null,null,null,null,null,null,null,null,null,null,null,null,null,null,null,null,null,null,null,null,null,null,null,null,null,null,null,null,null,null,null,null,null,null,null,null,null,null,null,null,null,null,null,null,null,null,null,null,null,null,null,null,null,null,null,null,null,null,null,null,null,null,null,null,null,null,null,null,null,null,null,null,null,null,null,null,null,null,null,null,null,null,null,null,null,null,null,null,null,null,null,null,null,null,null,null,null,null,null,null,null,null,null,null,null,null,null,null,null,null,null,null,null,null,null,null,506,"履正社","履 正 社"]
[null,null,null,null,null,null,null,null,null,null,null,null,null,null,null,null,null,null,null,null,null,null,null,null,null,null,null,null,null,null,null,null,null,null,null,null,null,null,null,null,null,null,null,null,null,null,null,null,null,null,null,null,null,null,null,null,null,null,null,null,null,null,null,null,null,null,null,null,null,null,null,null,null,null,null,null,null,null,null,null,null,null,null,null,null,null,null,null,null,null,null,null,null,null,null,null,null,null,null,null,null,null,null,null,null,null,null,null,null,null,null,null,null,null,null,null,null,null,null,null,null,null,null,null,null,null,null,null,null,null,null,null,null,null,null,null,null,null,null,null,null,null,null,null,null,null,null,null,null,null,null,null,null,null,null,null,null,null,null,null,null,null,null,null,null,null,null,null,null,null,null,null,null,null,null,null,null,null,null,null,null,null,null,null,null,null,null,null,null,null,null,null,null,null,507,"関大北陽","関大北陽"]
[null,null,null,null,null,null,"ふりがな",null,null,null,null,null,null,null,null,null,null,null,null,null,null,null,null,null,null,null,null,null,null,null,null,null,null,null,null,null,null,null,null,null,null,null,null,null,null,null,null,null,null,null,null,null,null,null,null,null,null,null,"・",null,null,null,"・",null,null,null,22,null,null,null,null,null,null,null,null,null,null,null,null,null,null,null,null,null,null,null,null,null,null,null,null,null,null,null,null,null,null,null,null,null,null,null,null,null,null,null,null,null,null,null,null,null,null,null,null,null,null,null,null,null,null,null,null,null,null,null,null,null,null,null,null,null,null,null,null,null,null,null,null,null,null,null,null,null,null,null,null,null,null,null,null,null,null,null,null,null,null,null,null,null,null,null,null,null,null,null,null,null,null,null,null,null,null,null,null,null,null,null,null,null,null,null,null,null,null,null,null,null,null,null,null,null,null,null,508,"箕面学園","箕面学園"]
[null,null,null,null,null,null,"（姓）",null,null,null,null,null,null,null,null,null,null,null,null,null,null,null,"（名）",null,null,null,null,null,null,null,null,null,null,null,null,null,null,null,null,null,null,null,null,null,null,null,null,null,null,null,null,null,null,null,null,null,null,null,null,null,null,null,null,null,null,null,null,null,null,null,null,null,null,null,null,null,null,null,null,null,null,null,null,null,null,null,null,null,null,null,null,null,null,null,null,null,null,null,null,null,null,null,null,null,null,null,null,null,null,null,null,null,null,null,null,null,null,null,null,null,null,null,null,null,null,null,null,null,null,null,null,null,null,null,null,null,null,null,null,null,null,null,null,null,null,null,null,null,null,null,null,null,null,null,null,null,null,null,null,null,null,null,null,null,null,null,null,null,null,null,null,null,null,null,null,null,null,null,null,null,null,null,null,null,null,null,null,null,null,null,null,null,null,null,509,"箕面自由学園","箕面自由"]
[null,null,null,null,null,null,null,null,null,null,null,null,null,null,null,null,null,null,null,null,null,null,null,null,null,null,null,null,null,null,null,null,null,null,null,null,null,null,null,null,null,null,null,null,null,null,null,null,null,null,null,null,null,null,null,null,null,null,null,null,null,null,null,null,null,null,null,null,null,null,null,null,null,null,null,null,null,null,null,null,null,null,null,null,null,null,null,null,null,null,null,null,null,null,null,null,null,null,null,null,null,null,null,null,null,null,null,null,null,null,null,null,null,null,null,null,null,null,null,null,null,null,null,null,null,null,null,null,null,null,null,null,null,null,null,null,null,null,null,null,null,null,null,null,null,null,null,null,null,null,null,null,null,null,null,null,null,null,null,null,null,null,null,null,null,null,null,null,null,null,null,null,null,null,null,null,null,null,null,null,null,null,null,null,null,null,null,null,null,null,null,null,null,null,519,"三国丘(定","三 国 丘"]
[null,null,null,null,null,null,null,null,null,null,null,null,null,null,null,null,null,null,null,null,null,null,null,null,null,null,null,null,null,null,null,null,null,null,null,null,null,null,null,null,null,null,null,null,null,null,null,null,null,null,null,null,null,null,null,null,null,null,null,null,null,null,null,null,null,null,null,null,null,null,null,null,null,null,null,null,null,null,null,null,null,null,null,null,null,null,null,null,null,null,null,null,null,null,null,null,null,null,null,null,null,null,null,null,null,null,null,null,null,null,null,null,null,null,null,null,null,null,null,null,null,null,null,null,null,null,null,null,null,null,null,null,null,null,null,null,null,null,null,null,null,null,null,null,null,null,null,null,null,null,null,null,null,null,null,null,null,null,null,null,null,null,null,null,null,null,null,null,null,null,null,null,null,null,null,null,null,null,null,null,null,null,null,null,null,null,null,null,null,null,null,null,null,null,521,"大手前(定","大 手 前"]
[null,null,null,null,null,null,null,null,null,null,null,null,null,null,null,null,null,null,null,null,null,null,null,null,null,null,null,null,null,null,null,null,null,null,null,null,null,null,null,null,null,null,null,null,null,null,null,null,null,null,null,null,null,null,null,null,null,null,null,null,null,null,null,null,null,null,null,null,null,null,null,null,null,null,null,null,null,null,null,null,null,null,null,null,null,null,null,null,null,null,null,null,null,null,null,null,null,null,null,null,null,null,null,null,null,null,null,null,null,null,null,null,null,null,null,null,null,null,null,null,null,null,null,null,null,null,null,null,null,null,null,null,null,null,null,null,null,null,null,null,null,null,null,null,null,null,null,null,null,null,null,null,null,null,null,null,null,null,null,null,null,null,null,null,null,null,null,null,null,null,null,null,null,null,null,null,null,null,null,null,null,null,null,null,null,null,null,null,null,null,null,null,null,null,523,"都島第二工","都島第二"]
[null,null,null,null,null,null,null,null,null,null,null,null,null,null,null,null,null,null,null,null,null,null,null,null,null,null,null,null,null,null,null,null,null,null,null,null,null,null,null,null,null,null,null,null,null,null,null,null,null,null,null,null,null,null,null,null,null,null,null,null,null,null,null,null,null,null,null,null,null,null,null,null,null,null,null,null,null,null,null,null,null,null,null,null,null,null,null,null,null,null,null,null,null,null,null,null,null,null,null,null,null,null,null,null,null,null,null,null,null,null,null,null,null,null,null,null,null,null,null,null,null,null,null,null,null,null,null,null,null,null,null,null,null,null,null,null,null,null,null,null,null,null,null,null,null,null,null,null,null,null,null,null,null,null,null,null,null,null,null,null,null,null,null,null,null,null,null,null,null,null,null,null,null,null,null,null,null,null,null,null,null,null,null,null,null,null,null,null,null,null,null,null,null,null,"525","成城","成　　城"]
[null,null,null,null,null,null,null,null,null,null,null,null,null,null,null,null,null,null,null,null,null,null,null,null,null,null,null,null,null,null,null,null,null,null,null,null,null,null,null,null,null,null,null,null,null,null,null,null,null,null,null,null,null,null,null,null,null,null,null,null,null,null,null,null,null,null,null,null,null,null,null,null,null,null,null,null,null,null,null,null,null,null,null,null,null,null,null,null,null,null,null,null,null,null,null,null,null,null,null,null,null,null,null,null,null,null,null,null,null,null,null,null,null,null,null,null,null,null,null,null,null,null,null,null,null,null,null,null,null,null,null,null,null,null,null,null,null,null,null,null,null,null,null,null,null,null,null,null,null,null,null,null,null,null,null,null,null,null,null,null,null,null,null,null,null,null,null,null,null,null,null,null,null,null,null,null,null,null,null,null,null,null,null,null,null,null,null,null,null,null,null,null,null,null,528,"今宮工科(定","今宮工科"]
[null,null,null,null,null,null,null,null,null,null,null,null,null,null,null,null,null,null,null,null,null,null,null,null,null,null,null,null,null,null,null,null,null,null,null,null,null,null,null,null,null,null,null,null,null,null,null,null,null,null,null,null,null,null,null,null,null,null,null,null,null,null,null,null,null,null,null,null,null,null,null,null,null,null,null,null,null,null,null,null,null,null,null,null,null,null,null,null,null,null,null,null,null,null,null,null,null,null,null,null,null,null,null,null,null,null,null,null,null,null,null,null,null,null,null,null,null,null,null,null,null,null,null,null,null,null,null,null,null,null,null,null,null,null,null,null,null,null,null,null,null,null,null,null,null,null,null,null,null,null,null,null,null,null,null,null,null,null,null,null,null,null,null,null,null,null,null,null,null,null,null,null,null,null,null,null,null,null,null,null,null,null,null,null,null,null,null,null,null,null,null,null,null,null,530,"西野田工科(定","西野田工"]
[null,null,null,null,null,null,null,null,null,null,null,null,null,null,null,null,null,null,null,null,null,null,null,null,null,null,null,null,null,null,null,null,null,null,null,null,null,null,null,null,null,null,null,null,null,null,null,null,null,null,null,null,null,null,null,null,null,null,null,null,null,null,null,null,null,null,null,null,null,null,null,null,null,null,null,null,null,null,null,null,null,null,null,null,null,null,null,null,null,null,null,null,null,null,null,null,null,null,null,null,null,null,null,null,null,null,null,null,null,null,null,null,null,null,null,null,null,null,null,null,null,null,null,null,null,null,null,null,null,null,null,null,null,null,null,null,null,null,null,null,null,null,null,null,null,null,null,null,null,null,null,null,null,null,null,null,null,null,null,null,null,null,null,null,null,null,null,null,null,null,null,null,null,null,null,null,null,null,null,null,null,null,null,null,null,null,null,null,null,null,null,null,null,null,531,"岸和田産業(定","岸和田産"]
[null,null,null,null,null,null,null,null,null,null,null,null,null,null,null,null,null,null,null,null,null,null,null,null,null,null,null,null,null,null,null,null,null,null,null,null,null,null,null,null,null,null,null,null,null,null,null,null,null,null,null,null,null,null,null,null,null,null,null,null,null,null,null,null,null,null,null,null,null,null,null,null,null,null,null,null,null,null,null,null,null,null,null,null,null,null,null,null,null,null,null,null,null,null,null,null,null,null,null,null,null,null,null,null,null,null,null,null,null,null,null,null,null,null,null,null,null,null,null,null,null,null,null,null,null,null,null,null,null,null,null,null,null,null,null,null,null,null,null,null,null,null,null,null,null,null,null,null,null,null,null,null,null,null,null,null,null,null,null,null,null,null,null,null,null,null,null,null,null,null,null,null,null,null,null,null,null,null,null,null,null,null,null,null,null,null,null,null,null,null,null,null,null,null,532,"堺市立堺(定","堺市立堺"]
[null,null,null,null,null,null,null,null,null,null,null,null,null,null,null,null,null,null,null,null,null,null,null,null,null,null,null,null,null,null,null,null,null,null,null,null,null,null,null,null,null,null,null,null,null,null,null,null,null,null,null,null,null,null,null,null,null,null,null,null,null,null,null,null,null,null,null,null,null,null,null,null,null,null,null,null,null,null,null,null,null,null,null,null,null,null,null,null,null,null,null,null,null,null,null,null,null,null,null,null,null,null,null,null,null,null,null,null,null,null,null,null,null,null,null,null,null,null,null,null,null,null,null,null,null,null,null,null,null,null,null,null,null,null,null,null,null,null,null,null,null,null,null,null,null,null,null,null,null,null,null,null,null,null,null,null,null,null,null,null,null,null,null,null,null,null,null,null,null,null,null,null,null,null,null,null,null,null,null,null,null,null,null,null,null,null,null,null,null,null,null,null,null,null,"534","和泉総合","和泉総合"]
[null,null,null,null,null,null,null,null,null,null,null,null,null,null,null,null,null,null,null,null,null,null,null,null,null,null,null,null,null,null,null,null,null,null,null,null,null,null,null,null,null,null,null,null,null,null,null,null,null,null,null,null,null,null,null,null,null,null,null,null,null,null,null,null,null,null,null,null,null,null,null,null,null,null,null,null,null,null,null,null,null,null,null,null,null,null,null,null,null,null,null,null,null,null,null,null,null,null,null,null,null,null,null,null,null,null,null,null,null,null,null,null,null,null,null,null,null,null,null,null,null,null,null,null,null,null,null,null,null,null,null,null,null,null,null,null,null,null,null,null,null,null,null,null,null,null,null,null,null,null,null,null,null,null,null,null,null,null,null,null,null,null,null,null,null,null,null,null,null,null,null,null,null,null,null,null,null,null,null,null,null,null,null,null,null,null,null,null,null,null,null,null,null,null,535,"佐野工科(定","佐野工科"]
[null,null,null,null,null,null,null,null,null,null,null,null,null,null,null,null,null,null,null,null,null,null,null,null,null,null,null,null,null,null,null,null,null,null,null,null,null,null,null,null,null,null,null,null,null,null,null,null,null,null,null,null,null,null,null,null,null,null,null,null,null,null,null,null,null,null,null,null,null,null,null,null,null,null,null,null,null,null,null,null,null,null,null,null,null,null,null,null,null,null,null,null,null,null,null,null,null,null,null,null,null,null,null,null,null,null,null,null,null,null,null,null,null,null,null,null,null,null,null,null,null,null,null,null,null,null,null,null,null,null,null,null,null,null,null,null,null,null,null,null,null,null,null,null,null,null,null,null,null,null,null,null,null,null,null,null,null,null,null,null,null,null,null,null,null,null,null,null,null,null,null,null,null,null,null,null,null,null,null,null,null,null,null,null,null,null,null,null,null,null,null,null,null,null,542,"日新(定","日　　新"]
[null,null,null,null,null,null,null,null,null,null,null,null,null,null,null,null,null,null,null,null,null,null,null,null,null,null,null,null,null,null,null,null,null,null,null,null,null,null,null,null,null,null,null,null,null,null,null,null,null,null,null,null,null,null,null,null,null,null,null,null,null,null,null,null,null,null,null,null,null,null,null,null,null,null,null,null,null,null,null,null,null,null,null,null,null,null,null,null,null,null,null,null,null,null,null,null,null,null,null,null,null,null,null,null,null,null,null,null,null,null,null,null,null,null,null,null,null,null,null,null,null,null,null,null,null,null,null,null,null,null,null,null,null,null,null,null,null,null,null,null,null,null,null,null,null,null,null,null,null,null,null,null,null,null,null,null,null,null,null,null,null,null,null,null,null,null,null,null,null,null,null,null,null,null,null,null,null,null,null,null,null,null,null,null,null,null,null,null,null,null,null,null,null,null,"544","桜塚(定","桜　　塚"]
[null,null,null,null,null,null,null,null,null,null,null,null,null,null,null,null,null,null,null,null,null,null,null,null,null,null,null,null,null,null,null,null,null,null,null,null,null,null,null,null,null,null,null,null,null,null,null,null,null,null,null,null,null,null,null,null,null,null,null,null,null,null,null,null,null,null,null,null,null,null,null,null,null,null,null,null,null,null,null,null,null,null,null,null,null,null,null,null,null,null,null,null,null,null,null,null,null,null,null,null,null,null,null,null,null,null,null,null,null,null,null,null,null,null,null,null,null,null,null,null,null,null,null,null,null,null,null,null,null,null,null,null,null,null,null,null,null,null,null,null,null,null,null,null,null,null,null,null,null,null,null,null,null,null,null,null,null,null,null,null,null,null,null,null,null,null,null,null,null,null,null,null,null,null,null,null,null,null,null,null,null,null,null,null,null,null,null,null,null,null,null,null,null,null,"545","春日丘(定","春 日 丘"]
[null,null,null,null,null,null,null,null,null,null,null,null,null,null,null,null,null,null,null,null,null,null,null,null,null,null,null,null,null,null,null,null,null,null,null,null,null,null,null,null,null,null,null,null,null,null,null,null,null,null,null,null,null,null,null,null,null,null,null,null,null,null,null,null,null,null,null,null,null,null,null,null,null,null,null,null,null,null,null,null,null,null,null,null,null,null,null,null,null,null,null,null,null,null,null,null,null,null,null,null,null,null,null,null,null,null,null,null,null,null,null,null,null,null,null,null,null,null,null,null,null,null,null,null,null,null,null,null,null,null,null,null,null,null,null,null,null,null,null,null,null,null,null,null,null,null,null,null,null,null,null,null,null,null,null,null,null,null,null,null,null,null,null,null,null,null,null,null,null,null,null,null,null,null,null,null,null,null,null,null,null,null,null,null,null,null,null,null,null,null,null,null,null,null,546,"科学技術学園","科学技術"]
[null,null,null,null,null,null,null,null,null,null,null,null,null,null,null,null,null,null,null,null,null,null,null,null,null,null,null,null,null,null,null,null,null,null,null,null,null,null,null,null,null,null,null,null,null,null,null,null,null,null,null,null,null,null,null,null,null,null,null,null,null,null,null,null,null,null,null,null,null,null,null,null,null,null,null,null,null,null,null,null,null,null,null,null,null,null,null,null,null,null,null,null,null,null,null,null,null,null,null,null,null,null,null,null,null,null,null,null,null,null,null,null,null,null,null,null,null,null,null,null,null,null,null,null,null,null,null,null,null,null,null,null,null,null,null,null,null,null,null,null,null,null,null,null,null,null,null,null,null,null,null,null,null,null,null,null,null,null,null,null,null,null,null,null,null,null,null,null,null,null,null,null,null,null,null,null,null,null,null,null,null,null,null,null,null,null,null,null,null,null,null,null,null,null,550,"建国","建　　国"]
[null,null,null,null,null,null,null,null,null,null,null,null,null,null,null,null,null,null,null,null,null,null,null,null,null,null,null,null,null,null,null,null,null,null,null,null,null,null,null,null,null,null,null,null,null,null,null,null,null,null,null,null,null,null,null,null,null,null,null,null,null,null,null,null,null,null,null,null,null,null,null,null,null,null,null,null,null,null,null,null,null,null,null,null,null,null,null,null,null,null,null,null,null,null,null,null,null,null,null,null,null,null,null,null,null,null,null,null,null,null,null,null,null,null,null,null,null,null,null,null,null,null,null,null,null,null,null,null,null,null,null,null,null,null,null,null,null,null,null,null,null,null,null,null,null,null,null,null,null,null,null,null,null,null,null,null,null,null,null,null,null,null,null,null,null,null,null,null,null,null,null,null,null,null,null,null,null,null,null,null,null,null,null,null,null,null,null,null,null,null,null,null,null,null,551,"能勢","能　　勢"]
[null,null,null,null,null,null,null,null,null,null,null,null,null,null,null,null,null,null,null,null,null,null,null,null,null,null,null,null,null,null,null,null,null,null,null,null,null,null,null,null,null,null,null,null,null,null,null,null,null,null,null,null,null,null,null,null,null,null,null,null,null,null,null,null,null,null,null,null,null,null,null,null,null,null,null,null,null,null,null,null,null,null,null,null,null,null,null,null,null,null,null,null,null,null,null,null,null,null,null,null,null,null,null,null,null,null,null,null,null,null,null,null,null,null,null,null,null,null,null,null,null,null,null,null,null,null,null,null,null,null,null,null,null,null,null,null,null,null,null,null,null,null,null,null,null,null,null,null,null,null,null,null,null,null,null,null,null,null,null,null,null,null,null,null,null,null,null,null,null,null,null,null,null,null,null,null,null,null,null,null,null,null,null,null,null,null,null,null,null,null,null,null,null,null,553,"藤井寺工科","藤井寺工"]
[null,null,null,null,null,null,null,null,null,null,null,null,null,null,null,null,null,null,null,null,null,null,null,null,null,null,null,null,null,null,null,null,null,null,null,null,null,null,null,null,null,null,null,null,null,null,null,null,null,null,null,null,null,null,null,null,null,null,null,null,null,null,null,null,null,null,null,null,null,null,null,null,null,null,null,null,null,null,null,null,null,null,null,null,null,null,null,null,null,null,null,null,null,null,null,null,null,null,null,null,null,null,null,null,null,null,null,null,null,null,null,null,null,null,null,null,null,null,null,null,null,null,null,null,null,null,null,null,null,null,null,null,null,null,null,null,null,null,null,null,null,null,null,null,null,null,null,null,null,null,null,null,null,null,null,null,null,null,null,null,null,null,null,null,null,null,null,null,null,null,null,null,null,null,null,null,null,null,null,null,null,null,null,null,null,null,null,null,null,null,null,null,null,null,554,"四條畷北","四條畷北"]
[null,null,null,null,null,null,null,null,null,null,null,null,null,null,null,null,null,null,null,null,null,null,null,null,null,null,null,null,null,null,null,null,null,null,null,null,null,null,null,null,null,null,null,null,null,null,null,null,null,null,null,null,null,null,null,null,null,null,null,null,null,null,null,null,null,null,null,null,null,null,null,null,null,null,null,null,null,null,null,null,null,null,null,null,null,null,null,null,null,null,null,null,null,null,null,null,null,null,null,null,null,null,null,null,null,null,null,null,null,null,null,null,null,null,null,null,null,null,null,null,null,null,null,null,null,null,null,null,null,null,null,null,null,null,null,null,null,null,null,null,null,null,null,null,null,null,null,null,null,null,null,null,null,null,null,null,null,null,null,null,null,null,null,null,null,null,null,null,null,null,null,null,null,null,null,null,null,null,null,null,null,null,null,null,null,null,null,null,null,null,null,null,null,null,555,"野崎","野　　崎"]
[null,null,null,null,null,null,null,null,null,null,null,null,null,null,null,null,null,null,null,null,null,null,null,null,null,null,null,null,null,null,null,null,null,null,null,null,null,null,null,null,null,null,null,null,null,null,null,null,null,null,null,null,null,null,null,null,null,null,null,null,null,null,null,null,null,null,null,null,null,null,null,null,null,null,null,null,null,null,null,null,null,null,null,null,null,null,null,null,null,null,null,null,null,null,null,null,null,null,null,null,null,null,null,null,null,null,null,null,null,null,null,null,null,null,null,null,null,null,null,null,null,null,null,null,null,null,null,null,null,null,null,null,null,null,null,null,null,null,null,null,null,null,null,null,null,null,null,null,null,null,null,null,null,null,null,null,null,null,null,null,null,null,null,null,null,null,null,null,null,null,null,null,null,null,null,null,null,null,null,null,null,null,null,null,null,null,null,null,null,null,null,null,null,null,556,"関西創価","関西創価"]
[null,null,null,null,null,null,null,null,null,null,null,null,null,null,null,null,null,null,null,null,null,null,null,null,null,null,null,null,null,null,null,null,null,null,null,null,null,null,null,null,null,null,null,null,null,null,null,null,null,null,null,null,null,null,null,null,null,null,null,null,null,null,null,null,null,null,null,null,null,null,null,null,null,null,null,null,null,null,null,null,null,null,null,null,null,null,null,null,null,null,null,null,null,null,null,null,null,null,null,null,null,null,null,null,null,null,null,null,null,null,null,null,null,null,null,null,null,null,null,null,null,null,null,null,null,null,null,null,null,null,null,null,null,null,null,null,null,null,null,null,null,null,null,null,null,null,null,null,null,null,null,null,null,null,null,null,null,null,null,null,null,null,null,null,null,null,null,null,null,null,null,null,null,null,null,null,null,null,null,null,null,null,null,null,null,null,null,null,null,null,null,null,null,null,557,"プール学院","プール学"]
[null,null,null,null,null,null,null,null,null,null,null,null,null,null,null,null,null,null,null,null,null,null,null,null,null,null,null,null,null,null,null,null,null,null,null,null,null,null,null,null,null,null,null,null,null,null,null,null,null,null,null,null,null,null,null,null,null,null,null,null,null,null,null,null,null,null,null,null,null,null,null,null,null,null,null,null,null,null,null,null,null,null,null,null,null,null,null,null,null,null,null,null,null,null,null,null,null,null,null,null,null,null,null,null,null,null,null,null,null,null,null,null,null,null,null,null,null,null,null,null,null,null,null,null,null,null,null,null,null,null,null,null,null,null,null,null,null,null,null,null,null,null,null,null,null,null,null,null,null,null,null,null,null,null,null,null,null,null,null,null,null,null,null,null,null,null,null,null,null,null,null,null,null,null,null,null,null,null,null,null,null,null,null,null,null,null,null,null,null,null,null,null,null,null,558,"清明学院","清明学院"]
[null,null,null,null,null,null,null,null,null,null,null,null,null,null,null,null,null,null,null,null,null,null,null,null,null,null,null,null,null,null,null,null,null,null,null,null,null,null,null,null,null,null,null,null,null,null,null,null,null,null,null,null,null,null,null,null,null,null,null,null,null,null,null,null,null,null,null,null,null,null,null,null,null,null,null,null,null,null,null,null,null,null,null,null,null,null,null,null,null,null,null,null,null,null,null,null,null,null,null,null,null,null,null,null,null,null,null,null,null,null,null,null,null,null,null,null,null,null,null,null,null,null,null,null,null,null,null,null,null,null,null,null,null,null,null,null,null,null,null,null,null,null,null,null,null,null,null,null,null,null,null,null,null,null,null,null,null,null,null,null,null,null,null,null,null,null,null,null,null,null,null,null,null,null,null,null,null,null,null,null,null,null,null,null,null,null,null,null,null,null,null,null,null,null,560,"大阪ビジネス","Ｏ Ｂ Ｆ"]
[null,null,null,null,null,null,null,null,null,null,null,null,null,null,null,null,null,null,null,null,null,null,null,null,null,null,null,null,null,null,null,null,null,null,null,null,null,null,null,null,null,null,null,null,null,null,null,null,null,null,null,null,null,null,null,null,null,null,null,null,null,null,null,null,null,null,null,null,null,null,null,null,null,null,null,null,null,null,null,null,null,null,null,null,null,null,null,null,null,null,null,null,null,null,null,null,null,null,null,null,null,null,null,null,null,null,null,null,null,null,null,null,null,null,null,null,null,null,null,null,null,null,null,null,null,null,null,null,null,null,null,null,null,null,null,null,null,null,null,null,null,null,null,null,null,null,null,null,null,null,null,null,null,null,null,null,null,null,null,null,null,null,null,null,null,null,null,null,null,null,null,null,null,null,null,null,null,null,null,null,null,null,null,null,null,null,null,null,null,null,null,null,null,null,562,"上宮太子","上宮太子"]
[null,null,null,null,null,null,null,null,null,null,null,null,null,null,null,null,null,null,null,null,null,null,null,null,null,null,null,null,null,null,null,null,null,null,null,null,null,null,null,null,null,null,null,null,null,null,null,null,null,null,null,null,null,null,null,null,null,null,null,null,null,null,null,null,null,null,null,null,null,null,null,null,null,null,null,null,null,null,null,null,null,null,null,null,null,null,null,null,null,null,null,null,null,null,null,null,null,null,null,null,null,null,null,null,null,null,null,null,null,null,null,null,null,null,null,null,null,null,null,null,null,null,null,null,null,null,null,null,null,null,null,null,null,null,null,null,null,null,null,null,null,null,null,null,null,null,null,null,null,null,null,null,null,null,null,null,null,null,null,null,null,null,null,null,null,null,null,null,null,null,null,null,null,null,null,null,null,null,null,null,null,null,null,null,null,null,null,null,null,null,null,null,null,null,563,"中央","中　　央"]
[null,null,null,null,null,null,null,null,null,null,null,null,null,null,null,null,null,null,null,null,null,null,null,null,null,null,null,null,null,null,null,null,null,null,null,null,null,null,null,null,null,null,null,null,null,null,null,null,null,null,null,null,null,null,null,null,null,null,null,null,null,null,null,null,null,null,null,null,null,null,null,null,null,null,null,null,null,null,null,null,null,null,null,null,null,null,null,null,null,null,null,null,null,null,null,null,null,null,null,null,null,null,null,null,null,null,null,null,null,null,null,null,null,null,null,null,null,null,null,null,null,null,null,null,null,null,null,null,null,null,null,null,null,null,null,null,null,null,null,null,null,null,null,null,null,null,null,null,null,null,null,null,null,null,null,null,null,null,null,null,null,null,null,null,null,null,null,null,null,null,null,null,null,null,null,null,null,null,null,null,null,null,null,null,null,null,null,null,null,null,null,null,null,null,564,"大阪学芸中等教育","学芸中等"]
[null,null,null,null,null,null,null,null,null,null,null,null,null,null,null,null,null,null,null,null,null,null,null,null,null,null,null,null,null,null,null,null,null,null,null,null,null,null,null,null,null,null,null,null,null,null,null,null,null,null,null,null,null,null,null,null,null,null,null,null,null,null,null,null,null,null,null,null,null,null,null,null,null,null,null,null,null,null,null,null,null,null,null,null,null,null,null,null,null,null,null,null,null,null,null,null,null,null,null,null,null,null,null,null,null,null,null,null,null,null,null,null,null,null,null,null,null,null,null,null,null,null,null,null,null,null,null,null,null,null,null,null,null,null,null,null,null,null,null,null,null,null,null,null,null,null,null,null,null,null,null,null,null,null,null,null,null,null,null,null,null,null,null,null,null,null,null,null,null,null,null,null,null,null,null,null,null,null,null,null,null,null,null,null,null,null,null,null,null,null,null,null,null,null,565,"鶴見商業","鶴見商業"]
[null,null,null,null,null,null,null,null,null,null,null,null,null,null,null,null,null,null,null,null,null,null,null,null,null,null,null,null,null,null,null,null,null,null,null,null,null,null,null,null,null,null,null,null,null,null,null,null,null,null,null,null,null,null,null,null,null,null,null,null,null,null,null,null,null,null,null,null,null,null,null,null,null,null,null,null,null,null,null,null,null,null,null,null,null,null,null,null,null,null,null,null,null,null,null,null,null,null,null,null,null,null,null,null,null,null,null,null,null,null,null,null,null,null,null,null,null,null,null,null,null,null,null,null,null,null,null,null,null,null,null,null,null,null,null,null,null,null,null,null,null,null,null,null,null,null,null,null,null,null,null,null,null,null,null,null,null,null,null,null,null,null,null,null,null,null,null,null,null,null,null,null,null,null,null,null,null,null,null,null,null,null,null,null,null,null,null,null,null,null,null,null,null,null,569,"東大阪大学敬愛","東大敬愛"]
[null,null,null,null,null,null,null,null,null,null,null,null,null,null,null,null,null,null,null,null,null,null,null,null,null,null,null,null,null,null,null,null,null,null,null,null,null,null,null,null,null,null,null,null,null,null,null,null,null,null,null,null,null,null,null,null,null,null,null,null,null,null,null,null,null,null,null,null,null,null,null,null,null,null,null,null,null,null,null,null,null,null,null,null,null,null,null,null,null,null,null,null,null,null,null,null,null,null,null,null,null,null,null,null,null,null,null,null,null,null,null,null,null,null,null,null,null,null,null,null,null,null,null,null,null,null,null,null,null,null,null,null,null,null,null,null,null,null,null,null,null,null,null,null,null,null,null,null,null,null,null,null,null,null,null,null,null,null,null,null,null,null,null,null,null,null,null,null,null,null,null,null,null,null,null,null,null,null,null,null,null,null,null,null,null,null,null,null,null,null,null,null,null,null,570,"科技東朋","科技東朋"]
[null,null,null,null,null,null,null,null,null,null,null,null,null,null,null,null,null,null,null,null,null,null,null,null,null,null,null,null,null,null,null,null,null,null,null,null,null,null,null,null,null,null,null,null,null,null,null,null,null,null,null,null,null,null,null,null,null,null,null,null,null,null,null,null,null,null,null,null,null,null,null,null,null,null,null,null,null,null,null,null,null,null,null,null,null,null,null,null,null,null,null,null,null,null,null,null,null,null,null,null,null,null,null,null,null,null,null,null,null,null,null,null,null,null,null,null,null,null,null,null,null,null,null,null,null,null,null,null,null,null,null,null,null,null,null,null,null,null,null,null,null,null,null,null,null,null,null,null,null,null,null,null,null,null,null,null,null,null,null,null,null,null,null,null,null,null,null,null,null,null,null,null,null,null,null,null,null,null,null,null,null,null,null,null,null,null,null,null,null,null,null,null,null,null,571,"英真学園","英真学園"]
[null,null,null,null,null,null,null,null,null,null,null,null,null,null,null,null,null,null,null,null,null,null,null,null,null,null,null,null,null,null,null,null,null,null,null,null,null,null,null,null,null,null,null,null,null,null,null,null,null,null,null,null,null,null,null,null,null,null,null,null,null,null,null,null,null,null,null,null,null,null,null,null,null,null,null,null,null,null,null,null,null,null,null,null,null,null,null,null,null,null,null,null,null,null,null,null,null,null,null,null,null,null,null,null,null,null,null,null,null,null,null,null,null,null,null,null,null,null,null,null,null,null,null,null,null,null,null,null,null,null,null,null,null,null,null,null,null,null,null,null,null,null,null,null,null,null,null,null,null,null,null,null,null,null,null,null,null,null,null,null,null,null,null,null,null,null,null,null,null,null,null,null,null,null,null,null,null,null,null,null,null,null,null,null,null,null,null,null,null,null,null,null,null,null,572,"山田","山　　田"]
[null,null,null,null,null,null,null,null,null,null,null,null,null,null,null,null,null,null,null,null,null,null,null,null,null,null,null,null,null,null,null,null,null,null,null,null,null,null,null,null,null,null,null,null,null,null,null,null,null,null,null,null,null,null,null,null,null,null,null,null,null,null,null,null,null,null,null,null,null,null,null,null,null,null,null,null,null,null,null,null,null,null,null,null,null,null,null,null,null,null,null,null,null,null,null,null,null,null,null,null,null,null,null,null,null,null,null,null,null,null,null,null,null,null,null,null,null,null,null,null,null,null,null,null,null,null,null,null,null,null,null,null,null,null,null,null,null,null,null,null,null,null,null,null,null,null,null,null,null,null,null,null,null,null,null,null,null,null,null,null,null,null,null,null,null,null,null,null,null,null,null,null,null,null,null,null,null,null,null,null,null,null,null,null,null,null,null,null,null,null,null,null,null,null,573,"向陽台天王寺","光陽台天"]
[null,null,null,null,null,null,null,null,null,null,null,null,null,null,null,null,null,null,null,null,null,null,null,null,null,null,null,null,null,null,null,null,null,null,null,null,null,null,null,null,null,null,null,null,null,null,null,null,null,null,null,null,null,null,null,null,null,null,null,null,null,null,null,null,null,null,null,null,null,null,null,null,null,null,null,null,null,null,null,null,null,null,null,null,null,null,null,null,null,null,null,null,null,null,null,null,null,null,null,null,null,null,null,null,null,null,null,null,null,null,null,null,null,null,null,null,null,null,null,null,null,null,null,null,null,null,null,null,null,null,null,null,null,null,null,null,null,null,null,null,null,null,null,null,null,null,null,null,null,null,null,null,null,null,null,null,null,null,null,null,null,null,null,null,null,null,null,null,null,null,null,null,null,null,null,null,null,null,null,null,null,null,null,null,null,null,null,null,null,null,null,null,null,null,574,"向陽台","光 陽 台"]
[null,null,null,null,null,null,null,null,null,null,null,null,null,null,null,null,null,null,null,null,null,null,null,null,null,null,null,null,null,null,null,null,null,null,null,null,null,null,null,null,null,null,null,null,null,null,null,null,null,null,null,null,null,null,null,null,null,null,null,null,null,null,null,null,null,null,null,null,null,null,null,null,null,null,null,null,null,null,null,null,null,null,null,null,null,null,null,null,null,null,null,null,null,null,null,null,null,null,null,null,null,null,null,null,null,null,null,null,null,null,null,null,null,null,null,null,null,null,null,null,null,null,null,null,null,null,null,null,null,null,null,null,null,null,null,null,null,null,null,null,null,null,null,null,null,null,null,null,null,null,null,null,null,null,null,null,null,null,null,null,null,null,null,null,null,null,null,null,null,null,null,null,null,null,null,null,null,null,null,null,null,null,null,null,null,null,null,null,null,null,null,null,null,null,575,"交野","交　　野"]
[null,null,null,null,null,null,null,null,null,null,null,null,null,null,null,null,null,null,null,null,null,null,null,null,null,null,null,null,null,null,null,null,null,null,null,null,null,null,null,null,null,null,null,null,null,null,null,null,null,null,null,null,null,null,null,null,null,null,null,null,null,null,null,null,null,null,null,null,null,null,null,null,null,null,null,null,null,null,null,null,null,null,null,null,null,null,null,null,null,null,null,null,null,null,null,null,null,null,null,null,null,null,null,null,null,null,null,null,null,null,null,null,null,null,null,null,null,null,null,null,null,null,null,null,null,null,null,null,null,null,null,null,null,null,null,null,null,null,null,null,null,null,null,null,null,null,null,null,null,null,null,null,null,null,null,null,null,null,null,null,null,null,null,null,null,null,null,null,null,null,null,null,null,null,null,null,null,null,null,null,null,null,null,null,null,null,null,null,null,null,null,null,null,null,576,"中央学園","中央学園"]
[null,null,null,null,null,null,null,null,null,null,null,null,null,null,null,null,null,null,null,null,null,null,null,null,null,null,null,null,null,null,null,null,null,null,null,null,null,null,null,null,null,null,null,null,null,null,null,null,null,null,null,null,null,null,null,null,null,null,null,null,null,null,null,null,null,null,null,null,null,null,null,null,null,null,null,null,null,null,null,null,null,null,null,null,null,null,null,null,null,null,null,null,null,null,null,null,null,null,null,null,null,null,null,null,null,null,null,null,null,null,null,null,null,null,null,null,null,null,null,null,null,null,null,null,null,null,null,null,null,null,null,null,null,null,null,null,null,null,null,null,null,null,null,null,null,null,null,null,null,null,null,null,null,null,null,null,null,null,null,null,null,null,null,null,null,null,null,null,null,null,null,null,null,null,null,null,null,null,null,null,null,null,null,null,null,null,null,null,null,null,null,null,null,null,577,"西","　 西　 "]
[null,null,null,null,null,null,null,null,null,null,null,null,null,null,null,null,null,null,null,null,null,null,null,null,null,null,null,null,null,null,null,null,null,null,null,null,null,null,null,null,null,null,null,null,null,null,null,null,null,null,null,null,null,null,null,null,null,null,null,null,null,null,null,null,null,null,null,null,null,null,null,null,null,null,null,null,null,null,null,null,null,null,null,null,null,null,null,null,null,null,null,null,null,null,null,null,null,null,null,null,null,null,null,null,null,null,null,null,null,null,null,null,null,null,null,null,null,null,null,null,null,null,null,null,null,null,null,null,null,null,null,null,null,null,null,null,null,null,null,null,null,null,null,null,null,null,null,null,null,null,null,null,null,null,null,null,null,null,null,null,null,null,null,null,null,null,null,null,null,null,null,null,null,null,null,null,null,null,null,null,null,null,null,null,null,null,null,null,null,null,null,null,null,null,578,"布施","布　　施"]
[null,null,null,null,null,null,null,null,null,null,null,null,null,null,null,null,null,null,null,null,null,null,null,null,null,null,null,null,null,null,null,null,null,null,null,null,null,null,null,null,null,null,null,null,null,null,null,null,null,null,null,null,null,null,null,null,null,null,null,null,null,null,null,null,null,null,null,null,null,null,null,null,null,null,null,null,null,null,null,null,null,null,null,null,null,null,null,null,null,null,null,null,null,null,null,null,null,null,null,null,null,null,null,null,null,null,null,null,null,null,null,null,null,null,null,null,null,null,null,null,null,null,null,null,null,null,null,null,null,null,null,null,null,null,null,null,null,null,null,null,null,null,null,null,null,null,null,null,null,null,null,null,null,null,null,null,null,null,null,null,null,null,null,null,null,null,null,null,null,null,null,null,null,null,null,null,null,null,null,null,null,null,null,null,null,null,null,null,null,null,null,null,null,null,579,"昇陽","昇　　陽"]
[null,null,null,null,null,null,null,null,null,null,null,null,null,null,null,null,null,null,null,null,null,null,null,null,null,null,null,null,null,null,null,null,null,null,null,null,null,null,null,null,null,null,null,null,null,null,null,null,null,null,null,null,null,null,null,null,null,null,null,null,null,null,null,null,null,null,null,null,null,null,null,null,null,null,null,null,null,null,null,null,null,null,null,null,null,null,null,null,null,null,null,null,null,null,null,null,null,null,null,null,null,null,null,null,null,null,null,null,null,null,null,null,null,null,null,null,null,null,null,null,null,null,null,null,null,null,null,null,null,null,null,null,null,null,null,null,null,null,null,null,null,null,null,null,null,null,null,null,null,null,null,null,null,null,null,null,null,null,null,null,null,null,null,null,null,null,null,null,null,null,null,null,null,null,null,null,null,null,null,null,null,null,null,null,null,null,null,null,null,null,null,null,null,null,580,"金光藤蔭","金光藤蔭"]
[null,null,null,null,null,null,null,null,null,null,null,null,null,null,null,null,null,null,null,null,null,null,null,null,null,null,null,null,null,null,null,null,null,null,null,null,null,null,null,null,null,null,null,null,null,null,null,null,null,null,null,null,null,null,null,null,null,null,null,null,null,null,null,null,null,null,null,null,null,null,null,null,null,null,null,null,null,null,null,null,null,null,null,null,null,null,null,null,null,null,null,null,null,null,null,null,null,null,null,null,null,null,null,null,null,null,null,null,null,null,null,null,null,null,null,null,null,null,null,null,null,null,null,null,null,null,null,null,null,null,null,null,null,null,null,null,null,null,null,null,null,null,null,null,null,null,null,null,null,null,null,null,null,null,null,null,null,null,null,null,null,null,null,null,null,null,null,null,null,null,null,null,null,null,null,null,null,null,null,null,null,null,null,null,null,null,null,null,null,null,null,null,null,null,581,"八洲学園","八洲学園"]
[null,null,null,null,null,null,null,null,null,null,null,null,null,null,null,null,null,null,null,null,null,null,null,null,null,null,null,null,null,null,null,null,null,null,null,null,null,null,null,null,null,null,null,null,null,null,null,null,null,null,null,null,null,null,null,null,null,null,null,null,null,null,null,null,null,null,null,null,null,null,null,null,null,null,null,null,null,null,null,null,null,null,null,null,null,null,null,null,null,null,null,null,null,null,null,null,null,null,null,null,null,null,null,null,null,null,null,null,null,null,null,null,null,null,null,null,null,null,null,null,null,null,null,null,null,null,null,null,null,null,null,null,null,null,null,null,null,null,null,null,null,null,null,null,null,null,null,null,null,null,null,null,null,null,null,null,null,null,null,null,null,null,null,null,null,null,null,null,null,null,null,null,null,null,null,null,null,null,null,null,null,null,null,null,null,null,null,null,null,null,null,null,null,null,582,"長尾谷","長 尾 谷"]
[null,null,null,null,null,null,null,null,null,null,null,null,null,null,null,null,null,null,null,null,null,null,null,null,null,null,null,null,null,null,null,null,null,null,null,null,null,null,null,null,null,null,null,null,null,null,null,null,null,null,null,null,null,null,null,null,null,null,null,null,null,null,null,null,null,null,null,null,null,null,null,null,null,null,null,null,null,null,null,null,null,null,null,null,null,null,null,null,null,null,null,null,null,null,null,null,null,null,null,null,null,null,null,null,null,null,null,null,null,null,null,null,null,null,null,null,null,null,null,null,null,null,null,null,null,null,null,null,null,null,null,null,null,null,null,null,null,null,null,null,null,null,null,null,null,null,null,null,null,null,null,null,null,null,null,null,null,null,null,null,null,null,null,null,null,null,null,null,null,null,null,null,null,null,null,null,null,null,null,null,null,null,null,null,null,null,null,null,null,null,null,null,null,null,583,"好文学園女子","好文学園"]
[null,null,null,null,null,null,null,null,null,null,null,null,null,null,null,null,null,null,null,null,null,null,null,null,null,null,null,null,null,null,null,null,null,null,null,null,null,null,null,null,null,null,null,null,null,null,null,null,null,null,null,null,null,null,null,null,null,null,null,null,null,null,null,null,null,null,null,null,null,null,null,null,null,null,null,null,null,null,null,null,null,null,null,null,null,null,null,null,null,null,null,null,null,null,null,null,null,null,null,null,null,null,null,null,null,null,null,null,null,null,null,null,null,null,null,null,null,null,null,null,null,null,null,null,null,null,null,null,null,null,null,null,null,null,null,null,null,null,null,null,null,null,null,null,null,null,null,null,null,null,null,null,null,null,null,null,null,null,null,null,null,null,null,null,null,null,null,null,null,null,null,null,null,null,null,null,null,null,null,null,null,null,null,null,null,null,null,null,null,null,null,null,null,null,584,"羽衣学園","羽衣学園"]
[null,null,null,null,null,null,null,null,null,null,null,null,null,null,null,null,null,null,null,null,null,null,null,null,null,null,null,null,null,null,null,null,null,null,null,null,null,null,null,null,null,null,null,null,null,null,null,null,null,null,null,null,null,null,null,null,null,null,null,null,null,null,null,null,null,null,null,null,null,null,null,null,null,null,null,null,null,null,null,null,null,null,null,null,null,null,null,null,null,null,null,null,null,null,null,null,null,null,null,null,null,null,null,null,null,null,null,null,null,null,null,null,null,null,null,null,null,null,null,null,null,null,null,null,null,null,null,null,null,null,null,null,null,null,null,null,null,null,null,null,null,null,null,null,null,null,null,null,null,null,null,null,null,null,null,null,null,null,null,null,null,null,null,null,null,null,null,null,null,null,null,null,null,null,null,null,null,null,null,null,null,null,null,null,null,null,null,null,null,null,null,null,null,null,585,"国際滝井","国際滝井"]
[null,null,null,null,null,null,null,null,null,null,null,null,null,null,null,null,null,null,null,null,null,null,null,null,null,null,null,null,null,null,null,null,null,null,null,null,null,null,null,null,null,null,null,null,null,null,null,null,null,null,null,null,null,null,null,null,null,null,null,null,null,null,null,null,null,null,null,null,null,null,null,null,null,null,null,null,null,null,null,null,null,null,null,null,null,null,null,null,null,null,null,null,null,null,null,null,null,null,null,null,null,null,null,null,null,null,null,null,null,null,null,null,null,null,null,null,null,null,null,null,null,null,null,null,null,null,null,null,null,null,null,null,null,null,null,null,null,null,null,null,null,null,null,null,null,null,null,null,null,null,null,null,null,null,null,null,null,null,null,null,null,null,null,null,null,null,null,null,null,null,null,null,null,null,null,null,null,null,null,null,null,null,null,null,null,null,null,null,null,null,null,null,null,null,586,"天王寺学館","天王寺学"]
[null,null,null,null,null,null,null,null,null,null,null,null,null,null,null,null,null,null,null,null,null,null,null,null,null,null,null,null,null,null,null,null,null,null,null,null,null,null,null,null,null,null,null,null,null,null,null,null,null,null,null,null,null,null,null,null,null,null,null,null,null,null,null,null,null,null,null,null,null,null,null,null,null,null,null,null,null,null,null,null,null,null,null,null,null,null,null,null,null,null,null,null,null,null,null,null,null,null,null,null,null,null,null,null,null,null,null,null,null,null,null,null,null,null,null,null,null,null,null,null,null,null,null,null,null,null,null,null,null,null,null,null,null,null,null,null,null,null,null,null,null,null,null,null,null,null,null,null,null,null,null,null,null,null,null,null,null,null,null,null,null,null,null,null,null,null,null,null,null,null,null,null,null,null,null,null,null,null,null,null,null,null,null,null,null,null,null,null,null,null,null,null,null,null,587,"住吉商業","住吉商業"]
[null,null,null,null,null,null,null,null,null,null,null,null,null,null,null,null,null,null,null,null,null,null,null,null,null,null,null,null,null,null,null,null,null,null,null,null,null,null,null,null,null,null,null,null,null,null,null,null,null,null,null,null,null,null,null,null,null,null,null,null,null,null,null,null,null,null,null,null,null,null,null,null,null,null,null,null,null,null,null,null,null,null,null,null,null,null,null,null,null,null,null,null,null,null,null,null,null,null,null,null,null,null,null,null,null,null,null,null,null,null,null,null,null,null,null,null,null,null,null,null,null,null,null,null,null,null,null,null,null,null,null,null,null,null,null,null,null,null,null,null,null,null,null,null,null,null,null,null,null,null,null,null,null,null,null,null,null,null,null,null,null,null,null,null,null,null,null,null,null,null,null,null,null,null,null,null,null,null,null,null,null,null,null,null,null,null,null,null,null,null,null,null,null,null,588,"大阪信愛女学院","大阪信愛"]
[null,null,null,null,null,null,null,null,null,null,null,null,null,null,null,null,null,null,null,null,null,null,null,null,null,null,null,null,null,null,null,null,null,null,null,null,null,null,null,null,null,null,null,null,null,null,null,null,null,null,null,null,null,null,null,null,null,null,null,null,null,null,null,null,null,null,null,null,null,null,null,null,null,null,null,null,null,null,null,null,null,null,null,null,null,null,null,null,null,null,null,null,null,null,null,null,null,null,null,null,null,null,null,null,null,null,null,null,null,null,null,null,null,null,null,null,null,null,null,null,null,null,null,null,null,null,null,null,null,null,null,null,null,null,null,null,null,null,null,null,null,null,null,null,null,null,null,null,null,null,null,null,null,null,null,null,null,null,null,null,null,null,null,null,null,null,null,null,null,null,null,null,null,null,null,null,null,null,null,null,null,null,null,null,null,null,null,null,null,null,null,null,null,null,589,"クラーク国際","クラーク"]
[null,null,null,null,null,null,null,null,null,null,null,null,null,null,null,null,null,null,null,null,null,null,null,null,null,null,null,null,null,null,null,null,null,null,null,null,null,null,null,null,null,null,null,null,null,null,null,null,null,null,null,null,null,null,null,null,null,null,null,null,null,null,null,null,null,null,null,null,null,null,null,null,null,null,null,null,null,null,null,null,null,null,null,null,null,null,null,null,null,null,null,null,null,null,null,null,null,null,null,null,null,null,null,null,null,null,null,null,null,null,null,null,null,null,null,null,null,null,null,null,null,null,null,null,null,null,null,null,null,null,null,null,null,null,null,null,null,null,null,null,null,null,null,null,null,null,null,null,null,null,null,null,null,null,null,null,null,null,null,null,null,null,null,null,null,null,null,null,null,null,null,null,null,null,null,null,null,null,null,null,null,null,null,null,null,null,null,null,null,null,null,null,null,null,590,"ヒュ-マンアカデミー","ヒュ-マン"]
[null,null,null,null,null,null,null,null,null,null,null,null,null,null,null,null,null,null,null,null,null,null,null,null,null,null,null,null,null,null,null,null,null,null,null,null,null,null,null,null,null,null,null,null,null,null,null,null,null,null,null,null,null,null,null,null,null,null,null,null,null,null,null,null,null,null,null,null,null,null,null,null,null,null,null,null,null,null,null,null,null,null,null,null,null,null,null,null,null,null,null,null,null,null,null,null,null,null,null,null,null,null,null,null,null,null,null,null,null,null,null,null,null,null,null,null,null,null,null,null,null,null,null,null,null,null,null,null,null,null,null,null,null,null,null,null,null,null,null,null,null,null,null,null,null,null,null,null,null,null,null,null,null,null,null,null,null,null,null,null,null,null,null,null,null,null,null,null,null,null,null,null,null,null,null,null,null,null,null,null,null,null,null,null,null,null,null,null,null,null,null,null,null,null,591,"四條畷学園","四條畷学"]
[null,null,null,null,null,null,null,null,null,null,null,null,null,null,null,null,null,null,null,null,null,null,null,null,null,null,null,null,null,null,null,null,null,null,null,null,null,null,null,null,null,null,null,null,null,null,null,null,null,null,null,null,null,null,null,null,null,null,null,null,null,null,null,null,null,null,null,null,null,null,null,null,null,null,null,null,null,null,null,null,null,null,null,null,null,null,null,null,null,null,null,null,null,null,null,null,null,null,null,null,null,null,null,null,null,null,null,null,null,null,null,null,null,null,null,null,null,null,null,null,null,null,null,null,null,null,null,null,null,null,null,null,null,null,null,null,null,null,null,null,null,null,null,null,null,null,null,null,null,null,null,null,null,null,null,null,null,null,null,null,null,null,null,null,null,null,null,null,null,null,null,null,null,null,null,null,null,null,null,null,null,null,null,null,null,null,null,null,null,null,null,null,null,null,592,"YMCA学院","ＹＭＣＡ"]
[null,null,null,null,null,null,null,null,null,null,null,null,null,null,null,null,null,null,null,null,null,null,null,null,null,null,null,null,null,null,null,null,null,null,null,null,null,null,null,null,null,null,null,null,null,null,null,null,null,null,null,null,null,null,null,null,null,null,null,null,null,null,null,null,null,null,null,null,null,null,null,null,null,null,null,null,null,null,null,null,null,null,null,null,null,null,null,null,null,null,null,null,null,null,null,null,null,null,null,null,null,null,null,null,null,null,null,null,null,null,null,null,null,null,null,null,null,null,null,null,null,null,null,null,null,null,null,null,null,null,null,null,null,null,null,null,null,null,null,null,null,null,null,null,null,null,null,null,null,null,null,null,null,null,null,null,null,null,null,null,null,null,null,null,null,null,null,null,null,null,null,null,null,null,null,null,null,null,null,null,null,null,null,null,null,null,null,null,null,null,null,null,null,null,593,"香ケ丘リベルテ","リベルテ"]
[null,null,null,null,null,null,null,null,null,null,null,null,null,null,null,null,null,null,null,null,null,null,null,null,null,null,null,null,null,null,null,null,null,null,null,null,null,null,null,null,null,null,null,null,null,null,null,null,null,null,null,null,null,null,null,null,null,null,null,null,null,null,null,null,null,null,null,null,null,null,null,null,null,null,null,null,null,null,null,null,null,null,null,null,null,null,null,null,null,null,null,null,null,null,null,null,null,null,null,null,null,null,null,null,null,null,null,null,null,null,null,null,null,null,null,null,null,null,null,null,null,null,null,null,null,null,null,null,null,null,null,null,null,null,null,null,null,null,null,null,null,null,null,null,null,null,null,null,null,null,null,null,null,null,null,null,null,null,null,null,null,null,null,null,null,null,null,null,null,null,null,null,null,null,null,null,null,null,null,null,null,null,null,null,null,null,null,null,null,null,null,null,null,null,594,"鹿島学園","鹿島学園"]
[null,null,null,null,null,null,null,null,null,null,null,null,null,null,null,null,null,null,null,null,null,null,null,null,null,null,null,null,null,null,null,null,null,null,null,null,null,null,null,null,null,null,null,null,null,null,null,null,null,null,null,null,null,null,null,null,null,null,null,null,null,null,null,null,null,null,null,null,null,null,null,null,null,null,null,null,null,null,null,null,null,null,null,null,null,null,null,null,null,null,null,null,null,null,null,null,null,null,null,null,null,null,null,null,null,null,null,null,null,null,null,null,null,null,null,null,null,null,null,null,null,null,null,null,null,null,null,null,null,null,null,null,null,null,null,null,null,null,null,null,null,null,null,null,null,null,null,null,null,null,null,null,null,null,null,null,null,null,null,null,null,null,null,null,null,null,null,null,null,null,null,null,null,null,null,null,null,null,null,null,null,null,null,null,null,null,null,null,null,null,null,null,null,null,597,"大阪朝鮮高級","朝鮮高級"]
[null,null,null,null,null,null,null,null,null,null,null,null,null,null,null,null,null,null,null,null,null,null,null,null,null,null,null,null,null,null,null,null,null,null,null,null,null,null,null,null,null,null,null,null,null,null,null,null,null,null,null,null,null,null,null,null,null,null,null,null,null,null,null,null,null,null,null,null,null,null,null,null,null,null,null,null,null,null,null,null,null,null,null,null,null,null,null,null,null,null,null,null,null,null,null,null,null,null,null,null,null,null,null,null,null,null,null,null,null,null,null,null,null,null,null,null,null,null,null,null,null,null,null,null,null,null,null,null,null,null,null,null,null,null,null,null,null,null,null,null,null,null,null,null,null,null,null,null,null,null,null,null,null,null,null,null,null,null,null,null,null,null,null,null,null,null,null,null,null,null,null,null,null,null,null,null,null,null,null,null,null,null,null,null,null,null,null,null,null,null,null,null,null,null,598,"大阪府立大工業高専","府大工専"]

{"sheet":"申込","index":2,"n_rows":843,"n_cols":64,"rows_kept":843,"cut":false,"hidden":false,"merged":[[6,47,6,49],[4,62,4,65],[5,62,5,65],[6,62,6,65],[4,35,4,46],[5,35,5,46],[6,35,6,46],[4,50,4,61],[5,50,5,61],[6,50,6,61],[4,6,4,24],[5,6,5,24],[6,6,6,24],[4,2,4,5],[5,2,5,5],[6,2,6,5],[4,25,6,34],[561,25,563,34],[546,38,547,65],[545,2,545,65],[548,17,549,21],[556,54,557,65],[558,13,559,20],[558,21,559,24],[560,50,560,65],[542,6,542,7],[556,14,557,49],[542,8,544,21],[546,16,547,16],[548,16,549,16],[548,2,549,15],[548,28,549,28],[26,29,27,36],[26,37,27,37],[561,62,563,65],[543,6,544,7],[558,2,559,5],[558,6,559,12],[560,6,560,34],[554,2,555,10],[560,35,560,49],[558,25,559,65],[541,41,541,43],[541,22,541,23],[541,6,541,7],[548,22,549,27],[552,37,553,37],[542,63,544,65],[542,62,544,62],[564,54,564,65],[548,51,549,65],[533,54,534,65],[535,25,536,65],[542,58,544,58],[541,54,541,65],[541,44,541,48],[537,50,537,65],[564,44,564,48],[564,22,564,23],[564,41,564,43],[561,47,563,49],[564,38,564,40],[564,49,564,53],[552,29,553,36],[525,51,526,65],[523,38,524,65],[538,25,540,34],[537,35,537,49],[525,22,526,27],[533,14,534,49],[541,8,541,21],[543,22,544,23],[548,34,549,37],[548,38,549,47],[548,48,549,50],[542,59,544,61],[541,49,541,53],[542,49,544,53],[531,2,532,10],[542,2,544,5],[560,2,560,5],[542,54,544,57],[542,44,544,48],[542,38,544,40],[542,22,542,23],[542,24,544,37],[548,29,549,33],[546,28,547,28],[523,16,524,16],[538,2,540,5],[518,49,518,53],[522,2,522,65],[519,41,521,43],[520,6,521,7],[519,6,519,7],[519,59,521,61],[518,6,518,7],[518,8,518,21],[519,2,521,5],[519,63,521,65],[518,54,518,65],[523,29,524,33],[535,13,536,20],[525,17,526,21],[538,6,540,24],[538,35,540,46],[529,37,530,37],[523,2,524,15],[523,34,524,37],[525,38,526,47],[538,62,540,65],[535,2,536,5],[535,21,536,24],[525,48,526,50],[537,2,537,5],[529,28,530,28],[497,22,498,23],[500,28,501,28],[518,44,518,48],[519,62,521,62],[519,54,521,57],[518,41,518,43],[518,22,518,23],[518,24,518,37],[519,38,521,40],[502,28,503,28],[519,58,521,58],[525,28,526,28],[510,54,511,65],[512,25,513,65],[515,50,517,61],[514,35,514,49],[514,6,514,34],[515,6,517,24],[515,25,517,34],[500,17,501,21],[502,16,503,16],[502,22,503,27],[496,62,498,62],[496,6,496,7],[497,6,498,7],[519,49,521,53],[523,28,524,28],[525,16,526,16],[514,50,514,65],[523,17,524,21],[523,22,524,27],[525,2,526,15],[492,2,494,5],[506,28,507,28],[515,47,517,49],[515,62,517,65],[496,58,498,58],[499,2,499,65],[510,14,511,49],[496,41,498,43],[496,44,498,48],[502,34,503,37],[496,22,496,23],[489,2,490,5],[491,6,491,34],[489,6,490,12],[491,2,491,5],[491,35,491,49],[492,25,494,34],[496,8,498,21],[495,6,495,7],[495,8,495,21],[502,48,503,50],[506,37,507,37],[500,38,501,65],[502,29,503,33],[502,38,503,47],[500,29,501,33],[500,34,501,37],[496,2,498,5],[495,38,495,40],[492,47,494,49],[492,6,494,24],[495,22,495,23],[495,2,495,5],[496,24,498,37],[495,49,495,53],[495,41,495,43],[495,24,495,37],[495,44,495,48],[492,50,494,61],[496,59,498,61],[496,49,498,53],[492,35,494,46],[495,54,495,65],[496,63,498,65],[496,54,498,57],[491,50,491,65],[468,6,468,34],[468,35,468,49],[469,6,471,24],[472,41,472,43],[473,6,473,7],[473,8,475,21],[473,24,475,37],[474,6,475,7],[474,22,475,23],[487,54,488,65],[473,59,475,61],[473,62,475,62],[473,22,473,23],[473,44,475,48],[489,13,490,20],[487,14,488,49],[477,28,478,28],[489,21,490,24],[477,29,478,33],[479,16,480,16],[479,22,480,27],[477,17,478,21],[473,54,475,57],[473,58,475,58],[479,29,480,33],[473,41,475,43],[477,34,478,37],[473,49,475,53],[473,63,475,65],[479,28,480,28],[489,25,490,65],[483,28,484,28],[485,2,486,10],[472,22,472,23],[472,24,472,37],[476,2,476,65],[473,38,475,40],[472,54,472,65],[479,34,480,37],[477,38,478,65],[472,2,472,5],[479,17,480,21],[479,51,480,65],[479,48,480,50],[479,38,480,47],[479,2,480,15],[472,6,472,7],[477,2,478,15],[477,16,478,16],[477,22,478,27],[483,29,484,36],[483,37,484,37],[473,2,475,5],[456,16,457,16],[456,17,457,21],[466,25,467,65],[464,14,465,49],[466,2,467,5],[466,6,467,12],[472,8,472,21],[456,34,457,37],[466,21,467,24],[460,29,461,36],[462,2,463,10],[469,2,471,5],[468,2,468,5],[460,28,461,28],[466,13,467,20],[456,2,457,15],[468,50,468,65],[464,54,465,65],[469,50,471,61],[469,62,471,65],[472,44,472,48],[472,49,472,53],[469,35,471,46],[472,38,472,40],[469,47,471,49],[456,51,457,65],[456,28,457,28],[456,38,457,47],[456,48,457,50],[460,37,461,37],[456,29,457,33],[469,25,471,34],[450,2,452,5],[441,54,442,65],[433,17,434,21],[443,25,444,65],[446,35,448,46],[433,38,434,47],[433,48,434,50],[441,14,442,49],[443,13,444,20],[437,28,438,28],[433,34,434,37],[454,16,455,16],[454,22,455,27],[450,63,452,65],[451,6,452,7],[450,62,452,62],[450,22,450,23],[454,29,455,33],[454,34,455,37],[449,8,449,21],[449,6,449,7],[450,59,452,61],[450,54,452,57],[450,58,452,58],[450,38,452,40],[450,41,452,43],[450,44,452,48],[450,6,450,7],[450,8,452,21],[454,28,455,28],[454,17,455,21],[450,24,452,37],[456,22,457,27],[451,22,452,23],[450,49,452,53],[449,44,449,48],[449,41,449,43],[449,54,449,65],[449,49,449,53],[449,38,449,40],[449,22,449,23],[454,38,455,65],[454,2,455,15],[431,34,432,37],[443,2,444,5],[446,50,448,61],[427,59,429,61],[427,62,429,62],[427,49,429,53],[446,47,448,49],[446,62,448,65],[433,51,434,65],[431,2,432,15],[431,16,432,16],[433,28,434,28],[431,38,432,65],[433,2,434,15],[433,16,434,16],[433,22,434,27],[431,17,432,21],[431,28,432,28],[431,22,432,27],[431,29,432,33],[433,29,434,33],[427,41,429,43],[427,44,429,48],[427,24,429,37],[437,37,438,37],[443,21,444,24],[445,6,445,34],[443,6,444,12],[445,50,445,65],[445,35,445,49],[437,29,438,36],[446,2,448,5],[427,2,429,5],[427,6,427,7],[428,6,429,7],[430,2,430,65],[427,58,429,58],[428,22,429,23],[427,8,429,21],[427,22,427,23],[427,63,429,65],[446,6,448,24],[446,25,448,34],[427,38,429,40],[427,54,429,57],[426,38,426,40],[426,24,426,37],[426,41,426,43],[426,44,426,48],[426,49,426,53],[426,22,426,23],[426,2,426,5],[426,6,426,7],[368,28,369,28],[381,44,383,48],[414,29,415,36],[414,37,415,37],[418,54,419,65],[408,29,409,33],[408,34,409,37],[408,38,409,65],[410,38,411,47],[410,48,411,50],[405,6,406,7],[381,2,383,5],[387,2,388,15],[391,28,392,28],[404,8,406,21],[403,22,403,23],[405,22,406,23],[395,14,396,49],[387,29,388,33],[387,34,388,37],[400,6,402,24],[399,6,399,34],[400,2,402,5],[426,54,426,65],[414,28,415,28],[404,54,406,57],[404,58,406,58],[404,49,406,53],[404,38,406,40],[423,50,425,61],[422,50,422,65],[407,2,407,65],[423,47,425,49],[423,6,425,24],[410,28,411,28],[423,62,425,65],[423,25,425,34],[423,35,425,46],[422,6,422,34],[420,13,421,20],[387,48,388,50],[387,16,388,16],[387,28,388,28],[403,44,403,48],[408,28,409,28],[403,6,403,7],[410,22,411,27],[387,22,388,27],[410,51,411,65],[403,49,403,53],[399,50,399,65],[403,41,403,43],[426,8,426,21],[364,29,365,33],[362,2,363,15],[368,29,369,36],[362,22,363,27],[374,21,375,24],[403,38,403,40],[403,8,403,21],[382,6,383,7],[397,2,398,5],[399,35,399,49],[423,2,425,5],[420,2,421,5],[420,6,421,12],[408,16,409,16],[408,2,409,15],[410,2,411,15],[418,14,419,49],[410,16,411,16],[408,17,409,21],[408,22,409,27],[422,35,422,49],[410,17,411,21],[380,6,380,7],[397,13,398,20],[400,47,402,49],[404,41,406,43],[385,17,386,21],[385,22,386,27],[385,29,386,33],[420,21,421,24],[420,25,421,65],[377,2,379,5],[381,58,383,58],[382,22,383,23],[381,24,383,37],[381,41,383,43],[381,6,381,7],[404,24,406,37],[403,54,403,65],[404,59,406,61],[404,63,406,65],[372,54,373,65],[364,28,365,28],[380,38,380,40],[381,62,383,62],[381,59,383,61],[372,14,373,49],[380,44,380,48],[377,35,379,46],[387,51,388,65],[362,16,363,16],[362,28,363,28],[353,6,353,34],[358,8,360,21],[354,6,356,24],[374,25,375,65],[357,8,357,21],[381,22,381,23],[391,37,392,37],[391,29,392,36],[416,2,417,10],[384,2,384,65],[404,44,406,48],[400,62,402,65],[387,38,388,47],[385,34,386,37],[403,2,403,5],[404,22,404,23],[393,2,394,10],[397,6,398,12],[381,54,383,57],[380,49,380,53],[385,2,386,15],[385,16,386,16],[400,25,402,34],[410,29,411,33],[410,34,411,37],[400,35,402,46],[381,63,383,65],[359,6,360,7],[358,24,360,37],[385,38,386,65],[332,6,334,24],[335,24,335,37],[357,24,357,37],[357,41,357,43],[336,44,338,48],[332,35,334,46],[335,54,335,65],[336,63,338,65],[335,49,335,53],[335,44,335,48],[336,62,338,62],[336,49,338,53],[357,22,357,23],[354,50,356,61],[351,25,352,65],[351,13,352,20],[351,21,352,24],[335,38,335,40],[357,44,357,48],[353,35,353,49],[357,49,357,53],[336,54,338,57],[358,49,360,53],[336,58,338,58],[349,14,350,49],[336,41,338,43],[336,38,338,40],[336,22,336,23],[377,62,379,65],[362,38,363,65],[376,35,376,49],[376,6,376,34],[374,6,375,12],[374,13,375,20],[380,8,380,21],[364,17,365,21],[364,16,365,16],[364,2,365,15],[354,2,356,5],[353,2,353,5],[358,58,360,58],[358,38,360,40],[358,44,360,48],[359,22,360,23],[357,6,357,7],[357,2,357,5],[354,35,356,46],[376,50,376,65],[368,37,369,37],[354,62,356,65],[358,62,360,62],[357,38,357,40],[354,47,356,49],[362,29,363,33],[314,38,316,40],[314,62,316,62],[313,24,313,37],[313,49,313,53],[314,41,316,43],[313,44,313,48],[314,59,316,61],[314,22,314,23],[327,54,328,65],[377,47,379,49],[380,41,380,43],[377,50,379,61],[358,54,360,57],[358,59,360,61],[358,41,360,43],[357,54,357,65],[358,63,360,65],[364,51,365,65],[364,38,365,47],[364,48,365,50],[380,54,380,65],[377,25,379,34],[377,6,379,24],[323,29,324,36],[380,24,380,37],[331,35,331,49],[336,24,338,37],[361,2,361,65],[364,22,365,27],[364,34,365,37],[335,6,335,7],[358,22,358,23],[580,54,581,65],[569,16,570,16],[569,17,570,21],[566,22,567,23],[569,34,570,37],[565,49,567,53],[565,54,567,57],[571,34,572,37],[565,24,567,37],[385,28,386,28],[399,2,399,5],[449,24,449,37],[387,17,388,21],[397,21,398,24],[515,35,517,46],[500,22,501,27],[502,17,503,21],[502,2,503,15],[500,2,501,15],[565,59,567,61],[500,16,501,16],[519,44,521,48],[403,24,403,37],[422,2,422,5],[404,6,404,7],[400,50,402,61],[404,2,406,5],[439,2,440,10],[449,2,449,5],[397,25,398,65],[395,54,396,65],[404,62,406,62],[588,54,588,65],[588,49,588,53],[585,62,587,65],[589,6,589,7],[589,41,591,43],[582,6,583,12],[582,13,583,20],[588,44,588,48],[589,54,591,57],[492,62,494,65],[496,38,498,40],[370,2,371,10],[515,2,517,5],[541,2,541,5],[537,6,537,34],[520,22,521,23],[519,22,519,23],[519,24,521,37],[380,2,380,5],[571,48,572,50],[569,29,570,33],[565,8,567,21],[565,22,565,23],[565,38,567,40],[565,62,567,62],[565,41,567,43],[453,2,453,65],[445,2,445,5],[565,63,567,65],[589,2,591,5],[588,41,588,43],[374,2,375,5],[327,14,328,49],[358,2,360,5],[332,47,334,49],[335,41,335,43],[571,28,572,28],[571,29,572,33],[571,38,572,47],[568,2,568,65],[569,38,570,65],[571,51,572,65],[569,28,570,28],[571,22,572,27],[332,62,334,65],[332,50,334,61],[565,58,567,58],[331,2,331,5],[331,50,331,65],[336,59,338,61],[329,13,330,20],[362,17,363,21],[381,49,383,53],[381,8,383,21],[381,38,383,40],[351,6,352,12],[336,2,338,5],[337,22,338,23],[337,6,338,7],[347,2,348,10],[380,22,380,23],[376,2,376,5],[351,2,352,5],[362,34,363,37],[323,37,324,37],[335,2,335,5],[329,2,330,5],[331,6,331,34],[336,8,338,21],[336,6,336,7],[332,2,334,5],[332,25,334,34],[335,8,335,21],[335,22,335,23],[265,2,265,5],[358,6,358,7],[292,63,294,65],[269,49,269,53],[349,54,350,65],[292,54,294,57],[292,24,294,37],[307,6,308,12],[292,59,294,61],[307,25,308,65],[305,54,306,65],[310,35,312,46],[301,37,302,37],[309,6,309,34],[269,38,269,40],[269,22,269,23],[353,50,353,65],[291,44,291,48],[309,35,309,49],[310,47,312,49],[309,50,309,65],[291,49,291,53],[313,2,313,5],[313,22,313,23],[329,21,330,24],[313,8,313,21],[314,2,316,5],[329,6,330,12],[314,6,314,7],[329,25,330,65],[314,49,316,53],[323,28,324,28],[248,6,248,7],[261,14,262,49],[257,28,258,28],[285,6,286,12],[257,29,258,36],[248,41,250,43],[270,62,272,62],[307,21,308,24],[292,38,294,40],[270,38,272,40],[287,6,287,34],[266,25,268,34],[261,54,262,65],[265,50,265,65],[266,50,268,61],[266,62,268,65],[265,35,265,49],[283,54,284,65],[248,58,250,58],[265,6,265,34],[269,8,269,21],[263,21,264,24],[279,29,280,36],[269,6,269,7],[271,22,272,23],[291,6,291,7],[292,22,292,23],[291,22,291,23],[292,8,294,21],[270,8,272,21],[314,54,316,57],[292,62,294,62],[313,41,313,43],[310,62,312,65],[291,24,291,37],[266,47,268,49],[301,29,302,36],[288,35,290,46],[292,49,294,53],[288,62,290,65],[288,50,290,61],[266,6,268,24],[269,41,269,43],[313,54,313,65],[314,63,316,65],[313,6,313,7],[314,8,316,21],[314,58,316,58],[313,38,313,40],[315,6,316,7],[310,50,312,61],[314,44,316,48],[314,24,316,37],[315,22,316,23],[292,2,294,5],[283,14,284,49],[285,21,286,24],[287,35,287,49],[292,58,294,58],[285,25,286,65],[291,8,291,21],[287,50,287,65],[271,6,272,7],[293,22,294,23],[285,13,286,20],[270,59,272,61],[291,2,291,5],[287,2,287,5],[248,62,250,62],[270,63,272,65],[279,28,280,28],[248,59,250,61],[248,38,250,40],[257,37,258,37],[270,58,272,58],[248,44,250,48],[270,44,272,48],[270,41,272,43],[270,22,270,23],[248,49,250,53],[248,63,250,65],[291,54,291,65],[270,24,272,37],[291,41,291,43],[292,6,292,7],[270,6,270,7],[247,54,247,65],[239,54,240,65],[266,35,268,46],[270,49,272,53],[269,54,269,65],[269,24,269,37],[249,6,250,7],[249,22,250,23],[247,38,247,40],[270,54,272,57],[269,44,269,48],[310,2,312,5],[293,6,294,7],[288,6,290,24],[288,25,290,34],[310,25,312,34],[310,6,312,24],[309,2,309,5],[307,13,308,20],[270,2,272,5],[307,2,308,5],[305,14,306,49],[263,2,264,5],[288,2,290,5],[285,2,286,5],[266,2,268,5],[288,47,290,49],[243,2,243,5],[247,2,247,5],[269,2,269,5],[248,2,250,5],[247,22,247,23],[247,24,247,37],[248,22,248,23],[248,24,250,37],[248,8,250,21],[225,49,225,53],[225,8,225,21],[225,22,225,23],[301,28,302,28],[292,44,294,48],[292,41,294,43],[291,38,291,40],[244,35,246,46],[226,44,228,48],[279,37,280,37],[247,44,247,48],[263,25,264,65],[248,54,250,57],[263,6,264,12],[263,13,264,20],[226,8,228,21],[226,22,226,23],[247,8,247,21],[239,14,240,49],[241,6,242,12],[241,13,242,20],[244,62,246,65],[247,41,247,43],[226,59,228,61],[244,50,246,61],[247,49,247,53],[247,6,247,7],[235,28,236,28],[219,2,220,5],[244,25,246,34],[244,2,246,5],[241,21,242,24],[219,21,220,24],[226,24,228,37],[221,6,221,34],[226,2,228,5],[225,2,225,5],[212,29,213,36],[226,41,228,43],[212,37,213,37],[222,2,224,5],[222,6,224,24],[225,24,225,37],[219,6,220,12],[227,22,228,23],[241,25,242,65],[226,62,228,62],[226,63,228,65],[244,47,246,49],[225,44,225,48],[225,6,225,7],[227,6,228,7],[222,35,224,46],[241,2,242,5],[226,6,226,7],[225,41,225,43],[235,29,236,36],[244,6,246,24],[243,6,243,34],[226,58,228,58],[199,6,201,24],[202,22,202,23],[202,24,202,37],[196,6,197,12],[194,14,195,49],[177,25,179,34],[226,49,228,53],[226,54,228,57],[225,38,225,40],[226,38,228,40],[181,44,183,48],[202,41,202,43],[181,41,183,43],[181,38,183,40],[196,13,197,20],[190,37,191,37],[190,29,191,36],[222,50,224,61],[203,38,205,40],[199,25,201,34],[221,50,221,65],[190,28,191,28],[222,62,224,65],[177,62,179,65],[222,47,224,49],[222,25,224,34],[235,37,236,37],[243,50,243,65],[243,35,243,49],[225,54,225,65],[202,2,202,5],[219,25,220,65],[221,35,221,49],[202,6,202,7],[203,2,205,5],[204,6,205,7],[221,2,221,5],[212,28,213,28],[203,59,205,61],[202,44,202,48],[217,14,218,49],[203,22,203,23],[182,22,183,23],[196,2,197,5],[199,2,201,5],[219,13,220,20],[198,2,198,5],[198,50,198,65],[198,35,198,49],[203,54,205,57],[203,63,205,65],[203,24,205,37],[203,49,205,53],[217,54,218,65],[203,44,205,48],[203,8,205,21],[202,38,202,40],[204,22,205,23],[159,54,161,57],[202,54,202,65],[180,54,180,65],[181,54,183,57],[203,62,205,62],[203,58,205,58],[176,50,176,65],[199,50,201,61],[180,41,180,43],[194,54,195,65],[196,25,197,65],[199,62,201,65],[198,6,198,34],[159,44,161,48],[159,24,161,37],[182,6,183,7],[168,37,169,37],[180,38,180,40],[202,49,202,53],[202,8,202,21],[159,58,161,58],[196,21,197,24],[181,59,183,61],[159,6,159,7],[159,8,161,21],[177,50,179,61]],"merged_total":2245,"flags":["merged_cut"]}
[]
[null,null,"※抽選番号",null,null,null,{"$f":"IF(入力シート!G6=\"\",\"\",入力シート!G6)","v":""},null,null,null,null,null,null,null,null,{"$f":"入力シート!P6","v":"第69回大阪高等学校新人柔道大会申込書（男子Ⅱ部＿連合）"},null,null,null,null,null,null,null,null,null,null,null,null,null,null,null,null,null,null,null,null,null,null,null,null,null,null,null,null,null,null,null,null,null,null,null,null,null,null,{"$f":"NOW()","v":"2019-10-03T13:10:59.980"}]
[]
[null,null,"学校番号",null,null,null,"学　　　　校　　　　名",null,null,null,null,null,null,null,null,null,null,null,null,null,null,null,null,null,null,null,null,null,null,null,null,null,null,null,null,"監督名",null,null,null,null,null,null,null,null,null,null,null,null,null,null,"校長名"]
[null,null,{"$f":"入力シート!$C$9","v":0},null,null,null,{"$f":"入力シート!$G$9","v":""},null,null,null,null,null,null,null,null,null,null,null,null,null,null,null,null,null,null,"連合",null,null,null,null,null,null,null,null,null,{"$f":"入力シート!$AJ$9","v":0},null,null,null,null,null,null,null,null,null,null,null,"印",null,null,{"$f":"入力シート!$AY$9","v":0},null,null,null,null,null,null,null,null,null,null,null,"印"]
[null,null,{"$f":"入力シート!$C$10","v":0},null,null,null,{"$f":"入力シート!$G$10","v":""},null,null,null,null,null,null,null,null,null,null,null,null,null,null,null,null,null,null,null,null,null,null,null,null,null,null,null,null,{"$f":"入力シート!$AJ$10","v":0},null,null,null,null,null,null,null,null,null,null,null,"印",null,null,{"$f":"入力シート!$AY$10","v":0},null,null,null,null,null,null,null,null,null,null,null,"印"]
[null,null,{"$f":"IF(入力シート!$C$11=\"\",\"\",入力シート!$C$11)","v":""},null,null,null,{"$f":"入力シート!$G$11","v":""},null,null,null,null,null,null,null,null,null,null,null,null,null,null,null,null,null,null,null,null,null,null,null,null,null,null,null,null,{"$f":"IF(入力シート!$AJ$11=\"\",\"\",入力シート!$AJ$11)","v":""},null,null,null,null,null,null,null,null,null,null,null,"印",null,null,{"$f":"IF(入力シート!$AY$11=\"\",\"\",入力シート!$AY$11)","v":""},null,null,null,null,null,null,null,null,null,null,null,"印"]
[null,null,null,null,null,null,"選手名",null,null,null,null,null,null,null,null,null,null,null,null,null,null,null,null,null,null,null,null,null,null,null,null,null,null,null,null,null,null,null,"学年",null,null,"段位",null,null,"体重（kg）",null,null,null,null,"身長（cm）",null,null,null,null,"生年月日（西暦）"]
[null,null,"先鋒",null,null,null,"ふりがな",null,{"$f":"IF(入力シート!I13=\"\",\"\",入力シート!I13)","v":""},null,null,null,null,null,null,null,null,null,null,null,null,null,null,null,{"$f":"IF(入力シート!Y13=\"\",\"\",入力シート!Y13)","v":""},null,null,null,null,null,null,null,null,null,null,null,null,null,{"$f":"IF(入力シート!AM13=\"\",\"\",入力シート!AM13)","v":""},null,null,{"$f":"IF(入力シート!AP13=\"\",\"\",入力シート!AP13)","v":""},null,null,{"$f":"IF(入力シート!AS13=\"\",\"\",入力シート!AS13)","v":""},null,null,null,null,{"$f":"IF(入力シート!AX13=\"\",\"\",入力シート!AX13)","v":""},null,null,null,null,{"$f":"IF(入力シート!BC13=\"\",\"\",入力シート!BC13)","v":""},null,null,null,"・",{"$f":"IF(入力シート!BH13=\"\",\"\",入力シート!BH13)","v":""},null,null,"・",{"$f":"IF(入力シート!BL13=\"\",\"\",入力シート!BL13)","v":""}]
[null,null,null,null,null,null,"（姓）",null,{"$f":"IF(入力シート!I14=\"\",\"\",入力シート!I14)","v":""},null,null,null,null,null,null,null,null,null,null,null,null,null,"（名）",null,{"$f":"IF(入力シート!Y14=\"\",\"\",入力シート!Y14)","v":""}]
[]
[]
[null,null,"中堅",null,null,null,"ふりがな",null,{"$f":"IF(入力シート!I17=\"\",\"\",入力シート!I17)","v":""},null,null,null,null,null,null,null,null,null,null,null,null,null,null,null,{"$f":"IF(入力シート!Y17=\"\",\"\",入力シート!Y17)","v":""},null,null,null,null,null,null,null,null,null,null,null,null,null,{"$f":"IF(入力シート!AM17=\"\",\"\",入力シート!AM17)","v":""},null,null,{"$f":"IF(入力シート!AP17=\"\",\"\",入力シート!AP17)","v":""},null,null,{"$f":"IF(入力シート!AS17=\"\",\"\",入力シート!AS17)","v":""},null,null,null,null,{"$f":"IF(入力シート!AX17=\"\",\"\",入力シート!AX17)","v":""},null,null,null,null,{"$f":"IF(入力シート!BC17=\"\",\"\",入力シート!BC17)","v":""},null,null,null,"・",{"$f":"IF(入力シート!BH17=\"\",\"\",入力シート!BH17)","v":""},null,null,"・",{"$f":"IF(入力シート!BL17=\"\",\"\",入力シート!BL17)","v":""}]
[null,null,null,null,null,null,"（姓）",null,{"$f":"IF(入力シート!I18=\"\",\"\",入力シート!I18)","v":""},null,null,null,null,null,null,null,null,null,null,null,null,null,"（名）",null,{"$f":"IF(入力シート!Y18=\"\",\"\",入力シート!Y18)","v":""}]
[]
[]
[null,null,"大将",null,null,null,"ふりがな",null,{"$f":"IF(入力シート!I21=\"\",\"\",入力シート!I21)","v":""},null,null,null,null,null,null,null,null,null,null,null,null,null,null,null,{"$f":"IF(入力シート!Y21=\"\",\"\",入力シート!Y21)","v":""},null,null,null,null,null,null,null,null,null,null,null,null,null,{"$f":"IF(入力シート!AM21=\"\",\"\",入力シート!AM21)","v":""},null,null,{"$f":"IF(入力シート!AP21=\"\",\"\",入力シート!AP21)","v":""},null,null,{"$f":"IF(入力シート!AS21=\"\",\"\",入力シート!AS21)","v":""},null,null,null,null,{"$f":"IF(入力シート!AX21=\"\",\"\",入力シート!AX21)","v":""},null,null,null,null,{"$f":"IF(入力シート!BC21=\"\",\"\",入力シート!BC21)","v":""},null,null,null,"・",{"$f":"IF(入力シート!BH21=\"\",\"\",入力シート!BH21)","v":""},null,null,"・",{"$f":"IF(入力シート!BL21=\"\",\"\",入力シート!BL21)","v":""}]
[null,null,null,null,null,null,"（姓）",null,{"$f":"IF(入力シート!I22=\"\",\"\",入力シート!I22)","v":""},null,null,null,null,null,null,null,null,null,null,null,null,null,"（名）",null,{"$f":"IF(入力シート!Y22=\"\",\"\",入力シート!Y22)","v":""}]
[]
[]
[null,null,"補欠",null,null,null,"ふりがな",null,{"$f":"IF(入力シート!I25=\"\",\"\",入力シート!I25)","v":""},null,null,null,null,null,null,null,null,null,null,null,null,null,null,null,{"$f":"IF(入力シート!Y25=\"\",\"\",入力シート!Y25)","v":""},null,null,null,null,null,null,null,null,null,null,null,null,null,{"$f":"IF(入力シート!AM25=\"\",\"\",入力シート!AM25)","v":""},null,null,{"$f":"IF(入力シート!AP25=\"\",\"\",入力シート!AP25)","v":""},null,null,{"$f":"IF(入力シート!AS25=\"\",\"\",入力シート!AS25)","v":""},null,null,null,null,{"$f":"IF(入力シート!AX25=\"\",\"\",入力シート!AX25)","v":""},null,null,null,null,{"$f":"IF(入力シート!BC25=\"\",\"\",入力シート!BC25)","v":""},null,null,null,"・",{"$f":"IF(入力シート!BH25=\"\",\"\",入力シート!BH25)","v":""},null,null,"・",{"$f":"IF(入力シート!BL25=\"\",\"\",入力シート!BL25)","v":""}]
[null,null,null,null,null,null,"（姓）",null,{"$f":"IF(入力シート!I26=\"\",\"\",入力シート!I26)","v":""},null,null,null,null,null,null,null,null,null,null,null,null,null,"（名）",null,{"$f":"IF(入力シート!Y26=\"\",\"\",入力シート!Y26)","v":""}]
[]
[]
[]
[]
[null,null,null,null,null,null,null,null,null,null,null,null,null,null,null,null,null,null,null,null,null,null,null,null,null,null,null,null,"（","ｷ　ﾘ　ﾄ　ﾘ",null,null,null,null,null,null,null,"）"]
[]
[]
[]
[]
[]
[]
[]
[]
[]
[]
[]
[]
[]
[null,null,null,null,null,null,null,null,null,null,null,null,null,null,"個　人　試　合　申　込　書",null,null,null,null,null,null,null,null,null,null,null,null,null,null,null,null,null,null,null,null,null,null,null,null,null,null,null,null,null,null,null,null,null,null,null,null,null,null,null,{"$f":"NOW()","v":"2019-10-03T13:10:59.980"}]
[]
[null,null,"※抽選番号",null,null,null,null,null,null,null,null,null,null,{"$f":"IF(入力シート!C51=\"\",\"\",入力シート!C51)","v":""},null,null,null,null,null,null,null,"kg級",null,null,null,{"$f":"入力シート!O47","v":"第69回大阪高等学校新人柔道大会"}]
[]
[null,null,"学校番号",null,null,null,"学　　　　校　　　　名",null,null,null,null,null,null,null,null,null,null,null,null,null,null,null,null,null,null,null,null,null,null,null,null,null,null,null,null,"監督名",null,null,null,null,null,null,null,null,null,null,null,null,null,null,"校長名"]
[null,null,{"$f":"入力シート!$C$9","v":0},null,null,null,{"$f":"入力シート!$G$9","v":""},null,null,null,null,null,null,null,null,null,null,null,null,null,null,null,null,null,null,"高等学校",null,null,null,null,null,null,null,null,null,{"$f":"入力シート!$AJ$9","v":0},null,null,null,null,null,null,null,null,null,null,null,"印",null,null,{"$f":"入力シート!$AY$9","v":0},null,null,null,null,null,null,null,null,null,null,null,"印"]
[]
[]
[null,null,"ふりがな",null,null,null,null,null,{"$f":"IF(入力シート!I51=\"\",\"\",入力シート!I51)","v":""},null,null,null,null,null,null,null,null,null,null,null,null,null,null,null,{"$f":"IF(入力シート!Y51=\"\",\"\",入力シート!Y51)","v":""},null,null,null,null,null,null,null,null,null,null,null,null,null,"学年",null,null,"段位",null,null,"体重（kg）",null,null,null,null,"身長（cm）",null,null,null,null,"生年月日（西暦）"]
[null,null,"選手名",null,null,null,"（姓）",null,{"$f":"IF(入力シート!I52=\"\",\"\",入力シート!I52)","v":""},null,null,null,null,null,null,null,null,null,null,null,null,null,"（名）",null,{"$f":"IF(入力シート!Y52=\"\",\"\",入力シート!Y52)","v":""},null,null,null,null,null,null,null,null,null,null,null,null,null,{"$f":"IF(入力シート!AM51=\"\",\"\",入力シート!AM51)","v":""},null,null,{"$f":"IF(入力シート!AP51=\"\",\"\",入力シート!AP51)","v":""},null,null,{"$f":"IF(入力シート!AS51=\"\",\"\",入力シート!AS51)","v":""},null,null,null,null,{"$f":"IF(入力シート!AX51=\"\",\"\",入力シート!AX51)","v":""},null,null,null,null,{"$f":"IF(入力シート!BC51=\"\",\"\",入力シート!BC51)","v":""},null,null,null,"・",{"$f":"IF(入力シート!BH51=\"\",\"\",入力シート!BH51)","v":""},null,null,"・",{"$f":"IF(入力シート!BL51=\"\",\"\",入力シート!BL51)","v":""}]
[]
[]
[]
[]
[]
[]
[]
[]
[null,null,null,null,null,null,null,null,null,null,null,null,null,null,null,null,null,null,null,null,null,null,null,null,null,null,null,null,"（","ｷ　ﾘ　ﾄ　ﾘ",null,null,null,null,null,null,null,"）"]
[]
[]
[]
[null,null,null,null,null,null,null,null,null,null,null,null,null,null,"個　人　試　合　申　込　書",null,null,null,null,null,null,null,null,null,null,null,null,null,null,null,null,null,null,null,null,null,null,null,null,null,null,null,null,null,null,null,null,null,null,null,null,null,null,null,{"$f":"NOW()","v":"2019-10-03T13:10:59.980"}]
[]
[null,null,"※抽選番号",null,null,null,null,null,null,null,null,null,null,{"$f":"IF(入力シート!C55=\"\",\"\",入力シート!C55)","v":""},null,null,null,null,null,null,null,"kg級",null,null,null,{"$f":"入力シート!O47","v":"第69回大阪高等学校新人柔道大会"}]
[]
[null,null,"学校番号",null,null,null,"学　　　　校　　　　名",null,null,null,null,null,null,null,null,null,null,null,null,null,null,null,null,null,null,null,null,null,null,null,null,null,null,null,null,"監督名",null,null,null,null,null,null,null,null,null,null,null,null,null,null,"校長名"]
[null,null,{"$f":"入力シート!$C$9","v":0},null,null,null,{"$f":"入力シート!$G$9","v":""},null,null,null,null,null,null,null,null,null,null,null,null,null,null,null,null,null,null,"高等学校",null,null,null,null,null,null,null,null,null,{"$f":"入力シート!$AJ$9","v":0},null,null,null,null,null,null,null,null,null,null,null,"印",null,null,{"$f":"入力シート!$AY$9","v":0},null,null,null,null,null,null,null,null,null,null,null,"印"]
[]
[]
[null,null,"ふりがな",null,null,null,null,null,{"$f":"IF(入力シート!I55=\"\",\"\",入力シート!I55)","v":""},null,null,null,null,null,null,null,null,null,null,null,null,null,null,null,{"$f":"IF(入力シート!Y55=\"\",\"\",入力シート!Y55)","v":""},null,null,null,null,null,null,null,null,null,null,null,null,null,"学年",null,null,"段位",null,null,"体重（kg）",null,null,null,null,"身長（cm）",null,null,null,null,"生年月日（西暦）"]
[null,null,"選手名",null,null,null,"（姓）",null,{"$f":"IF(入力シート!I56=\"\",\"\",入力シート!I56)","v":""},null,null,null,null,null,null,null,null,null,null,null,null,null,"（名）",null,{"$f":"IF(入力シート!Y56=\"\",\"\",入力シート!Y56)","v":""},null,null,null,null,null,null,null,null,null,null,null,null,null,{"$f":"IF(入力シート!AM55=\"\",\"\",入力シート!AM55)","v":""},null,null,{"$f":"IF(入力シート!AP55=\"\",\"\",入力シート!AP55)","v":""},null,null,{"$f":"IF(入力シート!AS55=\"\",\"\",入力シート!AS55)","v":""},null,null,null,null,{"$f":"IF(入力シート!AX55=\"\",\"\",入力シート!AX55)","v":""},null,null,null,null,{"$f":"IF(入力シート!BC55=\"\",\"\",入力シート!BC55)","v":""},null,null,null,"・",{"$f":"IF(入力シート!BH55=\"\",\"\",入力シート!BH55)","v":""},null,null,"・",{"$f":"IF(入力シート!BL55=\"\",\"\",入力シート!BL55)","v":""}]
[]
[]
[]
[]
[]
[]
[]
[]
[]
[]
[]
[]
[null,null,null,null,null,null,null,null,null,null,null,null,null,null,"個　人　試　合　申　込　書",null,null,null,null,null,null,null,null,null,null,null,null,null,null,null,null,null,null,null,null,null,null,null,null,null,null,null,null,null,null,null,null,null,null,null,null,null,null,null,{"$f":"NOW()","v":"2019-10-03T13:10:59.980"}]
[]
[null,null,"※抽選番号",null,null,null,null,null,null,null,null,null,null,{"$f":"IF(入力シート!C59=\"\",\"\",入力シート!C59)","v":""},null,null,null,null,null,null,null,"kg級",null,null,null,{"$f":"入力シート!O47","v":"第69回大阪高等学校新人柔道大会"}]
[]
[null,null,"学校番号",null,null,null,"学　　　　校　　　　名",null,null,null,null,null,null,null,null,null,null,null,null,null,null,null,null,null,null,null,null,null,null,null,null,null,null,null,null,"監督名",null,null,null,null,null,null,null,null,null,null,null,null,null,null,"校長名"]
[null,null,{"$f":"入力シート!$C$9","v":0},null,null,null,{"$f":"入力シート!$G$9","v":""},null,null,null,null,null,null,null,null,null,null,null,null,null,null,null,null,null,null,"高等学校",null,null,null,null,null,null,null,null,null,{"$f":"入力シート!$AJ$9","v":0},null,null,null,null,null,null,null,null,null,null,null,"印",null,null,{"$f":"入力シート!$AY$9","v":0},null,null,null,null,null,null,null,null,null,null,null,"印"]
[]
[]
[null,null,"ふりがな",null,null,null,null,null,{"$f":"IF(入力シート!I59=\"\",\"\",入力シート!I59)","v":""},null,null,null,null,null,null,null,null,null,null,null,null,null,null,null,{"$f":"IF(入力シート!Y59=\"\",\"\",入力シート!Y59)","v":""},null,null,null,null,null,null,null,null,null,null,null,null,null,"学年",null,null,"段位",null,null,"体重（kg）",null,null,null,null,"身長（cm）",null,null,null,null,"生年月日（西暦）"]
[null,null,"選手名",null,null,null,"（姓）",null,{"$f":"IF(入力シート!I60=\"\",\"\",入力シート!I60)","v":""},null,null,null,null,null,null,null,null,null,null,null,null,null,"（名）",null,{"$f":"IF(入力シート!Y60=\"\",\"\",入力シート!Y60)","v":""},null,null,null,null,null,null,null,null,null,null,null,null,null,{"$f":"IF(入力シート!AM59=\"\",\"\",入力シート!AM59)","v":""},null,null,{"$f":"IF(入力シート!AP59=\"\",\"\",入力シート!AP59)","v":""},null,null,{"$f":"IF(入力シート!AS59=\"\",\"\",入力シート!AS59)","v":""},null,null,null,null,{"$f":"IF(入力シート!AX59=\"\",\"\",入力シート!AX59)","v":""},null,null,null,null,{"$f":"IF(入力シート!BC59=\"\",\"\",入力シート!BC59)","v":""},null,null,null,"・",{"$f":"IF(入力シート!BH59=\"\",\"\",入力シート!BH59)","v":""},null,null,"・",{"$f":"IF(入力シート!BL59=\"\",\"\",入力シート!BL59)","v":""}]
[]
[]
[]
[]
[]
[]
[]
[]
[null,null,null,null,null,null,null,null,null,null,null,null,null,null,null,null,null,null,null,null,null,null,null,null,null,null,null,null,"（","ｷ　ﾘ　ﾄ　ﾘ",null,null,null,null,null,null,null,"）"]
[]
[]
[]
[null,null,null,null,null,null,null,null,null,null,null,null,null,null,"個　人　試　合　申　込　書",null,null,null,null,null,null,null,null,null,null,null,null,null,null,null,null,null,null,null,null,null,null,null,null,null,null,null,null,null,null,null,null,null,null,null,null,null,null,null,{"$f":"NOW()","v":"2019-10-03T13:10:59.980"}]
[]
[null,null,"※抽選番号",null,null,null,null,null,null,null,null,null,null,{"$f":"IF(入力シート!C63=\"\",\"\",入力シート!C63)","v":""},null,null,null,null,null,null,null,"kg級",null,null,null,{"$f":"入力シート!O47","v":"第69回大阪高等学校新人柔道大会"}]
[]
[null,null,"学校番号",null,null,null,"学　　　　校　　　　名",null,null,null,null,null,null,null,null,null,null,null,null,null,null,null,null,null,null,null,null,null,null,null,null,null,null,null,null,"監督名",null,null,null,null,null,null,null,null,null,null,null,null,null,null,"校長名"]
[null,null,{"$f":"入力シート!$C$9","v":0},null,null,null,{"$f":"入力シート!$G$9","v":""},null,null,null,null,null,null,null,null,null,null,null,null,null,null,null,null,null,null,"高等学校",null,null,null,null,null,null,null,null,null,{"$f":"入力シート!$AJ$9","v":0},null,null,null,null,null,null,null,null,null,null,null,"印",null,null,{"$f":"入力シート!$AY$9","v":0},null,null,null,null,null,null,null,null,null,null,null,"印"]
[]
[]
[null,null,"ふりがな",null,null,null,null,null,{"$f":"IF(入力シート!I63=\"\",\"\",入力シート!I63)","v":""},null,null,null,null,null,null,null,null,null,null,null,null,null,null,null,{"$f":"IF(入力シート!Y63=\"\",\"\",入力シート!Y63)","v":""},null,null,null,null,null,null,null,null,null,null,null,null,null,"学年",null,null,"段位",null,null,"体重（kg）",null,null,null,null,"身長（cm）",null,null,null,null,"生年月日（西暦）"]
[null,null,"選手名",null,null,null,"（姓）",null,{"$f":"IF(入力シート!I64=\"\",\"\",入力シート!I64)","v":""},null,null,null,null,null,null,null,null,null,null,null,null,null,"（名）",null,{"$f":"IF(入力シート!Y64=\"\",\"\",入力シート!Y64)","v":""},null,null,null,null,null,null,null,null,null,null,null,null,null,{"$f":"IF(入力シート!AM63=\"\",\"\",入力シート!AM63)","v":""},null,null,{"$f":"IF(入力シート!AP63=\"\",\"\",入力シート!AP63)","v":""},null,null,{"$f":"IF(入力シート!AS63=\"\",\"\",入力シート!AS63)","v":""},null,null,null,null,{"$f":"IF(入力シート!AX63=\"\",\"\",入力シート!AX63)","v":""},null,null,null,null,{"$f":"IF(入力シート!BC63=\"\",\"\",入力シート!BC63)","v":""},null,null,null,"・",{"$f":"IF(入力シート!BH63=\"\",\"\",入力シート!BH63)","v":""},null,null,"・",{"$f":"IF(入力シート!BL63=\"\",\"\",入力シート!BL63)","v":""}]
[]
[]
[]
[]
[]
[]
[]
[]
[]
[]
[]
[]
[null,null,null,null,null,null,null,null,null,null,null,null,null,null,"個　人　試　合　申　込　書",null,null,null,null,null,null,null,null,null,null,null,null,null,null,null,null,null,null,null,null,null,null,null,null,null,null,null,null,null,null,null,null,null,null,null,null,null,null,null,{"$f":"NOW()","v":"2019-10-03T13:10:59.980"}]
[]
[null,null,"※抽選番号",null,null,null,null,null,null,null,null,null,null,{"$f":"IF(入力シート!C67=\"\",\"\",入力シート!C67)","v":""},null,null,null,null,null,null,null,"kg級",null,null,null,{"$f":"入力シート!O47","v":"第69回大阪高等学校新人柔道大会"}]
[]
[null,null,"学校番号",null,null,null,"学　　　　校　　　　名",null,null,null,null,null,null,null,null,null,null,null,null,null,null,null,null,null,null,null,null,null,null,null,null,null,null,null,null,"監督名",null,null,null,null,null,null,null,null,null,null,null,null,null,null,"校長名"]
[null,null,{"$f":"入力シート!$C$9","v":0},null,null,null,{"$f":"入力シート!$G$9","v":""},null,null,null,null,null,null,null,null,null,null,null,null,null,null,null,null,null,null,"高等学校",null,null,null,null,null,null,null,null,null,{"$f":"入力シート!$AJ$9","v":0},null,null,null,null,null,null,null,null,null,null,null,"印",null,null,{"$f":"入力シート!$AY$9","v":0},null,null,null,null,null,null,null,null,null,null,null,"印"]
[]
[]
[null,null,"ふりがな",null,null,null,null,null,{"$f":"IF(入力シート!I67=\"\",\"\",入力シート!I67)","v":""},null,null,null,null,null,null,null,null,null,null,null,null,null,null,null,{"$f":"IF(入力シート!Y67=\"\",\"\",入力シート!Y67)","v":""},null,null,null,null,null,null,null,null,null,null,null,null,null,"学年",null,null,"段位",null,null,"体重（kg）",null,null,null,null,"身長（cm）",null,null,null,null,"生年月日（西暦）"]
[null,null,"選手名",null,null,null,"（姓）",null,{"$f":"IF(入力シート!I68=\"\",\"\",入力シート!I68)","v":""},null,null,null,null,null,null,null,null,null,null,null,null,null,"（名）",null,{"$f":"IF(入力シート!Y68=\"\",\"\",入力シート!Y68)","v":""},null,null,null,null,null,null,null,null,null,null,null,null,null,{"$f":"IF(入力シート!AM67=\"\",\"\",入力シート!AM67)","v":""},null,null,{"$f":"IF(入力シート!AP67=\"\",\"\",入力シート!AP67)","v":""},null,null,{"$f":"IF(入力シート!AS67=\"\",\"\",入力シート!AS67)","v":""},null,null,null,null,{"$f":"IF(入力シート!AX67=\"\",\"\",入力シート!AX67)","v":""},null,null,null,null,{"$f":"IF(入力シート!BC67=\"\",\"\",入力シート!BC67)","v":""},null,null,null,"・",{"$f":"IF(入力シート!BH67=\"\",\"\",入力シート!BH67)","v":""},null,null,"・",{"$f":"IF(入力シート!BL67=\"\",\"\",入力シート!BL67)","v":""}]
[]
[]
[]
[]
[]
[]
[]
[]
[null,null,null,null,null,null,null,null,null,null,null,null,null,null,null,null,null,null,null,null,null,null,null,null,null,null,null,null,"（","ｷ　ﾘ　ﾄ　ﾘ",null,null,null,null,null,null,null,"）"]
[]
[]
[]
[null,null,null,null,null,null,null,null,null,null,null,null,null,null,"個　人　試　合　申　込　書",null,null,null,null,null,null,null,null,null,null,null,null,null,null,null,null,null,null,null,null,null,null,null,null,null,null,null,null,null,null,null,null,null,null,null,null,null,null,null,{"$f":"NOW()","v":"2019-10-03T13:10:59.980"}]
[]
[null,null,"※抽選番号",null,null,null,null,null,null,null,null,null,null,{"$f":"IF(入力シート!C71=\"\",\"\",入力シート!C71)","v":""},null,null,null,null,null,null,null,"kg級",null,null,null,{"$f":"入力シート!O47","v":"第69回大阪高等学校新人柔道大会"}]
[]
[null,null,"学校番号",null,null,null,"学　　　　校　　　　名",null,null,null,null,null,null,null,null,null,null,null,null,null,null,null,null,null,null,null,null,null,null,null,null,null,null,null,null,"監督名",null,null,null,null,null,null,null,null,null,null,null,null,null,null,"校長名"]
[null,null,{"$f":"入力シート!$C$9","v":0},null,null,null,{"$f":"入力シート!$G$9","v":""},null,null,null,null,null,null,null,null,null,null,null,null,null,null,null,null,null,null,"高等学校",null,null,null,null,null,null,null,null,null,{"$f":"入力シート!$AJ$9","v":0},null,null,null,null,null,null,null,null,null,null,null,"印",null,null,{"$f":"入力シート!$AY$9","v":0},null,null,null,null,null,null,null,null,null,null,null,"印"]
[]
[]
[null,null,"ふりがな",null,null,null,null,null,{"$f":"IF(入力シート!I71=\"\",\"\",入力シート!I71)","v":""},null,null,null,null,null,null,null,null,null,null,null,null,null,null,null,{"$f":"IF(入力シート!Y71=\"\",\"\",入力シート!Y71)","v":""},null,null,null,null,null,null,null,null,null,null,null,null,null,"学年",null,null,"段位",null,null,"体重（kg）",null,null,null,null,"身長（cm）",null,null,null,null,"生年月日（西暦）"]
[null,null,"選手名",null,null,null,"（姓）",null,{"$f":"IF(入力シート!I72=\"\",\"\",入力シート!I72)","v":""},null,null,null,null,null,null,null,null,null,null,null,null,null,"（名）",null,{"$f":"IF(入力シート!Y72=\"\",\"\",入力シート!Y72)","v":""},null,null,null,null,null,null,null,null,null,null,null,null,null,{"$f":"IF(入力シート!AM71=\"\",\"\",入力シート!AM71)","v":""},null,null,{"$f":"IF(入力シート!AP71=\"\",\"\",入力シート!AP71)","v":""},null,null,{"$f":"IF(入力シート!AS71=\"\",\"\",入力シート!AS71)","v":""},null,null,null,null,{"$f":"IF(入力シート!AX71=\"\",\"\",入力シート!AX71)","v":""},null,null,null,null,{"$f":"IF(入力シート!BC71=\"\",\"\",入力シート!BC71)","v":""},null,null,null,"・",{"$f":"IF(入力シート!BH71=\"\",\"\",入力シート!BH71)","v":""},null,null,"・",{"$f":"IF(入力シート!BL71=\"\",\"\",入力シート!BL71)","v":""}]
[]
[]
[]
[]
[]
[]
[]
[]
[]
[]
[]
[]
[null,null,null,null,null,null,null,null,null,null,null,null,null,null,"個　人　試　合　申　込　書",null,null,null,null,null,null,null,null,null,null,null,null,null,null,null,null,null,null,null,null,null,null,null,null,null,null,null,null,null,null,null,null,null,null,null,null,null,null,null,{"$f":"NOW()","v":"2019-10-03T13:10:59.980"}]
[]
[null,null,"※抽選番号",null,null,null,null,null,null,null,null,null,null,{"$f":"IF(入力シート!C75=\"\",\"\",入力シート!C75)","v":""},null,null,null,null,null,null,null,"kg級",null,null,null,{"$f":"入力シート!O47","v":"第69回大阪高等学校新人柔道大会"}]
[]
[null,null,"学校番号",null,null,null,"学　　　　校　　　　名",null,null,null,null,null,null,null,null,null,null,null,null,null,null,null,null,null,null,null,null,null,null,null,null,null,null,null,null,"監督名",null,null,null,null,null,null,null,null,null,null,null,null,null,null,"校長名"]
[null,null,{"$f":"入力シート!$C$9","v":0},null,null,null,{"$f":"入力シート!$G$9","v":""},null,null,null,null,null,null,null,null,null,null,null,null,null,null,null,null,null,null,"高等学校",null,null,null,null,null,null,null,null,null,{"$f":"入力シート!$AJ$9","v":0},null,null,null,null,null,null,null,null,null,null,null,"印",null,null,{"$f":"入力シート!$AY$9","v":0},null,null,null,null,null,null,null,null,null,null,null,"印"]
[]
[]
[null,null,"ふりがな",null,null,null,null,null,{"$f":"IF(入力シート!I75=\"\",\"\",入力シート!I75)","v":""},null,null,null,null,null,null,null,null,null,null,null,null,null,null,null,{"$f":"IF(入力シート!Y75=\"\",\"\",入力シート!Y75)","v":""},null,null,null,null,null,null,null,null,null,null,null,null,null,"学年",null,null,"段位",null,null,"体重（kg）",null,null,null,null,"身長（cm）",null,null,null,null,"生年月日（西暦）"]
[null,null,"選手名",null,null,null,"（姓）",null,{"$f":"IF(入力シート!I76=\"\",\"\",入力シート!I76)","v":""},null,null,null,null,null,null,null,null,null,null,null,null,null,"（名）",null,{"$f":"IF(入力シート!Y76=\"\",\"\",入力シート!Y76)","v":""},null,null,null,null,null,null,null,null,null,null,null,null,null,{"$f":"IF(入力シート!AM75=\"\",\"\",入力シート!AM75)","v":""},null,null,{"$f":"IF(入力シート!AP75=\"\",\"\",入力シート!AP75)","v":""},null,null,{"$f":"IF(入力シート!AS75=\"\",\"\",入力シート!AS75)","v":""},null,null,null,null,{"$f":"IF(入力シート!AX75=\"\",\"\",入力シート!AX75)","v":""},null,null,null,null,{"$f":"IF(入力シート!BC75=\"\",\"\",入力シート!BC75)","v":""},null,null,null,"・",{"$f":"IF(入力シート!BH75=\"\",\"\",入力シート!BH75)","v":""},null,null,"・",{"$f":"IF(入力シート!BL75=\"\",\"\",入力シート!BL75)","v":""}]
[]
[]
[]
[]
[]
[]
[]
[]
[null,null,null,null,null,null,null,null,null,null,null,null,null,null,null,null,null,null,null,null,null,null,null,null,null,null,null,null,"（","ｷ　ﾘ　ﾄ　ﾘ",null,null,null,null,null,null,null,"）"]
[]
[]
[]
[null,null,null,null,null,null,null,null,null,null,null,null,null,null,"個　人　試　合　申　込　書",null,null,null,null,null,null,null,null,null,null,null,null,null,null,null,null,null,null,null,null,null,null,null,null,null,null,null,null,null,null,null,null,null,null,null,null,null,null,null,{"$f":"NOW()","v":"2019-10-03T13:10:59.980"}]
[]
[null,null,"※抽選番号",null,null,null,null,null,null,null,null,null,null,{"$f":"IF(入力シート!C79=\"\",\"\",入力シート!C79)","v":""},null,null,null,null,null,null,null,"kg級",null,null,null,{"$f":"入力シート!O47","v":"第69回大阪高等学校新人柔道大会"}]
[]
[null,null,"学校番号",null,null,null,"学　　　　校　　　　名",null,null,null,null,null,null,null,null,null,null,null,null,null,null,null,null,null,null,null,null,null,null,null,null,null,null,null,null,"監督名",null,null,null,null,null,null,null,null,null,null,null,null,null,null,"校長名"]
[null,null,{"$f":"入力シート!$C$9","v":0},null,null,null,{"$f":"入力シート!$G$9","v":""},null,null,null,null,null,null,null,null,null,null,null,null,null,null,null,null,null,null,"高等学校",null,null,null,null,null,null,null,null,null,{"$f":"入力シート!$AJ$9","v":0},null,null,null,null,null,null,null,null,null,null,null,"印",null,null,{"$f":"入力シート!$AY$9","v":0},null,null,null,null,null,null,null,null,null,null,null,"印"]
[]
[]
[null,null,"ふりがな",null,null,null,null,null,{"$f":"IF(入力シート!I79=\"\",\"\",入力シート!I79)","v":""},null,null,null,null,null,null,null,null,null,null,null,null,null,null,null,{"$f":"IF(入力シート!Y79=\"\",\"\",入力シート!Y79)","v":""},null,null,null,null,null,null,null,null,null,null,null,null,null,"学年",null,null,"段位",null,null,"体重（kg）",null,null,null,null,"身長（cm）",null,null,null,null,"生年月日（西暦）"]
[null,null,"選手名",null,null,null,"（姓）",null,{"$f":"IF(入力シート!I80=\"\",\"\",入力シート!I80)","v":""},null,null,null,null,null,null,null,null,null,null,null,null,null,"（名）",null,{"$f":"IF(入力シート!Y80=\"\",\"\",入力シート!Y80)","v":""},null,null,null,null,null,null,null,null,null,null,null,null,null,{"$f":"IF(入力シート!AM79=\"\",\"\",入力シート!AM79)","v":""},null,null,{"$f":"IF(入力シート!AP79=\"\",\"\",入力シート!AP79)","v":""},null,null,{"$f":"IF(入力シート!AS79=\"\",\"\",入力シート!AS79)","v":""},null,null,null,null,{"$f":"IF(入力シート!AX79=\"\",\"\",入力シート!AX79)","v":""},null,null,null,null,{"$f":"IF(入力シート!BC79=\"\",\"\",入力シート!BC79)","v":""},null,null,null,"・",{"$f":"IF(入力シート!BH79=\"\",\"\",入力シート!BH79)","v":""},null,null,"・",{"$f":"IF(入力シート!BL79=\"\",\"\",入力シート!BL79)","v":""}]
[]
[]
[]
[]
[]
[]
[]
[]
[]
[]
[]
[]
[]
[null,null,null,null,null,null,null,null,null,null,null,null,null,null,"個　人　試　合　申　込　書",null,null,null,null,null,null,null,null,null,null,null,null,null,null,null,null,null,null,null,null,null,null,null,null,null,null,null,null,null,null,null,null,null,null,null,null,null,null,null,{"$f":"NOW()","v":"2019-10-03T13:10:59.980"}]
[]
[null,null,"※抽選番号",null,null,null,null,null,null,null,null,null,null,{"$f":"IF(入力シート!C83=\"\",\"\",入力シート!C83)","v":""},null,null,null,null,null,null,null,"kg級",null,null,null,{"$f":"入力シート!O47","v":"第69回大阪高等学校新人柔道大会"}]
[]
[null,null,"学校番号",null,null,null,"学　　　　校　　　　名",null,null,null,null,null,null,null,null,null,null,null,null,null,null,null,null,null,null,null,null,null,null,null,null,null,null,null,null,"監督名",null,null,null,null,null,null,null,null,null,null,null,null,null,null,"校長名"]
[null,null,{"$f":"入力シート!$C$9","v":0},null,null,null,{"$f":"入力シート!$G$9","v":""},null,null,null,null,null,null,null,null,null,null,null,null,null,null,null,null,null,null,"高等学校",null,null,null,null,null,null,null,null,null,{"$f":"入力シート!$AJ$9","v":0},null,null,null,null,null,null,null,null,null,null,null,"印",null,null,{"$f":"入力シート!$AY$9","v":0},null,null,null,null,null,null,null,null,null,null,null,"印"]
[]
[]
[null,null,"ふりがな",null,null,null,null,null,{"$f":"IF(入力シート!I83=\"\",\"\",入力シート!I83)","v":""},null,null,null,null,null,null,null,null,null,null,null,null,null,null,null,{"$f":"IF(入力シート!Y83=\"\",\"\",入力シート!Y83)","v":""},null,null,null,null,null,null,null,null,null,null,null,null,null,"学年",null,null,"段位",null,null,"体重（kg）",null,null,null,null,"身長（cm）",null,null,null,null,"生年月日（西暦）"]
[null,null,"選手名",null,null,null,"（姓）",null,{"$f":"IF(入力シート!I84=\"\",\"\",入力シート!I84)","v":""},null,null,null,null,null,null,null,null,null,null,null,null,null,"（名）",null,{"$f":"IF(入力シート!Y84=\"\",\"\",入力シート!Y84)","v":""},null,null,null,null,null,null,null,null,null,null,null,null,null,{"$f":"IF(入力シート!AM83=\"\",\"\",入力シート!AM83)","v":""},null,null,{"$f":"IF(入力シート!AP83=\"\",\"\",入力シート!AP83)","v":""},null,null,{"$f":"IF(入力シート!AS83=\"\",\"\",入力シート!AS83)","v":""},null,null,null,null,{"$f":"IF(入力シート!AX83=\"\",\"\",入力シート!AX83)","v":""},null,null,null,null,{"$f":"IF(入力シート!BC83=\"\",\"\",入力シート!BC83)","v":""},null,null,null,"・",{"$f":"IF(入力シート!BH83=\"\",\"\",入力シート!BH83)","v":""},null,null,"・",{"$f":"IF(入力シート!BL83=\"\",\"\",入力シート!BL83)","v":""}]
[]
[]
[]
[]
[]
[]
[]
[]
[null,null,null,null,null,null,null,null,null,null,null,null,null,null,null,null,null,null,null,null,null,null,null,null,null,null,null,null,"（","ｷ　ﾘ　ﾄ　ﾘ",null,null,null,null,null,null,null,"）"]
[]
[]
[]
[null,null,null,null,null,null,null,null,null,null,null,null,null,null,"個　人　試　合　申　込　書",null,null,null,null,null,null,null,null,null,null,null,null,null,null,null,null,null,null,null,null,null,null,null,null,null,null,null,null,null,null,null,null,null,null,null,null,null,null,null,{"$f":"NOW()","v":"2019-10-03T13:10:59.980"}]
[]
[null,null,"※抽選番号",null,null,null,null,null,null,null,null,null,null,{"$f":"IF(入力シート!C83=\"\",\"\",入力シート!C83)","v":""},null,null,null,null,null,null,null,"kg級",null,null,null,{"$f":"入力シート!O47","v":"第69回大阪高等学校新人柔道大会"}]
[]
[null,null,"学校番号",null,null,null,"学　　　　校　　　　名",null,null,null,null,null,null,null,null,null,null,null,null,null,null,null,null,null,null,null,null,null,null,null,null,null,null,null,null,"監督名",null,null,null,null,null,null,null,null,null,null,null,null,null,null,"校長名"]
[null,null,{"$f":"入力シート!$C$9","v":0},null,null,null,{"$f":"入力シート!$G$9","v":""},null,null,null,null,null,null,null,null,null,null,null,null,null,null,null,null,null,null,"高等学校",null,null,null,null,null,null,null,null,null,{"$f":"入力シート!$AJ$9","v":0},null,null,null,null,null,null,null,null,null,null,null,"印",null,null,{"$f":"入力シート!$AY$9","v":0},null,null,null,null,null,null,null,null,null,null,null,"印"]
[]
[]
[null,null,"ふりがな",null,null,null,null,null,{"$f":"IF(入力シート!I87=\"\",\"\",入力シート!I87)","v":""},null,null,null,null,null,null,null,null,null,null,null,null,null,null,null,{"$f":"IF(入力シート!Y87=\"\",\"\",入力シート!Y87)","v":""},null,null,null,null,null,null,null,null,null,null,null,null,null,"学年",null,null,"段位",null,null,"体重（kg）",null,null,null,null,"身長（cm）",null,null,null,null,"生年月日（西暦）"]
[null,null,"選手名",null,null,null,"（姓）",null,{"$f":"IF(入力シート!I88=\"\",\"\",入力シート!I88)","v":""},null,null,null,null,null,null,null,null,null,null,null,null,null,"（名）",null,{"$f":"IF(入力シート!Y88=\"\",\"\",入力シート!Y88)","v":""},null,null,null,null,null,null,null,null,null,null,null,null,null,{"$f":"IF(入力シート!AM87=\"\",\"\",入力シート!AM87)","v":""},null,null,{"$f":"IF(入力シート!AP87=\"\",\"\",入力シート!AP87)","v":""},null,null,{"$f":"IF(入力シート!AS87=\"\",\"\",入力シート!AS87)","v":""},null,null,null,null,{"$f":"IF(入力シート!AX87=\"\",\"\",入力シート!AX87)","v":""},null,null,null,null,{"$f":"IF(入力シート!BC87=\"\",\"\",入力シート!BC87)","v":""},null,null,null,"・",{"$f":"IF(入力シート!BH87=\"\",\"\",入力シート!BH87)","v":""},null,null,"・",{"$f":"IF(入力シート!BL87=\"\",\"\",入力シート!BL87)","v":""}]
[]
[]
[]
[]
[]
[]
[]
[]
[]
[]
[]
[]
[null,null,null,null,null,null,null,null,null,null,null,null,null,null,"個　人　試　合　申　込　書",null,null,null,null,null,null,null,null,null,null,null,null,null,null,null,null,null,null,null,null,null,null,null,null,null,null,null,null,null,null,null,null,null,null,null,null,null,null,null,{"$f":"NOW()","v":"2019-10-03T13:10:59.980"}]
[]
[null,null,"※抽選番号",null,null,null,null,null,null,null,null,null,null,{"$f":"IF(入力シート!C91=\"\",\"\",入力シート!C91)","v":""},null,null,null,null,null,null,null,"kg級",null,null,null,{"$f":"入力シート!O47","v":"第69回大阪高等学校新人柔道大会"}]
[]
[null,null,"学校番号",null,null,null,"学　　　　校　　　　名",null,null,null,null,null,null,null,null,null,null,null,null,null,null,null,null,null,null,null,null,null,null,null,null,null,null,null,null,"監督名",null,null,null,null,null,null,null,null,null,null,null,null,null,null,"校長名"]
[null,null,{"$f":"入力シート!$C$9","v":0},null,null,null,{"$f":"入力シート!$G$9","v":""},null,null,null,null,null,null,null,null,null,null,null,null,null,null,null,null,null,null,"高等学校",null,null,null,null,null,null,null,null,null,{"$f":"入力シート!$AJ$9","v":0},null,null,null,null,null,null,null,null,null,null,null,"印",null,null,{"$f":"入力シート!$AY$9","v":0},null,null,null,null,null,null,null,null,null,null,null,"印"]
[]
[]
[null,null,"ふりがな",null,null,null,null,null,{"$f":"IF(入力シート!I91=\"\",\"\",入力シート!I91)","v":""},null,null,null,null,null,null,null,null,null,null,null,null,null,null,null,{"$f":"IF(入力シート!Y91=\"\",\"\",入力シート!Y91)","v":""},null,null,null,null,null,null,null,null,null,null,null,null,null,"学年",null,null,"段位",null,null,"体重（kg）",null,null,null,null,"身長（cm）",null,null,null,null,"生年月日（西暦）"]
[null,null,"選手名",null,null,null,"（姓）",null,{"$f":"IF(入力シート!I92=\"\",\"\",入力シート!I92)","v":""},null,null,null,null,null,null,null,null,null,null,null,null,null,"（名）",null,{"$f":"IF(入力シート!Y92=\"\",\"\",入力シート!Y92)","v":""},null,null,null,null,null,null,null,null,null,null,null,null,null,{"$f":"IF(入力シート!AM91=\"\",\"\",入力シート!AM91)","v":""},null,null,{"$f":"IF(入力シート!AP91=\"\",\"\",入力シート!AP91)","v":""},null,null,{"$f":"IF(入力シート!AS91=\"\",\"\",入力シート!AS91)","v":""},null,null,null,null,{"$f":"IF(入力シート!AX91=\"\",\"\",入力シート!AX91)","v":""},null,null,null,null,{"$f":"IF(入力シート!BC91=\"\",\"\",入力シート!BC91)","v":""},null,null,null,"・",{"$f":"IF(入力シート!BH91=\"\",\"\",入力シート!BH91)","v":""},null,null,"・",{"$f":"IF(入力シート!BL91=\"\",\"\",入力シート!BL91)","v":""}]
[]
[]
[]
[]
[]
[]
[]
[]
[null,null,null,null,null,null,null,null,null,null,null,null,null,null,null,null,null,null,null,null,null,null,null,null,null,null,null,null,"（","ｷ　ﾘ　ﾄ　ﾘ",null,null,null,null,null,null,null,"）"]
[]
[]
[]
[null,null,null,null,null,null,null,null,null,null,null,null,null,null,"個　人　試　合　申　込　書",null,null,null,null,null,null,null,null,null,null,null,null,null,null,null,null,null,null,null,null,null,null,null,null,null,null,null,null,null,null,null,null,null,null,null,null,null,null,null,{"$f":"NOW()","v":"2019-10-03T13:10:59.980"}]
[]
[null,null,"※抽選番号",null,null,null,null,null,null,null,null,null,null,{"$f":"IF(入力シート!C95=\"\",\"\",入力シート!C95)","v":""},null,null,null,null,null,null,null,"kg級",null,null,null,{"$f":"入力シート!O47","v":"第69回大阪高等学校新人柔道大会"}]
[]
[null,null,"学校番号",null,null,null,"学　　　　校　　　　名",null,null,null,null,null,null,null,null,null,null,null,null,null,null,null,null,null,null,null,null,null,null,null,null,null,null,null,null,"監督名",null,null,null,null,null,null,null,null,null,null,null,null,null,null,"校長名"]
[null,null,{"$f":"入力シート!$C$9","v":0},null,null,null,{"$f":"入力シート!$G$9","v":""},null,null,null,null,null,null,null,null,null,null,null,null,null,null,null,null,null,null,"高等学校",null,null,null,null,null,null,null,null,null,{"$f":"入力シート!$AJ$9","v":0},null,null,null,null,null,null,null,null,null,null,null,"印",null,null,{"$f":"入力シート!$AY$9","v":0},null,null,null,null,null,null,null,null,null,null,null,"印"]
[]
[]
[null,null,"ふりがな",null,null,null,null,null,{"$f":"IF(入力シート!I95=\"\",\"\",入力シート!I95)","v":""},null,null,null,null,null,null,null,null,null,null,null,null,null,null,null,{"$f":"IF(入力シート!Y95=\"\",\"\",入力シート!Y95)","v":""},null,null,null,null,null,null,null,null,null,null,null,null,null,"学年",null,null,"段位",null,null,"体重（kg）",null,null,null,null,"身長（cm）",null,null,null,null,"生年月日（西暦）"]
[null,null,"選手名",null,null,null,"（姓）",null,{"$f":"IF(入力シート!I96=\"\",\"\",入力シート!I96)","v":""},null,null,null,null,null,null,null,null,null,null,null,null,null,"（名）",null,{"$f":"IF(入力シート!Y96=\"\",\"\",入力シート!Y96)","v":""},null,null,null,null,null,null,null,null,null,null,null,null,null,{"$f":"IF(入力シート!AM95=\"\",\"\",入力シート!AM95)","v":""},null,null,{"$f":"IF(入力シート!AP95=\"\",\"\",入力シート!AP95)","v":""},null,null,{"$f":"IF(入力シート!AS95=\"\",\"\",入力シート!AS95)","v":""},null,null,null,null,{"$f":"IF(入力シート!AX95=\"\",\"\",入力シート!AX95)","v":""},null,null,null,null,{"$f":"IF(入力シート!BC95=\"\",\"\",入力シート!BC95)","v":""},null,null,null,"・",{"$f":"IF(入力シート!BH95=\"\",\"\",入力シート!BH95)","v":""},null,null,"・",{"$f":"IF(入力シート!BL95=\"\",\"\",入力シート!BL95)","v":""}]
[]
[]
[]
[]
[]
[]
[]
[]
[]
[]
[]
[]
[null,null,null,null,null,null,null,null,null,null,null,null,null,null,"個　人　試　合　申　込　書",null,null,null,null,null,null,null,null,null,null,null,null,null,null,null,null,null,null,null,null,null,null,null,null,null,null,null,null,null,null,null,null,null,null,null,null,null,null,null,{"$f":"NOW()","v":"2019-10-03T13:10:59.980"}]
[]
[null,null,"※抽選番号",null,null,null,null,null,null,null,null,null,null,{"$f":"IF(入力シート!C99=\"\",\"\",入力シート!C99)","v":""},null,null,null,null,null,null,null,"kg級",null,null,null,{"$f":"入力シート!O47","v":"第69回大阪高等学校新人柔道大会"}]
[]
[null,null,"学校番号",null,null,null,"学　　　　校　　　　名",null,null,null,null,null,null,null,null,null,null,null,null,null,null,null,null,null,null,null,null,null,null,null,null,null,null,null,null,"監督名",null,null,null,null,null,null,null,null,null,null,null,null,null,null,"校長名"]
[null,null,{"$f":"入力シート!$C$9","v":0},null,null,null,{"$f":"入力シート!$G$9","v":""},null,null,null,null,null,null,null,null,null,null,null,null,null,null,null,null,null,null,"高等学校",null,null,null,null,null,null,null,null,null,{"$f":"入力シート!$AJ$9","v":0},null,null,null,null,null,null,null,null,null,null,null,"印",null,null,{"$f":"入力シート!$AY$9","v":0},null,null,null,null,null,null,null,null,null,null,null,"印"]
[]
[]
[null,null,"ふりがな",null,null,null,null,null,{"$f":"IF(入力シート!I99=\"\",\"\",入力シート!I99)","v":""},null,null,null,null,null,null,null,null,null,null,null,null,null,null,null,{"$f":"IF(入力シート!Y99=\"\",\"\",入力シート!Y99)","v":""},null,null,null,null,null,null,null,null,null,null,null,null,null,"学年",null,null,"段位",null,null,"体重（kg）",null,null,null,null,"身長（cm）",null,null,null,null,"生年月日（西暦）"]
[null,null,"選手名",null,null,null,"（姓）",null,{"$f":"IF(入力シート!I100=\"\",\"\",入力シート!I100)","v":""},null,null,null,null,null,null,null,null,null,null,null,null,null,"（名）",null,{"$f":"IF(入力シート!Y100=\"\",\"\",入力シート!Y100)","v":""},null,null,null,null,null,null,null,null,null,null,null,null,null,{"$f":"IF(入力シート!AM99=\"\",\"\",入力シート!AM99)","v":""},null,null,{"$f":"IF(入力シート!AP99=\"\",\"\",入力シート!AP99)","v":""},null,null,{"$f":"IF(入力シート!AS99=\"\",\"\",入力シート!AS99)","v":""},null,null,null,null,{"$f":"IF(入力シート!AX99=\"\",\"\",入力シート!AX99)","v":""},null,null,null,null,{"$f":"IF(入力シート!BC99=\"\",\"\",入力シート!BC99)","v":""},null,null,null,"・",{"$f":"IF(入力シート!BH99=\"\",\"\",入力シート!BH99)","v":""},null,null,"・",{"$f":"IF(入力シート!BL99=\"\",\"\",入力シート!BL99)","v":""}]
[]
[]
[]
[]
[]
[]
[]
[]
[null,null,null,null,null,null,null,null,null,null,null,null,null,null,null,null,null,null,null,null,null,null,null,null,null,null,null,null,"（","ｷ　ﾘ　ﾄ　ﾘ",null,null,null,null,null,null,null,"）"]
[]
[]
[]
[null,null,null,null,null,null,null,null,null,null,null,null,null,null,"個　人　試　合　申　込　書",null,null,null,null,null,null,null,null,null,null,null,null,null,null,null,null,null,null,null,null,null,null,null,null,null,null,null,null,null,null,null,null,null,null,null,null,null,null,null,{"$f":"NOW()","v":"2019-10-03T13:10:59.980"}]
[]
[null,null,"※抽選番号",null,null,null,null,null,null,null,null,null,null,{"$f":"IF(入力シート!C103=\"\",\"\",入力シート!C103)","v":""},null,null,null,null,null,null,null,"kg級",null,null,null,{"$f":"入力シート!O47","v":"第69回大阪高等学校新人柔道大会"}]
[]
[null,null,"学校番号",null,null,null,"学　　　　校　　　　名",null,null,null,null,null,null,null,null,null,null,null,null,null,null,null,null,null,null,null,null,null,null,null,null,null,null,null,null,"監督名",null,null,null,null,null,null,null,null,null,null,null,null,null,null,"校長名"]
[null,null,{"$f":"入力シート!$C$9","v":0},null,null,null,{"$f":"入力シート!$G$9","v":""},null,null,null,null,null,null,null,null,null,null,null,null,null,null,null,null,null,null,"高等学校",null,null,null,null,null,null,null,null,null,{"$f":"入力シート!$AJ$9","v":0},null,null,null,null,null,null,null,null,null,null,null,"印",null,null,{"$f":"入力シート!$AY$9","v":0},null,null,null,null,null,null,null,null,null,null,null,"印"]
[]
[]
[null,null,"ふりがな",null,null,null,null,null,{"$f":"IF(入力シート!I103=\"\",\"\",入力シート!I103)","v":""},null,null,null,null,null,null,null,null,null,null,null,null,null,null,null,{"$f":"IF(入力シート!Y103=\"\",\"\",入力シート!Y103)","v":""},null,null,null,null,null,null,null,null,null,null,null,null,null,"学年",null,null,"段位",null,null,"体重（kg）",null,null,null,null,"身長（cm）",null,null,null,null,"生年月日（西暦）"]
[null,null,"選手名",null,null,null,"（姓）",null,{"$f":"IF(入力シート!I104=\"\",\"\",入力シート!I104)","v":""},null,null,null,null,null,null,null,null,null,null,null,null,null,"（名）",null,{"$f":"IF(入力シート!Y104=\"\",\"\",入力シート!Y104)","v":""},null,null,null,null,null,null,null,null,null,null,null,null,null,{"$f":"IF(入力シート!AM103=\"\",\"\",入力シート!AM103)","v":""},null,null,{"$f":"IF(入力シート!AP103=\"\",\"\",入力シート!AP103)","v":""},null,null,{"$f":"IF(入力シート!AS103=\"\",\"\",入力シート!AS103)","v":""},null,null,null,null,{"$f":"IF(入力シート!AX103=\"\",\"\",入力シート!AX103)","v":""},null,null,null,null,{"$f":"IF(入力シート!BC103=\"\",\"\",入力シート!BC103)","v":""},null,null,null,"・",{"$f":"IF(入力シート!BH103=\"\",\"\",入力シート!BH103)","v":""},null,null,"・",{"$f":"IF(入力シート!BL103=\"\",\"\",入力シート!BL103)","v":""}]
[]
[]
[]
[]
[]
[]
[]
[]
[]
[]
[null,null,"男子個人（特別枠）"]
[]
[null,null,null,null,null,null,null,null,null,null,null,null,null,null,"個　人　試　合　申　込　書",null,null,null,null,null,null,null,null,null,null,null,null,null,null,null,null,null,null,null,null,null,null,null,null,null,null,null,null,null,null,null,null,null,null,null,null,null,null,null,{"$f":"NOW()","v":"2019-10-03T13:10:59.980"}]
[]
[null,null,"※抽選番号",null,null,null,null,null,null,null,null,null,null,{"$f":"IF(入力シート!C112=\"\",\"\",入力シート!C112)","v":""},null,null,null,null,null,null,null,"kg級",null,null,null,{"$f":"入力シート!$O$47","v":"第69回大阪高等学校新人柔道大会"}]
[]
[null,null,"学校番号",null,null,null,"学　　　　校　　　　名",null,null,null,null,null,null,null,null,null,null,null,null,null,null,null,null,null,null,null,null,null,null,null,null,null,null,null,null,"監督名",null,null,null,null,null,null,null,null,null,null,null,null,null,null,"校長名"]
[null,null,{"$f":"入力シート!$C$9","v":0},null,null,null,{"$f":"入力シート!$G$9","v":""},null,null,null,null,null,null,null,null,null,null,null,null,null,null,null,null,null,null,"高等学校",null,null,null,null,null,null,null,null,null,{"$f":"入力シート!$AJ$9","v":0},null,null,null,null,null,null,null,null,null,null,null,"印",null,null,{"$f":"入力シート!$AY$9","v":0},null,null,null,null,null,null,null,null,null,null,null,"印"]
[]
[]
[null,null,"ふりがな",null,null,null,null,null,{"$f":"IF(入力シート!I112=\"\",\"\",入力シート!I112)","v":""},null,null,null,null,null,null,null,null,null,null,null,null,null,null,null,{"$f":"IF(入力シート!Y112=\"\",\"\",入力シート!Y112)","v":""},null,null,null,null,null,null,null,null,null,null,null,null,null,"学年",null,null,"段位",null,null,"体重（kg）",null,null,null,null,"身長（cm）",null,null,null,null,"生年月日（西暦）"]
[null,null,"選手名",null,null,null,"（姓）",null,{"$f":"IF(入力シート!I113=\"\",\"\",入力シート!I113)","v":""},null,null,null,null,null,null,null,null,null,null,null,null,null,"（名）",null,{"$f":"IF(入力シート!Y113=\"\",\"\",入力シート!Y113)","v":""},null,null,null,null,null,null,null,null,null,null,null,null,null,{"$f":"IF(入力シート!AM112=\"\",\"\",入力シート!AM112)","v":""},null,null,{"$f":"IF(入力シート!AP112=\"\",\"\",入力シート!AP112)","v":""},null,null,{"$f":"IF(入力シート!AS112=\"\",\"\",入力シート!AS112)","v":""},null,null,null,null,{"$f":"IF(入力シート!AX112=\"\",\"\",入力シート!AX112)","v":""},null,null,null,null,{"$f":"IF(入力シート!BC112=\"\",\"\",入力シート!BC112)","v":""},null,null,null,"・",{"$f":"IF(入力シート!BH112=\"\",\"\",入力シート!BH112)","v":""},null,null,"・",{"$f":"IF(入力シート!BL112=\"\",\"\",入力シート!BL112)","v":""}]
[]
[]
[]
[]
[]
[]
[]
[]
[]
[null,null,null,null,null,null,null,null,null,null,null,null,null,null,null,null,null,null,null,null,null,null,null,null,null,null,null,null,"（","ｷ　ﾘ　ﾄ　ﾘ",null,null,null,null,null,null,null,"）"]
[]
[null,null,"男子個人（特別枠）"]
[]
[null,null,null,null,null,null,null,null,null,null,null,null,null,null,"個　人　試　合　申　込　書",null,null,null,null,null,null,null,null,null,null,null,null,null,null,null,null,null,null,null,null,null,null,null,null,null,null,null,null,null,null,null,null,null,null,null,null,null,null,null,{"$f":"NOW()","v":"2019-10-03T13:10:59.980"}]
[]
[null,null,"※抽選番号",null,null,null,null,null,null,null,null,null,null,{"$f":"IF(入力シート!C116=\"\",\"\",入力シート!C116)","v":""},null,null,null,null,null,null,null,"kg級",null,null,null,{"$f":"入力シート!$O$47","v":"第69回大阪高等学校新人柔道大会"}]
[]
[null,null,"学校番号",null,null,null,"学　　　　校　　　　名",null,null,null,null,null,null,null,null,null,null,null,null,null,null,null,null,null,null,null,null,null,null,null,null,null,null,null,null,"監督名",null,null,null,null,null,null,null,null,null,null,null,null,null,null,"校長名"]
[null,null,{"$f":"入力シート!$C$9","v":0},null,null,null,{"$f":"入力シート!$G$9","v":""},null,null,null,null,null,null,null,null,null,null,null,null,null,null,null,null,null,null,"高等学校",null,null,null,null,null,null,null,null,null,{"$f":"入力シート!$AJ$9","v":0},null,null,null,null,null,null,null,null,null,null,null,"印",null,null,{"$f":"入力シート!$AY$9","v":0},null,null,null,null,null,null,null,null,null,null,null,"印"]
[]
[]
[null,null,"ふりがな",null,null,null,null,null,{"$f":"IF(入力シート!I116=\"\",\"\",入力シート!I116)","v":""},null,null,null,null,null,null,null,null,null,null,null,null,null,null,null,{"$f":"IF(入力シート!Y116=\"\",\"\",入力シート!Y116)","v":""},null,null,null,null,null,null,null,null,null,null,null,null,null,"学年",null,null,"段位",null,null,"体重（kg）",null,null,null,null,"身長（cm）",null,null,null,null,"生年月日（西暦）"]
[null,null,"選手名",null,null,null,"（姓）",null,{"$f":"IF(入力シート!I117=\"\",\"\",入力シート!I117)","v":""},null,null,null,null,null,null,null,null,null,null,null,null,null,"（名）",null,{"$f":"IF(入力シート!Y117=\"\",\"\",入力シート!Y117)","v":""},null,null,null,null,null,null,null,null,null,null,null,null,null,{"$f":"IF(入力シート!AM116=\"\",\"\",入力シート!AM116)","v":""},null,null,{"$f":"IF(入力シート!AP116=\"\",\"\",入力シート!AP116)","v":""},null,null,{"$f":"IF(入力シート!AS116=\"\",\"\",入力シート!AS116)","v":""},null,null,null,null,{"$f":"IF(入力シート!AX116=\"\",\"\",入力シート!AX116)","v":""},null,null,null,null,{"$f":"IF(入力シート!BC116=\"\",\"\",入力シート!BC116)","v":""},null,null,null,"・",{"$f":"IF(入力シート!BH116=\"\",\"\",入力シート!BH116)","v":""},null,null,"・",{"$f":"IF(入力シート!BL116=\"\",\"\",入力シート!BL116)","v":""}]
[]
[]
[]
[]
[]
[]
[]
[]
[]
[]
[]
[null,null,"男子個人（特別枠）"]
[]
[null,null,null,null,null,null,null,null,null,null,null,null,null,null,"個　人　試　合　申　込　書",null,null,null,null,null,null,null,null,null,null,null,null,null,null,null,null,null,null,null,null,null,null,null,null,null,null,null,null,null,null,null,null,null,null,null,null,null,null,null,{"$f":"NOW()","v":"2019-10-03T13:10:59.980"}]
[]
[null,null,"※抽選番号",null,null,null,null,null,null,null,null,null,null,{"$f":"IF(入力シート!C120=\"\",\"\",入力シート!C120)","v":""},null,null,null,null,null,null,null,"kg級",null,null,null,{"$f":"入力シート!$O$47","v":"第69回大阪高等学校新人柔道大会"}]
[]
[null,null,"学校番号",null,null,null,"学　　　　校　　　　名",null,null,null,null,null,null,null,null,null,null,null,null,null,null,null,null,null,null,null,null,null,null,null,null,null,null,null,null,"監督名",null,null,null,null,null,null,null,null,null,null,null,null,null,null,"校長名"]
[null,null,{"$f":"入力シート!$C$9","v":0},null,null,null,{"$f":"入力シート!$G$9","v":""},null,null,null,null,null,null,null,null,null,null,null,null,null,null,null,null,null,null,"高等学校",null,null,null,null,null,null,null,null,null,{"$f":"入力シート!$AJ$9","v":0},null,null,null,null,null,null,null,null,null,null,null,"印",null,null,{"$f":"入力シート!$AY$9","v":0},null,null,null,null,null,null,null,null,null,null,null,"印"]
[]
[]
[null,null,"ふりがな",null,null,null,null,null,{"$f":"IF(入力シート!I120=\"\",\"\",入力シート!I120)","v":""},null,null,null,null,null,null,null,null,null,null,null,null,null,null,null,{"$f":"IF(入力シート!Y120=\"\",\"\",入力シート!Y120)","v":""},null,null,null,null,null,null,null,null,null,null,null,null,null,"学年",null,null,"段位",null,null,"体重（kg）",null,null,null,null,"身長（cm）",null,null,null,null,"生年月日（西暦）"]
[null,null,"選手名",null,null,null,"（姓）",null,{"$f":"IF(入力シート!I121=\"\",\"\",入力シート!I121)","v":""},null,null,null,null,null,null,null,null,null,null,null,null,null,"（名）",null,{"$f":"IF(入力シート!Y121=\"\",\"\",入力シート!Y121)","v":""},null,null,null,null,null,null,null,null,null,null,null,null,null,{"$f":"IF(入力シート!AM120=\"\",\"\",入力シート!AM120)","v":""},null,null,{"$f":"IF(入力シート!AP120=\"\",\"\",入力シート!AP120)","v":""},null,null,{"$f":"IF(入力シート!AS120=\"\",\"\",入力シート!AS120)","v":""},null,null,null,null,{"$f":"IF(入力シート!AX120=\"\",\"\",入力シート!AX120)","v":""},null,null,null,null,{"$f":"IF(入力シート!BC120=\"\",\"\",入力シート!BC120)","v":""},null,null,null,"・",{"$f":"IF(入力シート!BH120=\"\",\"\",入力シート!BH120)","v":""},null,null,"・",{"$f":"IF(入力シート!BL120=\"\",\"\",入力シート!BL120)","v":""}]
[]
[]
[]
[]
[]
[]
[]
[]
[]
[null,null,null,null,null,null,null,null,null,null,null,null,null,null,null,null,null,null,null,null,null,null,null,null,null,null,null,null,"（","ｷ　ﾘ　ﾄ　ﾘ",null,null,null,null,null,null,null,"）"]
[]
[null,null,"男子個人（特別枠）"]
[]
[null,null,null,null,null,null,null,null,null,null,null,null,null,null,"個　人　試　合　申　込　書",null,null,null,null,null,null,null,null,null,null,null,null,null,null,null,null,null,null,null,null,null,null,null,null,null,null,null,null,null,null,null,null,null,null,null,null,null,null,null,{"$f":"NOW()","v":"2019-10-03T13:10:59.980"}]
[]
[null,null,"※抽選番号",null,null,null,null,null,null,null,null,null,null,{"$f":"IF(入力シート!C124=\"\",\"\",入力シート!C124)","v":""},null,null,null,null,null,null,null,"kg級",null,null,null,{"$f":"入力シート!$O$47","v":"第69回大阪高等学校新人柔道大会"}]
[]
[null,null,"学校番号",null,null,null,"学　　　　校　　　　名",null,null,null,null,null,null,null,null,null,null,null,null,null,null,null,null,null,null,null,null,null,null,null,null,null,null,null,null,"監督名",null,null,null,null,null,null,null,null,null,null,null,null,null,null,"校長名"]
[null,null,{"$f":"入力シート!$C$9","v":0},null,null,null,{"$f":"入力シート!$G$9","v":""},null,null,null,null,null,null,null,null,null,null,null,null,null,null,null,null,null,null,"高等学校",null,null,null,null,null,null,null,null,null,{"$f":"入力シート!$AJ$9","v":0},null,null,null,null,null,null,null,null,null,null,null,"印",null,null,{"$f":"入力シート!$AY$9","v":0},null,null,null,null,null,null,null,null,null,null,null,"印"]
[]
[]
[null,null,"ふりがな",null,null,null,null,null,{"$f":"IF(入力シート!I124=\"\",\"\",入力シート!I124)","v":""},null,null,null,null,null,null,null,null,null,null,null,null,null,null,null,{"$f":"IF(入力シート!Y124=\"\",\"\",入力シート!Y124)","v":""},null,null,null,null,null,null,null,null,null,null,null,null,null,"学年",null,null,"段位",null,null,"体重（kg）",null,null,null,null,"身長（cm）",null,null,null,null,"生年月日（西暦）"]
[null,null,"選手名",null,null,null,"（姓）",null,{"$f":"IF(入力シート!I125=\"\",\"\",入力シート!I125)","v":""},null,null,null,null,null,null,null,null,null,null,null,null,null,"（名）",null,{"$f":"IF(入力シート!Y125=\"\",\"\",入力シート!Y125)","v":""},null,null,null,null,null,null,null,null,null,null,null,null,null,{"$f":"IF(入力シート!AM124=\"\",\"\",入力シート!AM124)","v":""},null,null,{"$f":"IF(入力シート!AP124=\"\",\"\",入力シート!AP124)","v":""},null,null,{"$f":"IF(入力シート!AS124=\"\",\"\",入力シート!AS124)","v":""},null,null,null,null,{"$f":"IF(入力シート!AX124=\"\",\"\",入力シート!AX124)","v":""},null,null,null,null,{"$f":"IF(入力シート!BC124=\"\",\"\",入力シート!BC124)","v":""},null,null,null,"・",{"$f":"IF(入力シート!BH124=\"\",\"\",入力シート!BH124)","v":""},null,null,"・",{"$f":"IF(入力シート!BL124=\"\",\"\",入力シート!BL124)","v":""}]
[]
[]
[]
[]
[]
[]
[]
[]
[]
[]
[]
[null,null,"男子個人（特別枠）"]
[]
[null,null,null,null,null,null,null,null,null,null,null,null,null,null,"個　人　試　合　申　込　書",null,null,null,null,null,null,null,null,null,null,null,null,null,null,null,null,null,null,null,null,null,null,null,null,null,null,null,null,null,null,null,null,null,null,null,null,null,null,null,{"$f":"NOW()","v":"2019-10-03T13:10:59.980"}]
[]
[null,null,"※抽選番号",null,null,null,null,null,null,null,null,null,null,{"$f":"IF(入力シート!C128=\"\",\"\",入力シート!C128)","v":""},null,null,null,null,null,null,null,"kg級",null,null,null,{"$f":"入力シート!$O$47","v":"第69回大阪高等学校新人柔道大会"}]
[]
[null,null,"学校番号",null,null,null,"学　　　　校　　　　名",null,null,null,null,null,null,null,null,null,null,null,null,null,null,null,null,null,null,null,null,null,null,null,null,null,null,null,null,"監督名",null,null,null,null,null,null,null,null,null,null,null,null,null,null,"校長名"]
[null,null,{"$f":"入力シート!$C$9","v":0},null,null,null,{"$f":"入力シート!$G$9","v":""},null,null,null,null,null,null,null,null,null,null,null,null,null,null,null,null,null,null,"高等学校",null,null,null,null,null,null,null,null,null,{"$f":"入力シート!$AJ$9","v":0},null,null,null,null,null,null,null,null,null,null,null,"印",null,null,{"$f":"入力シート!$AY$9","v":0},null,null,null,null,null,null,null,null,null,null,null,"印"]
[]
[]
[null,null,"ふりがな",null,null,null,null,null,{"$f":"IF(入力シート!I128=\"\",\"\",入力シート!I128)","v":""},null,null,null,null,null,null,null,null,null,null,null,null,null,null,null,{"$f":"IF(入力シート!Y128=\"\",\"\",入力シート!Y128)","v":""},null,null,null,null,null,null,null,null,null,null,null,null,null,"学年",null,null,"段位",null,null,"体重（kg）",null,null,null,null,"身長（cm）",null,null,null,null,"生年月日（西暦）"]
[null,null,"選手名",null,null,null,"（姓）",null,{"$f":"IF(入力シート!I129=\"\",\"\",入力シート!I129)","v":""},null,null,null,null,null,null,null,null,null,null,null,null,null,"（名）",null,{"$f":"IF(入力シート!Y129=\"\",\"\",入力シート!Y129)","v":""},null,null,null,null,null,null,null,null,null,null,null,null,null,{"$f":"IF(入力シート!AM128=\"\",\"\",入力シート!AM128)","v":""},null,null,{"$f":"IF(入力シート!AP128=\"\",\"\",入力シート!AP128)","v":""},null,null,{"$f":"IF(入力シート!AS128=\"\",\"\",入力シート!AS128)","v":""},null,null,null,null,{"$f":"IF(入力シート!AX128=\"\",\"\",入力シート!AX128)","v":""},null,null,null,null,{"$f":"IF(入力シート!BC128=\"\",\"\",入力シート!BC128)","v":""},null,null,null,"・",{"$f":"IF(入力シート!BH128=\"\",\"\",入力シート!BH128)","v":""},null,null,"・",{"$f":"IF(入力シート!BL128=\"\",\"\",入力シート!BL128)","v":""}]
[]
[]
[]
[]
[]
[]
[]
[]
[]
[null,null,null,null,null,null,null,null,null,null,null,null,null,null,null,null,null,null,null,null,null,null,null,null,null,null,null,null,"（","ｷ　ﾘ　ﾄ　ﾘ",null,null,null,null,null,null,null,"）"]
[]
[null,null,"男子個人（特別枠）"]
[]
[null,null,null,null,null,null,null,null,null,null,null,null,null,null,"個　人　試　合　申　込　書",null,null,null,null,null,null,null,null,null,null,null,null,null,null,null,null,null,null,null,null,null,null,null,null,null,null,null,null,null,null,null,null,null,null,null,null,null,null,null,{"$f":"NOW()","v":"2019-10-03T13:10:59.980"}]
[]
[null,null,"※抽選番号",null,null,null,null,null,null,null,null,null,null,{"$f":"IF(入力シート!C132=\"\",\"\",入力シート!C132)","v":""},null,null,null,null,null,null,null,"kg級",null,null,null,{"$f":"入力シート!$O$47","v":"第69回大阪高等学校新人柔道大会"}]
[]
[null,null,"学校番号",null,null,null,"学　　　　校　　　　名",null,null,null,null,null,null,null,null,null,null,null,null,null,null,null,null,null,null,null,null,null,null,null,null,null,null,null,null,"監督名",null,null,null,null,null,null,null,null,null,null,null,null,null,null,"校長名"]
[null,null,{"$f":"入力シート!$C$9","v":0},null,null,null,{"$f":"入力シート!$G$9","v":""},null,null,null,null,null,null,null,null,null,null,null,null,null,null,null,null,null,null,"高等学校",null,null,null,null,null,null,null,null,null,{"$f":"入力シート!$AJ$9","v":0},null,null,null,null,null,null,null,null,null,null,null,"印",null,null,{"$f":"入力シート!$AY$9","v":0},null,null,null,null,null,null,null,null,null,null,null,"印"]
[]
[]
[null,null,"ふりがな",null,null,null,null,null,{"$f":"IF(入力シート!I132=\"\",\"\",入力シート!I132)","v":""},null,null,null,null,null,null,null,null,null,null,null,null,null,null,null,{"$f":"IF(入力シート!Y132=\"\",\"\",入力シート!Y132)","v":""},null,null,null,null,null,null,null,null,null,null,null,null,null,"学年",null,null,"段位",null,null,"体重（kg）",null,null,null,null,"身長（cm）",null,null,null,null,"生年月日（西暦）"]
[null,null,"選手名",null,null,null,"（姓）",null,{"$f":"IF(入力シート!I133=\"\",\"\",入力シート!I133)","v":""},null,null,null,null,null,null,null,null,null,null,null,null,null,"（名）",null,{"$f":"IF(入力シート!Y133=\"\",\"\",入力シート!Y133)","v":""},null,null,null,null,null,null,null,null,null,null,null,null,null,{"$f":"IF(入力シート!AM132=\"\",\"\",入力シート!AM132)","v":""},null,null,{"$f":"IF(入力シート!AP132=\"\",\"\",入力シート!AP132)","v":""},null,null,{"$f":"IF(入力シート!AS132=\"\",\"\",入力シート!AS132)","v":""},null,null,null,null,{"$f":"IF(入力シート!AX132=\"\",\"\",入力シート!AX132)","v":""},null,null,null,null,{"$f":"IF(入力シート!BC132=\"\",\"\",入力シート!BC132)","v":""},null,null,null,"・",{"$f":"IF(入力シート!BH132=\"\",\"\",入力シート!BH132)","v":""},null,null,"・",{"$f":"IF(入力シート!BL132=\"\",\"\",入力シート!BL132)","v":""}]
[]
[]
[]
[]
[]
[]
[]
[]
[]
[]
[]
[null,null,"男子個人（特別枠）"]
[]
[null,null,null,null,null,null,null,null,null,null,null,null,null,null,"個　人　試　合　申　込　書",null,null,null,null,null,null,null,null,null,null,null,null,null,null,null,null,null,null,null,null,null,null,null,null,null,null,null,null,null,null,null,null,null,null,null,null,null,null,null,{"$f":"NOW()","v":"2019-10-03T13:10:59.980"}]
[]
[null,null,"※抽選番号",null,null,null,null,null,null,null,null,null,null,{"$f":"IF(入力シート!C136=\"\",\"\",入力シート!C136)","v":""},null,null,null,null,null,null,null,"kg級",null,null,null,{"$f":"入力シート!$O$47","v":"第69回大阪高等学校新人柔道大会"}]
[]
[null,null,"学校番号",null,null,null,"学　　　　校　　　　名",null,null,null,null,null,null,null,null,null,null,null,null,null,null,null,null,null,null,null,null,null,null,null,null,null,null,null,null,"監督名",null,null,null,null,null,null,null,null,null,null,null,null,null,null,"校長名"]
[null,null,{"$f":"入力シート!$C$9","v":0},null,null,null,{"$f":"入力シート!$G$9","v":""},null,null,null,null,null,null,null,null,null,null,null,null,null,null,null,null,null,null,"高等学校",null,null,null,null,null,null,null,null,null,{"$f":"入力シート!$AJ$9","v":0},null,null,null,null,null,null,null,null,null,null,null,"印",null,null,{"$f":"入力シート!$AY$9","v":0},null,null,null,null,null,null,null,null,null,null,null,"印"]
[]
[]
[null,null,"ふりがな",null,null,null,null,null,{"$f":"IF(入力シート!I136=\"\",\"\",入力シート!I136)","v":""},null,null,null,null,null,null,null,null,null,null,null,null,null,null,null,{"$f":"IF(入力シート!Y136=\"\",\"\",入力シート!Y136)","v":""},null,null,null,null,null,null,null,null,null,null,null,null,null,"学年",null,null,"段位",null,null,"体重（kg）",null,null,null,null,"身長（cm）",null,null,null,null,"生年月日（西暦）"]
[null,null,"選手名",null,null,null,"（姓）",null,{"$f":"IF(入力シート!I137=\"\",\"\",入力シート!I137)","v":""},null,null,null,null,null,null,null,null,null,null,null,null,null,"（名）",null,{"$f":"IF(入力シート!Y137=\"\",\"\",入力シート!Y137)","v":""},null,null,null,null,null,null,null,null,null,null,null,null,null,{"$f":"IF(入力シート!AM136=\"\",\"\",入力シート!AM136)","v":""},null,null,{"$f":"IF(入力シート!AP136=\"\",\"\",入力シート!AP136)","v":""},null,null,{"$f":"IF(入力シート!AS136=\"\",\"\",入力シート!AS136)","v":""},null,null,null,null,{"$f":"IF(入力シート!AX136=\"\",\"\",入力シート!AX136)","v":""},null,null,null,null,{"$f":"IF(入力シート!BC136=\"\",\"\",入力シート!BC136)","v":""},null,null,null,"・",{"$f":"IF(入力シート!BH136=\"\",\"\",入力シート!BH136)","v":""},null,null,"・",{"$f":"IF(入力シート!BL136=\"\",\"\",入力シート!BL136)","v":""}]
[]
[]
[]
[]
[]
[]
[]
[]
[]
[null,null,null,null,null,null,null,null,null,null,null,null,null,null,null,null,null,null,null,null,null,null,null,null,null,null,null,null,"（","ｷ　ﾘ　ﾄ　ﾘ",null,null,null,null,null,null,null,"）"]
[]
[null,null,"男子個人（特別枠）"]
[]
[null,null,null,null,null,null,null,null,null,null,null,null,null,null,"個　人　試　合　申　込　書",null,null,null,null,null,null,null,null,null,null,null,null,null,null,null,null,null,null,null,null,null,null,null,null,null,null,null,null,null,null,null,null,null,null,null,null,null,null,null,{"$f":"NOW()","v":"2019-10-03T13:10:59.980"}]
[]
[null,null,"※抽選番号",null,null,null,null,null,null,null,null,null,null,{"$f":"IF(入力シート!C140=\"\",\"\",入力シート!C140)","v":""},null,null,null,null,null,null,null,"kg級",null,null,null,{"$f":"入力シート!$O$47","v":"第69回大阪高等学校新人柔道大会"}]
[]
[null,null,"学校番号",null,null,null,"学　　　　校　　　　名",null,null,null,null,null,null,null,null,null,null,null,null,null,null,null,null,null,null,null,null,null,null,null,null,null,null,null,null,"監督名",null,null,null,null,null,null,null,null,null,null,null,null,null,null,"校長名"]
[null,null,{"$f":"入力シート!$C$9","v":0},null,null,null,{"$f":"入力シート!$G$9","v":""},null,null,null,null,null,null,null,null,null,null,null,null,null,null,null,null,null,null,"高等学校",null,null,null,null,null,null,null,null,null,{"$f":"入力シート!$AJ$9","v":0},null,null,null,null,null,null,null,null,null,null,null,"印",null,null,{"$f":"入力シート!$AY$9","v":0},null,null,null,null,null,null,null,null,null,null,null,"印"]
[]
[]
[null,null,"ふりがな",null,null,null,null,null,{"$f":"IF(入力シート!I140=\"\",\"\",入力シート!I140)","v":""},null,null,null,null,null,null,null,null,null,null,null,null,null,null,null,{"$f":"IF(入力シート!Y140=\"\",\"\",入力シート!Y140)","v":""},null,null,null,null,null,null,null,null,null,null,null,null,null,"学年",null,null,"段位",null,null,"体重（kg）",null,null,null,null,"身長（cm）",null,null,null,null,"生年月日（西暦）"]
[null,null,"選手名",null,null,null,"（姓）",null,{"$f":"IF(入力シート!I141=\"\",\"\",入力シート!I141)","v":""},null,null,null,null,null,null,null,null,null,null,null,null,null,"（名）",null,{"$f":"IF(入力シート!Y141=\"\",\"\",入力シート!Y141)","v":""},null,null,null,null,null,null,null,null,null,null,null,null,null,{"$f":"IF(入力シート!AM140=\"\",\"\",入力シート!AM140)","v":""},null,null,{"$f":"IF(入力シート!AP140=\"\",\"\",入力シート!AP140)","v":""},null,null,{"$f":"IF(入力シート!AS140=\"\",\"\",入力シート!AS140)","v":""},null,null,null,null,{"$f":"IF(入力シート!AX140=\"\",\"\",入力シート!AX140)","v":""},null,null,null,null,{"$f":"IF(入力シート!BC140=\"\",\"\",入力シート!BC140)","v":""},null,null,null,"・",{"$f":"IF(入力シート!BH140=\"\",\"\",入力シート!BH140)","v":""},null,null,"・",{"$f":"IF(入力シート!BL140=\"\",\"\",入力シート!BL140)","v":""}]
[]
[]
[]
[]
[]
[]
[]
[]
[]
[]
[]
[null,null,"男子個人（特別枠）"]
[]
[null,null,null,null,null,null,null,null,null,null,null,null,null,null,"個　人　試　合　申　込　書",null,null,null,null,null,null,null,null,null,null,null,null,null,null,null,null,null,null,null,null,null,null,null,null,null,null,null,null,null,null,null,null,null,null,null,null,null,null,null,{"$f":"NOW()","v":"2019-10-03T13:10:59.980"}]
[]
[null,null,"※抽選番号",null,null,null,null,null,null,null,null,null,null,{"$f":"IF(入力シート!C144=\"\",\"\",入力シート!C144)","v":""},null,null,null,null,null,null,null,"kg級",null,null,null,{"$f":"入力シート!$O$47","v":"第69回大阪高等学校新人柔道大会"}]
[]
[null,null,"学校番号",null,null,null,"学　　　　校　　　　名",null,null,null,null,null,null,null,null,null,null,null,null,null,null,null,null,null,null,null,null,null,null,null,null,null,null,null,null,"監督名",null,null,null,null,null,null,null,null,null,null,null,null,null,null,"校長名"]
[null,null,{"$f":"入力シート!$C$9","v":0},null,null,null,{"$f":"入力シート!$G$9","v":""},null,null,null,null,null,null,null,null,null,null,null,null,null,null,null,null,null,null,"高等学校",null,null,null,null,null,null,null,null,null,{"$f":"入力シート!$AJ$9","v":0},null,null,null,null,null,null,null,null,null,null,null,"印",null,null,{"$f":"入力シート!$AY$9","v":0},null,null,null,null,null,null,null,null,null,null,null,"印"]
[]
[]
[null,null,"ふりがな",null,null,null,null,null,{"$f":"IF(入力シート!I144=\"\",\"\",入力シート!I144)","v":""},null,null,null,null,null,null,null,null,null,null,null,null,null,null,null,{"$f":"IF(入力シート!Y144=\"\",\"\",入力シート!Y144)","v":""},null,null,null,null,null,null,null,null,null,null,null,null,null,"学年",null,null,"段位",null,null,"体重（kg）",null,null,null,null,"身長（cm）",null,null,null,null,"生年月日（西暦）"]
[null,null,"選手名",null,null,null,"（姓）",null,{"$f":"IF(入力シート!I145=\"\",\"\",入力シート!I145)","v":""},null,null,null,null,null,null,null,null,null,null,null,null,null,"（名）",null,{"$f":"IF(入力シート!Y145=\"\",\"\",入力シート!Y145)","v":""},null,null,null,null,null,null,null,null,null,null,null,null,null,{"$f":"IF(入力シート!AM144=\"\",\"\",入力シート!AM144)","v":""},null,null,{"$f":"IF(入力シート!AP144=\"\",\"\",入力シート!AP144)","v":""},null,null,{"$f":"IF(入力シート!AS144=\"\",\"\",入力シート!AS144)","v":""},null,null,null,null,{"$f":"IF(入力シート!AX144=\"\",\"\",入力シート!AX144)","v":""},null,null,null,null,{"$f":"IF(入力シート!BC144=\"\",\"\",入力シート!BC144)","v":""},null,null,null,"・",{"$f":"IF(入力シート!BH144=\"\",\"\",入力シート!BH144)","v":""},null,null,"・",{"$f":"IF(入力シート!BL144=\"\",\"\",入力シート!BL144)","v":""}]
[]
[]
[]
[]
[]
[]
[]
[]
[]
[null,null,null,null,null,null,null,null,null,null,null,null,null,null,null,null,null,null,null,null,null,null,null,null,null,null,null,null,"（","ｷ　ﾘ　ﾄ　ﾘ",null,null,null,null,null,null,null,"）"]
[]
[null,null,"男子個人（特別枠）"]
[]
[null,null,null,null,null,null,null,null,null,null,null,null,null,null,"個　人　試　合　申　込　書",null,null,null,null,null,null,null,null,null,null,null,null,null,null,null,null,null,null,null,null,null,null,null,null,null,null,null,null,null,null,null,null,null,null,null,null,null,null,null,{"$f":"NOW()","v":"2019-10-03T13:10:59.980"}]
[]
[null,null,"※抽選番号",null,null,null,null,null,null,null,null,null,null,{"$f":"IF(入力シート!C148=\"\",\"\",入力シート!C148)","v":""},null,null,null,null,null,null,null,"kg級",null,null,null,{"$f":"入力シート!$O$47","v":"第69回大阪高等学校新人柔道大会"}]
[]
[null,null,"学校番号",null,null,null,"学　　　　校　　　　名",null,null,null,null,null,null,null,null,null,null,null,null,null,null,null,null,null,null,null,null,null,null,null,null,null,null,null,null,"監督名",null,null,null,null,null,null,null,null,null,null,null,null,null,null,"校長名"]
[null,null,{"$f":"入力シート!$C$9","v":0},null,null,null,{"$f":"入力シート!$G$9","v":""},null,null,null,null,null,null,null,null,null,null,null,null,null,null,null,null,null,null,"高等学校",null,null,null,null,null,null,null,null,null,{"$f":"入力シート!$AJ$9","v":0},null,null,null,null,null,null,null,null,null,null,null,"印",null,null,{"$f":"入力シート!$AY$9","v":0},null,null,null,null,null,null,null,null,null,null,null,"印"]
[]
[]
[null,null,"ふりがな",null,null,null,null,null,{"$f":"IF(入力シート!I148=\"\",\"\",入力シート!I148)","v":""},null,null,null,null,null,null,null,null,null,null,null,null,null,null,null,{"$f":"IF(入力シート!Y148=\"\",\"\",入力シート!Y148)","v":""},null,null,null,null,null,null,null,null,null,null,null,null,null,"学年",null,null,"段位",null,null,"体重（kg）",null,null,null,null,"身長（cm）",null,null,null,null,"生年月日（西暦）"]
[null,null,"選手名",null,null,null,"（姓）",null,{"$f":"IF(入力シート!I149=\"\",\"\",入力シート!I149)","v":""},null,null,null,null,null,null,null,null,null,null,null,null,null,"（名）",null,{"$f":"IF(入力シート!Y149=\"\",\"\",入力シート!Y149)","v":""},null,null,null,null,null,null,null,null,null,null,null,null,null,{"$f":"IF(入力シート!AM148=\"\",\"\",入力シート!AM148)","v":""},null,null,{"$f":"IF(入力シート!AP148=\"\",\"\",入力シート!AP148)","v":""},null,null,{"$f":"IF(入力シート!AS148=\"\",\"\",入力シート!AS148)","v":""},null,null,null,null,{"$f":"IF(入力シート!AX148=\"\",\"\",入力シート!AX148)","v":""},null,null,null,null,{"$f":"IF(入力シート!BC148=\"\",\"\",入力シート!BC148)","v":""},null,null,null,"・",{"$f":"IF(入力シート!BH148=\"\",\"\",入力シート!BH148)","v":""},null,null,"・",{"$f":"IF(入力シート!BL148=\"\",\"\",入力シート!BL148)","v":""}]
[]
[]
[]
[]
[]
[]
[]
[]
[]
[]
[]
[]
[null,null,"男子個人（特別枠）"]
[]
[null,null,null,null,null,null,null,null,null,null,null,null,null,null,"個　人　試　合　申　込　書",null,null,null,null,null,null,null,null,null,null,null,null,null,null,null,null,null,null,null,null,null,null,null,null,null,null,null,null,null,null,null,null,null,null,null,null,null,null,null,{"$f":"NOW()","v":"2019-10-03T13:10:59.980"}]
[]
[null,null,"※抽選番号",null,null,null,null,null,null,null,null,null,null,{"$f":"IF(入力シート!C152=\"\",\"\",入力シート!C152)","v":""},null,null,null,null,null,null,null,"kg級",null,null,null,{"$f":"入力シート!$O$47","v":"第69回大阪高等学校新人柔道大会"}]
[]
[null,null,"学校番号",null,null,null,"学　　　　校　　　　名",null,null,null,null,null,null,null,null,null,null,null,null,null,null,null,null,null,null,null,null,null,null,null,null,null,null,null,null,"監督名",null,null,null,null,null,null,null,null,null,null,null,null,null,null,"校長名"]
[null,null,{"$f":"入力シート!$C$9","v":0},null,null,null,{"$f":"入力シート!$G$9","v":""},null,null,null,null,null,null,null,null,null,null,null,null,null,null,null,null,null,null,"高等学校",null,null,null,null,null,null,null,null,null,{"$f":"入力シート!$AJ$9","v":0},null,null,null,null,null,null,null,null,null,null,null,"印",null,null,{"$f":"入力シート!$AY$9","v":0},null,null,null,null,null,null,null,null,null,null,null,"印"]
[]
[]
[null,null,"ふりがな",null,null,null,null,null,{"$f":"IF(入力シート!I152=\"\",\"\",入力シート!I152)","v":""},null,null,null,null,null,null,null,null,null,null,null,null,null,null,null,{"$f":"IF(入力シート!Y152=\"\",\"\",入力シート!Y152)","v":""},null,null,null,null,null,null,null,null,null,null,null,null,null,"学年",null,null,"段位",null,null,"体重（kg）",null,null,null,null,"身長（cm）",null,null,null,null,"生年月日（西暦）"]
[null,null,"選手名",null,null,null,"（姓）",null,{"$f":"IF(入力シート!I153=\"\",\"\",入力シート!I153)","v":""},null,null,null,null,null,null,null,null,null,null,null,null,null,"（名）",null,{"$f":"IF(入力シート!Y153=\"\",\"\",入力シート!Y153)","v":""},null,null,null,null,null,null,null,null,null,null,null,null,null,{"$f":"IF(入力シート!AM152=\"\",\"\",入力シート!AM152)","v":""},null,null,{"$f":"IF(入力シート!AP152=\"\",\"\",入力シート!AP152)","v":""},null,null,{"$f":"IF(入力シート!AS152=\"\",\"\",入力シート!AS152)","v":""},null,null,null,null,{"$f":"IF(入力シート!AX152=\"\",\"\",入力シート!AX152)","v":""},null,null,null,null,{"$f":"IF(入力シート!BC152=\"\",\"\",入力シート!BC152)","v":""},null,null,null,"・",{"$f":"IF(入力シート!BH152=\"\",\"\",入力シート!BH152)","v":""},null,null,"・",{"$f":"IF(入力シート!BL152=\"\",\"\",入力シート!BL152)","v":""}]
[]
[]
[]
[]
[]
[]
[]
[]
[]
[null,null,null,null,null,null,null,null,null,null,null,null,null,null,null,null,null,null,null,null,null,null,null,null,null,null,null,null,"（","ｷ　ﾘ　ﾄ　ﾘ",null,null,null,null,null,null,null,"）"]
[]
[null,null,"男子個人（特別枠）"]
[]
[null,null,null,null,null,null,null,null,null,null,null,null,null,null,"個　人　試　合　申　込　書",null,null,null,null,null,null,null,null,null,null,null,null,null,null,null,null,null,null,null,null,null,null,null,null,null,null,null,null,null,null,null,null,null,null,null,null,null,null,null,{"$f":"NOW()","v":"2019-10-03T13:10:59.980"}]
[]
[null,null,"※抽選番号",null,null,null,null,null,null,null,null,null,null,{"$f":"IF(入力シート!C156=\"\",\"\",入力シート!C156)","v":""},null,null,null,null,null,null,null,"kg級",null,null,null,{"$f":"入力シート!$O$47","v":"第69回大阪高等学校新人柔道大会"}]
[]
[null,null,"学校番号",null,null,null,"学　　　　校　　　　名",null,null,null,null,null,null,null,null,null,null,null,null,null,null,null,null,null,null,null,null,null,null,null,null,null,null,null,null,"監督名",null,null,null,null,null,null,null,null,null,null,null,null,null,null,"校長名"]
[null,null,{"$f":"入力シート!$C$9","v":0},null,null,null,{"$f":"入力シート!$G$9","v":""},null,null,null,null,null,null,null,null,null,null,null,null,null,null,null,null,null,null,"高等学校",null,null,null,null,null,null,null,null,null,{"$f":"入力シート!$AJ$9","v":0},null,null,null,null,null,null,null,null,null,null,null,"印",null,null,{"$f":"入力シート!$AY$9","v":0},null,null,null,null,null,null,null,null,null,null,null,"印"]
[]
[]
[null,null,"ふりがな",null,null,null,null,null,{"$f":"IF(入力シート!I156=\"\",\"\",入力シート!I156)","v":""},null,null,null,null,null,null,null,null,null,null,null,null,null,null,null,{"$f":"IF(入力シート!Y156=\"\",\"\",入力シート!Y156)","v":""},null,null,null,null,null,null,null,null,null,null,null,null,null,"学年",null,null,"段位",null,null,"体重（kg）",null,null,null,null,"身長（cm）",null,null,null,null,"生年月日（西暦）"]
[null,null,"選手名",null,null,null,"（姓）",null,{"$f":"IF(入力シート!I157=\"\",\"\",入力シート!I157)","v":""},null,null,null,null,null,null,null,null,null,null,null,null,null,"（名）",null,{"$f":"IF(入力シート!Y157=\"\",\"\",入力シート!Y157)","v":""},null,null,null,null,null,null,null,null,null,null,null,null,null,{"$f":"IF(入力シート!AM156=\"\",\"\",入力シート!AM156)","v":""},null,null,{"$f":"IF(入力シート!AP156=\"\",\"\",入力シート!AP156)","v":""},null,null,{"$f":"IF(入力シート!AS156=\"\",\"\",入力シート!AS156)","v":""},null,null,null,null,{"$f":"IF(入力シート!AX156=\"\",\"\",入力シート!AX156)","v":""},null,null,null,null,{"$f":"IF(入力シート!BC156=\"\",\"\",入力シート!BC156)","v":""},null,null,null,"・",{"$f":"IF(入力シート!BH156=\"\",\"\",入力シート!BH156)","v":""},null,null,"・",{"$f":"IF(入力シート!BL156=\"\",\"\",入力シート!BL156)","v":""}]
[]
[]
[]
[]
[]
[]
[]
[]
[]
[]
[]
[null,null,"男子個人（特別枠）"]
[]
[null,null,null,null,null,null,null,null,null,null,null,null,null,null,"個　人　試　合　申　込　書",null,null,null,null,null,null,null,null,null,null,null,null,null,null,null,null,null,null,null,null,null,null,null,null,null,null,null,null,null,null,null,null,null,null,null,null,null,null,null,{"$f":"NOW()","v":"2019-10-03T13:10:59.980"}]
[]
[null,null,"※抽選番号",null,null,null,null,null,null,null,null,null,null,{"$f":"IF(入力シート!C160=\"\",\"\",入力シート!C160)","v":""},null,null,null,null,null,null,null,"kg級",null,null,null,{"$f":"入力シート!$O$47","v":"第69回大阪高等学校新人柔道大会"}]
[]
[null,null,"学校番号",null,null,null,"学　　　　校　　　　名",null,null,null,null,null,null,null,null,null,null,null,null,null,null,null,null,null,null,null,null,null,null,null,null,null,null,null,null,"監督名",null,null,null,null,null,null,null,null,null,null,null,null,null,null,"校長名"]
[null,null,{"$f":"入力シート!$C$9","v":0},null,null,null,{"$f":"入力シート!$G$9","v":""},null,null,null,null,null,null,null,null,null,null,null,null,null,null,null,null,null,null,"高等学校",null,null,null,null,null,null,null,null,null,{"$f":"入力シート!$AJ$9","v":0},null,null,null,null,null,null,null,null,null,null,null,"印",null,null,{"$f":"入力シート!$AY$9","v":0},null,null,null,null,null,null,null,null,null,null,null,"印"]
[]
[]
[null,null,"ふりがな",null,null,null,null,null,{"$f":"IF(入力シート!I160=\"\",\"\",入力シート!I160)","v":""},null,null,null,null,null,null,null,null,null,null,null,null,null,null,null,{"$f":"IF(入力シート!Y160=\"\",\"\",入力シート!Y160)","v":""},null,null,null,null,null,null,null,null,null,null,null,null,null,"学年",null,null,"段位",null,null,"体重（kg）",null,null,null,null,"身長（cm）",null,null,null,null,"生年月日（西暦）"]
[null,null,"選手名",null,null,null,"（姓）",null,{"$f":"IF(入力シート!I161=\"\",\"\",入力シート!I161)","v":""},null,null,null,null,null,null,null,null,null,null,null,null,null,"（名）",null,{"$f":"IF(入力シート!Y161=\"\",\"\",入力シート!Y161)","v":""},null,null,null,null,null,null,null,null,null,null,null,null,null,{"$f":"IF(入力シート!AM160=\"\",\"\",入力シート!AM160)","v":""},null,null,{"$f":"IF(入力シート!AP160=\"\",\"\",入力シート!AP160)","v":""},null,null,{"$f":"IF(入力シート!AS160=\"\",\"\",入力シート!AS160)","v":""},null,null,null,null,{"$f":"IF(入力シート!AX160=\"\",\"\",入力シート!AX160)","v":""},null,null,null,null,{"$f":"IF(入力シート!BC160=\"\",\"\",入力シート!BC160)","v":""},null,null,null,"・",{"$f":"IF(入力シート!BH160=\"\",\"\",入力シート!BH160)","v":""},null,null,"・",{"$f":"IF(入力シート!BL160=\"\",\"\",入力シート!BL160)","v":""}]
[]
[]
[]
[]
[]
[]
[]
[]
[]
[null,null,null,null,null,null,null,null,null,null,null,null,null,null,null,null,null,null,null,null,null,null,null,null,null,null,null,null,"（","ｷ　ﾘ　ﾄ　ﾘ",null,null,null,null,null,null,null,"）"]
[]
[null,null,"男子個人（特別枠）"]
[]
[null,null,null,null,null,null,null,null,null,null,null,null,null,null,"個　人　試　合　申　込　書",null,null,null,null,null,null,null,null,null,null,null,null,null,null,null,null,null,null,null,null,null,null,null,null,null,null,null,null,null,null,null,null,null,null,null,null,null,null,null,{"$f":"NOW()","v":"2019-10-03T13:10:59.980"}]
[]
[null,null,"※抽選番号",null,null,null,null,null,null,null,null,null,null,{"$f":"IF(入力シート!C164=\"\",\"\",入力シート!C164)","v":""},null,null,null,null,null,null,null,"kg級",null,null,null,{"$f":"入力シート!$O$47","v":"第69回大阪高等学校新人柔道大会"}]
[]
[null,null,"学校番号",null,null,null,"学　　　　校　　　　名",null,null,null,null,null,null,null,null,null,null,null,null,null,null,null,null,null,null,null,null,null,null,null,null,null,null,null,null,"監督名",null,null,null,null,null,null,null,null,null,null,null,null,null,null,"校長名"]
[null,null,{"$f":"入力シート!$C$9","v":0},null,null,null,{"$f":"入力シート!$G$9","v":""},null,null,null,null,null,null,null,null,null,null,null,null,null,null,null,null,null,null,"高等学校",null,null,null,null,null,null,null,null,null,{"$f":"入力シート!$AJ$9","v":0},null,null,null,null,null,null,null,null,null,null,null,"印",null,null,{"$f":"入力シート!$AY$9","v":0},null,null,null,null,null,null,null,null,null,null,null,"印"]
[]
[]
[null,null,"ふりがな",null,null,null,null,null,{"$f":"IF(入力シート!I164=\"\",\"\",入力シート!I164)","v":""},null,null,null,null,null,null,null,null,null,null,null,null,null,null,null,{"$f":"IF(入力シート!Y164=\"\",\"\",入力シート!Y164)","v":""},null,null,null,null,null,null,null,null,null,null,null,null,null,"学年",null,null,"段位",null,null,"体重（kg）",null,null,null,null,"身長（cm）",null,null,null,null,"生年月日（西暦）"]
[null,null,"選手名",null,null,null,"（姓）",null,{"$f":"IF(入力シート!I165=\"\",\"\",入力シート!I165)","v":""},null,null,null,null,null,null,null,null,null,null,null,null,null,"（名）",null,{"$f":"IF(入力シート!Y165=\"\",\"\",入力シート!Y165)","v":""},null,null,null,null,null,null,null,null,null,null,null,null,null,{"$f":"IF(入力シート!AM164=\"\",\"\",入力シート!AM164)","v":""},null,null,{"$f":"IF(入力シート!AP164=\"\",\"\",入力シート!AP164)","v":""},null,null,{"$f":"IF(入力シート!AS164=\"\",\"\",入力シート!AS164)","v":""},null,null,null,null,{"$f":"IF(入力シート!AX164=\"\",\"\",入力シート!AX164)","v":""},null,null,null,null,{"$f":"IF(入力シート!BC164=\"\",\"\",入力シート!BC164)","v":""},null,null,null,"・",{"$f":"IF(入力シート!BH164=\"\",\"\",入力シート!BH164)","v":""},null,null,"・",{"$f":"IF(入力シート!BL164=\"\",\"\",入力シート!BL164)","v":""}]
[]
[]
[]
[]
[]
[]
[]
[]
[]
[]
[]
[null,null,"男子個人（特別枠）"]
[]
[null,null,null,null,null,null,null,null,null,null,null,null,null,null,"個　人　試　合　申　込　書",null,null,null,null,null,null,null,null,null,null,null,null,null,null,null,null,null,null,null,null,null,null,null,null,null,null,null,null,null,null,null,null,null,null,null,null,null,null,null,{"$f":"NOW()","v":"2019-10-03T13:10:59.980"}]
[]
[null,null,"※抽選番号",null,null,null,null,null,null,null,null,null,null,{"$f":"IF(入力シート!C168=\"\",\"\",入力シート!C168)","v":""},null,null,null,null,null,null,null,"kg級",null,null,null,{"$f":"入力シート!$O$47","v":"第69回大阪高等学校新人柔道大会"}]
[]
[null,null,"学校番号",null,null,null,"学　　　　校　　　　名",null,null,null,null,null,null,null,null,null,null,null,null,null,null,null,null,null,null,null,null,null,null,null,null,null,null,null,null,"監督名",null,null,null,null,null,null,null,null,null,null,null,null,null,null,"校長名"]
[null,null,{"$f":"入力シート!$C$9","v":0},null,null,null,{"$f":"入力シート!$G$9","v":""},null,null,null,null,null,null,null,null,null,null,null,null,null,null,null,null,null,null,"高等学校",null,null,null,null,null,null,null,null,null,{"$f":"入力シート!$AJ$9","v":0},null,null,null,null,null,null,null,null,null,null,null,"印",null,null,{"$f":"入力シート!$AY$9","v":0},null,null,null,null,null,null,null,null,null,null,null,"印"]
[]
[]
[null,null,"ふりがな",null,null,null,null,null,{"$f":"IF(入力シート!I168=\"\",\"\",入力シート!I168)","v":""},null,null,null,null,null,null,null,null,null,null,null,null,null,null,null,{"$f":"IF(入力シート!Y168=\"\",\"\",入力シート!Y168)","v":""},null,null,null,null,null,null,null,null,null,null,null,null,null,"学年",null,null,"段位",null,null,"体重（kg）",null,null,null,null,"身長（cm）",null,null,null,null,"生年月日（西暦）"]
[null,null,"選手名",null,null,null,"（姓）",null,{"$f":"IF(入力シート!I169=\"\",\"\",入力シート!I169)","v":""},null,null,null,null,null,null,null,null,null,null,null,null,null,"（名）",null,{"$f":"IF(入力シート!Y169=\"\",\"\",入力シート!Y169)","v":""},null,null,null,null,null,null,null,null,null,null,null,null,null,{"$f":"IF(入力シート!AM168=\"\",\"\",入力シート!AM168)","v":""},null,null,{"$f":"IF(入力シート!AP168=\"\",\"\",入力シート!AP168)","v":""},null,null,{"$f":"IF(入力シート!AS168=\"\",\"\",入力シート!AS168)","v":""},null,null,null,null,{"$f":"IF(入力シート!AX168=\"\",\"\",入力シート!AX168)","v":""},null,null,null,null,{"$f":"IF(入力シート!BC168=\"\",\"\",入力シート!BC168)","v":""},null,null,null,"・",{"$f":"IF(入力シート!BH168=\"\",\"\",入力シート!BH168)","v":""},null,null,"・",{"$f":"IF(入力シート!BL168=\"\",\"\",入力シート!BL168)","v":""}]
[]
[]
[]
[]
[]
[]
[]
[]
[]
[null,null,null,null,null,null,null,null,null,null,null,null,null,null,null,null,null,null,null,null,null,null,null,null,null,null,null,null,"（","ｷ　ﾘ　ﾄ　ﾘ",null,null,null,null,null,null,null,"）"]
[]
[null,null,"男子個人（特別枠）"]
[]
[null,null,null,null,null,null,null,null,null,null,null,null,null,null,"個　人　試　合　申　込　書",null,null,null,null,null,null,null,null,null,null,null,null,null,null,null,null,null,null,null,null,null,null,null,null,null,null,null,null,null,null,null,null,null,null,null,null,null,null,null,{"$f":"NOW()","v":"2019-10-03T13:10:59.980"}]
[]
[null,null,"※抽選番号",null,null,null,null,null,null,null,null,null,null,{"$f":"IF(入力シート!C172=\"\",\"\",入力シート!C172)","v":""},null,null,null,null,null,null,null,"kg級",null,null,null,{"$f":"入力シート!$O$47","v":"第69回大阪高等学校新人柔道大会"}]
[]
[null,null,"学校番号",null,null,null,"学　　　　校　　　　名",null,null,null,null,null,null,null,null,null,null,null,null,null,null,null,null,null,null,null,null,null,null,null,null,null,null,null,null,"監督名",null,null,null,null,null,null,null,null,null,null,null,null,null,null,"校長名"]
[null,null,{"$f":"入力シート!$C$9","v":0},null,null,null,{"$f":"入力シート!$G$9","v":""},null,null,null,null,null,null,null,null,null,null,null,null,null,null,null,null,null,null,"高等学校",null,null,null,null,null,null,null,null,null,{"$f":"入力シート!$AJ$9","v":0},null,null,null,null,null,null,null,null,null,null,null,"印",null,null,{"$f":"入力シート!$AY$9","v":0},null,null,null,null,null,null,null,null,null,null,null,"印"]
[]
[]
[null,null,"ふりがな",null,null,null,null,null,{"$f":"IF(入力シート!I172=\"\",\"\",入力シート!I172)","v":""},null,null,null,null,null,null,null,null,null,null,null,null,null,null,null,{"$f":"IF(入力シート!Y172=\"\",\"\",入力シート!Y172)","v":""},null,null,null,null,null,null,null,null,null,null,null,null,null,"学年",null,null,"段位",null,null,"体重（kg）",null,null,null,null,"身長（cm）",null,null,null,null,"生年月日（西暦）"]
[null,null,"選手名",null,null,null,"（姓）",null,{"$f":"IF(入力シート!I173=\"\",\"\",入力シート!I173)","v":""},null,null,null,null,null,null,null,null,null,null,null,null,null,"（名）",null,{"$f":"IF(入力シート!Y173=\"\",\"\",入力シート!Y173)","v":""},null,null,null,null,null,null,null,null,null,null,null,null,null,{"$f":"IF(入力シート!AM172=\"\",\"\",入力シート!AM172)","v":""},null,null,{"$f":"IF(入力シート!AP172=\"\",\"\",入力シート!AP172)","v":""},null,null,{"$f":"IF(入力シート!AS172=\"\",\"\",入力シート!AS172)","v":""},null,null,null,null,{"$f":"IF(入力シート!AX172=\"\",\"\",入力シート!AX172)","v":""},null,null,null,null,{"$f":"IF(入力シート!BC172=\"\",\"\",入力シート!BC172)","v":""},null,null,null,"・",{"$f":"IF(入力シート!BH172=\"\",\"\",入力シート!BH172)","v":""},null,null,"・",{"$f":"IF(入力シート!BL172=\"\",\"\",入力シート!BL172)","v":""}]
[]
[]
[]
[]
[]
[]
[]
[]
[]
[]
[]
[null,null,"男子個人（特別枠）"]
[]
[null,null,null,null,null,null,null,null,null,null,null,null,null,null,"個　人　試　合　申　込　書",null,null,null,null,null,null,null,null,null,null,null,null,null,null,null,null,null,null,null,null,null,null,null,null,null,null,null,null,null,null,null,null,null,null,null,null,null,null,null,{"$f":"NOW()","v":"2019-10-03T13:10:59.980"}]
[]
[null,null,"※抽選番号",null,null,null,null,null,null,null,null,null,null,{"$f":"IF(入力シート!C176=\"\",\"\",入力シート!C176)","v":""},null,null,null,null,null,null,null,"kg級",null,null,null,{"$f":"入力シート!$O$47","v":"第69回大阪高等学校新人柔道大会"}]
[]
[null,null,"学校番号",null,null,null,"学　　　　校　　　　名",null,null,null,null,null,null,null,null,null,null,null,null,null,null,null,null,null,null,null,null,null,null,null,null,null,null,null,null,"監督名",null,null,null,null,null,null,null,null,null,null,null,null,null,null,"校長名"]
[null,null,{"$f":"入力シート!$C$9","v":0},null,null,null,{"$f":"入力シート!$G$9","v":""},null,null,null,null,null,null,null,null,null,null,null,null,null,null,null,null,null,null,"高等学校",null,null,null,null,null,null,null,null,null,{"$f":"入力シート!$AJ$9","v":0},null,null,null,null,null,null,null,null,null,null,null,"印",null,null,{"$f":"入力シート!$AY$9","v":0},null,null,null,null,null,null,null,null,null,null,null,"印"]
[]
[]
[null,null,"ふりがな",null,null,null,null,null,{"$f":"IF(入力シート!I176=\"\",\"\",入力シート!I176)","v":""},null,null,null,null,null,null,null,null,null,null,null,null,null,null,null,{"$f":"IF(入力シート!Y176=\"\",\"\",入力シート!Y176)","v":""},null,null,null,null,null,null,null,null,null,null,null,null,null,"学年",null,null,"段位",null,null,"体重（kg）",null,null,null,null,"身長（cm）",null,null,null,null,"生年月日（西暦）"]
[null,null,"選手名",null,null,null,"（姓）",null,{"$f":"IF(入力シート!I177=\"\",\"\",入力シート!I177)","v":""},null,null,null,null,null,null,null,null,null,null,null,null,null,"（名）",null,{"$f":"IF(入力シート!Y177=\"\",\"\",入力シート!Y177)","v":""},null,null,null,null,null,null,null,null,null,null,null,null,null,{"$f":"IF(入力シート!AM176=\"\",\"\",入力シート!AM176)","v":""},null,null,{"$f":"IF(入力シート!AP176=\"\",\"\",入力シート!AP176)","v":""},null,null,{"$f":"IF(入力シート!AS176=\"\",\"\",入力シート!AS176)","v":""},null,null,null,null,{"$f":"IF(入力シート!AX176=\"\",\"\",入力シート!AX176)","v":""},null,null,null,null,{"$f":"IF(入力シート!BC176=\"\",\"\",入力シート!BC176)","v":""},null,null,null,"・",{"$f":"IF(入力シート!BH176=\"\",\"\",入力シート!BH176)","v":""},null,null,"・",{"$f":"IF(入力シート!BL176=\"\",\"\",入力シート!BL176)","v":""}]
[]
[]
[]
[]
[]
[]
[]
[]
[]
[null,null,null,null,null,null,null,null,null,null,null,null,null,null,null,null,null,null,null,null,null,null,null,null,null,null,null,null,"（","ｷ　ﾘ　ﾄ　ﾘ",null,null,null,null,null,null,null,"）"]
[]
[null,null,"男子個人（特別枠）"]
[]
[null,null,null,null,null,null,null,null,null,null,null,null,null,null,"個　人　試　合　申　込　書",null,null,null,null,null,null,null,null,null,null,null,null,null,null,null,null,null,null,null,null,null,null,null,null,null,null,null,null,null,null,null,null,null,null,null,null,null,null,null,{"$f":"NOW()","v":"2019-10-03T13:10:59.980"}]
[]
[null,null,"※抽選番号",null,null,null,null,null,null,null,null,null,null,{"$f":"IF(入力シート!C180=\"\",\"\",入力シート!C180)","v":""},null,null,null,null,null,null,null,"kg級",null,null,null,{"$f":"入力シート!$O$47","v":"第69回大阪高等学校新人柔道大会"}]
[]
[null,null,"学校番号",null,null,null,"学　　　　校　　　　名",null,null,null,null,null,null,null,null,null,null,null,null,null,null,null,null,null,null,null,null,null,null,null,null,null,null,null,null,"監督名",null,null,null,null,null,null,null,null,null,null,null,null,null,null,"校長名"]
[null,null,{"$f":"入力シート!$C$9","v":0},null,null,null,{"$f":"入力シート!$G$9","v":""},null,null,null,null,null,null,null,null,null,null,null,null,null,null,null,null,null,null,"高等学校",null,null,null,null,null,null,null,null,null,{"$f":"入力シート!$AJ$9","v":0},null,null,null,null,null,null,null,null,null,null,null,"印",null,null,{"$f":"入力シート!$AY$9","v":0},null,null,null,null,null,null,null,null,null,null,null,"印"]
[]
[]
[null,null,"ふりがな",null,null,null,null,null,{"$f":"IF(入力シート!I180=\"\",\"\",入力シート!I180)","v":""},null,null,null,null,null,null,null,null,null,null,null,null,null,null,null,{"$f":"IF(入力シート!Y180=\"\",\"\",入力シート!Y180)","v":""},null,null,null,null,null,null,null,null,null,null,null,null,null,"学年",null,null,"段位",null,null,"体重（kg）",null,null,null,null,"身長（cm）",null,null,null,null,"生年月日（西暦）"]
[null,null,"選手名",null,null,null,"（姓）",null,{"$f":"IF(入力シート!I181=\"\",\"\",入力シート!I181)","v":""},null,null,null,null,null,null,null,null,null,null,null,null,null,"（名）",null,{"$f":"IF(入力シート!Y181=\"\",\"\",入力シート!Y181)","v":""},null,null,null,null,null,null,null,null,null,null,null,null,null,{"$f":"IF(入力シート!AM180=\"\",\"\",入力シート!AM180)","v":""},null,null,{"$f":"IF(入力シート!AP180=\"\",\"\",入力シート!AP180)","v":""},null,null,{"$f":"IF(入力シート!AS180=\"\",\"\",入力シート!AS180)","v":""},null,null,null,null,{"$f":"IF(入力シート!AX180=\"\",\"\",入力シート!AX180)","v":""},null,null,null,null,{"$f":"IF(入力シート!BC180=\"\",\"\",入力シート!BC180)","v":""},null,null,null,"・",{"$f":"IF(入力シート!BH180=\"\",\"\",入力シート!BH180)","v":""},null,null,"・",{"$f":"IF(入力シート!BL180=\"\",\"\",入力シート!BL180)","v":""}]
[]
[]
[]
[]
[]
[]
[]
[]
[]
[]
[]
[null,null,"男子個人（特別枠）"]
[]
[null,null,null,null,null,null,null,null,null,null,null,null,null,null,"個　人　試　合　申　込　書",null,null,null,null,null,null,null,null,null,null,null,null,null,null,null,null,null,null,null,null,null,null,null,null,null,null,null,null,null,null,null,null,null,null,null,null,null,null,null,{"$f":"NOW()","v":"2019-10-03T13:10:59.980"}]
[]
[null,null,"※抽選番号",null,null,null,null,null,null,null,null,null,null,{"$f":"IF(入力シート!C184=\"\",\"\",入力シート!C184)","v":""},null,null,null,null,null,null,null,"kg級",null,null,null,{"$f":"入力シート!$O$47","v":"第69回大阪高等学校新人柔道大会"}]
[]
[null,null,"学校番号",null,null,null,"学　　　　校　　　　名",null,null,null,null,null,null,null,null,null,null,null,null,null,null,null,null,null,null,null,null,null,null,null,null,null,null,null,null,"監督名",null,null,null,null,null,null,null,null,null,null,null,null,null,null,"校長名"]
[null,null,{"$f":"入力シート!$C$9","v":0},null,null,null,{"$f":"入力シート!$G$9","v":""},null,null,null,null,null,null,null,null,null,null,null,null,null,null,null,null,null,null,"高等学校",null,null,null,null,null,null,null,null,null,{"$f":"入力シート!$AJ$9","v":0},null,null,null,null,null,null,null,null,null,null,null,"印",null,null,{"$f":"入力シート!$AY$9","v":0},null,null,null,null,null,null,null,null,null,null,null,"印"]
[]
[]
[null,null,"ふりがな",null,null,null,null,null,{"$f":"IF(入力シート!I184=\"\",\"\",入力シート!I184)","v":""},null,null,null,null,null,null,null,null,null,null,null,null,null,null,null,{"$f":"IF(入力シート!Y184=\"\",\"\",入力シート!Y184)","v":""},null,null,null,null,null,null,null,null,null,null,null,null,null,"学年",null,null,"段位",null,null,"体重（kg）",null,null,null,null,"身長（cm）",null,null,null,null,"生年月日（西暦）"]
[null,null,"選手名",null,null,null,"（姓）",null,{"$f":"IF(入力シート!I185=\"\",\"\",入力シート!I185)","v":""},null,null,null,null,null,null,null,null,null,null,null,null,null,"（名）",null,{"$f":"IF(入力シート!Y185=\"\",\"\",入力シート!Y185)","v":""},null,null,null,null,null,null,null,null,null,null,null,null,null,{"$f":"IF(入力シート!AM184=\"\",\"\",入力シート!AM184)","v":""},null,null,{"$f":"IF(入力シート!AP184=\"\",\"\",入力シート!AP184)","v":""},null,null,{"$f":"IF(入力シート!AS184=\"\",\"\",入力シート!AS184)","v":""},null,null,null,null,{"$f":"IF(入力シート!AX184=\"\",\"\",入力シート!AX184)","v":""},null,null,null,null,{"$f":"IF(入力シート!BC184=\"\",\"\",入力シート!BC184)","v":""},null,null,null,"・",{"$f":"IF(入力シート!BH184=\"\",\"\",入力シート!BH184)","v":""},null,null,"・",{"$f":"IF(入力シート!BL184=\"\",\"\",入力シート!BL184)","v":""}]
[]
[]
[]
[]
[]
[]
[]
[]
[]
[null,null,null,null,null,null,null,null,null,null,null,null,null,null,null,null,null,null,null,null,null,null,null,null,null,null,null,null,"（","ｷ　ﾘ　ﾄ　ﾘ",null,null,null,null,null,null,null,"）"]
[]
[null,null,"男子個人（特別枠）"]
[]
[null,null,null,null,null,null,null,null,null,null,null,null,null,null,"個　人　試　合　申　込　書",null,null,null,null,null,null,null,null,null,null,null,null,null,null,null,null,null,null,null,null,null,null,null,null,null,null,null,null,null,null,null,null,null,null,null,null,null,null,null,{"$f":"NOW()","v":"2019-10-03T13:10:59.980"}]
[]
[null,null,"※抽選番号",null,null,null,null,null,null,null,null,null,null,{"$f":"IF(入力シート!C188=\"\",\"\",入力シート!C188)","v":""},null,null,null,null,null,null,null,"kg級",null,null,null,{"$f":"入力シート!$O$47","v":"第69回大阪高等学校新人柔道大会"}]
[]
[null,null,"学校番号",null,null,null,"学　　　　校　　　　名",null,null,null,null,null,null,null,null,null,null,null,null,null,null,null,null,null,null,null,null,null,null,null,null,null,null,null,null,"監督名",null,null,null,null,null,null,null,null,null,null,null,null,null,null,"校長名"]
[null,null,{"$f":"入力シート!$C$9","v":0},null,null,null,{"$f":"入力シート!$G$9","v":""},null,null,null,null,null,null,null,null,null,null,null,null,null,null,null,null,null,null,"高等学校",null,null,null,null,null,null,null,null,null,{"$f":"入力シート!$AJ$9","v":0},null,null,null,null,null,null,null,null,null,null,null,"印",null,null,{"$f":"入力シート!$AY$9","v":0},null,null,null,null,null,null,null,null,null,null,null,"印"]
[]
[]
[null,null,"ふりがな",null,null,null,null,null,{"$f":"IF(入力シート!I188=\"\",\"\",入力シート!I188)","v":""},null,null,null,null,null,null,null,null,null,null,null,null,null,null,null,{"$f":"IF(入力シート!Y188=\"\",\"\",入力シート!Y188)","v":""},null,null,null,null,null,null,null,null,null,null,null,null,null,"学年",null,null,"段位",null,null,"体重（kg）",null,null,null,null,"身長（cm）",null,null,null,null,"生年月日（西暦）"]
[null,null,"選手名",null,null,null,"（姓）",null,{"$f":"IF(入力シート!I189=\"\",\"\",入力シート!I189)","v":""},null,null,null,null,null,null,null,null,null,null,null,null,null,"（名）",null,{"$f":"IF(入力シート!Y189=\"\",\"\",入力シート!Y189)","v":""},null,null,null,null,null,null,null,null,null,null,null,null,null,{"$f":"IF(入力シート!AM188=\"\",\"\",入力シート!AM188)","v":""},null,null,{"$f":"IF(入力シート!AP188=\"\",\"\",入力シート!AP188)","v":""},null,null,{"$f":"IF(入力シート!AS188=\"\",\"\",入力シート!AS188)","v":""},null,null,null,null,{"$f":"IF(入力シート!AX188=\"\",\"\",入力シート!AX188)","v":""},null,null,null,null,{"$f":"IF(入力シート!BC188=\"\",\"\",入力シート!BC188)","v":""},null,null,null,"・",{"$f":"IF(入力シート!BH188=\"\",\"\",入力シート!BH188)","v":""},null,null,"・",{"$f":"IF(入力シート!BL188=\"\",\"\",入力シート!BL188)","v":""}]
[]
[]
[]
[]
[]
[]
[]
[]
[]
[]
[]
[null,null,"男子個人（特別枠）"]
[]
[null,null,null,null,null,null,null,null,null,null,null,null,null,null,"個　人　試　合　申　込　書",null,null,null,null,null,null,null,null,null,null,null,null,null,null,null,null,null,null,null,null,null,null,null,null,null,null,null,null,null,null,null,null,null,null,null,null,null,null,null,{"$f":"NOW()","v":"2019-10-03T13:10:59.980"}]
[]
[null,null,"※抽選番号",null,null,null,null,null,null,null,null,null,null,{"$f":"IF(入力シート!C192=\"\",\"\",入力シート!C192)","v":""},null,null,null,null,null,null,null,"kg級",null,null,null,{"$f":"入力シート!$O$47","v":"第69回大阪高等学校新人柔道大会"}]
[]
[null,null,"学校番号",null,null,null,"学　　　　校　　　　名",null,null,null,null,null,null,null,null,null,null,null,null,null,null,null,null,null,null,null,null,null,null,null,null,null,null,null,null,"監督名",null,null,null,null,null,null,null,null,null,null,null,null,null,null,"校長名"]
[null,null,{"$f":"入力シート!$C$9","v":0},null,null,null,{"$f":"入力シート!$G$9","v":""},null,null,null,null,null,null,null,null,null,null,null,null,null,null,null,null,null,null,"高等学校",null,null,null,null,null,null,null,null,null,{"$f":"入力シート!$AJ$9","v":0},null,null,null,null,null,null,null,null,null,null,null,"印",null,null,{"$f":"入力シート!$AY$9","v":0},null,null,null,null,null,null,null,null,null,null,null,"印"]
[]
[]
[null,null,"ふりがな",null,null,null,null,null,{"$f":"IF(入力シート!I192=\"\",\"\",入力シート!I192)","v":""},null,null,null,null,null,null,null,null,null,null,null,null,null,null,null,{"$f":"IF(入力シート!Y192=\"\",\"\",入力シート!Y192)","v":""},null,null,null,null,null,null,null,null,null,null,null,null,null,"学年",null,null,"段位",null,null,"体重（kg）",null,null,null,null,"身長（cm）",null,null,null,null,"生年月日（西暦）"]
[null,null,"選手名",null,null,null,"（姓）",null,{"$f":"IF(入力シート!I193=\"\",\"\",入力シート!I193)","v":""},null,null,null,null,null,null,null,null,null,null,null,null,null,"（名）",null,{"$f":"IF(入力シート!Y193=\"\",\"\",入力シート!Y193)","v":""},null,null,null,null,null,null,null,null,null,null,null,null,null,{"$f":"IF(入力シート!AM192=\"\",\"\",入力シート!AM192)","v":""},null,null,{"$f":"IF(入力シート!AP192=\"\",\"\",入力シート!AP192)","v":""},null,null,{"$f":"IF(入力シート!AS192=\"\",\"\",入力シート!AS192)","v":""},null,null,null,null,{"$f":"IF(入力シート!AX192=\"\",\"\",入力シート!AX192)","v":""},null,null,null,null,{"$f":"IF(入力シート!BC192=\"\",\"\",入力シート!BC192)","v":""},null,null,null,"・",{"$f":"IF(入力シート!BH192=\"\",\"\",入力シート!BH192)","v":""},null,null,"・",{"$f":"IF(入力シート!BL192=\"\",\"\",入力シート!BL192)","v":""}]
[]
[]
[]
[]
[]
[]
[]
[]
[]
[null,null,null,null,null,null,null,null,null,null,null,null,null,null,null,null,null,null,null,null,null,null,null,null,null,null,null,null,"（","ｷ　ﾘ　ﾄ　ﾘ",null,null,null,null,null,null,null,"）"]
[]
[null,null,"男子個人（特別枠）"]
[]
[null,null,null,null,null,null,null,null,null,null,null,null,null,null,"個　人　試　合　申　込　書",null,null,null,null,null,null,null,null,null,null,null,null,null,null,null,null,null,null,null,null,null,null,null,null,null,null,null,null,null,null,null,null,null,null,null,null,null,null,null,{"$f":"NOW()","v":"2019-10-03T13:10:59.980"}]
[]
[null,null,"※抽選番号",null,null,null,null,null,null,null,null,null,null,{"$f":"IF(入力シート!C196=\"\",\"\",入力シート!C196)","v":""},null,null,null,null,null,null,null,"kg級",null,null,null,{"$f":"入力シート!$O$47","v":"第69回大阪高等学校新人柔道大会"}]
[]
[null,null,"学校番号",null,null,null,"学　　　　校　　　　名",null,null,null,null,null,null,null,null,null,null,null,null,null,null,null,null,null,null,null,null,null,null,null,null,null,null,null,null,"監督名",null,null,null,null,null,null,null,null,null,null,null,null,null,null,"校長名"]
[null,null,{"$f":"入力シート!$C$9","v":0},null,null,null,{"$f":"入力シート!$G$9","v":""},null,null,null,null,null,null,null,null,null,null,null,null,null,null,null,null,null,null,"高等学校",null,null,null,null,null,null,null,null,null,{"$f":"入力シート!$AJ$9","v":0},null,null,null,null,null,null,null,null,null,null,null,"印",null,null,{"$f":"入力シート!$AY$9","v":0},null,null,null,null,null,null,null,null,null,null,null,"印"]
[]
[]
[null,null,"ふりがな",null,null,null,null,null,{"$f":"IF(入力シート!I196=\"\",\"\",入力シート!I196)","v":""},null,null,null,null,null,null,null,null,null,null,null,null,null,null,null,{"$f":"IF(入力シート!Y196=\"\",\"\",入力シート!Y196)","v":""},null,null,null,null,null,null,null,null,null,null,null,null,null,"学年",null,null,"段位",null,null,"体重（kg）",null,null,null,null,"身長（cm）",null,null,null,null,"生年月日（西暦）"]
[null,null,"選手名",null,null,null,"（姓）",null,{"$f":"IF(入力シート!I197=\"\",\"\",入力シート!I197)","v":""},null,null,null,null,null,null,null,null,null,null,null,null,null,"（名）",null,{"$f":"IF(入力シート!Y197=\"\",\"\",入力シート!Y197)","v":""},null,null,null,null,null,null,null,null,null,null,null,null,null,{"$f":"IF(入力シート!AM196=\"\",\"\",入力シート!AM196)","v":""},null,null,{"$f":"IF(入力シート!AP196=\"\",\"\",入力シート!AP196)","v":""},null,null,{"$f":"IF(入力シート!AS196=\"\",\"\",入力シート!AS196)","v":""},null,null,null,null,{"$f":"IF(入力シート!AX196=\"\",\"\",入力シート!AX196)","v":""},null,null,null,null,{"$f":"IF(入力シート!BC196=\"\",\"\",入力シート!BC196)","v":""},null,null,null,"・",{"$f":"IF(入力シート!BH196=\"\",\"\",入力シート!BH196)","v":""},null,null,"・",{"$f":"IF(入力シート!BL196=\"\",\"\",入力シート!BL196)","v":""}]

{"sheet":"プログラム男子","index":3,"n_rows":6,"n_cols":8,"rows_kept":6,"cut":false,"hidden":false,"merged":[[1,5,1,7],[2,2,2,5],[3,2,3,5],[5,2,5,5],[1,2,1,4],[4,2,4,5]]}
[]
[null,{"$f":"入力シート!G6","v":0},{"$f":"入力シート!L2","v":{"$error":"#N/A"}},null,null,{"$f":"入力シート!AJ9","v":0}]
[null,"先",{"$f":"IF(入力シート!I14=\"\",\"\",入力シート!I14&\"　\"&入力シート!Y14)","v":""},null,null,null,{"$f":"IF(入力シート!AM13=\"\",\"\",入力シート!AM13)","v":""},{"$f":"IF(入力シート!AP13=\"\",\"\",入力シート!AP13)","v":""}]
[null,"中",{"$f":"IF(入力シート!I18=\"\",\"\",入力シート!I18&\"　\"&入力シート!Y18)","v":""},null,null,null,{"$f":"IF(入力シート!AM17=\"\",\"\",入力シート!AM17)","v":""},{"$f":"IF(入力シート!AP17=\"\",\"\",入力シート!AP17)","v":""}]
[null,"大",{"$f":"IF(入力シート!I22=\"\",\"\",入力シート!I22&\"　\"&入力シート!Y22)","v":""},null,null,null,{"$f":"IF(入力シート!AM21=\"\",\"\",入力シート!AM21)","v":""},{"$f":"IF(入力シート!AP21=\"\",\"\",入力シート!AP21)","v":""}]
[null,"補",{"$f":"IF(入力シート!I26=\"\",\"\",入力シート!I26&\"　\"&入力シート!Y26)","v":""},null,null,null,{"$f":"IF(入力シート!AM25=\"\",\"\",入力シート!AM25)","v":""},{"$f":"IF(入力シート!AP25=\"\",\"\",入力シート!AP25)","v":""}]

{"sheet":"入力規則","index":4,"n_rows":198,"n_cols":19,"rows_kept":198,"cut":false,"hidden":true,"merged":[]}
["順序","学年","段位","西暦","月","日","個人戦年度","ランク","男子階級","入賞","女子階級","登録番号","校名",null,null,null,null,"大会名（女子）","大会名（男子）"]
["先鋒",1,"無",1996,1,1,25,"A",60,1,48,331,"桜宮",null,null,null,null,"全国大会大阪府予選会女子団体戦","全国大会大阪府予選会男子団体戦"]
["次鋒",2,"初",1997,2,2,26,"B",66,2,52,332,"汎愛",null,null,null,null,"全国大会大阪府予選会女子個人戦","全国大会大阪府予選会男子個人戦"]
["中堅",3,"弐",1998,3,3,27,"C",73,3,57,333,"東",null,null,null,null,"大阪高等学校女子体重別選手権大会","大阪高等学校総合体育大会柔道の部（男子団体戦）"]
["副将",4,"参",1999,4,4,28,"D",81,null,63,334,"南",null,null,null,null,"全国高等学校柔道選手権大会大阪府予選会","大阪高等学校総合体育大会柔道の部（男子個人戦）"]
["大将",null,null,2000,5,5,29,null,90,null,70,335,"生野工業",null,null,null,null,"全国高等学校柔道選手権大会女子個人試合大阪府一次予選会","全国高等学校柔道選手権大会大阪府予選会"]
["補欠1",null,null,2001,6,6,30,null,100,null,78,336,"都島工業",null,null,null,null,"全国高等学校柔道選手権大会男女個人試合大阪府予選会","全国高等学校柔道選手権大会男女個人試合大阪府予選会"]
["補欠2",null,null,2002,7,7,31,null,"+100",null,"+78",337,"東商"]
["補欠3",null,null,2003,8,8,32,null,55,null,44,338,"常翔学園"]
[null,null,null,2004,9,9,33,null,null,null,null,339,"大阪産業大学附属"]
[null,null,null,2005,10,10,34,null,null,null,null,340,"追手門大手前"]
[null,null,null,2006,11,11,35,null,null,null,null,341,"常翔啓光"]
[null,null,null,2007,12,12,36,null,null,null,null,342,"大阪偕星学園"]
[null,null,null,2008,null,13,37,null,null,null,null,343,"太成学院大学"]
[null,null,null,2009,null,14,38,null,null,null,null,344,"電通大"]
[null,null,null,2010,null,15,39,null,null,null,null,345,"同志社香里"]
[null,null,null,2011,null,16,40,null,null,null,null,346,"開明"]
[null,null,null,2012,null,17,41,null,null,null,null,347,"東海大学付属仰星"]
[null,null,null,2013,null,18,42,null,null,null,null,348,"泉尾"]
[null,null,null,2014,null,19,43,null,null,null,null,349,"和泉"]
[null,null,null,2015,null,20,44,null,null,null,null,350,"泉大津"]
[null,null,null,2016,null,21,45,null,null,null,null,351,"泉鳥取"]
[null,null,null,2017,null,22,46,null,null,null,null,352,"市岡"]
[null,null,null,2018,null,23,47,null,null,null,null,353,"今宮"]
[null,null,null,2019,null,24,48,null,null,null,null,354,"鳳"]
[null,null,null,2020,null,25,49,null,null,null,null,355,"貝塚"]
[null,null,null,null,null,26,50,null,null,null,null,356,"貝塚南"]
[null,null,null,null,null,27,51,null,null,null,null,357,"金岡"]
[null,null,null,null,null,28,52,null,null,null,null,358,"岸和田"]
[null,null,null,null,null,29,53,null,null,null,null,359,"港南造形"]
[null,null,null,null,null,30,54,null,null,null,null,360,"久米田"]
[null,null,null,null,null,31,55,null,null,null,null,361,"堺上"]
[null,null,null,null,null,null,null,null,null,null,null,362,"堺西"]
[null,null,null,null,null,null,null,null,null,null,null,363,"堺東"]
[null,null,null,null,null,null,null,null,null,null,null,364,"佐野"]
[null,null,null,null,null,null,null,null,null,null,null,365,"狭山"]
[null,null,null,null,null,null,null,null,null,null,null,366,"信太"]
[null,null,null,null,null,null,null,null,null,null,null,367,"咲洲"]
[null,null,null,null,null,null,null,null,null,null,null,368,"りんくう翔南"]
[null,null,null,null,null,null,null,null,null,null,null,369,"泉北"]
[null,null,null,null,null,null,null,null,null,null,null,370,"泉陽"]
[null,null,null,null,null,null,null,null,null,null,null,371,"大正"]
[null,null,null,null,null,null,null,null,null,null,null,372,"高石"]
[null,null,null,null,null,null,null,null,null,null,null,373,"登美丘"]
[null,null,null,null,null,null,null,null,null,null,null,374,"西成"]
[null,null,null,null,null,null,null,null,null,null,null,376,"伯太"]
[null,null,null,null,null,null,null,null,null,null,null,377,"阪南大学"]
[null,null,null,null,null,null,null,null,null,null,null,378,"東百舌鳥"]
[null,null,null,null,null,null,null,null,null,null,null,379,"福泉"]
[null,null,null,null,null,null,null,null,null,null,null,380,"成美"]
[null,null,null,null,null,null,null,null,null,null,null,381,"三国丘"]
[null,null,null,null,null,null,null,null,null,null,null,382,"岬"]
[null,null,null,null,null,null,null,null,null,null,null,383,"港"]
[null,null,null,null,null,null,null,null,null,null,null,384,"大和川"]
[null,null,null,null,null,null,null,null,null,null,null,385,"横山"]
[null,null,null,null,null,null,null,null,null,null,null,386,"和泉総合"]
[null,null,null,null,null,null,null,null,null,null,null,387,"今宮工科"]
[null,null,null,null,null,null,null,null,null,null,null,388,"堺工科"]
[null,null,null,null,null,null,null,null,null,null,null,389,"佐野工科"]
[null,null,null,null,null,null,null,null,null,null,null,390,"西野田工科"]
[null,null,null,null,null,null,null,null,null,null,null,391,"日根野"]
[null,null,null,null,null,null,null,null,null,null,null,392,"扇町"]
[null,null,null,null,null,null,null,null,null,null,null,393,"堺市商"]
[null,null,null,null,null,null,null,null,null,null,null,394,"泉尾工業"]
[null,null,null,null,null,null,null,null,null,null,null,395,"岸和田市立産業"]
[null,null,null,null,null,null,null,null,null,null,null,396,"咲くやこの花"]
[null,null,null,null,null,null,null,null,null,null,null,397,"堺市立堺"]
[null,null,null,null,null,null,null,null,null,null,null,398,"大阪商業大学堺　"]
[null,null,null,null,null,null,null,null,null,null,null,399,"大阪学芸"]
[null,null,null,null,null,null,null,null,null,null,null,400,"清教学園"]
[null,null,null,null,null,null,null,null,null,null,null,401,"浪速"]
[null,null,null,null,null,null,null,null,null,null,null,402,"初芝立命館"]
[null,null,null,null,null,null,null,null,null,null,null,404,"帝塚山泉ヶ丘"]
[null,null,null,null,null,null,null,null,null,null,null,405,"金剛学園"]
[null,null,null,null,null,null,null,null,null,null,null,406,"大体大浪商"]
[null,null,null,null,null,null,null,null,null,null,null,407,"教育大天王寺"]
[null,null,null,null,null,null,null,null,null,null,null,408,"教育大附平野"]
[null,null,null,null,null,null,null,null,null,null,null,409,"阿倍野"]
[null,null,null,null,null,null,null,null,null,null,null,410,"生野"]
[null,null,null,null,null,null,null,null,null,null,null,411,"池島"]
[null,null,null,null,null,null,null,null,null,null,null,412,"大塚"]
[null,null,null,null,null,null,null,null,null,null,null,413,"柏原東"]
[null,null,null,null,null,null,null,null,null,null,null,414,"河南"]
[null,null,null,null,null,null,null,null,null,null,null,416,"金剛"]
[null,null,null,null,null,null,null,null,null,null,null,417,"住吉"]
[null,null,null,null,null,null,null,null,null,null,null,418,"清友"]
[null,null,null,null,null,null,null,null,null,null,null,419,"天王寺"]
[null,null,null,null,null,null,null,null,null,null,null,420,"富田林"]
[null,null,null,null,null,null,null,null,null,null,null,421,"長野"]
[null,null,null,null,null,null,null,null,null,null,null,422,"長野北"]
[null,null,null,null,null,null,null,null,null,null,null,423,"長吉"]
[null,null,null,null,null,null,null,null,null,null,null,424,"西浦"]
[null,null,null,null,null,null,null,null,null,null,null,425,"花園"]
[null,null,null,null,null,null,null,null,null,null,null,426,"懐風館"]
[null,null,null,null,null,null,null,null,null,null,null,427,"東住吉"]
[null,null,null,null,null,null,null,null,null,null,null,428,"平野"]
[null,null,null,null,null,null,null,null,null,null,null,429,"藤井寺"]
[null,null,null,null,null,null,null,null,null,null,null,430,"布施"]
[null,null,null,null,null,null,null,null,null,null,null,431,"布施北"]
[null,null,null,null,null,null,null,null,null,null,null,432,"松原"]
[null,null,null,null,null,null,null,null,null,null,null,433,"美原"]
[null,null,null,null,null,null,null,null,null,null,null,434,"八尾"]
[null,null,null,null,null,null,null,null,null,null,null,435,"八尾北"]
[null,null,null,null,null,null,null,null,null,null,null,436,"八尾翠翔"]
[null,null,null,null,null,null,null,null,null,null,null,438,"山本"]
[null,null,null,null,null,null,null,null,null,null,null,439,"牧岡樟風"]
[null,null,null,null,null,null,null,null,null,null,null,440,"農芸"]
[null,null,null,null,null,null,null,null,null,null,null,441,"東住吉総"]
[null,null,null,null,null,null,null,null,null,null,null,442,"藤井寺工科"]
[null,null,null,null,null,null,null,null,null,null,null,443,"布施工科"]
[null,null,null,null,null,null,null,null,null,null,null,445,"日新"]
[null,null,null,null,null,null,null,null,null,null,null,446,"上宮"]
[null,null,null,null,null,null,null,null,null,null,null,447,"金光八尾"]
[null,null,null,null,null,null,null,null,null,null,null,448,"阪南大学"]
[null,null,null,null,null,null,null,null,null,null,null,449,"大阪商業大学"]
[null,null,null,null,null,null,null,null,null,null,null,450,"東大阪大学柏原"]
[null,null,null,null,null,null,null,null,null,null,null,451,"近畿大学附属"]
[null,null,null,null,null,null,null,null,null,null,null,452,"興國"]
[null,null,null,null,null,null,null,null,null,null,null,453,"四天王寺羽曳丘"]
[null,null,null,null,null,null,null,null,null,null,null,454,"大阪星光学園"]
[null,null,null,null,null,null,null,null,null,null,null,455,"清風"]
[null,null,null,null,null,null,null,null,null,null,null,456,"ＰＬ学園"]
[null,null,null,null,null,null,null,null,null,null,null,457,"桃山学院"]
[null,null,null,null,null,null,null,null,null,null,null,458,"芥川"]
[null,null,null,null,null,null,null,null,null,null,null,459,"阿武野"]
[null,null,null,null,null,null,null,null,null,null,null,460,"池田"]
[null,null,null,null,null,null,null,null,null,null,null,461,"池田北"]
[null,null,null,null,null,null,null,null,null,null,null,462,"茨木"]
[null,null,null,null,null,null,null,null,null,null,null,463,"茨木西"]
[null,null,null,null,null,null,null,null,null,null,null,464,"茨木東"]
[null,null,null,null,null,null,null,null,null,null,null,465,"園芸"]
[null,null,null,null,null,null,null,null,null,null,null,466,"春日丘"]
[null,null,null,null,null,null,null,null,null,null,null,467,"北千里"]
[null,null,null,null,null,null,null,null,null,null,null,468,"北野"]
[null,null,null,null,null,null,null,null,null,null,null,469,"柴島"]
[null,null,null,null,null,null,null,null,null,null,null,470,"桜塚"]
[null,null,null,null,null,null,null,null,null,null,null,471,"渋谷"]
[null,null,null,null,null,null,null,null,null,null,null,472,"少路"]
[null,null,null,null,null,null,null,null,null,null,null,473,"規の木"]
[null,null,null,null,null,null,null,null,null,null,null,474,"島本"]
[null,null,null,null,null,null,null,null,null,null,null,475,"城山"]
[null,null,null,null,null,null,null,null,null,null,null,476,"吹田"]
[null,null,null,null,null,null,null,null,null,null,null,477,"吹田東"]
[null,null,null,null,null,null,null,null,null,null,null,478,"摂津"]
[null,null,null,null,null,null,null,null,null,null,null,479,"千里"]
[null,null,null,null,null,null,null,null,null,null,null,481,"高槻北"]
[null,null,null,null,null,null,null,null,null,null,null,482,"豊島"]
[null,null,null,null,null,null,null,null,null,null,null,483,"豊中"]
[null,null,null,null,null,null,null,null,null,null,null,484,"鳥飼"]
[null,null,null,null,null,null,null,null,null,null,null,485,"西淀川"]
[null,null,null,null,null,null,null,null,null,null,null,486,"東豊中"]
[null,null,null,null,null,null,null,null,null,null,null,487,"東淀川"]
[null,null,null,null,null,null,null,null,null,null,null,488,"福井"]
[null,null,null,null,null,null,null,null,null,null,null,489,"三島"]
[null,null,null,null,null,null,null,null,null,null,null,490,"箕面"]
[null,null,null,null,null,null,null,null,null,null,null,491,"箕面東"]
[null,null,null,null,null,null,null,null,null,null,null,492,"茨木工科"]
[null,null,null,null,null,null,null,null,null,null,null,493,"大冠"]
[null,null,null,null,null,null,null,null,null,null,null,494,"北淀"]
[null,null,null,null,null,null,null,null,null,null,null,495,"淀商"]
[null,null,null,null,null,null,null,null,null,null,null,496,"東淀工業"]
[null,null,null,null,null,null,null,null,null,null,null,497,"大阪学院"]
[null,null,null,null,null,null,null,null,null,null,null,498,"大阪"]
[null,null,null,null,null,null,null,null,null,null,null,499,"大商学園"]
[null,null,null,null,null,null,null,null,null,null,null,500,"追手門学院"]
[null,null,null,null,null,null,null,null,null,null,null,501,"関西大倉"]
[null,null,null,null,null,null,null,null,null,null,null,502,"関大一"]
[null,null,null,null,null,null,null,null,null,null,null,503,"金光大阪"]
[null,null,null,null,null,null,null,null,null,null,null,504,"高槻"]
[null,null,null,null,null,null,null,null,null,null,null,505,"星翔"]
[null,null,null,null,null,null,null,null,null,null,null,506,"履正社"]
[null,null,null,null,null,null,null,null,null,null,null,507,"関大北陽"]
[null,null,null,null,null,null,null,null,null,null,null,508,"箕面学園"]
[null,null,null,null,null,null,null,null,null,null,null,509,"箕面自由学園"]
[null,null,null,null,null,null,null,null,null,null,null,550,"建国"]
[null,null,null,null,null,null,null,null,null,null,null,551,"能勢"]
[null,null,null,null,null,null,null,null,null,null,null,554,"四條畷北"]
[null,null,null,null,null,null,null,null,null,null,null,555,"野崎"]
[null,null,null,null,null,null,null,null,null,null,null,556,"関西創価"]
[null,null,null,null,null,null,null,null,null,null,null,557,"プール学院"]
[null,null,null,null,null,null,null,null,null,null,null,558,"清明学院"]
[null,null,null,null,null,null,null,null,null,null,null,562,"上宮太子"]
[null,null,null,null,null,null,null,null,null,null,null,564,"南寝屋川"]
[null,null,null,null,null,null,null,null,null,null,null,565,"鶴見商業"]
[null,null,null,null,null,null,null,null,null,null,null,569,"東大阪大学敬愛"]
[null,null,null,null,null,null,null,null,null,null,null,571,"英真学園"]
[null,null,null,null,null,null,null,null,null,null,null,597,"大阪朝鮮高級"]
[null,null,null,null,null,null,null,null,null,null,null,403,"清風南海"]
[null,null,null,null,null,null,null,null,null,null,null,560,"天王寺商業"]
[null,null,null,null,null,null,null,null,null,null,null,572,"山田"]
[null,null,null,null,null,null,null,null,null,null,null,575,"交野"]
[null,null,null,null,null,null,null,null,null,null,null,577,"西"]
[null,null,null,null,null,null,null,null,null,null,null,580,"金光藤蔭"]
[null,null,null,null,null,null,null,null,null,null,null,583,"福島女子"]
[null,null,null,null,null,null,null,null,null,null,null,584,"羽衣学園"]
[null,null,null,null,null,null,null,null,null,null,null,585,"国際滝井"]
[null,null,null,null,null,null,null,null,null,null,null,598,"大阪府立大工業高専"]
[null,null,null,null,null,null,null,null,null,null,null,587,"住吉商業"]

{"sheet":"申込選手一覧（個人）","index":5,"n_rows":37,"n_cols":9,"rows_kept":37,"cut":false,"hidden":false,"merged":[]}
[null,"階級","姓","名","ふりがな",null,"学年","段位"]
[1,{"$f":"入力シート!C51","v":0},{"$f":"入力シート!I52","v":0},{"$f":"入力シート!Y52","v":0},{"$f":"入力シート!I51&\"　\"&入力シート!Y51","v":"　"},{"$f":"IF(C2=\"\",\"\",\"（\"&入力シート!$L$2&\"）\")","v":{"$error":"#N/A"}},{"$f":"IF(C2=0,\"\",入力シート!AM51)","v":""},{"$f":"IF(D2=0,\"\",入力シート!AP51)","v":""},{"$f":"入力シート!$C$9","v":0}]
[2,{"$f":"入力シート!C55","v":0},{"$f":"入力シート!I56","v":0},{"$f":"入力シート!Y56","v":0},{"$f":"入力シート!I55&\"　\"&入力シート!Y55","v":"　"},{"$f":"IF(C3=\"\",\"\",\"（\"&入力シート!$L$2&\"）\")","v":{"$error":"#N/A"}},{"$f":"IF(C3=0,\"\",入力シート!AM55)","v":""},{"$f":"IF(D3=0,\"\",入力シート!AP55)","v":""},{"$f":"入力シート!$C$9","v":0}]
[3,{"$f":"入力シート!C59","v":0},{"$f":"入力シート!I60","v":0},{"$f":"入力シート!Y60","v":0},{"$f":"入力シート!I59&\"　\"&入力シート!Y59","v":"　"},{"$f":"IF(C4=\"\",\"\",\"（\"&入力シート!$L$2&\"）\")","v":{"$error":"#N/A"}},{"$f":"IF(C4=0,\"\",入力シート!AM59)","v":""},{"$f":"IF(D4=0,\"\",入力シート!AP59)","v":""},{"$f":"入力シート!$C$9","v":0}]
[4,{"$f":"入力シート!C63","v":0},{"$f":"入力シート!I64","v":0},{"$f":"入力シート!Y64","v":0},{"$f":"入力シート!I63&\"　\"&入力シート!Y63","v":"　"},{"$f":"IF(C5=\"\",\"\",\"（\"&入力シート!$L$2&\"）\")","v":{"$error":"#N/A"}},{"$f":"IF(C5=0,\"\",入力シート!AM63)","v":""},{"$f":"IF(D5=0,\"\",入力シート!AP63)","v":""},{"$f":"入力シート!$C$9","v":0}]
[5,{"$f":"入力シート!C67","v":0},{"$f":"入力シート!I68","v":0},{"$f":"入力シート!Y68","v":0},{"$f":"入力シート!I67&\"　\"&入力シート!Y67","v":"　"},{"$f":"IF(C6=\"\",\"\",\"（\"&入力シート!$L$2&\"）\")","v":{"$error":"#N/A"}},{"$f":"IF(C6=0,\"\",入力シート!AM67)","v":""},{"$f":"IF(D6=0,\"\",入力シート!AP67)","v":""},{"$f":"入力シート!$C$9","v":0}]
[6,{"$f":"入力シート!C71","v":0},{"$f":"入力シート!I72","v":0},{"$f":"入力シート!Y72","v":0},{"$f":"入力シート!I71&\"　\"&入力シート!Y71","v":"　"},{"$f":"IF(C7=\"\",\"\",\"（\"&入力シート!$L$2&\"）\")","v":{"$error":"#N/A"}},{"$f":"IF(C7=0,\"\",入力シート!AM71)","v":""},{"$f":"IF(D7=0,\"\",入力シート!AP71)","v":""},{"$f":"入力シート!$C$9","v":0}]
[7,{"$f":"入力シート!C75","v":0},{"$f":"入力シート!I76","v":0},{"$f":"入力シート!Y76","v":0},{"$f":"入力シート!I75&\"　\"&入力シート!Y75","v":"　"},{"$f":"IF(C8=\"\",\"\",\"（\"&入力シート!$L$2&\"）\")","v":{"$error":"#N/A"}},{"$f":"IF(C8=0,\"\",入力シート!AM75)","v":""},{"$f":"IF(D8=0,\"\",入力シート!AP75)","v":""},{"$f":"入力シート!$C$9","v":0}]
[8,{"$f":"入力シート!C79","v":0},{"$f":"入力シート!I80","v":0},{"$f":"入力シート!Y80","v":0},{"$f":"入力シート!I79&\"　\"&入力シート!Y79","v":"　"},{"$f":"IF(C9=\"\",\"\",\"（\"&入力シート!$L$2&\"）\")","v":{"$error":"#N/A"}},{"$f":"IF(C9=0,\"\",入力シート!AM79)","v":""},{"$f":"IF(D9=0,\"\",入力シート!AP79)","v":""},{"$f":"入力シート!$C$9","v":0}]
[9,{"$f":"入力シート!C83","v":0},{"$f":"入力シート!I84","v":0},{"$f":"入力シート!Y84","v":0},{"$f":"入力シート!I83&\"　\"&入力シート!Y83","v":"　"},{"$f":"IF(C10=\"\",\"\",\"（\"&入力シート!$L$2&\"）\")","v":{"$error":"#N/A"}},{"$f":"IF(C10=0,\"\",入力シート!AM83)","v":""},{"$f":"IF(D10=0,\"\",入力シート!AP83)","v":""},{"$f":"入力シート!$C$9","v":0}]
[10,{"$f":"入力シート!C87","v":0},{"$f":"入力シート!I88","v":0},{"$f":"入力シート!Y88","v":0},{"$f":"入力シート!I87&\"　\"&入力シート!Y87","v":"　"},{"$f":"IF(C11=\"\",\"\",\"（\"&入力シート!$L$2&\"）\")","v":{"$error":"#N/A"}},{"$f":"IF(C11=0,\"\",入力シート!AM87)","v":""},{"$f":"IF(D11=0,\"\",入力シート!AP87)","v":""},{"$f":"入力シート!$C$9","v":0}]
[11,{"$f":"入力シート!C91","v":0},{"$f":"入力シート!I92","v":0},{"$f":"入力シート!Y92","v":0},{"$f":"入力シート!I91&\"　\"&入力シート!Y91","v":"　"},{"$f":"IF(C12=\"\",\"\",\"（\"&入力シート!$L$2&\"）\")","v":{"$error":"#N/A"}},{"$f":"IF(C12=0,\"\",入力シート!AM91)","v":""},{"$f":"IF(D12=0,\"\",入力シート!AP91)","v":""},{"$f":"入力シート!$C$9","v":0}]
[12,{"$f":"入力シート!C95","v":0},{"$f":"入力シート!I96","v":0},{"$f":"入力シート!Y96","v":0},{"$f":"入力シート!I95&\"　\"&入力シート!Y95","v":"　"},{"$f":"IF(C13=\"\",\"\",\"（\"&入力シート!$L$2&\"）\")","v":{"$error":"#N/A"}},{"$f":"IF(C13=0,\"\",入力シート!AM95)","v":""},{"$f":"IF(D13=0,\"\",入力シート!AP95)","v":""},{"$f":"入力シート!$C$9","v":0}]
[13,{"$f":"入力シート!C99","v":0},{"$f":"入力シート!I100","v":0},{"$f":"入力シート!Y100","v":0},{"$f":"入力シート!I99&\"　\"&入力シート!Y99","v":"　"},{"$f":"IF(C14=\"\",\"\",\"（\"&入力シート!$L$2&\"）\")","v":{"$error":"#N/A"}},{"$f":"IF(C14=0,\"\",入力シート!AM99)","v":""},{"$f":"IF(D14=0,\"\",入力シート!AP99)","v":""},{"$f":"入力シート!$C$9","v":0}]
[14,{"$f":"入力シート!C103","v":0},{"$f":"入力シート!I104","v":0},{"$f":"入力シート!Y104","v":0},{"$f":"入力シート!I103&\"　\"&入力シート!Y103","v":"　"},{"$f":"IF(C15=\"\",\"\",\"（\"&入力シート!$L$2&\"）\")","v":{"$error":"#N/A"}},{"$f":"IF(C15=0,\"\",入力シート!AM103)","v":""},{"$f":"IF(D15=0,\"\",入力シート!AP103)","v":""},{"$f":"入力シート!$C$9","v":0}]
[15,{"$f":"入力シート!C112","v":0},{"$f":"入力シート!I113","v":0},{"$f":"入力シート!Y113","v":0},{"$f":"入力シート!I112&\"　\"&入力シート!Y112","v":"　"},{"$f":"IF(C16=\"\",\"\",\"（\"&入力シート!$L$2&\"）\")","v":{"$error":"#N/A"}},{"$f":"IF(C16=0,\"\",入力シート!AM112)","v":""},{"$f":"IF(D16=0,\"\",入力シート!AP112)","v":""},{"$f":"入力シート!$C$9","v":0}]
[16,{"$f":"入力シート!C116","v":0},{"$f":"入力シート!I117","v":0},{"$f":"入力シート!Y117","v":0},{"$f":"入力シート!I116&\"　\"&入力シート!Y116","v":"　"},{"$f":"IF(C17=\"\",\"\",\"（\"&入力シート!$L$2&\"）\")","v":{"$error":"#N/A"}},{"$f":"IF(C17=0,\"\",入力シート!AM116)","v":""},{"$f":"IF(D17=0,\"\",入力シート!AP116)","v":""},{"$f":"入力シート!$C$9","v":0}]
[17,{"$f":"入力シート!C120","v":0},{"$f":"入力シート!I121","v":0},{"$f":"入力シート!Y121","v":0},{"$f":"入力シート!I120&\"　\"&入力シート!Y120","v":"　"},{"$f":"IF(C18=\"\",\"\",\"（\"&入力シート!$L$2&\"）\")","v":{"$error":"#N/A"}},{"$f":"IF(C18=0,\"\",入力シート!AM120)","v":""},{"$f":"IF(D18=0,\"\",入力シート!AP120)","v":""},{"$f":"入力シート!$C$9","v":0}]
[18,{"$f":"入力シート!C124","v":0},{"$f":"入力シート!I125","v":0},{"$f":"入力シート!Y125","v":0},{"$f":"入力シート!I124&\"　\"&入力シート!Y124","v":"　"},{"$f":"IF(C19=\"\",\"\",\"（\"&入力シート!$L$2&\"）\")","v":{"$error":"#N/A"}},{"$f":"IF(C19=0,\"\",入力シート!AM124)","v":""},{"$f":"IF(D19=0,\"\",入力シート!AP124)","v":""},{"$f":"入力シート!$C$9","v":0}]
[19,{"$f":"入力シート!C128","v":0},{"$f":"入力シート!I129","v":0},{"$f":"入力シート!Y129","v":0},{"$f":"入力シート!I128&\"　\"&入力シート!Y128","v":"　"},{"$f":"IF(C20=\"\",\"\",\"（\"&入力シート!$L$2&\"）\")","v":{"$error":"#N/A"}},{"$f":"IF(C20=0,\"\",入力シート!AM128)","v":""},{"$f":"IF(D20=0,\"\",入力シート!AP128)","v":""},{"$f":"入力シート!$C$9","v":0}]
[20,{"$f":"入力シート!C132","v":0},{"$f":"入力シート!I133","v":0},{"$f":"入力シート!Y133","v":0},{"$f":"入力シート!I132&\"　\"&入力シート!Y132","v":"　"},{"$f":"IF(C21=\"\",\"\",\"（\"&入力シート!$L$2&\"）\")","v":{"$error":"#N/A"}},{"$f":"IF(C21=0,\"\",入力シート!AM132)","v":""},{"$f":"IF(D21=0,\"\",入力シート!AP132)","v":""},{"$f":"入力シート!$C$9","v":0}]
[21,{"$f":"入力シート!C136","v":0},{"$f":"入力シート!I137","v":0},{"$f":"入力シート!Y137","v":0},{"$f":"入力シート!I136&\"　\"&入力シート!Y136","v":"　"},{"$f":"IF(C22=\"\",\"\",\"（\"&入力シート!$L$2&\"）\")","v":{"$error":"#N/A"}},{"$f":"IF(C22=0,\"\",入力シート!AM136)","v":""},{"$f":"IF(D22=0,\"\",入力シート!AP136)","v":""},{"$f":"入力シート!$C$9","v":0}]
[22,{"$f":"入力シート!C140","v":0},{"$f":"入力シート!I141","v":0},{"$f":"入力シート!Y141","v":0},{"$f":"入力シート!I140&\"　\"&入力シート!Y140","v":"　"},{"$f":"IF(C23=\"\",\"\",\"（\"&入力シート!$L$2&\"）\")","v":{"$error":"#N/A"}},{"$f":"IF(C23=0,\"\",入力シート!AM140)","v":""},{"$f":"IF(D23=0,\"\",入力シート!AP140)","v":""},{"$f":"入力シート!$C$9","v":0}]
[23,{"$f":"入力シート!C144","v":0},{"$f":"入力シート!I145","v":0},{"$f":"入力シート!Y145","v":0},{"$f":"入力シート!I144&\"　\"&入力シート!Y144","v":"　"},{"$f":"IF(C24=\"\",\"\",\"（\"&入力シート!$L$2&\"）\")","v":{"$error":"#N/A"}},{"$f":"IF(C24=0,\"\",入力シート!AM144)","v":""},{"$f":"IF(D24=0,\"\",入力シート!AP144)","v":""},{"$f":"入力シート!$C$9","v":0}]
[24,{"$f":"入力シート!C148","v":0},{"$f":"入力シート!I149","v":0},{"$f":"入力シート!Y149","v":0},{"$f":"入力シート!I148&\"　\"&入力シート!Y148","v":"　"},{"$f":"IF(C25=\"\",\"\",\"（\"&入力シート!$L$2&\"）\")","v":{"$error":"#N/A"}},{"$f":"IF(C25=0,\"\",入力シート!AM148)","v":""},{"$f":"IF(D25=0,\"\",入力シート!AP148)","v":""},{"$f":"入力シート!$C$9","v":0}]
[25,{"$f":"入力シート!C152","v":0},{"$f":"入力シート!I153","v":0},{"$f":"入力シート!Y153","v":0},{"$f":"入力シート!I152&\"　\"&入力シート!Y152","v":"　"},{"$f":"IF(C26=\"\",\"\",\"（\"&入力シート!$L$2&\"）\")","v":{"$error":"#N/A"}},{"$f":"IF(C26=0,\"\",入力シート!AM152)","v":""},{"$f":"IF(D26=0,\"\",入力シート!AP152)","v":""},{"$f":"入力シート!$C$9","v":0}]
[26,{"$f":"入力シート!C156","v":0},{"$f":"入力シート!I157","v":0},{"$f":"入力シート!Y157","v":0},{"$f":"入力シート!I156&\"　\"&入力シート!Y156","v":"　"},{"$f":"IF(C27=\"\",\"\",\"（\"&入力シート!$L$2&\"）\")","v":{"$error":"#N/A"}},{"$f":"IF(C27=0,\"\",入力シート!AM156)","v":""},{"$f":"IF(D27=0,\"\",入力シート!AP156)","v":""},{"$f":"入力シート!$C$9","v":0}]
[27,{"$f":"入力シート!C160","v":0},{"$f":"入力シート!I161","v":0},{"$f":"入力シート!Y161","v":0},{"$f":"入力シート!I160&\"　\"&入力シート!Y160","v":"　"},{"$f":"IF(C28=\"\",\"\",\"（\"&入力シート!$L$2&\"）\")","v":{"$error":"#N/A"}},{"$f":"IF(C28=0,\"\",入力シート!AM160)","v":""},{"$f":"IF(D28=0,\"\",入力シート!AP160)","v":""},{"$f":"入力シート!$C$9","v":0}]
[28,{"$f":"入力シート!C164","v":0},{"$f":"入力シート!I165","v":0},{"$f":"入力シート!Y165","v":0},{"$f":"入力シート!I164&\"　\"&入力シート!Y164","v":"　"},{"$f":"IF(C29=\"\",\"\",\"（\"&入力シート!$L$2&\"）\")","v":{"$error":"#N/A"}},{"$f":"IF(C29=0,\"\",入力シート!AM164)","v":""},{"$f":"IF(D29=0,\"\",入力シート!AP164)","v":""},{"$f":"入力シート!$C$9","v":0}]
[29,{"$f":"入力シート!C168","v":0},{"$f":"入力シート!I169","v":0},{"$f":"入力シート!Y169","v":0},{"$f":"入力シート!I168&\"　\"&入力シート!Y168","v":"　"},{"$f":"IF(C30=\"\",\"\",\"（\"&入力シート!$L$2&\"）\")","v":{"$error":"#N/A"}},{"$f":"IF(C30=0,\"\",入力シート!AM168)","v":""},{"$f":"IF(D30=0,\"\",入力シート!AP168)","v":""},{"$f":"入力シート!$C$9","v":0}]
[30,{"$f":"入力シート!C172","v":0},{"$f":"入力シート!I173","v":0},{"$f":"入力シート!Y173","v":0},{"$f":"入力シート!I172&\"　\"&入力シート!Y172","v":"　"},{"$f":"IF(C31=\"\",\"\",\"（\"&入力シート!$L$2&\"）\")","v":{"$error":"#N/A"}},{"$f":"IF(C31=0,\"\",入力シート!AM172)","v":""},{"$f":"IF(D31=0,\"\",入力シート!AP172)","v":""},{"$f":"入力シート!$C$9","v":0}]
[31,{"$f":"入力シート!C176","v":0},{"$f":"入力シート!I177","v":0},{"$f":"入力シート!Y177","v":0},{"$f":"入力シート!I176&\"　\"&入力シート!Y176","v":"　"},{"$f":"IF(C32=\"\",\"\",\"（\"&入力シート!$L$2&\"）\")","v":{"$error":"#N/A"}},{"$f":"IF(C32=0,\"\",入力シート!AM176)","v":""},{"$f":"IF(D32=0,\"\",入力シート!AP176)","v":""},{"$f":"入力シート!$C$9","v":0}]
[32,{"$f":"入力シート!C180","v":0},{"$f":"入力シート!I181","v":0},{"$f":"入力シート!Y181","v":0},{"$f":"入力シート!I180&\"　\"&入力シート!Y180","v":"　"},{"$f":"IF(C33=\"\",\"\",\"（\"&入力シート!$L$2&\"）\")","v":{"$error":"#N/A"}},{"$f":"IF(C33=0,\"\",入力シート!AM180)","v":""},{"$f":"IF(D33=0,\"\",入力シート!AP180)","v":""},{"$f":"入力シート!$C$9","v":0}]
[33,{"$f":"入力シート!C184","v":0},{"$f":"入力シート!I185","v":0},{"$f":"入力シート!Y185","v":0},{"$f":"入力シート!I184&\"　\"&入力シート!Y184","v":"　"},{"$f":"IF(C34=\"\",\"\",\"（\"&入力シート!$L$2&\"）\")","v":{"$error":"#N/A"}},{"$f":"IF(C34=0,\"\",入力シート!AM184)","v":""},{"$f":"IF(D34=0,\"\",入力シート!AP184)","v":""},{"$f":"入力シート!$C$9","v":0}]
[34,{"$f":"入力シート!C188","v":0},{"$f":"入力シート!I189","v":0},{"$f":"入力シート!Y189","v":0},{"$f":"入力シート!I188&\"　\"&入力シート!Y188","v":"　"},{"$f":"IF(C35=\"\",\"\",\"（\"&入力シート!$L$2&\"）\")","v":{"$error":"#N/A"}},{"$f":"IF(C35=0,\"\",入力シート!AM188)","v":""},{"$f":"IF(D35=0,\"\",入力シート!AP188)","v":""},{"$f":"入力シート!$C$9","v":0}]
[35,{"$f":"入力シート!C192","v":0},{"$f":"入力シート!I193","v":0},{"$f":"入力シート!Y193","v":0},{"$f":"入力シート!I192&\"　\"&入力シート!Y192","v":"　"},{"$f":"IF(C36=\"\",\"\",\"（\"&入力シート!$L$2&\"）\")","v":{"$error":"#N/A"}},{"$f":"IF(C36=0,\"\",入力シート!AM192)","v":""},{"$f":"IF(D36=0,\"\",入力シート!AP192)","v":""},{"$f":"入力シート!$C$9","v":0}]
[36,{"$f":"入力シート!C196","v":0},{"$f":"入力シート!I197","v":0},{"$f":"入力シート!Y197","v":0},{"$f":"入力シート!I196&\"　\"&入力シート!Y196","v":"　"},{"$f":"IF(C37=\"\",\"\",\"（\"&入力シート!$L$2&\"）\")","v":{"$error":"#N/A"}},{"$f":"IF(C37=0,\"\",入力シート!AM196)","v":""},{"$f":"IF(D37=0,\"\",入力シート!AP196)","v":""},{"$f":"入力シート!$C$9","v":0}]